Workbook

Sheet Title
F2: CENTERS FOR DISEASE CONTROL & PREVENTION (CDC)
E6: Generic EbolaResponse (ER)
E8: Modeling the spread of disease impact & intervention
I9: Version 2.5
G10: Contributors: Michael Washington, Charisma Atkins, Martin Meltzer
F14: Division of Preparedness & Emerging Infections
F15: Health Economics & Modeling Unit (HEMU)
F16: 2014-09-22
A100: 2014-08-14 | B100: First draft sent out
A101: 2014-08-15 | B101: Further description added to each white cell explaining what type of data should be entered
B102: Text box added on each page informing user that any data presented in white cell can be altered
A103: 8/20/2014 Added more description and more pop up boxes.
B104: Checked out more bugs and made updates as necessary
A105: 2014-09-11 | B105: Replaced all "quarantine" with "isolatioin" as requested by DGMQ
A106: 2014-09-15 | B106: Added the definition of correction factor to be submitted to MMWR.
B107: Also, clarified wording as requested by CDC leadership
A108: 2014-09-21 | B108: Removed mention of quarantine from in-cell description text

Sheet Intro
D1: INFORMATION & NAVIGATION
D5: Model Overview: We built a spreadsheet-based model that (1) allows user to estimate the number of Ebola cases in a community, (2) tracks patients susceptibility to disease through infectivity,
F6: incubation, recovery, and death, and (3) calculates the spread of Ebola and its impact for 300 days. The timeline of 300 days is longer than most of the previously recorded outbreaks of Ebola or Marburg.
F7: The latter is caused by Marburg virus, which is very similar to Ebola; Allaranga et al., 2010; Borchet et al, 2011).
F8: (Sources: Allaranga Y, Kone ML, Formenty P, Libama F, Boumandouki P, Woodfill CJ, Sow I, Duale S, Alemu W, Yada A. Lessons learned during active epidemiological surveillance of Ebola and Marburg viral hemorrhagic
F9: fever epidemics in Africa. East Afr J Public Health. 2010 Mar;7(1):30-6. Borchert M, Mutyaba I, Van Kerkhove MD, Lutwama J, Luwaga H, Bisoborwa G, Turyagaruka J, Pirard P, Ndayimirije N, Roddy P, Van Der Stuyft P.
F10: Ebola haemorrhagic fever outbreak in Masindi District, Uganda: outbreak description and lessons learned. BMC Infect Dis. 2011 Dec 28;11:357. doi: 10.1186/1471-2334-11-357.)
D12: Model Description: Estimate the daily movement of patients using disease probabilities for three (3) different categories of isolation: Hospitalization, Eff Home Isolation (i.e., at home or in a cmmunity setting such that there
F13: is a reduced risk of disease transmission including safe burial when needed), and No Home Isolation. We used probabilities, drawn from reports of previous Ebola outbreaks, to model the daily movement of
F14: patients between and within the various disease categories (i.e., susceptible, incubation, infectious, revocery/death).
D16: Type of Model: | F16: Susceptibile, Incubation, Infectious, Recovery (SIIR) Model, similar in concept to to that built by Chowell et al
F17: (Source: Chowell G, Hengartner NW, Castillo-Chavez C, Fenimore PW, Hyman JM. The basic reproductive number of Ebola and the effects of public health measures: the cases of Congo and Uganda.
F18: J Theor Biol. 2004 Jul 7;229(1):119-26).
D20: Other data sources: We used historical data from earlier outbreaks of EVD in Africa. The model can be updated, and estimates re-calculated, as more data from the current outbreak become available.
L22: NAVIGATION COMMANDS:
M24: Select to begin using model or to return to start page
M27: Select to advance to next worksheet
M30: Select to return to previous worksheet
M33: User may enter any data in white cells
M36: User CANNOT alter any data presented in gray cells
M39: Information presented in yellow text boxes contains helpful information
M42: Command boxes that contain detail information about a topic on the worksheet

Sheet Population
E1: GENERIC POPULATION & INCUBATION
AG4: 1
I5: Human Population | K5: 10000000 | AG5: 2 | AJ5: Legrand
AG6: 3 | AJ6: Elchner
AG7: 6
H8: Number of Initially Infected | K8: 25 | AG8: 7
AG9: 8
F10: Select from drop down menu, the number of days people are expected to be infectious (1-15): | AG10: 9
I11: Days People are Infectious | K11: 6 | AG11: 10
AG12: 11
AG13: 12
G14: Select from dop down menu, one of the three incubation distribution references*: | AG14: 13
M15: Log Normal Distribution | AG15: 14
M16: Mean | N16: Standard Deviation | AG16: 15
G17: Incubation Distribution by Day | K17: =Incubation!K14 -> Default | M17: =VLOOKUP(Incubation!$K$14,Incubation!$A$52:$AC$54,28,FALSE) -> 6.3 | N17: =VLOOKUP(Incubation!$K$14,Incubation!$A$52:$AC$54,29,FALSE) -> 3.31
N20: INCUBATION DISTRIBUTION
H21: To alter the incubation distribution, please click here
F23: The incubation distribution by day can be changed, but we recommend you leave it fixed using the default settings.

Sheet Incubation
E1: ADDITIONAL INFORMATION: INCUBATION
AG4: 1
AG5: 2 | AJ5: Legrand
AG6: 3 | AJ6: Elchner
AG7: 4 | AJ7: Default
AG8: 5
AG9: 6
AG10: 7
G11: Select from dop down menu, one of the three distribution references*: | AG11: 9
M12: Log Normal Distribution | AG12: 10
M13: Mean | N13: Standard Deviation | AG13: 11
G14: Incubation Distribution by Day | K14: Default | M14: =VLOOKUP($K$14,$A$52:$AC$54,28,FALSE) -> 6.3 | N14: =VLOOKUP($K$14,$A$52:$AC$54,29,FALSE) -> 3.31 | AG14: 12
AG15: 13
A16: 1 | B16: 2 | C16: 3 | D16: 4 | E16: 5 | F16: 6 | G16: 7 | H16: 8 | I16: 9 | J16: 10 | K16: 11 | L16: 12 | M16: 13 | N16: 14 | O16: 15 | P16: 16 | Q16: 17 | R16: 18 | S16: 19 | T16: 20 | U16: 21 | V16: 22 | W16: 23 | X16: 24 | Y16: 25 | AG16: 14
A17: =HLOOKUP(A16,Incubation!$A$51:$Z$54,MATCH(Incubation!$K$14,Incubation!$A$51:$A$54,0),FALSE) -> 0 | B17: =HLOOKUP(B16,Incubation!$A$51:$Z$54,MATCH(Incubation!$K$14,Incubation!$A$51:$A$54,0),FALSE) -> 0.0196 | C17: =HLOOKUP(C16,Incubation!$A$51:$Z$54,MATCH(Incubation!$K$14,Incubation!$A$51:$A$54,0),FALSE) -> 0.086 | D17: =HLOOKUP(D16,Incubation!$A$51:$Z$54,MATCH(Incubation!$K$14,Incubation!$A$51:$A$54,0),FALSE) -> 0.153 | E17: =HLOOKUP(E16,Incubation!$A$51:$Z$54,MATCH(Incubation!$K$14,Incubation!$A$51:$A$54,0),FALSE) -> 0.1606 | F17: =HLOOKUP(F16,Incubation!$A$51:$Z$54,MATCH(Incubation!$K$14,Incubation!$A$51:$A$54,0),FALSE) -> 0.1404 | G17: =HLOOKUP(G16,Incubation!$A$51:$Z$54,MATCH(Incubation!$K$14,Incubation!$A$51:$A$54,0),FALSE) -> 0.122 | H17: =HLOOKUP(H16,Incubation!$A$51:$Z$54,MATCH(Incubation!$K$14,Incubation!$A$51:$A$54,0),FALSE) -> 0.0858 | I17: =HLOOKUP(I16,Incubation!$A$51:$Z$54,MATCH(Incubation!$K$14,Incubation!$A$51:$A$54,0),FALSE) -> 0.0646 | J17: =HLOOKUP(J16,Incubation!$A$51:$Z$54,MATCH(Incubation!$K$14,Incubation!$A$51:$A$54,0),FALSE) -> 0.0524 | K17: =HLOOKUP(K16,Incubation!$A$51:$Z$54,MATCH(Incubation!$K$14,Incubation!$A$51:$A$54,0),FALSE) -> 0.0336 | L17: =HLOOKUP(L16,Incubation!$A$51:$Z$54,MATCH(Incubation!$K$14,Incubation!$A$51:$A$54,0),FALSE) -> 0.0246 | M17: =HLOOKUP(M16,Incubation!$A$51:$Z$54,MATCH(Incubation!$K$14,Incubation!$A$51:$A$54,0),FALSE) -> 0.015 | N17: =HLOOKUP(N16,Incubation!$A$51:$Z$54,MATCH(Incubation!$K$14,Incubation!$A$51:$A$54,0),FALSE) -> 0.0132 | O17: =HLOOKUP(O16,Incubation!$A$51:$Z$54,MATCH(Incubation!$K$14,Incubation!$A$51:$A$54,0),FALSE) -> 0.007 | P17: =HLOOKUP(P16,Incubation!$A$51:$Z$54,MATCH(Incubation!$K$14,Incubation!$A$51:$A$54,0),FALSE) -> 0.0054 | Q17: =HLOOKUP(Q16,Incubation!$A$51:$Z$54,MATCH(Incubation!$K$14,Incubation!$A$51:$A$54,0),FALSE) -> 0.003 | R17: =HLOOKUP(R16,Incubation!$A$51:$Z$54,MATCH(Incubation!$K$14,Incubation!$A$51:$A$54,0),FALSE) -> 0.0036 | S17: =HLOOKUP(S16,Incubation!$A$51:$Z$54,MATCH(Incubation!$K$14,Incubation!$A$51:$A$54,0),FALSE) -> 0.003 | T17: =HLOOKUP(T16,Incubation!$A$51:$Z$54,MATCH(Incubation!$K$14,Incubation!$A$51:$A$54,0),FALSE) -> 0.0016 | U17: =HLOOKUP(U16,Incubation!$A$51:$Z$54,MATCH(Incubation!$K$14,Incubation!$A$51:$A$54,0),FALSE) -> 0.0018 | V17: =HLOOKUP(V16,Incubation!$A$51:$Z$54,MATCH(Incubation!$K$14,Incubation!$A$51:$A$54,0),FALSE) -> 0.0016 | W17: =HLOOKUP(W16,Incubation!$A$51:$Z$54,MATCH(Incubation!$K$14,Incubation!$A$51:$A$54,0),FALSE) -> 0.0012 | X17: =HLOOKUP(X16,Incubation!$A$51:$Z$54,MATCH(Incubation!$K$14,Incubation!$A$51:$A$54,0),FALSE) -> 0.0006 | Y17: =HLOOKUP(Y16,Incubation!$A$51:$Z$54,MATCH(Incubation!$K$14,Incubation!$A$51:$A$54,0),FALSE) -> 0.0004 | AG17: 15
B51: 1 | C51: 2 | D51: 3 | E51: 4 | F51: 5 | G51: 6 | H51: 7 | I51: 8 | J51: 9 | K51: 10 | L51: 11 | M51: 12 | N51: 13 | O51: 14 | P51: 15 | Q51: 16 | R51: 17 | S51: 18 | T51: 19 | U51: 20 | V51: 21 | W51: 22 | X51: 23 | Y51: 24 | Z51: 25 | AB51: Mean | AC51: StD
A52: Legrand | B52: 0.0036 | C52: 0.057 | D52: 0.1338 | E52: 0.151 | F52: 0.132 | G52: 0.1162 | H52: 0.0942 | I52: 0.0684 | J52: 0.0552 | K52: 0.042 | L52: 0.0374 | M52: 0.024 | N52: 0.018 | O52: 0.0138 | P52: 0.0102 | Q52: 0.0102 | R52: 0.006 | S52: 0.0048 | T52: 0.0032 | U52: 0.0038 | V52: 0.00244 | W52: 0.00344 | X52: 0.00324 | Y52: 0.00304 | Z52: 0.00304 | AA52: =SUM(B52:Z52) -> 1 | AB52: 6.3 | AC52: 4.31
A53: Elchner | B53: 0 | C53: 0 | D53: 0 | E53: 0 | F53: 0.0036 | G53: 0.0144 | H53: 0.0302 | I53: 0.0604 | J53: 0.0904 | K53: 0.1 | L53: 0.1034 | M53: 0.0966 | N53: 0.0958 | O53: 0.0868 | P53: 0.0686 | Q53: 0.0538 | R53: 0.047 | S53: 0.0422 | T53: 0.0266 | U53: 0.021 | V53: 0.01648 | W53: 0.01668 | X53: 0.01048 | Y53: 0.00828 | Z53: 0.00728 | AA53: =SUM(B53:Z53) -> 1 | AB53: 12.7 | AC53: 3.31
A54: Default | B54: 0 | C54: 0.0196 | D54: 0.086 | E54: 0.153 | F54: 0.1606 | G54: 0.1404 | H54: 0.122 | I54: 0.0858 | J54: 0.0646 | K54: 0.0524 | L54: 0.0336 | M54: 0.0246 | N54: 0.015 | O54: 0.0132 | P54: 0.007 | Q54: 0.0054 | R54: 0.003 | S54: 0.0036 | T54: 0.003 | U54: 0.0016 | V54: 0.0018 | W54: 0.0016 | X54: 0.0012 | Y54: 0.0006 | Z54: 0.0004 | AA54: =SUM(B54:Z54) -> 1 | AB54: 6.3 | AC54: 3.31

Sheet Transmission
E1: TRANSMISSION SCENARIO
F6: Transmission data is based on a fit to the curves over time from Generic country (02/03-06/18/2014) using the following assumptions:
G7: i) No additional imports of infection
G8: ii) Patients maintain the pattern of either going to a hospital early in infectious period, or at home or in a community setting such that there is a reduced
G9: risk of disease transmission (includes safe burial when needed)
G10: iii) Maintenance of effective isolation and barriers-to-infection at hospitals and at home or in a community setting such that there is a reduced risk of disease transmission
G11: (includes safe burial when needed)
K15: GENERIC SCENARIO
F21: For the data entered on the selected transmission scenario entry worksheets, the user will be able to enter the following information:
G22: (1) Percent of patients distributed within each category of isolation
G23: (2) Daily risk of onward transmission
G24: (3) Number of imported new cases or cases with no known contacts

Sheet Generic_uncorrected
D1: GENERIC DATA TRANSMISSION DATA INPUT - UNCORRECTED
B6: Lower estimates (uncorrected)*
B8: Days | C8: Category | D8: %Patient | F8: Transmission Risk: Daily | P8: Imported cases (arrive newly infected - start incubating)
B9: 0-30 | C9: Hospitalized | D9: 0 | F9: 0.02 | Q9: Day Arrive | R9: # arrive
C10: Eff Home Iso | D10: 0.05 | F10: 0.03 | Q10: 10 | R10: 15
C11: No Eff Home Iso | D11: 0.95 | F11: 0.3 | Q11: 20 | R11: 10
B12: This should sum up to 1 | D12: =SUM(D9:D11) -> 1 | Q12: 30 | R12: 0
Q13: 40 | R13: 0
B14: 31-60 | C14: Hospitalized | D14: 0.1 | Q14: 50 | R14: 0
C15: Eff Home Iso | D15: 0.1 | Q15: 60 | R15: 0
C16: No Eff Home Iso | D16: 0.8 | Q16: 70 | R16: 0
B17: This should sum up to 1 | D17: =SUM(D14:D16) -> 1 | Q17: 80 | R17: 0
Q18: 90 | R18: 0
B19: 61-90 | C19: Hospitalized | D19: 0.2 | Q19: 100 | R19: 0
C20: Eff Home Iso | D20: 0.1 | Q20: 110 | R20: 0
C21: No Eff Home Iso | D21: 0.7 | Q21: 120 | R21: 0
B22: This should sum up to 1 | D22: =SUM(D19:D21) -> 1 | Q22: 130 | R22: 0
Q23: 140 | R23: 0
B24: 91-120 | C24: Hospitalized | D24: 0.25 | Q24: 150 | R24: 0
C25: Eff Home Iso | D25: 0.25 | Q25: 160 | R25: 0
C26: No Eff Home Iso | D26: 0.5 | Q26: 170 | R26: 0
B27: This should sum up to 1 | D27: =SUM(D24:D26) -> 1 | Q27: 180 | R27: 0
Q28: 190 | R28: 0
B29: 121-150 | C29: Hospitalized | D29: 0.25 | H29: *Eff Home Isolation is the at home or community setting such that there is a reduced risk of disease transmission. | Q29: 200 | R29: 0
C30: Eff Home Iso | D30: 0.25 | Q30: 210 | R30: 0
C31: No Eff Home Iso | D31: 0.5 | Q31: 220 | R31: 0
B32: This should sum up to 1 | D32: =SUM(D29:D31) -> 1 | Q32: 230 | R32: 0 | BT32: Lower Estimates
H33: Click buttons below to view the hospital bed needs or to go to results | Q33: 240 | R33: 0 | BT33: Days | BU33: Hospital | BV33: Isolation | BW33: No Isolation
B34: 151-180 | C34: Hospitalized | D34: 0.25 | H34: HOSPITAL BED NEEDS | L34: GO TO FINAL RESULTS | Q34: 250 | R34: 0 | BT34: 0-30 | BU34: =D9 -> 0 | BV34: =Generic_uncorrected!$D$10 -> 0.05 | BW34: =Generic_uncorrected!$D$11 -> 0.95
C35: Eff Home Iso | D35: 0.25 | K35: or | Q35: 260 | R35: 0 | BT35: 31-60 | BU35: =Generic_uncorrected!$D$14 -> 0.1 | BV35: =Generic_uncorrected!$D$15 -> 0.1 | BW35: =Generic_uncorrected!$D$16 -> 0.8
C36: No Eff Home Iso | D36: 0.5 | Q36: 270 | R36: 0 | BT36: 61-90 | BU36: =Generic_uncorrected!$D$19 -> 0.2 | BV36: =Generic_uncorrected!$D$20 -> 0.1 | BW36: =Generic_uncorrected!$D$21 -> 0.7
B37: This should sum up to 1 | D37: =SUM(D34:D36) -> 1 | Q37: 280 | R37: 0 | BT37: 91-120 | BU37: =Generic_uncorrected!$D$24 -> 0.25 | BV37: =Generic_uncorrected!$D$25 -> 0.25 | BW37: =Generic_uncorrected!$D$26 -> 0.5
Q38: 290 | R38: 0 | BT38: 121-150 | BU38: =Generic_uncorrected!$D$29 -> 0.25 | BV38: =Generic_uncorrected!$D$30 -> 0.25 | BW38: =Generic_uncorrected!$D$31 -> 0.5
B39: 181-210 | C39: Hospitalized | D39: 0.25 | Q39: 300 | R39: 0 | BT39: 151-180 | BU39: =Generic_uncorrected!$D$34 -> 0.25 | BV39: =Generic_uncorrected!$D$35 -> 0.25 | BW39: =Generic_uncorrected!$D$36 -> 0.5
C40: Eff Home Iso | D40: 0.25 | BT40: 181-210 | BU40: =Generic_uncorrected!$D$39 -> 0.25 | BV40: =Generic_uncorrected!$D$40 -> 0.25 | BW40: =Generic_uncorrected!$D$41 -> 0.5
C41: No Eff Home Iso | D41: 0.5 | BT41: 211-240 | BU41: =Generic_uncorrected!$D$44 -> 0.3 | BV41: =Generic_uncorrected!$D$45 -> 0.3 | BW41: =Generic_uncorrected!$D$46 -> 0.4
B42: This should sum up to 1 | D42: =SUM(D39:D41) -> 1 | BT42: 241-270 | BU42: =Generic_uncorrected!$D$49 -> 0.3 | BV42: =Generic_uncorrected!$D$50 -> 0.3 | BW42: =Generic_uncorrected!$D$51 -> 0.4
BT43: 271-300 | BU43: =Generic_uncorrected!$D$54 -> 0.35 | BV43: =Generic_uncorrected!$D$55 -> 0.35 | BW43: =Generic_uncorrected!$D$56 -> 0.3
B44: 211-240 | C44: Hospitalized | D44: 0.3
C45: Eff Home Iso | D45: 0.3
C46: No Eff Home Iso | D46: 0.4
B47: This should sum up to 1 | D47: =SUM(D44:D46) -> 1
B49: 241-270 | C49: Hospitalized | D49: 0.3
C50: Eff Home Iso | D50: 0.3
C51: No Eff Home Iso | D51: 0.4
B52: This should sum up to 1 | D52: =SUM(D49:D51) -> 1
B54: 271-300 | C54: Hospitalized | D54: 0.35
C55: Eff Home Iso | D55: 0.35 | I55: Cases | K55: Days | L55: Cum Cases | M55: Cum Hosp Admit | N55: At that day Beds in use
C56: No Eff Home Iso | D56: 0.3 | H56: Report Date | I56: Total Cases
B57: This should sum up to 1 | D57: =SUM(D54:D56) -> 1 | H57: 2014-02-03 | I57: 10 | J57: =H57 -> 2014-02-03 | K57: ='Generic Model_uncorrected'!CB33 -> 0 | L57: ='Generic Model_uncorrected'!CF33 -> 0 | M57: ='Generic Model_uncorrected'!CR33 -> 0 | N57: ='Generic Model_uncorrected'!DH34 -> 0
H58: 2014-02-04 | I58: 10 | J58: =J57+1 -> 2014-02-04 | K58: ='Generic Model_uncorrected'!CB34 -> 1 | L58: ='Generic Model_uncorrected'!CF34 -> 0 | M58: ='Generic Model_uncorrected'!CR35 -> 0 | N58: ='Generic Model_uncorrected'!DH35 -> 0
H59: 2014-02-05 | I59: 15 | J59: =J58+1 -> 2014-02-05 | K59: ='Generic Model_uncorrected'!CB35 -> 2 | L59: ='Generic Model_uncorrected'!CF35 -> 0 | M59: ='Generic Model_uncorrected'!CR36 -> 0.1519 | N59: ='Generic Model_uncorrected'!DH36 -> 0.1519
H60: 2014-02-06 | I60: 17 | J60: =J59+1 -> 2014-02-06 | K60: ='Generic Model_uncorrected'!CB36 -> 3 | L60: ='Generic Model_uncorrected'!CF36 -> 0.49 | M60: ='Generic Model_uncorrected'!CR37 -> 0.8184 | N60: ='Generic Model_uncorrected'!DH37 -> 0.8184
H61: 2014-02-07 | I61: 19 | J61: 2014-02-07 | K61: ='Generic Model_uncorrected'!CB37 -> 4 | L61: ='Generic Model_uncorrected'!CF37 -> 2.64 | M61: ='Generic Model_uncorrected'!CR38 -> 2.00415 | N61: ='Generic Model_uncorrected'!DH38 -> 2.00415
H62: 2014-02-08 | I62: 25 | J62: 2014-02-08 | K62: ='Generic Model_uncorrected'!CB38 -> 5 | L62: ='Generic Model_uncorrected'!CF38 -> 6.465 | M62: ='Generic Model_uncorrected'!CR39 -> 3.249652977 | N62: ='Generic Model_uncorrected'!DH39 -> 3.249652977
H63: 2014-02-09 | I63: 30 | J63: 2014-02-09 | K63: ='Generic Model_uncorrected'!CB39 -> 6 | L63: ='Generic Model_uncorrected'!CF39 -> 10.48275154 | M63: ='Generic Model_uncorrected'!CR40 -> 4.346091264 | N63: ='Generic Model_uncorrected'!DH40 -> 4.206441264
H64: 2014-02-10 | I64: 33 | J64: 2014-02-10 | K64: ='Generic Model_uncorrected'!CB40 -> 7 | L64: ='Generic Model_uncorrected'!CF40 -> 14.01964924 | M64: ='Generic Model_uncorrected'!CR41 -> 5.32966829 | N64: ='Generic Model_uncorrected'!DH41 -> 4.57726829
H65: 2014-02-11 | I65: 38 | J65: 2014-02-11 | K65: ='Generic Model_uncorrected'!CB41 -> 8 | L65: ='Generic Model_uncorrected'!CF41 -> 17.19247835 | M65: ='Generic Model_uncorrected'!CR42 -> 6.105109723 | N65: ='Generic Model_uncorrected'!DH42 -> 4.262584723
H66: 2014-02-12 | I66: 38 | J66: 2014-02-12 | K66: ='Generic Model_uncorrected'!CB42 -> 9 | L66: ='Generic Model_uncorrected'!CF42 -> 19.69390233 | M66: ='Generic Model_uncorrected'!CR43 -> 6.84184952 | N66: ='Generic Model_uncorrected'!DH43 -> 3.842015331
H67: 2014-02-13 | I67: 38 | J67: 2014-02-13 | K67: ='Generic Model_uncorrected'!CB43 -> 10 | L67: ='Generic Model_uncorrected'!CF43 -> 22.07048232 | M67: ='Generic Model_uncorrected'!CR44 -> 7.657850829 | N67: ='Generic Model_uncorrected'!DH44 -> 3.596250796
H68: 2014-02-14 | I68: 40 | J68: 2014-02-14 | K68: ='Generic Model_uncorrected'!CB44 -> 11 | L68: ='Generic Model_uncorrected'!CF44 -> 24.70274461 | M68: ='Generic Model_uncorrected'!CR45 -> 8.627123566 | N68: ='Generic Model_uncorrected'!DH45 -> 3.565642235
H69: 2014-02-15 | I69: 40 | J69: 2014-02-15 | K69: ='Generic Model_uncorrected'!CB45 -> 12 | L69: ='Generic Model_uncorrected'!CF45 -> 27.82943086 | M69: ='Generic Model_uncorrected'!CR46 -> 10.05546773 | N69: ='Generic Model_uncorrected'!DH46 -> 4.180636778
H70: 2014-02-16 | I70: 43 | J70: 2014-02-16 | K70: ='Generic Model_uncorrected'!CB46 -> 13 | L70: ='Generic Model_uncorrected'!CF46 -> 32.43699268 | M70: ='Generic Model_uncorrected'!CR47 -> 11.92460593 | N70: ='Generic Model_uncorrected'!DH47 -> 5.284027242
H71: 2014-02-17 | I71: 47 | J71: 2014-02-17 | K71: ='Generic Model_uncorrected'!CB47 -> 14 | L71: ='Generic Model_uncorrected'!CF47 -> 38.46647076 | M71: ='Generic Model_uncorrected'!CR48 -> 13.97815953 | N71: ='Generic Model_uncorrected'!DH48 -> 6.508065361
H72: 2014-02-18 | I72: 51 | J72: 2014-02-18 | K72: ='Generic Model_uncorrected'!CB48 -> 15 | L72: ='Generic Model_uncorrected'!CF48 -> 45.09083721 | M72: ='Generic Model_uncorrected'!CR49 -> 16.0065666 | N72: ='Generic Model_uncorrected'!DH49 -> 7.582831247
H73: 2014-02-19 | I73: 53 | J73: 2014-02-19 | K73: ='Generic Model_uncorrected'!CB49 -> 16 | L73: ='Generic Model_uncorrected'!CF49 -> 51.63408581 | M73: ='Generic Model_uncorrected'!CR50 -> 18.0255958 | N73: ='Generic Model_uncorrected'!DH50 -> 8.22929083
H74: 2014-02-20 | I74: 53 | J74: 2014-02-20 | K74: ='Generic Model_uncorrected'!CB50 -> 17 | L74: ='Generic Model_uncorrected'!CF50 -> 58.14708323 | M74: ='Generic Model_uncorrected'!CR51 -> 19.94988885 | N74: ='Generic Model_uncorrected'!DH51 -> 8.369376073
H75: 2014-02-21 | I75: 58 | J75: 2014-02-21 | K75: ='Generic Model_uncorrected'!CB51 -> 18 | L75: ='Generic Model_uncorrected'!CF51 -> 64.35448018 | M75: ='Generic Model_uncorrected'!CR52 -> 21.90433645 | N75: ='Generic Model_uncorrected'!DH52 -> 8.357712072
H76: 2014-02-22 | I76: 60 | J76: 2014-02-22 | K76: ='Generic Model_uncorrected'!CB52 -> 19 | L76: ='Generic Model_uncorrected'!CF52 -> 70.65914983 | M76: ='Generic Model_uncorrected'!CR53 -> 23.96662638 | N76: ='Generic Model_uncorrected'!DH53 -> 8.439987108
H77: 2014-02-23 | I77: 67 | J77: 2014-02-23 | K77: ='Generic Model_uncorrected'!CB53 -> 20 | L77: ='Generic Model_uncorrected'!CF53 -> 77.311698 | M77: ='Generic Model_uncorrected'!CR54 -> 26.14161568 | N77: ='Generic Model_uncorrected'!DH54 -> 8.608035193
H78: 2014-02-24 | I78: 76 | J78: 2014-02-24 | K78: ='Generic Model_uncorrected'!CB54 -> 21 | L78: ='Generic Model_uncorrected'!CF54 -> 84.32779253 | M78: ='Generic Model_uncorrected'!CR55 -> 28.57407919 | N78: ='Generic Model_uncorrected'!DH55 -> 9.105781408
H79: 2014-02-25 | I79: 85 | J79: 2014-02-25 | K79: ='Generic Model_uncorrected'!CB55 -> 22 | L79: ='Generic Model_uncorrected'!CF55 -> 92.17444899 | M79: ='Generic Model_uncorrected'!CR56 -> 31.40714619 | N79: ='Generic Model_uncorrected'!DH56 -> 9.978436346
H80: 2014-02-26 | I80: 100 | J80: 2014-02-26 | K80: ='Generic Model_uncorrected'!CB56 -> 23 | L80: ='Generic Model_uncorrected'!CF56 -> 101.3133748 | M80: ='Generic Model_uncorrected'!CR57 -> 34.65921386 | N80: ='Generic Model_uncorrected'!DH57 -> 11.17170285
H81: 2014-02-27 | I81: 114 | J81: 2014-02-27 | K81: ='Generic Model_uncorrected'!CB57 -> 24 | L81: ='Generic Model_uncorrected'!CF57 -> 111.8039157 | M81: ='Generic Model_uncorrected'!CR58 -> 38.09478534 | N81: ='Generic Model_uncorrected'!DH58 -> 12.45250246
H82: 2014-02-28 | I82: 129 | J82: 2014-02-28 | K82: ='Generic Model_uncorrected'!CB58 -> 25 | L82: ='Generic Model_uncorrected'!CF58 -> 122.8864043 | M82: ='Generic Model_uncorrected'!CR59 -> 41.6280769 | N82: ='Generic Model_uncorrected'!DH59 -> 13.59188019
H83: 2014-03-01 | I83: 137 | J83: 2014-03-01 | K83: ='Generic Model_uncorrected'!CB59 -> 26 | L83: ='Generic Model_uncorrected'!CF59 -> 134.284119 | M83: ='Generic Model_uncorrected'!CR60 -> 45.25449374 | N83: ='Generic Model_uncorrected'!DH60 -> 14.44738947
H84: 2014-03-02 | I84: 152 | J84: 2014-03-02 | K84: ='Generic Model_uncorrected'!CB60 -> 27 | L84: ='Generic Model_uncorrected'!CF60 -> 145.9822379 | M84: ='Generic Model_uncorrected'!CR61 -> 48.95595526 | N84: ='Generic Model_uncorrected'!DH61 -> 14.98364448
H85: 2014-03-03 | I85: 163 | J85: 2014-03-03 | K85: ='Generic Model_uncorrected'!CB61 -> 28 | L85: ='Generic Model_uncorrected'!CF61 -> 157.9224363 | M85: ='Generic Model_uncorrected'!CR62 -> 52.81081283 | N85: ='Generic Model_uncorrected'!DH62 -> 15.48382637
H86: 2014-03-04 | I86: 168 | J86: 2014-03-04 | K86: ='Generic Model_uncorrected'!CB62 -> 29 | L86: ='Generic Model_uncorrected'!CF62 -> 170.3574607 | M86: ='Generic Model_uncorrected'!CR63 -> 56.88486129 | N86: ='Generic Model_uncorrected'!DH63 -> 16.081053
H87: 2014-03-05 | I87: 171 | J87: 2014-03-05 | K87: ='Generic Model_uncorrected'!CB63 -> 30 | L87: ='Generic Model_uncorrected'!CF63 -> 183.4995526 | M87: ='Generic Model_uncorrected'!CR64 -> 62.31485108 | N87: ='Generic Model_uncorrected'!DH64 -> 17.91481539
H88: 2014-03-06 | I88: 247 | J88: 2014-03-06 | K88: ='Generic Model_uncorrected'!CB64 -> 31 | L88: ='Generic Model_uncorrected'!CF64 -> 197.4226033 | M88: ='Generic Model_uncorrected'!CR65 -> 68.11627888 | N88: ='Generic Model_uncorrected'!DH65 -> 20.03622442
H89: 2014-03-07 | I89: 248 | J89: 2014-03-07 | K89: ='Generic Model_uncorrected'!CB65 -> 32 | L89: ='Generic Model_uncorrected'!CF65 -> 212.2980592 | M89: ='Generic Model_uncorrected'!CR66 -> 74.29589922 | N89: ='Generic Model_uncorrected'!DH66 -> 22.38691994
H90: 2014-03-08 | I90: 255 | J90: 2014-03-08 | K90: ='Generic Model_uncorrected'!CB66 -> 33 | L90: ='Generic Model_uncorrected'!CF66 -> 228.1432396 | M90: ='Generic Model_uncorrected'!CR67 -> 80.8706784 | N90: ='Generic Model_uncorrected'!DH67 -> 24.92374998
H91: 2014-03-09 | I91: 263 | J91: 2014-03-09 | K91: ='Generic Model_uncorrected'!CB67 -> 34 | L91: ='Generic Model_uncorrected'!CF67 -> 245.0016477 | M91: ='Generic Model_uncorrected'!CR68 -> 87.7915512 | N91: ='Generic Model_uncorrected'!DH68 -> 28.20458564
H92: 2014-03-10 | I92: 345 | J92: 2014-03-10 | K92: ='Generic Model_uncorrected'!CB68 -> 35 | L92: ='Generic Model_uncorrected'!CF68 -> 262.7474754 | M92: ='Generic Model_uncorrected'!CR69 -> 95.02975516 | N92: ='Generic Model_uncorrected'!DH69 -> 31.56180458
H93: 2014-03-11 | I93: 357 | J93: 2014-03-11 | K93: ='Generic Model_uncorrected'!CB69 -> 36 | L93: ='Generic Model_uncorrected'!CF69 -> 281.3069727 | M93: ='Generic Model_uncorrected'!CR70 -> 102.5484888 | N93: ='Generic Model_uncorrected'!DH70 -> 34.9491426
H94: 2014-03-12 | I94: 373 | J94: 2014-03-12 | K94: ='Generic Model_uncorrected'!CB70 -> 37 | L94: ='Generic Model_uncorrected'!CF70 -> 300.5857769 | M94: ='Generic Model_uncorrected'!CR71 -> 110.3402288 | N94: ='Generic Model_uncorrected'!DH71 -> 37.99871214
H95: 2014-03-13 | I95: 382 | J95: 2014-03-13 | K95: ='Generic Model_uncorrected'!CB71 -> 38 | L95: ='Generic Model_uncorrected'!CF71 -> 320.5645975 | M95: ='Generic Model_uncorrected'!CR72 -> 118.3942478 | N95: ='Generic Model_uncorrected'!DH72 -> 41.04995974
H96: 2014-03-14 | I96: 384 | J96: 2014-03-14 | K96: ='Generic Model_uncorrected'!CB72 -> 39 | L96: ='Generic Model_uncorrected'!CF72 -> 341.2159283 | M96: ='Generic Model_uncorrected'!CR73 -> 126.7152951 | N96: ='Generic Model_uncorrected'!DH73 -> 44.12446856
H97: 2014-03-15 | I97: 384 | J97: 2014-03-15 | K97: ='Generic Model_uncorrected'!CB73 -> 40 | L97: ='Generic Model_uncorrected'!CF73 -> 362.5519468 | M97: ='Generic Model_uncorrected'!CR74 -> 135.3330521 | N97: ='Generic Model_uncorrected'!DH74 -> 47.27239218
H98: 2014-03-16 | I98: 402 | J98: 2014-03-16 | K98: ='Generic Model_uncorrected'!CB74 -> 41 | L98: ='Generic Model_uncorrected'!CF74 -> 384.6487597 | M98: ='Generic Model_uncorrected'!CR75 -> 144.280737 | N98: ='Generic Model_uncorrected'!DH75 -> 50.53786877
H99: 2014-03-17 | I99: 411 | J99: 2014-03-17 | K99: ='Generic Model_uncorrected'!CB75 -> 42 | L99: ='Generic Model_uncorrected'!CF75 -> 407.5915415 | M99: ='Generic Model_uncorrected'!CR76 -> 153.5902235 | N99: ='Generic Model_uncorrected'!DH76 -> 52.57075596
H100: 2014-03-18 | I100: 426 | J100: 2014-03-18 | K100: ='Generic Model_uncorrected'!CB76 -> 43 | L100: ='Generic Model_uncorrected'!CF76 -> 431.4620198 | M100: ='Generic Model_uncorrected'!CR77 -> 163.2835365 | N100: ='Generic Model_uncorrected'!DH77 -> 54.69193869
H101: 2014-03-19 | I101: 432 | J101: 2014-03-19 | K101: ='Generic Model_uncorrected'!CB77 -> 44 | L101: ='Generic Model_uncorrected'!CF77 -> 456.3166684 | M101: ='Generic Model_uncorrected'!CR78 -> 173.3782449 | N101: ='Generic Model_uncorrected'!DH78 -> 56.89995294
H102: 2014-03-20 | I102: 450 | J102: 2014-03-20 | K102: ='Generic Model_uncorrected'!CB78 -> 45 | L102: ='Generic Model_uncorrected'!CF78 -> 482.2005361 | M102: ='Generic Model_uncorrected'!CR79 -> 183.8810455 | N102: ='Generic Model_uncorrected'!DH79 -> 59.1780785
H103: 2014-03-21 | I103: 467 | J103: 2014-03-21 | K103: ='Generic Model_uncorrected'!CB79 -> 46 | L103: ='Generic Model_uncorrected'!CF79 -> 509.130794 | M103: ='Generic Model_uncorrected'!CR80 -> 194.8002262 | N103: ='Generic Model_uncorrected'!DH80 -> 61.52696077
H104: 2014-03-22 | I104: 481 | J104: 2014-03-22 | K104: ='Generic Model_uncorrected'!CB80 -> 47 | L104: ='Generic Model_uncorrected'!CF80 -> 537.1286934 | M104: ='Generic Model_uncorrected'!CR81 -> 206.1451284 | N104: ='Generic Model_uncorrected'!DH81 -> 63.94595695
H105: 2014-03-23 | I105: 588 | J105: 2014-03-23 | K105: ='Generic Model_uncorrected'!CB81 -> 48 | L105: ='Generic Model_uncorrected'!CF81 -> 566.2181862 | M105: ='Generic Model_uncorrected'!CR82 -> 217.9278439 | N105: ='Generic Model_uncorrected'!DH82 -> 66.44152466
H106: 2014-03-24 | I106: 608 | J106: 2014-03-24 | K106: ='Generic Model_uncorrected'!CB82 -> 49 | L106: ='Generic Model_uncorrected'!CF82 -> 596.4302772 | M106: ='Generic Model_uncorrected'!CR83 -> 230.1646101 | N106: ='Generic Model_uncorrected'!DH83 -> 69.02362306
H107: 2014-03-25 | I107: 632 | J107: 2014-03-25 | K107: ='Generic Model_uncorrected'!CB83 -> 50 | L107: ='Generic Model_uncorrected'!CF83 -> 627.8066009 | M107: ='Generic Model_uncorrected'!CR84 -> 242.874762 | N107: ='Generic Model_uncorrected'!DH84 -> 71.70641356
H108: 2014-03-26 | I108: 689 | J108: 2014-03-26 | K108: ='Generic Model_uncorrected'!CB84 -> 51 | L108: ='Generic Model_uncorrected'!CF84 -> 660.3967339 | M108: ='Generic Model_uncorrected'!CR85 -> 256.0807562 | N108: ='Generic Model_uncorrected'!DH85 -> 74.50313425
H109: 2014-03-27 | I109: 749 | J109: 2014-03-27 | K109: ='Generic Model_uncorrected'!CB85 -> 52 | L109: ='Generic Model_uncorrected'!CF85 -> 694.2582575 | M109: ='Generic Model_uncorrected'!CR86 -> 269.805105 | N109: ='Generic Model_uncorrected'!DH86 -> 77.42038706
H110: 2014-03-28 | I110: 753 | J110: 2014-03-28 | K110: ='Generic Model_uncorrected'!CB86 -> 53 | L110: ='Generic Model_uncorrected'!CF86 -> 729.4488955 | M110: ='Generic Model_uncorrected'!CR87 -> 284.0702224 | N110: ='Generic Model_uncorrected'!DH87 -> 80.46101354
H111: 2014-03-29 | I111: 795 | J111: 2014-03-29 | K111: ='Generic Model_uncorrected'!CB87 -> 54 | L111: ='Generic Model_uncorrected'!CF87 -> 766.0261194 | M111: ='Generic Model_uncorrected'!CR88 -> 298.8976324 | N111: ='Generic Model_uncorrected'!DH88 -> 83.62526916
H112: 2014-03-30 | I112: 835 | J112: 2014-03-30 | K112: ='Generic Model_uncorrected'!CB88 -> 55 | L112: ='Generic Model_uncorrected'!CF88 -> 804.0451195 | M112: ='Generic Model_uncorrected'!CR89 -> 314.308907 | N112: ='Generic Model_uncorrected'!DH89 -> 86.91370869
H113: 2014-03-31 | I113: 877 | J113: 2014-03-31 | K113: ='Generic Model_uncorrected'!CB89 -> 56 | L113: ='Generic Model_uncorrected'!CF89 -> 843.5612082 | M113: ='Generic Model_uncorrected'!CR90 -> 330.3257996 | N113: ='Generic Model_uncorrected'!DH90 -> 90.32764522
H114: 2014-04-01 | I114: 920 | J114: 2014-04-01 | K114: ='Generic Model_uncorrected'!CB90 -> 57 | L114: ='Generic Model_uncorrected'!CF90 -> 884.6301636 | M114: ='Generic Model_uncorrected'!CR91 -> 346.9706988 | N114: ='Generic Model_uncorrected'!DH91 -> 93.87147829
H115: 2014-04-02 | I115: 965 | J115: 2014-04-02 | K115: ='Generic Model_uncorrected'!CB91 -> 58 | L115: ='Generic Model_uncorrected'!CF91 -> 927.3093924 | M115: ='Generic Model_uncorrected'!CR92 -> 364.2673047 | N115: ='Generic Model_uncorrected'!DH92 -> 97.55065806
H116: 2014-04-03 | I116: 1012 | J116: 2014-04-03 | K116: ='Generic Model_uncorrected'!CB92 -> 59 | L116: ='Generic Model_uncorrected'!CF92 -> 971.659664 | M116: ='Generic Model_uncorrected'!CR93 -> 382.2408347 | N116: ='Generic Model_uncorrected'!DH93 -> 101.3718455
H117: 2014-04-04 | I117: 1061 | J117: 2014-04-04 | K117: ='Generic Model_uncorrected'!CB93 -> 60 | L117: ='Generic Model_uncorrected'!CF93 -> 1017.745638 | M117: ='Generic Model_uncorrected'!CR94 -> 404.2703016 | N117: ='Generic Model_uncorrected'!DH94 -> 108.6946928
H118: 2014-04-05 | I118: 1113 | J118: 2014-04-05 | K118: ='Generic Model_uncorrected'!CB94 -> 61 | L118: ='Generic Model_uncorrected'!CF94 -> 1065.635784 | M118: ='Generic Model_uncorrected'!CR95 -> 427.1627032 | N118: ='Generic Model_uncorrected'!DH95 -> 116.3054972
H119: 2014-04-06 | I119: 1166 | J119: 2014-04-06 | K119: ='Generic Model_uncorrected'!CB95 -> 62 | L119: ='Generic Model_uncorrected'!CF95 -> 1115.401874 | M119: ='Generic Model_uncorrected'!CR96 -> 450.9524526 | N119: ='Generic Model_uncorrected'!DH96 -> 124.2163637
H120: 2014-04-07 | I120: 1221 | J120: 2014-04-07 | K120: ='Generic Model_uncorrected'!CB96 -> 63 | L120: ='Generic Model_uncorrected'!CF96 -> 1167.118721 | M120: ='Generic Model_uncorrected'!CR97 -> 475.6630258 | N120: ='Generic Model_uncorrected'!DH97 -> 132.4267029
H121: 2014-04-08 | I121: 1279 | J121: 2014-04-08 | K121: ='Generic Model_uncorrected'!CB97 -> 64 | L121: ='Generic Model_uncorrected'!CF97 -> 1220.837358 | M121: ='Generic Model_uncorrected'!CR98 -> 501.2776731 | N121: ='Generic Model_uncorrected'!DH98 -> 142.3313944
H122: 2014-04-09 | I122: 1338 | J122: 2014-04-09 | K122: ='Generic Model_uncorrected'!CB98 -> 65 | L122: ='Generic Model_uncorrected'!CF98 -> 1276.521374 | M122: ='Generic Model_uncorrected'!CR99 -> 527.7374482 | N122: ='Generic Model_uncorrected'!DH99 -> 152.4650546
H123: 2014-04-10 | I123: 1399 | J123: =J122+1 -> 2014-04-10 | K123: ='Generic Model_uncorrected'!CB99 -> 66 | L123: ='Generic Model_uncorrected'!CF99 -> 1334.042624 | M123: ='Generic Model_uncorrected'!CR100 -> 554.9762124 | N123: ='Generic Model_uncorrected'!DH100 -> 162.7370823
H124: 2014-04-11 | I124: 1461 | J124: 2014-04-11 | K124: ='Generic Model_uncorrected'!CB100 -> 67 | L124: ='Generic Model_uncorrected'!CF100 -> 1393.257329 | M124: ='Generic Model_uncorrected'!CR101 -> 582.937185 | N124: ='Generic Model_uncorrected'!DH101 -> 173.0710249
H125: 2014-04-12 | I125: 1523 | J125: 2014-04-12 | K125: ='Generic Model_uncorrected'!CB101 -> 68 | L125: ='Generic Model_uncorrected'!CF101 -> 1454.042052 | M125: ='Generic Model_uncorrected'!CR102 -> 611.5709448 | N125: ='Generic Model_uncorrected'!DH102 -> 183.4159413
H126: 2014-04-13 | I126: 1586 | J126: 2014-04-13 | K126: ='Generic Model_uncorrected'!CB102 -> 69 | L126: ='Generic Model_uncorrected'!CF102 -> 1516.289356 | M126: ='Generic Model_uncorrected'!CR103 -> 640.8562561 | N126: ='Generic Model_uncorrected'!DH103 -> 193.7680248
H127: 2014-04-14 | I127: 1650 | J127: 2014-04-14 | K127: ='Generic Model_uncorrected'!CB103 -> 70 | L127: ='Generic Model_uncorrected'!CF103 -> 1579.953076 | M127: ='Generic Model_uncorrected'!CR104 -> 670.8175908 | N127: ='Generic Model_uncorrected'!DH104 -> 204.1733125
H128: 2014-04-15 | I128: 1714 | J128: 2014-04-15 | K128: ='Generic Model_uncorrected'!CB104 -> 71 | L128: ='Generic Model_uncorrected'!CF104 -> 1645.086412 | M128: ='Generic Model_uncorrected'!CR105 -> 701.5188182 | N128: ='Generic Model_uncorrected'!DH105 -> 214.7169498
H129: 2014-04-16 | I129: 1779 | J129: 2014-04-16 | K129: ='Generic Model_uncorrected'!CB105 -> 72 | L129: ='Generic Model_uncorrected'!CF105 -> 1711.828211 | M129: ='Generic Model_uncorrected'!CR106 -> 733.0301712 | N129: ='Generic Model_uncorrected'!DH106 -> 220.7022774
H130: 2014-04-17 | I130: 1846 | J130: 2014-04-17 | K130: ='Generic Model_uncorrected'!CB106 -> 73 | L130: ='Generic Model_uncorrected'!CF106 -> 1780.331152 | M130: ='Generic Model_uncorrected'!CR107 -> 765.4050028 | N130: ='Generic Model_uncorrected'!DH107 -> 226.7937744
H131: 2014-04-18 | I131: 1914 | J131: 2014-04-18 | K131: ='Generic Model_uncorrected'!CB107 -> 74 | L131: ='Generic Model_uncorrected'!CF107 -> 1850.711221 | M131: ='Generic Model_uncorrected'!CR108 -> 798.6830472 | N131: ='Generic Model_uncorrected'!DH108 -> 233.0112128
H132: 2014-04-19 | I132: 1983 | J132: 2014-04-19 | K132: ='Generic Model_uncorrected'!CB108 -> 75 | L132: ='Generic Model_uncorrected'!CF108 -> 1923.054796 | M132: ='Generic Model_uncorrected'!CR109 -> 832.8793744 | N132: ='Generic Model_uncorrected'!DH109 -> 239.3356696
H133: 2014-04-20 | I133: 2054 | J133: 2014-04-20 | K133: ='Generic Model_uncorrected'!CB109 -> 76 | L133: ='Generic Model_uncorrected'!CF109 -> 1997.394638 | M133: ='Generic Model_uncorrected'!CR110 -> 868.0019681 | N133: ='Generic Model_uncorrected'!DH110 -> 245.7526564
H134: 2014-04-21 | I134: 2125 | J134: 2014-04-21 | K134: ='Generic Model_uncorrected'!CB110 -> 77 | L134: ='Generic Model_uncorrected'!CF110 -> 2073.748102 | M134: ='Generic Model_uncorrected'!CR111 -> 904.0600471 | N134: ='Generic Model_uncorrected'!DH111 -> 252.2700041
H135: 2014-04-22 | I135: 2198 | J135: 2014-04-22 | K135: ='Generic Model_uncorrected'!CB111 -> 78 | L135: ='Generic Model_uncorrected'!CF111 -> 2152.13523 | M135: ='Generic Model_uncorrected'!CR112 -> 941.0644581 | N135: ='Generic Model_uncorrected'!DH112 -> 258.9022336
H136: 2014-04-23 | I136: 2272 | J136: 2014-04-23 | K136: ='Generic Model_uncorrected'!CB112 -> 79 | L136: ='Generic Model_uncorrected'!CF112 -> 2232.579602 | M136: ='Generic Model_uncorrected'!CR113 -> 979.0332109 | N136: ='Generic Model_uncorrected'!DH113 -> 265.6775279
H137: 2014-04-24 | I137: 2347 | J137: 2014-04-24 | K137: ='Generic Model_uncorrected'!CB113 -> 80 | L137: ='Generic Model_uncorrected'!CF113 -> 2315.120369 | M137: ='Generic Model_uncorrected'!CR114 -> 1017.990592 | N137: ='Generic Model_uncorrected'!DH114 -> 272.6322171
H138: 2014-04-25 | I138: 2423 | J138: 2014-04-25 | K138: ='Generic Model_uncorrected'!CB114 -> 81 | L138: ='Generic Model_uncorrected'!CF114 -> 2399.810328 | M138: ='Generic Model_uncorrected'!CR115 -> 1057.969177 | N138: ='Generic Model_uncorrected'!DH115 -> 279.7995827
H139: 2014-04-26 | I139: 2501 | J139: 2014-04-26 | K139: ='Generic Model_uncorrected'!CB115 -> 82 | L139: ='Generic Model_uncorrected'!CF115 -> 2486.720296 | M139: ='Generic Model_uncorrected'!CR116 -> 1099.002283 | N139: ='Generic Model_uncorrected'!DH116 -> 287.1957112
H140: 2014-04-27 | I140: 2579 | J140: 2014-04-27 | K140: ='Generic Model_uncorrected'!CB116 -> 83 | L140: ='Generic Model_uncorrected'!CF116 -> 2575.9227 | M140: ='Generic Model_uncorrected'!CR117 -> 1141.123473 | N140: ='Generic Model_uncorrected'!DH117 -> 294.8173069
H141: 2014-04-28 | I141: 2660 | J141: 2014-04-28 | K141: ='Generic Model_uncorrected'!CB117 -> 84 | L141: ='Generic Model_uncorrected'!CF117 -> 2667.490504 | M141: ='Generic Model_uncorrected'!CR118 -> 1184.36404 | N141: ='Generic Model_uncorrected'!DH118 -> 302.6530377
H142: 2014-04-29 | I142: 2741 | J142: 2014-04-29 | K142: ='Generic Model_uncorrected'!CB118 -> 85 | L142: ='Generic Model_uncorrected'!CF118 -> 2761.491736 | M142: ='Generic Model_uncorrected'!CR119 -> 1228.754377 | N142: ='Generic Model_uncorrected'!DH119 -> 310.6940491
H143: 2014-04-30 | I143: 2824 | J143: 2014-04-30 | K143: ='Generic Model_uncorrected'!CB119 -> 86 | L143: ='Generic Model_uncorrected'!CF119 -> 2857.992468 | M143: ='Generic Model_uncorrected'!CR120 -> 1274.323635 | N143: ='Generic Model_uncorrected'!DH120 -> 318.9350491
H144: 2014-05-01 | I144: 2968 | J144: 2014-05-01 | K144: ='Generic Model_uncorrected'!CB120 -> 87 | L144: ='Generic Model_uncorrected'!CF120 -> 2957.056073 | M144: ='Generic Model_uncorrected'!CR121 -> 1321.100417 | N144: ='Generic Model_uncorrected'!DH121 -> 327.3801262
H145: 2014-05-02 | I145: 3054 | J145: 2014-05-02 | K145: ='Generic Model_uncorrected'!CB121 -> 88 | L145: ='Generic Model_uncorrected'!CF121 -> 3058.74473 | M145: ='Generic Model_uncorrected'!CR122 -> 1369.114473 | N145: ='Generic Model_uncorrected'!DH122 -> 336.0377319
H146: 2014-05-03 | I146: 3370 | J146: 2014-05-03 | K146: ='Generic Model_uncorrected'!CB122 -> 89 | L146: ='Generic Model_uncorrected'!CF122 -> 3163.123112 | M146: ='Generic Model_uncorrected'!CR123 -> 1418.397191 | N146: ='Generic Model_uncorrected'!DH123 -> 344.9177504
H147: 2014-05-04 | I147: 3549 | J147: 2014-05-04 | K147: ='Generic Model_uncorrected'!CB123 -> 90 | L147: ='Generic Model_uncorrected'!CF123 -> 3270.259456 | M147: ='Generic Model_uncorrected'!CR124 -> 1476.129562 | N147: ='Generic Model_uncorrected'!DH124 -> 361.1795001
H148: 2014-05-05 | I148: 3639 | J148: 2014-05-05 | K148: ='Generic Model_uncorrected'!CB124 -> 91 | L148: ='Generic Model_uncorrected'!CF124 -> 3380.225878 | M148: ='Generic Model_uncorrected'!CR125 -> 1535.387306 | N148: ='Generic Model_uncorrected'!DH125 -> 377.8744114
H149: 2014-05-06 | I149: 3730 | J149: 2014-05-06 | K149: ='Generic Model_uncorrected'!CB125 -> 92 | L149: ='Generic Model_uncorrected'!CF125 -> 3493.097771 | M149: ='Generic Model_uncorrected'!CR126 -> 1596.211576 | N149: ='Generic Model_uncorrected'!DH126 -> 395.0161923
H150: 2014-05-07 | I150: 3823 | J150: 2014-05-07 | K150: ='Generic Model_uncorrected'!CB126 -> 93 | L150: ='Generic Model_uncorrected'!CF126 -> 3608.953523 | M150: ='Generic Model_uncorrected'!CR127 -> 1658.582859 | N150: ='Generic Model_uncorrected'!DH127 -> 412.5536688
H151: 2014-05-08 | I151: 3917 | J151: 2014-05-08 | K151: ='Generic Model_uncorrected'!CB127 -> 94 | L151: ='Generic Model_uncorrected'!CF127 -> 3727.755966 | M151: ='Generic Model_uncorrected'!CR128 -> 1722.272133 | N151: ='Generic Model_uncorrected'!DH128 -> 436.8230664
H152: 2014-05-09 | I152: 4011 | J152: 2014-05-09 | K152: ='Generic Model_uncorrected'!CB128 -> 95 | L152: ='Generic Model_uncorrected'!CF128 -> 3849.06887 | M152: ='Generic Model_uncorrected'!CR129 -> 1786.833279 | N152: ='Generic Model_uncorrected'!DH129 -> 460.9209483
H153: 2014-05-10 | I153: 4105 | J153: 2014-05-10 | K153: ='Generic Model_uncorrected'!CB129 -> 96 | L153: ='Generic Model_uncorrected'!CF129 -> 3972.042481 | M153: ='Generic Model_uncorrected'!CR130 -> 1851.783976 | N153: ='Generic Model_uncorrected'!DH130 -> 484.3362191
H154: 2014-05-11 | I154: 4198 | J154: 2014-05-11 | K154: ='Generic Model_uncorrected'!CB130 -> 97 | L154: ='Generic Model_uncorrected'!CF130 -> 4095.758094 | M154: ='Generic Model_uncorrected'!CR131 -> 1916.690755 | N154: ='Generic Model_uncorrected'!DH131 -> 498.3766824
H155: 2014-05-12 | I155: 4290 | J155: 2014-05-12 | K155: ='Generic Model_uncorrected'!CB131 -> 98 | L155: ='Generic Model_uncorrected'!CF131 -> 4219.390054 | M155: ='Generic Model_uncorrected'!CR132 -> 1981.159643 | N155: ='Generic Model_uncorrected'!DH132 -> 510.7269267
H156: 2014-05-13 | I156: 4450 | J156: 2014-05-13 | K156: ='Generic Model_uncorrected'!CB132 -> 99 | L156: ='Generic Model_uncorrected'!CF132 -> 4342.187935 | M156: ='Generic Model_uncorrected'!CR133 -> 2044.945124 | N156: ='Generic Model_uncorrected'!DH133 -> 521.2466665
H157: 2014-05-14 | I157: 4669 | J157: 2014-05-14 | K157: ='Generic Model_uncorrected'!CB133 -> 100 | L157: ='Generic Model_uncorrected'!CF133 -> 4463.684091 | M157: ='Generic Model_uncorrected'!CR134 -> 2108.041911 | N157: ='Generic Model_uncorrected'!DH134 -> 530.0601293
H158: 2014-05-15 | I158: 4756 | J158: 2014-05-15 | K158: ='Generic Model_uncorrected'!CB134 -> 101 | L158: ='Generic Model_uncorrected'!CF134 -> 4583.868447 | M158: ='Generic Model_uncorrected'!CR135 -> 2170.653826 | N158: ='Generic Model_uncorrected'!DH135 -> 537.5358683
H159: 2014-05-16 | I159: 4842 | J159: 2014-05-16 | K159: ='Generic Model_uncorrected'!CB135 -> 102 | L159: ='Generic Model_uncorrected'!CF135 -> 4703.129237 | M159: ='Generic Model_uncorrected'!CR136 -> 2233.025757 | N159: ='Generic Model_uncorrected'!DH136 -> 538.6248106
H160: 2014-05-17 | I160: 4927 | J160: 2014-05-17 | K160: ='Generic Model_uncorrected'!CB136 -> 103 | L160: ='Generic Model_uncorrected'!CF136 -> 4821.932915 | M160: ='Generic Model_uncorrected'!CR137 -> 2295.325584 | N160: ='Generic Model_uncorrected'!DH137 -> 539.0177896
H161: 2014-05-18 | I161: 5011 | J161: 2014-05-18 | K161: ='Generic Model_uncorrected'!CB137 -> 104 | L161: ='Generic Model_uncorrected'!CF137 -> 4940.599253 | M161: ='Generic Model_uncorrected'!CR138 -> 2357.659452 | N161: ='Generic Model_uncorrected'!DH138 -> 538.9060708
H162: 2014-05-19 | I162: 5095 | J162: 2014-05-19 | K162: ='Generic Model_uncorrected'!CB138 -> 105 | L162: ='Generic Model_uncorrected'!CF138 -> 5059.330429 | M162: ='Generic Model_uncorrected'!CR139 -> 2420.010454 | N162: ='Generic Model_uncorrected'!DH139 -> 538.3176086
H163: 2014-05-20 | I163: 5178 | J163: 2014-05-20 | K163: ='Generic Model_uncorrected'!CB139 -> 106 | L163: ='Generic Model_uncorrected'!CF139 -> 5178.094243 | M163: ='Generic Model_uncorrected'!CR140 -> 2482.322541 | N163: ='Generic Model_uncorrected'!DH140 -> 537.2938985
H164: 2014-05-21 | I164: 5260 | J164: 2014-05-21 | K164: ='Generic Model_uncorrected'!CB140 -> 107 | L164: ='Generic Model_uncorrected'!CF140 -> 5296.783933 | M164: ='Generic Model_uncorrected'!CR141 -> 2544.53713 | N164: ='Generic Model_uncorrected'!DH141 -> 535.9420895
H165: 2014-05-22 | I165: 5341 | J165: 2014-05-22 | K165: ='Generic Model_uncorrected'!CB141 -> 108 | L165: ='Generic Model_uncorrected'!CF141 -> 5415.287911 | M165: ='Generic Model_uncorrected'!CR142 -> 2606.591322 | N165: ='Generic Model_uncorrected'!DH142 -> 534.3501032
H166: 2014-05-23 | I166: 5522 | J166: 2014-05-23 | K166: ='Generic Model_uncorrected'!CB142 -> 109 | L166: ='Generic Model_uncorrected'!CF142 -> 5533.486373 | M166: ='Generic Model_uncorrected'!CR143 -> 2668.445583 | N166: ='Generic Model_uncorrected'!DH143 -> 532.6313421
H167: 2014-05-24 | I167: 5701 | J167: 2014-05-24 | K167: ='Generic Model_uncorrected'!CB143 -> 110 | L167: ='Generic Model_uncorrected'!CF143 -> 5651.304012 | M167: ='Generic Model_uncorrected'!CR144 -> 2730.081566 | N167: ='Generic Model_uncorrected'!DH144 -> 530.931109
H168: 2014-05-25 | I168: 5779 | J168: 2014-05-25 | K168: ='Generic Model_uncorrected'!CB144 -> 111 | L168: ='Generic Model_uncorrected'!CF144 -> 5768.705885 | M168: ='Generic Model_uncorrected'!CR145 -> 2791.516768 | N168: ='Generic Model_uncorrected'!DH145 -> 529.375278
H169: 2014-05-26 | I169: 5857 | J169: 2014-05-26 | K169: ='Generic Model_uncorrected'!CB145 -> 112 | L169: ='Generic Model_uncorrected'!CF145 -> 5885.725316 | M169: ='Generic Model_uncorrected'!CR146 -> 2852.770386 | N169: ='Generic Model_uncorrected'!DH146 -> 528.0075612
H170: 2014-05-27 | I170: 5934 | J170: 2014-05-27 | K170: ='Generic Model_uncorrected'!CB146 -> 113 | L170: ='Generic Model_uncorrected'!CF146 -> 6002.398874 | M170: ='Generic Model_uncorrected'!CR147 -> 2913.864206 | N170: ='Generic Model_uncorrected'!DH147 -> 526.7773271
H171: 2014-05-28 | I171: 6010 | J171: 2014-05-28 | K171: ='Generic Model_uncorrected'!CB147 -> 114 | L171: ='Generic Model_uncorrected'!CF147 -> 6118.768057 | M171: ='Generic Model_uncorrected'!CR148 -> 2974.810799 | N171: ='Generic Model_uncorrected'!DH148 -> 525.5997217
H172: 2014-05-29 | I172: 6285 | J172: 2014-05-29 | K172: ='Generic Model_uncorrected'!CB148 -> 115 | L172: ='Generic Model_uncorrected'!CF148 -> 6234.856804 | M172: ='Generic Model_uncorrected'!CR149 -> 3035.619336 | N172: ='Generic Model_uncorrected'!DH149 -> 524.4139518
H173: 2014-05-30 | I173: 6359 | J173: 2014-05-30 | K173: ='Generic Model_uncorrected'!CB149 -> 116 | L173: ='Generic Model_uncorrected'!CF149 -> 6350.682589 | M173: ='Generic Model_uncorrected'!CR150 -> 3096.291197 | N173: ='Generic Model_uncorrected'!DH150 -> 523.1747805
H174: 2014-05-31 | I174: 6432 | J174: 2014-05-31 | K174: ='Generic Model_uncorrected'!CB150 -> 117 | L174: ='Generic Model_uncorrected'!CF150 -> 6466.248039 | M174: ='Generic Model_uncorrected'!CR151 -> 3156.820777 | N174: ='Generic Model_uncorrected'!DH151 -> 521.8827963
H175: 2014-06-01 | I175: 6505 | J175: 2014-06-01 | K175: ='Generic Model_uncorrected'!CB151 -> 118 | L175: ='Generic Model_uncorrected'!CF151 -> 6581.542478 | M175: ='Generic Model_uncorrected'!CR152 -> 3217.202203 | N175: ='Generic Model_uncorrected'!DH152 -> 520.5510586
H176: 2014-06-02 | I176: 6577 | J176: 2014-06-02 | K176: ='Generic Model_uncorrected'!CB152 -> 119 | L176: ='Generic Model_uncorrected'!CF152 -> 6696.554718 | M176: ='Generic Model_uncorrected'!CR153 -> 3277.430836 | N176: ='Generic Model_uncorrected'!DH153 -> 519.1956336
H177: 2014-06-03 | I177: 6648 | J177: 2014-06-03 | K177: ='Generic Model_uncorrected'!CB153 -> 120 | L177: ='Generic Model_uncorrected'!CF153 -> 6811.275922 | M177: ='Generic Model_uncorrected'!CR154 -> 3337.504117 | N177: ='Generic Model_uncorrected'!DH154 -> 517.8383347
H178: 2014-06-04 | I178: 6800 | J178: 2014-06-04 | K178: ='Generic Model_uncorrected'!CB154 -> 121 | L178: ='Generic Model_uncorrected'!CF154 -> 6925.701221 | M178: ='Generic Model_uncorrected'!CR155 -> 3397.42105 | N178: ='Generic Model_uncorrected'!DH155 -> 516.4955984
H179: 2014-06-05 | I179: 7006 | J179: 2014-06-05 | K179: ='Generic Model_uncorrected'!CB155 -> 122 | L179: ='Generic Model_uncorrected'!CF155 -> 7039.828712 | M179: ='Generic Model_uncorrected'!CR156 -> 3457.182651 | N179: ='Generic Model_uncorrected'!DH156 -> 515.1766721
H180: 2014-06-06 | I180: 7289 | J180: 2014-06-06 | K180: ='Generic Model_uncorrected'!CB156 -> 123 | L180: ='Generic Model_uncorrected'!CF156 -> 7153.660332 | M180: ='Generic Model_uncorrected'!CR157 -> 3516.790218 | N180: ='Generic Model_uncorrected'!DH157 -> 513.8755189
H181: 2014-06-07 | I181: 7445 | J181: 2014-06-07 | K181: ='Generic Model_uncorrected'!CB157 -> 124 | L181: ='Generic Model_uncorrected'!CF157 -> 7267.198555 | M181: ='Generic Model_uncorrected'!CR158 -> 3576.245616 | N181: ='Generic Model_uncorrected'!DH158 -> 512.5869281
H182: 2014-06-08 | I182: 7512 | J182: 2014-06-08 | K182: ='Generic Model_uncorrected'!CB158 -> 125 | L182: ='Generic Model_uncorrected'!CF158 -> 7380.446933 | M182: ='Generic Model_uncorrected'!CR159 -> 3635.550535 | N182: ='Generic Model_uncorrected'!DH159 -> 511.3038982
H183: 2014-06-09 | I183: 7666 | J183: 2014-06-09 | K183: ='Generic Model_uncorrected'!CB159 -> 126 | L183: ='Generic Model_uncorrected'!CF159 -> 7493.408684 | M183: ='Generic Model_uncorrected'!CR160 -> 3694.706155 | N183: ='Generic Model_uncorrected'!DH160 -> 510.022437
H184: 2014-06-10 | I184: 7788 | J184: 2014-06-10 | K184: ='Generic Model_uncorrected'!CB160 -> 127 | L184: ='Generic Model_uncorrected'!CF160 -> 7606.086054 | M184: ='Generic Model_uncorrected'!CR161 -> 3753.713067 | N184: ='Generic Model_uncorrected'!DH161 -> 508.7390074
H185: 2014-06-11 | I185: 7910 | J185: 2014-06-11 | K185: ='Generic Model_uncorrected'!CB161 -> 128 | L185: ='Generic Model_uncorrected'!CF161 -> 7718.480172 | M185: ='Generic Model_uncorrected'!CR162 -> 3812.571418 | N185: ='Generic Model_uncorrected'!DH162 -> 507.4528027
H186: 2014-06-12 | I186: 7975 | J186: 2014-06-12 | K186: ='Generic Model_uncorrected'!CB162 -> 129 | L186: ='Generic Model_uncorrected'!CF162 -> 7830.591317 | M186: ='Generic Model_uncorrected'!CR163 -> 3871.281111 | N186: ='Generic Model_uncorrected'!DH163 -> 506.1656705
H187: 2014-06-13 | I187: 8039 | J187: =J186+1 -> 2014-06-13 | K187: ='Generic Model_uncorrected'!CB163 -> 130 | L187: ='Generic Model_uncorrected'!CF163 -> 7942.419303 | M187: ='Generic Model_uncorrected'!CR164 -> 3929.841998 | N187: ='Generic Model_uncorrected'!DH164 -> 504.8796147
H188: 2014-06-14 | I188: 8125 | J188: 2014-06-14 | K188: ='Generic Model_uncorrected'!CB164 -> 131 | L188: ='Generic Model_uncorrected'!CF164 -> 8053.963851 | M188: ='Generic Model_uncorrected'!CR165 -> 3988.254032 | N188: ='Generic Model_uncorrected'!DH165 -> 503.5961828
H189: 2014-06-15 | I189: 8245 | J189: 2014-06-15 | K189: ='Generic Model_uncorrected'!CB165 -> 132 | L189: ='Generic Model_uncorrected'!CF165 -> 8165.224868 | M189: ='Generic Model_uncorrected'!CR166 -> 4046.517305 | N189: ='Generic Model_uncorrected'!DH166 -> 502.3162404
H190: 2014-06-16 | I190: 8332 | J190: 2014-06-16 | K190: ='Generic Model_uncorrected'!CB166 -> 133 | L190: ='Generic Model_uncorrected'!CF166 -> 8276.202531 | M190: ='Generic Model_uncorrected'!CR167 -> 4104.632064 | N190: ='Generic Model_uncorrected'!DH167 -> 501.0402579
H191: 2014-06-17 | I191: 8409 | J191: 2014-06-17 | K191: ='Generic Model_uncorrected'!CB167 -> 134 | L191: ='Generic Model_uncorrected'!CF167 -> 8386.89731 | M191: ='Generic Model_uncorrected'!CR168 -> 4162.598683 | N191: ='Generic Model_uncorrected'!DH168 -> 499.7680242
H192: 2014-06-18 | I192: 8566 | J192: 2014-06-18 | K192: ='Generic Model_uncorrected'!CB168 -> 135 | L192: ='Generic Model_uncorrected'!CF168 -> 8497.309917 | M192: ='Generic Model_uncorrected'!CR169 -> 4220.417609 | N192: ='Generic Model_uncorrected'!DH169 -> 498.4993494
J193: 2014-06-19 | K193: ='Generic Model_uncorrected'!CB169 -> 136 | L193: ='Generic Model_uncorrected'!CF169 -> 8607.441205 | M193: ='Generic Model_uncorrected'!CR170 -> 4278.089303 | N193: ='Generic Model_uncorrected'!DH170 -> 497.233801
J194: 2014-06-20 | K194: ='Generic Model_uncorrected'!CB170 -> 137 | L194: ='Generic Model_uncorrected'!CF170 -> 8717.292051 | M194: ='Generic Model_uncorrected'!CR171 -> 4335.614192 | N194: ='Generic Model_uncorrected'!DH171 -> 495.9709667
J195: 2014-06-21 | K195: ='Generic Model_uncorrected'!CB171 -> 138 | L195: ='Generic Model_uncorrected'!CF171 -> 8826.863268 | M195: ='Generic Model_uncorrected'!CR172 -> 4392.992652 | N195: ='Generic Model_uncorrected'!DH172 -> 494.7105662
J196: 2014-06-22 | K196: ='Generic Model_uncorrected'!CB172 -> 139 | L196: ='Generic Model_uncorrected'!CF172 -> 8936.155573 | M196: ='Generic Model_uncorrected'!CR173 -> 4450.225007 | N196: ='Generic Model_uncorrected'!DH173 -> 493.4524902
J197: 2014-06-23 | K197: ='Generic Model_uncorrected'!CB173 -> 140 | L197: ='Generic Model_uncorrected'!CF173 -> 9045.169582 | M197: ='Generic Model_uncorrected'!CR174 -> 4507.311541 | N197: ='Generic Model_uncorrected'!DH174 -> 492.1967642
J198: 2014-06-24 | K198: ='Generic Model_uncorrected'!CB174 -> 141 | L198: ='Generic Model_uncorrected'!CF174 -> 9153.905838 | M198: ='Generic Model_uncorrected'!CR175 -> 4564.252521 | N198: ='Generic Model_uncorrected'!DH175 -> 490.9434886
J199: 2014-06-25 | K199: ='Generic Model_uncorrected'!CB175 -> 142 | L199: ='Generic Model_uncorrected'!CF175 -> 9262.364846 | M199: ='Generic Model_uncorrected'!CR176 -> 4621.04821 | N199: ='Generic Model_uncorrected'!DH176 -> 489.6927843
J200: 2014-06-26 | K200: ='Generic Model_uncorrected'!CB176 -> 143 | L200: ='Generic Model_uncorrected'!CF176 -> 9370.547111 | M200: ='Generic Model_uncorrected'!CR177 -> 4677.698887 | N200: ='Generic Model_uncorrected'!DH177 -> 488.4447501
J201: 2014-06-27 | K201: ='Generic Model_uncorrected'!CB177 -> 144 | L201: ='Generic Model_uncorrected'!CF177 -> 9478.453163 | M201: ='Generic Model_uncorrected'!CR178 -> 4734.204848 | N201: ='Generic Model_uncorrected'!DH178 -> 487.1994547
J202: 2014-06-28 | K202: ='Generic Model_uncorrected'!CB178 -> 145 | L202: ='Generic Model_uncorrected'!CF178 -> 9586.083565 | M202: ='Generic Model_uncorrected'!CR179 -> 4790.566404 | N202: ='Generic Model_uncorrected'!DH179 -> 485.9569267
J203: 2014-06-29 | K203: ='Generic Model_uncorrected'!CB179 -> 146 | L203: ='Generic Model_uncorrected'!CF179 -> 9693.43891 | M203: ='Generic Model_uncorrected'!CR180 -> 4846.783879 | N203: ='Generic Model_uncorrected'!DH180 -> 484.717159
J204: 2014-06-30 | K204: ='Generic Model_uncorrected'!CB180 -> 147 | L204: ='Generic Model_uncorrected'!CF180 -> 9800.519815 | M204: ='Generic Model_uncorrected'!CR181 -> 4902.857599 | N204: ='Generic Model_uncorrected'!DH181 -> 483.4801173
J205: 2014-07-01 | K205: ='Generic Model_uncorrected'!CB181 -> 148 | L205: ='Generic Model_uncorrected'!CF181 -> 9907.326901 | M205: ='Generic Model_uncorrected'!CR182 -> 4958.787889 | N205: ='Generic Model_uncorrected'!DH182 -> 482.2457595
J206: 2014-07-02 | K206: ='Generic Model_uncorrected'!CB182 -> 149 | L206: ='Generic Model_uncorrected'!CF182 -> 10013.86079 | M206: ='Generic Model_uncorrected'!CR183 -> 5014.575067 | N206: ='Generic Model_uncorrected'!DH183 -> 481.0140484
J207: 2014-07-03 | K207: ='Generic Model_uncorrected'!CB183 -> 150 | L207: ='Generic Model_uncorrected'!CF183 -> 10120.12208 | M207: ='Generic Model_uncorrected'!CR184 -> 5070.219446 | N207: ='Generic Model_uncorrected'!DH184 -> 479.7849589
... 160 more rows

Sheet Generic_corrected
B1: GENERIC DATA TRANSMISSION DATA INPUT - CORRECTED
B7: Upper estimates (corrected)* | N7: Correction Factor
B8: Days | C8: Category | D8: % Patient | F8: Transmission Risk: Daily | P8: Imported cases (arrive newly infected - start incubating)
B9: 0-30 | C9: Hospitalized | D9: 0 | F9: 0.02 | N9: 2.5 | Q9: Day Arrive | R9: # arrive
C10: Eff Home Iso | D10: 0.05 | F10: 0.03 | N10: *This number is used to adjust for the level of underreporting of reported cases. | Q10: 10 | R10: 1
C11: No Eff Home Iso | D11: 0.95 | F11: 0.3 | Q11: 20 | R11: 0
B12: This should sum upto 1 | D12: =SUM(D9:D11) -> 1 | Q12: 30 | R12: 0
Q13: 40 | R13: 0
B14: 31-60 | C14: Hospitalized | D14: 0.03 | Q14: 50 | R14: 0
C15: Eff Home Iso | D15: 0.04 | Q15: 60 | R15: 0
C16: No Eff Home Iso | D16: 0.93 | J16: INTERMEDIATE RESULTS | Q16: 70 | R16: 3
B17: This should sum upto 1 | D17: =SUM(D14:D16) -> 1 | Q17: 80 | R17: 4
Q18: 90 | R18: 4
B19: 61-90 | C19: Hospitalized | D19: 0.2 | Q19: 100 | R19: 4
C20: Eff Home Iso | D20: 0.1 | Q20: 110 | R20: 4
C21: No Eff Home Iso | D21: 0.7 | Q21: 120 | R21: 3
B22: This should sum upto 1 | D22: =SUM(D19:D21) -> 1 | Q22: 130 | R22: 0
Q23: 140 | R23: 0
B24: 91-120 | C24: Hospitalized | D24: 0.25 | Q24: 150 | R24: 0
C25: Eff Home Iso | D25: 0.25 | Q25: 160 | R25: 0
C26: No Eff Home Iso | D26: 0.5 | Q26: 170 | R26: 0
B27: This should sum upto 1 | D27: =SUM(D24:D26) -> 1 | Q27: 180 | R27: 0
Q28: 190 | R28: 0
B29: 121-150 | C29: Hospitalized | D29: 0.25 | Q29: 200 | R29: 0 | BE29: Upper Estimates
C30: Eff Home Iso | D30: 0.25 | G30: *Eff Home Isolation is the at home or community setting such that there is a reduced risk of disease transmission. | Q30: 210 | R30: 0 | BE30: Days | BF30: Hospital | BG30: Home Iso | BH30: No Home Iso
C31: No Eff Home Iso | D31: 0.5 | Q31: 220 | R31: 0 | BE31: 0-30 | BF31: =Generic_corrected!$D$9 -> 0 | BG31: =Generic_corrected!$D$10 -> 0.05 | BH31: =Generic_corrected!$D$11 -> 0.95
B32: This should sum upto 1 | D32: =SUM(D29:D31) -> 1 | Q32: 230 | R32: 0 | BE32: 31-60 | BF32: =Generic_corrected!$D$14 -> 0.03 | BG32: =Generic_corrected!$D$15 -> 0.04 | BH32: =Generic_corrected!$D$16 -> 0.93
Q33: 240 | R33: 0 | BE33: 61-90 | BF33: =Generic_corrected!$D$19 -> 0.2 | BG33: =Generic_corrected!$D$20 -> 0.1 | BH33: =Generic_corrected!$D$21 -> 0.7
B34: 151-180 | C34: Hospitalized | D34: 0.25 | G34: Click buttons below to view the hospital bed needs or to go to results | Q34: 250 | R34: 0 | BE34: 91-120 | BF34: =Generic_corrected!$D$24 -> 0.25 | BG34: =Generic_corrected!$D$25 -> 0.25 | BH34: =Generic_corrected!$D$26 -> 0.5
C35: Eff Home Iso | D35: 0.25 | G35: HOSPITAL BED NEEDS | K35: GO TO RESULTS | Q35: 260 | R35: 0 | BE35: 121-150 | BF35: =Generic_corrected!$D$29 -> 0.25 | BG35: =Generic_corrected!$D$30 -> 0.25 | BH35: =Generic_corrected!$D$31 -> 0.5
C36: No Eff Home Iso | D36: 0.5 | J36: or | Q36: 270 | R36: 0 | BE36: 151-180 | BF36: =Generic_corrected!$D$34 -> 0.25 | BG36: =Generic_corrected!$D$35 -> 0.25 | BH36: =Generic_corrected!$D$36 -> 0.5
B37: This should sum upto 1 | D37: =SUM(D34:D36) -> 1 | Q37: 280 | R37: 0 | BE37: 181-210 | BF37: =Generic_corrected!$D$39 -> 0.25 | BG37: =Generic_corrected!$D$40 -> 0.25 | BH37: =Generic_corrected!$D$41 -> 0.5
Q38: 290 | R38: 0 | BE38: 211-240 | BF38: =Generic_corrected!$D$44 -> 0.3 | BG38: =Generic_corrected!$D$45 -> 0.3 | BH38: =Generic_corrected!$D$46 -> 0.4
B39: 181-210 | C39: Hospitalized | D39: 0.25 | Q39: 300 | R39: 0 | BE39: 241-270 | BF39: =Generic_corrected!$D$49 -> 0.3 | BG39: =Generic_corrected!$D$50 -> 0.3 | BH39: =Generic_corrected!$D$51 -> 0.4
C40: Eff Home Iso | D40: 0.25 | BE40: 271-300 | BF40: =Generic_corrected!$D$54 -> 0.35 | BG40: =Generic_corrected!$D$55 -> 0.35 | BH40: =Generic_corrected!$D$56 -> 0.3
C41: No Eff Home Iso | D41: 0.5
B42: This should sum upto 1 | D42: =SUM(D39:D41) -> 1
B44: 211-240 | C44: Hospitalized | D44: 0.3
C45: Eff Home Iso | D45: 0.3
C46: No Eff Home Iso | D46: 0.4
B47: This should sum upto 1 | D47: =SUM(D44:D46) -> 1
B49: 241-270 | C49: Hospitalized | D49: 0.3
C50: Eff Home Iso | D50: 0.3
C51: No Eff Home Iso | D51: 0.4
B52: This should sum upto 1 | D52: =SUM(D49:D51) -> 1
B54: 271-300 | C54: Hospitalized | D54: 0.35
C55: Eff Home Iso | D55: 0.35 | I55: Cases | K55: Days | L55: Cum Cases | M55: Cum Hosp Admit | N55: At that day Beds in use
C56: No Eff Home Iso | D56: 0.3 | H56: =Generic_uncorrected!H56 -> Report Date | I56: =Generic_uncorrected!I56 -> Total Cases
B57: This should sum upto 1 | D57: =SUM(D54:D56) -> 1 | H57: =IF(Generic_uncorrected!H57>0, Generic_uncorrected!H57,"") -> 2014-02-03 | I57: =(Generic_uncorrected!I57)*$N$9 -> 25 | J57: =H57 -> 2014-02-03 | K57: ='Generic Model_corrected'!CB33 -> 0 | L57: ='Generic Model_corrected'!CF33 -> 0 | M57: ='Generic Model_corrected'!CR33 -> 0 | N57: ='Generic Model_corrected'!DH34 -> 0
H58: =IF(Generic_uncorrected!H58>0, Generic_uncorrected!H58,"") -> 2014-02-04 | I58: =(Generic_uncorrected!I58)*$N$9 -> 25 | J58: =J57+1 -> 2014-02-04 | K58: ='Generic Model_corrected'!CB34 -> 1 | L58: ='Generic Model_corrected'!CF34 -> 0 | M58: ='Generic Model_corrected'!CR34 -> 0 | N58: ='Generic Model_corrected'!DH35 -> 0
H59: =IF(Generic_uncorrected!H59>0, Generic_uncorrected!H59,"") -> 2014-02-05 | I59: =(Generic_uncorrected!I59)*$N$9 -> 37.5 | J59: =J58+1 -> 2014-02-05 | K59: ='Generic Model_corrected'!CB35 -> 2 | L59: ='Generic Model_corrected'!CF35 -> 0 | M59: ='Generic Model_corrected'!CR35 -> 0 | N59: ='Generic Model_corrected'!DH36 -> 0.37975
H60: =IF(Generic_uncorrected!H60>0, Generic_uncorrected!H60,"") -> 2014-02-06 | I60: =(Generic_uncorrected!I60)*$N$9 -> 42.5 | J60: =J59+1 -> 2014-02-06 | K60: ='Generic Model_corrected'!CB36 -> 3 | L60: ='Generic Model_corrected'!CF36 -> 1.225 | M60: ='Generic Model_corrected'!CR36 -> 0.37975 | N60: ='Generic Model_corrected'!DH37 -> 2.046
H61: =IF(Generic_uncorrected!H61>0, Generic_uncorrected!H61,"") -> 2014-02-07 | I61: =(Generic_uncorrected!I61)*$N$9 -> 47.5 | J61: 2014-02-07 | K61: ='Generic Model_corrected'!CB37 -> 4 | L61: ='Generic Model_corrected'!CF37 -> 6.6 | M61: ='Generic Model_corrected'!CR37 -> 2.046 | N61: ='Generic Model_corrected'!DH38 -> 5.010375
H62: =IF(Generic_uncorrected!H62>0, Generic_uncorrected!H62,"") -> 2014-02-08 | I62: =(Generic_uncorrected!I62)*$N$9 -> 62.5 | J62: 2014-02-08 | K62: ='Generic Model_corrected'!CB38 -> 5 | L62: ='Generic Model_corrected'!CF38 -> 16.1625 | M62: ='Generic Model_corrected'!CR38 -> 5.010375 | N62: ='Generic Model_corrected'!DH39 -> 8.124132443
H63: =IF(Generic_uncorrected!H63>0, Generic_uncorrected!H63,"") -> 2014-02-09 | I63: =(Generic_uncorrected!I63)*$N$9 -> 75 | J63: 2014-02-09 | K63: ='Generic Model_corrected'!CB39 -> 6 | L63: ='Generic Model_corrected'!CF39 -> 26.20687885 | M63: ='Generic Model_corrected'!CR39 -> 8.124132443 | N63: ='Generic Model_corrected'!DH40 -> 10.51610316
H64: =IF(Generic_uncorrected!H64>0, Generic_uncorrected!H64,"") -> 2014-02-10 | I64: =(Generic_uncorrected!I64)*$N$9 -> 82.5 | J64: 2014-02-10 | K64: ='Generic Model_corrected'!CB40 -> 7 | L64: ='Generic Model_corrected'!CF40 -> 35.04912309 | M64: ='Generic Model_corrected'!CR40 -> 10.86522816 | N64: ='Generic Model_corrected'!DH41 -> 11.44317072
H65: =IF(Generic_uncorrected!H65>0, Generic_uncorrected!H65,"") -> 2014-02-11 | I65: =(Generic_uncorrected!I65)*$N$9 -> 95 | J65: 2014-02-11 | K65: ='Generic Model_corrected'!CB41 -> 8 | L65: ='Generic Model_corrected'!CF41 -> 42.98119588 | M65: ='Generic Model_corrected'!CR41 -> 13.32417072 | N65: ='Generic Model_corrected'!DH42 -> 10.65646181
H66: =IF(Generic_uncorrected!H66>0, Generic_uncorrected!H66,"") -> 2014-02-12 | I66: =(Generic_uncorrected!I66)*$N$9 -> 95 | J66: 2014-02-12 | K66: ='Generic Model_corrected'!CB42 -> 9 | L66: ='Generic Model_corrected'!CF42 -> 49.23475583 | M66: ='Generic Model_corrected'!CR42 -> 15.26277431 | N66: ='Generic Model_corrected'!DH43 -> 9.605038327
H67: =IF(Generic_uncorrected!H67>0, Generic_uncorrected!H67,"") -> 2014-02-13 | I67: =(Generic_uncorrected!I67)*$N$9 -> 95 | J67: 2014-02-13 | K67: ='Generic Model_corrected'!CB43 -> 10 | L67: ='Generic Model_corrected'!CF43 -> 55.1762058 | M67: ='Generic Model_corrected'!CR43 -> 17.1046238 | N67: ='Generic Model_corrected'!DH44 -> 8.99062699
H68: =IF(Generic_uncorrected!H68>0, Generic_uncorrected!H68,"") -> 2014-02-14 | I68: =(Generic_uncorrected!I68)*$N$9 -> 100 | J68: 2014-02-14 | K68: ='Generic Model_corrected'!CB44 -> 11 | L68: ='Generic Model_corrected'!CF44 -> 61.75686152 | M68: ='Generic Model_corrected'!CR44 -> 19.14462707 | N68: ='Generic Model_corrected'!DH45 -> 8.701445588
H69: =IF(Generic_uncorrected!H69>0, Generic_uncorrected!H69,"") -> 2014-02-15 | I69: =(Generic_uncorrected!I69)*$N$9 -> 100 | J69: 2014-02-15 | K69: ='Generic Model_corrected'!CB45 -> 12 | L69: ='Generic Model_corrected'!CF45 -> 68.88757714 | M69: ='Generic Model_corrected'!CR45 -> 21.35514891 | N69: ='Generic Model_corrected'!DH46 -> 9.305831959
H70: =IF(Generic_uncorrected!H70>0, Generic_uncorrected!H70,"") -> 2014-02-16 | I70: =(Generic_uncorrected!I70)*$N$9 -> 107.5 | J70: 2014-02-16 | K70: ='Generic Model_corrected'!CB46 -> 13 | L70: ='Generic Model_corrected'!CF46 -> 77.39648175 | M70: ='Generic Model_corrected'!CR46 -> 23.99290934 | N70: ='Generic Model_corrected'!DH47 -> 10.40425821
H71: =IF(Generic_uncorrected!H71>0, Generic_uncorrected!H71,"") -> 2014-02-17 | I71: =(Generic_uncorrected!I71)*$N$9 -> 117.5 | J71: 2014-02-17 | K71: ='Generic Model_corrected'!CB47 -> 14 | L71: ='Generic Model_corrected'!CF47 -> 87.11517724 | M71: ='Generic Model_corrected'!CR47 -> 27.00570495 | N71: ='Generic Model_corrected'!DH48 -> 11.72064964
H72: =IF(Generic_uncorrected!H72>0, Generic_uncorrected!H72,"") -> 2014-02-18 | I72: =(Generic_uncorrected!I72)*$N$9 -> 127.5 | J72: 2014-02-18 | K72: ='Generic Model_corrected'!CB48 -> 15 | L72: ='Generic Model_corrected'!CF48 -> 98.05124218 | M72: ='Generic Model_corrected'!CR48 -> 30.39588507 | N72: ='Generic Model_corrected'!DH49 -> 13.06806145
H73: =IF(Generic_uncorrected!H73>0, Generic_uncorrected!H73,"") -> 2014-02-19 | I73: =(Generic_uncorrected!I73)*$N$9 -> 132.5 | J73: 2014-02-19 | K73: ='Generic Model_corrected'!CB49 -> 16 | L73: ='Generic Model_corrected'!CF49 -> 109.4577091 | M73: ='Generic Model_corrected'!CR49 -> 33.93188983 | N73: ='Generic Model_corrected'!DH50 -> 14.16505395
H74: =IF(Generic_uncorrected!H74>0, Generic_uncorrected!H74,"") -> 2014-02-20 | I74: =(Generic_uncorrected!I74)*$N$9 -> 132.5 | J74: 2014-02-20 | K74: ='Generic Model_corrected'!CB50 -> 17 | L74: ='Generic Model_corrected'!CF50 -> 121.2982464 | M74: ='Generic Model_corrected'!CR50 -> 37.60245639 | N74: ='Generic Model_corrected'!DH51 -> 14.95582654
H75: =IF(Generic_uncorrected!H75>0, Generic_uncorrected!H75,"") -> 2014-02-21 | I75: =(Generic_uncorrected!I75)*$N$9 -> 145 | J75: 2014-02-21 | K75: ='Generic Model_corrected'!CB51 -> 18 | L75: ='Generic Model_corrected'!CF51 -> 133.3147535 | M75: ='Generic Model_corrected'!CR51 -> 41.3275736 | N75: ='Generic Model_corrected'!DH52 -> 15.51546778
H76: =IF(Generic_uncorrected!H76>0, Generic_uncorrected!H76,"") -> 2014-02-22 | I76: =(Generic_uncorrected!I76)*$N$9 -> 150 | J76: 2014-02-22 | K76: ='Generic Model_corrected'!CB52 -> 19 | L76: ='Generic Model_corrected'!CF52 -> 145.7492298 | M76: ='Generic Model_corrected'!CR52 -> 45.18226123 | N76: ='Generic Model_corrected'!DH53 -> 16.06523181
H77: =IF(Generic_uncorrected!H77>0, Generic_uncorrected!H77,"") -> 2014-02-23 | I77: =(Generic_uncorrected!I77)*$N$9 -> 167.5 | J77: 2014-02-23 | K77: ='Generic Model_corrected'!CB53 -> 20 | L77: ='Generic Model_corrected'!CF53 -> 158.6954547 | M77: ='Generic Model_corrected'!CR53 -> 49.19559095 | N77: ='Generic Model_corrected'!DH54 -> 16.65580829
H78: =IF(Generic_uncorrected!H78>0, Generic_uncorrected!H78,"") -> 2014-02-24 | I78: =(Generic_uncorrected!I78)*$N$9 -> 190 | J78: 2014-02-24 | K78: ='Generic Model_corrected'!CB54 -> 21 | L78: ='Generic Model_corrected'!CF54 -> 172.2699611 | M78: ='Generic Model_corrected'!CR54 -> 53.40368795 | N78: ='Generic Model_corrected'!DH55 -> 17.44715184
H79: =IF(Generic_uncorrected!H79>0, Generic_uncorrected!H79,"") -> 2014-02-25 | I79: =(Generic_uncorrected!I79)*$N$9 -> 212.5 | J79: 2014-02-25 | K79: ='Generic Model_corrected'!CB55 -> 22 | L79: ='Generic Model_corrected'!CF55 -> 186.7520569 | M79: ='Generic Model_corrected'!CR55 -> 57.89313765 | N79: ='Generic Model_corrected'!DH56 -> 18.41358469
H80: =IF(Generic_uncorrected!H80>0, Generic_uncorrected!H80,"") -> 2014-02-26 | I80: =(Generic_uncorrected!I80)*$N$9 -> 250 | J80: 2014-02-26 | K80: ='Generic Model_corrected'!CB56 -> 23 | L80: ='Generic Model_corrected'!CF56 -> 202.2211545 | M80: ='Generic Model_corrected'!CR56 -> 62.6885579 | N80: ='Generic Model_corrected'!DH57 -> 19.5435837
H81: =IF(Generic_uncorrected!H81>0, Generic_uncorrected!H81,"") -> 2014-02-27 | I81: =(Generic_uncorrected!I81)*$N$9 -> 285 | J81: 2014-02-27 | K81: ='Generic Model_corrected'!CB57 -> 24 | L81: ='Generic Model_corrected'!CF57 -> 218.7233692 | M81: ='Generic Model_corrected'!CR57 -> 67.80424445 | N81: ='Generic Model_corrected'!DH58 -> 20.79912469
H82: =IF(Generic_uncorrected!H82>0, Generic_uncorrected!H82,"") -> 2014-02-28 | I82: =(Generic_uncorrected!I82)*$N$9 -> 322.5 | J82: 2014-02-28 | K82: ='Generic Model_corrected'!CB58 -> 25 | L82: ='Generic Model_corrected'!CF58 -> 236.2223627 | M82: ='Generic Model_corrected'!CR58 -> 73.22893245 | N82: ='Generic Model_corrected'!DH59 -> 22.09724867
H83: =IF(Generic_uncorrected!H83>0, Generic_uncorrected!H83,"") -> 2014-03-01 | I83: =(Generic_uncorrected!I83)*$N$9 -> 342.5 | J83: 2014-03-01 | K83: ='Generic Model_corrected'!CB59 -> 26 | L83: ='Generic Model_corrected'!CF59 -> 254.7268246 | M83: ='Generic Model_corrected'!CR59 -> 78.96531564 | N83: ='Generic Model_corrected'!DH60 -> 23.40476043
H84: =IF(Generic_uncorrected!H84>0, Generic_uncorrected!H84,"") -> 2014-03-02 | I84: =(Generic_uncorrected!I84)*$N$9 -> 380 | J84: 2014-03-02 | K84: ='Generic Model_corrected'!CB60 -> 27 | L84: ='Generic Model_corrected'!CF60 -> 274.2102446 | M84: ='Generic Model_corrected'!CR60 -> 85.00517584 | N84: ='Generic Model_corrected'!DH61 -> 24.72315587
H85: =IF(Generic_uncorrected!H85>0, Generic_uncorrected!H85,"") -> 2014-03-03 | I85: =(Generic_uncorrected!I85)*$N$9 -> 407.5 | J85: 2014-03-03 | K85: ='Generic Model_corrected'!CB61 -> 28 | L85: ='Generic Model_corrected'!CF61 -> 294.7292423 | M85: ='Generic Model_corrected'!CR61 -> 91.36606511 | N85: ='Generic Model_corrected'!DH62 -> 26.07258145
H86: =IF(Generic_uncorrected!H86>0, Generic_uncorrected!H86,"") -> 2014-03-04 | I86: =(Generic_uncorrected!I86)*$N$9 -> 420 | J86: 2014-03-04 | K86: ='Generic Model_corrected'!CB62 -> 29 | L86: ='Generic Model_corrected'!CF62 -> 316.3379234 | M86: ='Generic Model_corrected'!CR62 -> 98.06475626 | N86: ='Generic Model_corrected'!DH63 -> 27.47391251
H87: =IF(Generic_uncorrected!H87>0, Generic_uncorrected!H87,"") -> 2014-03-05 | I87: =(Generic_uncorrected!I87)*$N$9 -> 427.5 | J87: 2014-03-05 | K87: ='Generic Model_corrected'!CB63 -> 30 | L87: ='Generic Model_corrected'!CF63 -> 339.1180206 | M87: ='Generic Model_corrected'!CR63 -> 105.1265864 | N87: ='Generic Model_corrected'!DH64 -> 29.42136962
H88: =IF(Generic_uncorrected!H88>0, Generic_uncorrected!H88,"") -> 2014-03-06 | I88: =(Generic_uncorrected!I88)*$N$9 -> 617.5 | J88: 2014-03-06 | K88: ='Generic Model_corrected'!CB64 -> 31 | L88: ='Generic Model_corrected'!CF64 -> 363.1690455 | M88: ='Generic Model_corrected'!CR64 -> 113.0393736 | N88: ='Generic Model_corrected'!DH65 -> 31.49845206
H89: =IF(Generic_uncorrected!H89>0, Generic_uncorrected!H89,"") -> 2014-03-07 | I89: =(Generic_uncorrected!I89)*$N$9 -> 620 | J89: 2014-03-07 | K89: ='Generic Model_corrected'!CB65 -> 32 | L89: ='Generic Model_corrected'!CF65 -> 388.5868923 | M89: ='Generic Model_corrected'!CR65 -> 121.4018452 | N89: ='Generic Model_corrected'!DH66 -> 33.71878023
H90: =IF(Generic_uncorrected!H90>0, Generic_uncorrected!H90,"") -> 2014-03-08 | I90: =(Generic_uncorrected!I90)*$N$9 -> 637.5 | J90: 2014-03-08 | K90: ='Generic Model_corrected'!CB66 -> 33 | L90: ='Generic Model_corrected'!CF66 -> 415.4604906 | M90: ='Generic Model_corrected'!CR66 -> 130.243259 | N90: ='Generic Model_corrected'!DH67 -> 36.08511992
H91: =IF(Generic_uncorrected!H91>0, Generic_uncorrected!H91,"") -> 2014-03-09 | I91: =(Generic_uncorrected!I91)*$N$9 -> 657.5 | J91: 2014-03-09 | K91: ='Generic Model_corrected'!CB67 -> 34 | L91: ='Generic Model_corrected'!CF67 -> 443.8670343 | M91: ='Generic Model_corrected'!CR67 -> 139.5890119 | N91: ='Generic Model_corrected'!DH68 -> 38.73358573
H92: =IF(Generic_uncorrected!H92>0, Generic_uncorrected!H92,"") -> 2014-03-10 | I92: =(Generic_uncorrected!I92)*$N$9 -> 862.5 | J92: 2014-03-10 | K92: ='Generic Model_corrected'!CB68 -> 35 | L92: ='Generic Model_corrected'!CF68 -> 473.8721307 | M92: ='Generic Model_corrected'!CR68 -> 149.4606886 | N92: ='Generic Model_corrected'!DH69 -> 41.51724085
H93: =IF(Generic_uncorrected!H93>0, Generic_uncorrected!H93,"") -> 2014-03-11 | I93: =(Generic_uncorrected!I93)*$N$9 -> 892.5 | J93: 2014-03-11 | K93: ='Generic Model_corrected'!CB69 -> 36 | L93: ='Generic Model_corrected'!CF69 -> 505.5300377 | M93: ='Generic Model_corrected'!CR69 -> 159.87614 | N93: ='Generic Model_corrected'!DH70 -> 44.42943275
H94: =IF(Generic_uncorrected!H94>0, Generic_uncorrected!H94,"") -> 2014-03-12 | I94: =(Generic_uncorrected!I94)*$N$9 -> 932.5 | J94: 2014-03-12 | K94: ='Generic Model_corrected'!CB70 -> 37 | L94: ='Generic Model_corrected'!CF70 -> 538.90216 | M94: ='Generic Model_corrected'!CR70 -> 170.8555683 | N94: ='Generic Model_corrected'!DH71 -> 47.58989184
H95: =IF(Generic_uncorrected!H95>0, Generic_uncorrected!H95,"") -> 2014-03-13 | I95: =(Generic_uncorrected!I95)*$N$9 -> 955 | J95: 2014-03-13 | K95: ='Generic Model_corrected'!CB71 -> 38 | L95: ='Generic Model_corrected'!CF71 -> 574.0599269 | M95: ='Generic Model_corrected'!CR71 -> 182.4224736 | N95: ='Generic Model_corrected'!DH72 -> 50.89177289
H96: =IF(Generic_uncorrected!H96>0, Generic_uncorrected!H96,"") -> 2014-03-14 | I96: =(Generic_uncorrected!I96)*$N$9 -> 960 | J96: 2014-03-14 | K96: ='Generic Model_corrected'!CB72 -> 39 | L96: ='Generic Model_corrected'!CF72 -> 611.0862487 | M96: ='Generic Model_corrected'!CR72 -> 194.6041334 | N96: ='Generic Model_corrected'!DH73 -> 54.35014813
H97: =IF(Generic_uncorrected!H97>0, Generic_uncorrected!H97,"") -> 2014-03-15 | I97: =(Generic_uncorrected!I97)*$N$9 -> 960 | J97: 2014-03-15 | K97: ='Generic Model_corrected'!CB73 -> 40 | L97: ='Generic Model_corrected'!CF73 -> 650.0783559 | M97: ='Generic Model_corrected'!CR73 -> 207.4325367 | N97: ='Generic Model_corrected'!DH74 -> 57.98394592
H98: =IF(Generic_uncorrected!H98>0, Generic_uncorrected!H98,"") -> 2014-03-16 | I98: =(Generic_uncorrected!I98)*$N$9 -> 1005 | J98: 2014-03-16 | K98: ='Generic Model_corrected'!CB74 -> 41 | L98: ='Generic Model_corrected'!CF74 -> 691.1505467 | M98: ='Generic Model_corrected'!CR74 -> 220.9452875 | N98: ='Generic Model_corrected'!DH75 -> 61.81400785
H99: =IF(Generic_uncorrected!H99>0, Generic_uncorrected!H99,"") -> 2014-03-17 | I99: =(Generic_uncorrected!I99)*$N$9 -> 1027.5 | J99: 2014-03-17 | K99: ='Generic Model_corrected'!CB75 -> 42 | L99: ='Generic Model_corrected'!CF75 -> 734.4307316 | M99: ='Generic Model_corrected'!CR75 -> 235.1844683 | N99: ='Generic Model_corrected'!DH76 -> 65.13837191
H100: =IF(Generic_uncorrected!H100>0, Generic_uncorrected!H100,"") -> 2014-03-18 | I100: =(Generic_uncorrected!I100)*$N$9 -> 1065 | J100: 2014-03-18 | K100: ='Generic Model_corrected'!CB76 -> 43 | L100: ='Generic Model_corrected'!CF76 -> 780.0519982 | M100: ='Generic Model_corrected'!CR76 -> 250.193865 | N100: ='Generic Model_corrected'!DH77 -> 68.653052
H101: =IF(Generic_uncorrected!H101>0, Generic_uncorrected!H101,"") -> 2014-03-19 | I101: =(Generic_uncorrected!I101)*$N$9 -> 1080 | J101: 2014-03-19 | K101: ='Generic Model_corrected'!CB77 -> 44 | L101: ='Generic Model_corrected'!CF77 -> 828.1476087 | M101: ='Generic Model_corrected'!CR77 -> 266.0173209 | N101: ='Generic Model_corrected'!DH78 -> 72.36639543
H102: =IF(Generic_uncorrected!H102>0, Generic_uncorrected!H102,"") -> 2014-03-20 | I102: =(Generic_uncorrected!I102)*$N$9 -> 1125 | J102: 2014-03-20 | K102: ='Generic Model_corrected'!CB78 -> 45 | L102: ='Generic Model_corrected'!CF78 -> 878.8523138 | M102: ='Generic Model_corrected'!CR78 -> 282.6991688 | N102: ='Generic Model_corrected'!DH79 -> 76.28332991
H103: =IF(Generic_uncorrected!H103>0, Generic_uncorrected!H103,"") -> 2014-03-21 | I103: =(Generic_uncorrected!I103)*$N$9 -> 1167.5 | J103: 2014-03-21 | K103: ='Generic Model_corrected'!CB79 -> 46 | L103: ='Generic Model_corrected'!CF79 -> 932.3016414 | M103: ='Generic Model_corrected'!CR79 -> 300.2839976 | N103: ='Generic Model_corrected'!DH80 -> 80.40934718
H104: =IF(Generic_uncorrected!H104>0, Generic_uncorrected!H104,"") -> 2014-03-22 | I104: =(Generic_uncorrected!I104)*$N$9 -> 1202.5 | J104: 2014-03-22 | K104: ='Generic Model_corrected'!CB80 -> 47 | L104: ='Generic Model_corrected'!CF80 -> 988.6370387 | M104: ='Generic Model_corrected'!CR80 -> 318.8183433 | N104: ='Generic Model_corrected'!DH81 -> 84.75287555
H105: =IF(Generic_uncorrected!H105>0, Generic_uncorrected!H105,"") -> 2014-03-23 | I105: =(Generic_uncorrected!I105)*$N$9 -> 1470 | J105: 2014-03-23 | K105: ='Generic Model_corrected'!CB81 -> 48 | L105: ='Generic Model_corrected'!CF81 -> 1048.009029 | M105: ='Generic Model_corrected'!CR81 -> 338.3517281 | N105: ='Generic Model_corrected'!DH82 -> 89.32466865
H106: =IF(Generic_uncorrected!H106>0, Generic_uncorrected!H106,"") -> 2014-03-24 | I106: =(Generic_uncorrected!I106)*$N$9 -> 1520 | J106: 2014-03-24 | K106: ='Generic Model_corrected'!CB82 -> 49 | L106: ='Generic Model_corrected'!CF82 -> 1110.577944 | M106: ='Generic Model_corrected'!CR82 -> 358.9369012 | N106: ='Generic Model_corrected'!DH83 -> 94.13861656
H107: =IF(Generic_uncorrected!H107>0, Generic_uncorrected!H107,"") -> 2014-03-25 | I107: =(Generic_uncorrected!I107)*$N$9 -> 1580 | J107: 2014-03-25 | K107: ='Generic Model_corrected'!CB83 -> 50 | L107: ='Generic Model_corrected'!CF83 -> 1176.515539 | M107: ='Generic Model_corrected'!CR83 -> 380.6303699 | N107: ='Generic Model_corrected'!DH84 -> 99.21028806
H108: =IF(Generic_uncorrected!H108>0, Generic_uncorrected!H108,"") -> 2014-03-26 | I108: =(Generic_uncorrected!I108)*$N$9 -> 1722.5 | J108: 2014-03-26 | K108: ='Generic Model_corrected'!CB84 -> 51 | L108: ='Generic Model_corrected'!CF84 -> 1246.004746 | M108: ='Generic Model_corrected'!CR84 -> 403.4923191 | N108: ='Generic Model_corrected'!DH85 -> 104.5560697
H109: =IF(Generic_uncorrected!H109>0, Generic_uncorrected!H109,"") -> 2014-03-27 | I109: =(Generic_uncorrected!I109)*$N$9 -> 1872.5 | J109: 2014-03-27 | K109: ='Generic Model_corrected'!CB85 -> 52 | L109: ='Generic Model_corrected'!CF85 -> 1319.240078 | M109: ='Generic Model_corrected'!CR85 -> 427.5867432 | N109: ='Generic Model_corrected'!DH86 -> 110.1923652
H110: =IF(Generic_uncorrected!H110>0, Generic_uncorrected!H110,"") -> 2014-03-28 | I110: =(Generic_uncorrected!I110)*$N$9 -> 1882.5 | J110: 2014-03-28 | K110: ='Generic Model_corrected'!CB86 -> 53 | L110: ='Generic Model_corrected'!CF86 -> 1396.426021 | M110: ='Generic Model_corrected'!CR86 -> 452.9809185 | N110: ='Generic Model_corrected'!DH87 -> 116.1352085
H111: =IF(Generic_uncorrected!H111>0, Generic_uncorrected!H111,"") -> 2014-03-29 | I111: =(Generic_uncorrected!I111)*$N$9 -> 1987.5 | J111: 2014-03-29 | K111: ='Generic Model_corrected'!CB87 -> 54 | L111: ='Generic Model_corrected'!CF87 -> 1477.777223 | M111: ='Generic Model_corrected'!CR87 -> 479.7454641 | N111: ='Generic Model_corrected'!DH88 -> 122.4005431
H112: =IF(Generic_uncorrected!H112>0, Generic_uncorrected!H112,"") -> 2014-03-30 | I112: =(Generic_uncorrected!I112)*$N$9 -> 2087.5 | J112: 2014-03-30 | K112: ='Generic Model_corrected'!CB88 -> 55 | L112: ='Generic Model_corrected'!CF88 -> 1563.518565 | M112: ='Generic Model_corrected'!CR88 -> 507.9543654 | N112: ='Generic Model_corrected'!DH89 -> 129.0046141
H113: =IF(Generic_uncorrected!H113>0, Generic_uncorrected!H113,"") -> 2014-03-31 | I113: =(Generic_uncorrected!I113)*$N$9 -> 2192.5 | J113: 2014-03-31 | K113: ='Generic Model_corrected'!CB89 -> 56 | L113: ='Generic Model_corrected'!CF89 -> 1653.88627 | M113: ='Generic Model_corrected'!CR89 -> 537.6853406 | N113: ='Generic Model_corrected'!DH90 -> 135.9646304
H114: =IF(Generic_uncorrected!H114>0, Generic_uncorrected!H114,"") -> 2014-04-01 | I114: =(Generic_uncorrected!I114)*$N$9 -> 2300 | J114: 2014-04-01 | K114: ='Generic Model_corrected'!CB90 -> 57 | L114: ='Generic Model_corrected'!CF90 -> 1749.128785 | M114: ='Generic Model_corrected'!CR90 -> 569.020128 | N114: ='Generic Model_corrected'!DH91 -> 143.2990925
H115: =IF(Generic_uncorrected!H115>0, Generic_uncorrected!H115,"") -> 2014-04-02 | I115: =(Generic_uncorrected!I115)*$N$9 -> 2412.5 | J115: 2014-04-02 | K115: ='Generic Model_corrected'!CB91 -> 58 | L115: ='Generic Model_corrected'!CF91 -> 1849.507848 | M115: ='Generic Model_corrected'!CR91 -> 602.0448396 | N115: ='Generic Model_corrected'!DH92 -> 151.0280162
H116: =IF(Generic_uncorrected!H116>0, Generic_uncorrected!H116,"") -> 2014-04-03 | I116: =(Generic_uncorrected!I116)*$N$9 -> 2530 | J116: 2014-04-03 | K116: ='Generic Model_corrected'!CB92 -> 59 | L116: ='Generic Model_corrected'!CF92 -> 1955.299722 | M116: ='Generic Model_corrected'!CR92 -> 636.8503661 | N116: ='Generic Model_corrected'!DH93 -> 159.1728464
H117: =IF(Generic_uncorrected!H117>0, Generic_uncorrected!H117,"") -> 2014-04-04 | I117: =(Generic_uncorrected!I117)*$N$9 -> 2652.5 | J117: 2014-04-04 | K117: ='Generic Model_corrected'!CB93 -> 60 | L117: ='Generic Model_corrected'!CF93 -> 2066.79607 | M117: ='Generic Model_corrected'!CR93 -> 673.5326648 | N117: ='Generic Model_corrected'!DH94 -> 183.1500651
H118: =IF(Generic_uncorrected!H118>0, Generic_uncorrected!H118,"") -> 2014-04-05 | I118: =(Generic_uncorrected!I118)*$N$9 -> 2782.5 | J118: 2014-04-05 | K118: ='Generic Model_corrected'!CB94 -> 61 | L118: ='Generic Model_corrected'!CF94 -> 2184.304705 | M118: ='Generic Model_corrected'!CR94 -> 727.5866367 | N118: ='Generic Model_corrected'!DH95 -> 208.4202944
H119: =IF(Generic_uncorrected!H119>0, Generic_uncorrected!H119,"") -> 2014-04-06 | I119: =(Generic_uncorrected!I119)*$N$9 -> 2915 | J119: 2014-04-06 | K119: ='Generic Model_corrected'!CB95 -> 62 | L119: ='Generic Model_corrected'!CF95 -> 2308.150232 | M119: ='Generic Model_corrected'!CR95 -> 784.555579 | N119: ='Generic Model_corrected'!DH96 -> 235.0536255
H120: =IF(Generic_uncorrected!H120>0, Generic_uncorrected!H120,"") -> 2014-04-07 | I120: =(Generic_uncorrected!I120)*$N$9 -> 3052.5 | J120: 2014-04-07 | K120: ='Generic Model_corrected'!CB96 -> 63 | L120: ='Generic Model_corrected'!CF96 -> 2438.674785 | M120: ='Generic Model_corrected'!CR96 -> 844.5968733 | N120: ='Generic Model_corrected'!DH97 -> 263.0560828
H121: =IF(Generic_uncorrected!H121>0, Generic_uncorrected!H121,"") -> 2014-04-08 | I121: =(Generic_uncorrected!I121)*$N$9 -> 3197.5 | J121: 2014-04-08 | K121: ='Generic Model_corrected'!CB97 -> 64 | L121: ='Generic Model_corrected'!CF97 -> 2576.091847 | M121: ='Generic Model_corrected'!CR97 -> 907.8087221 | N121: ='Generic Model_corrected'!DH98 -> 300.3129606
H122: =IF(Generic_uncorrected!H122>0, Generic_uncorrected!H122,"") -> 2014-04-09 | I122: =(Generic_uncorrected!I122)*$N$9 -> 3345 | J122: 2014-04-09 | K122: ='Generic Model_corrected'!CB98 -> 65 | L122: ='Generic Model_corrected'!CF98 -> 2720.128479 | M122: ='Generic Model_corrected'!CR98 -> 974.0655727 | N122: ='Generic Model_corrected'!DH99 -> 338.6874418
H123: =IF(Generic_uncorrected!H123>0, Generic_uncorrected!H123,"") -> 2014-04-10 | I123: =(Generic_uncorrected!I123)*$N$9 -> 3497.5 | J123: =J122+1 -> 2014-04-10 | K123: ='Generic Model_corrected'!CB99 -> 66 | L123: ='Generic Model_corrected'!CF99 -> 2869.994599 | M123: ='Generic Model_corrected'!CR99 -> 1043.003988 | N123: ='Generic Model_corrected'!DH100 -> 377.685518
H124: =IF(Generic_uncorrected!H124>0, Generic_uncorrected!H124,"") -> 2014-04-11 | I124: =(Generic_uncorrected!I124)*$N$9 -> 3652.5 | J124: 2014-04-11 | K124: ='Generic Model_corrected'!CB100 -> 67 | L124: ='Generic Model_corrected'!CF100 -> 3024.799816 | M124: ='Generic Model_corrected'!CR100 -> 1114.214388 | N124: ='Generic Model_corrected'!DH101 -> 413.3593057
H125: =IF(Generic_uncorrected!H125>0, Generic_uncorrected!H125,"") -> 2014-04-12 | I125: =(Generic_uncorrected!I125)*$N$9 -> 3807.5 | J125: 2014-04-12 | K125: ='Generic Model_corrected'!CB101 -> 68 | L125: ='Generic Model_corrected'!CF101 -> 3183.751628 | M125: ='Generic Model_corrected'!CR101 -> 1187.332221 | N125: ='Generic Model_corrected'!DH102 -> 448.7565637
H126: =IF(Generic_uncorrected!H126>0, Generic_uncorrected!H126,"") -> 2014-04-13 | I126: =(Generic_uncorrected!I126)*$N$9 -> 3965 | J126: 2014-04-13 | K126: ='Generic Model_corrected'!CB102 -> 69 | L126: ='Generic Model_corrected'!CF102 -> 3346.130981 | M126: ='Generic Model_corrected'!CR102 -> 1262.026724 | N126: ='Generic Model_corrected'!DH103 -> 483.8376896
H127: =IF(Generic_uncorrected!H127>0, Generic_uncorrected!H127,"") -> 2014-04-14 | I127: =(Generic_uncorrected!I127)*$N$9 -> 4125 | J127: 2014-04-14 | K127: ='Generic Model_corrected'!CB103 -> 70 | L127: ='Generic Model_corrected'!CF103 -> 3511.545352 | M127: ='Generic Model_corrected'!CR103 -> 1338.117334 | N127: ='Generic Model_corrected'!DH104 -> 518.8401848
H128: =IF(Generic_uncorrected!H128>0, Generic_uncorrected!H128,"") -> 2014-04-15 | I128: =(Generic_uncorrected!I128)*$N$9 -> 4285 | J128: 2014-04-15 | K128: ='Generic Model_corrected'!CB104 -> 71 | L128: ='Generic Model_corrected'!CF104 -> 3680.145787 | M128: ='Generic Model_corrected'!CR104 -> 1415.673534 | N128: ='Generic Model_corrected'!DH105 -> 554.2908076
H129: =IF(Generic_uncorrected!H129>0, Generic_uncorrected!H129,"") -> 2014-04-16 | I129: =(Generic_uncorrected!I129)*$N$9 -> 4447.5 | J129: 2014-04-16 | K129: ='Generic Model_corrected'!CB105 -> 72 | L129: ='Generic Model_corrected'!CF105 -> 3852.704973 | M129: ='Generic Model_corrected'!CR105 -> 1495.05076 | N129: ='Generic Model_corrected'!DH106 -> 570.8806128
H130: =IF(Generic_uncorrected!H130>0, Generic_uncorrected!H130,"") -> 2014-04-17 | I130: =(Generic_uncorrected!I130)*$N$9 -> 4615 | J130: 2014-04-17 | K130: ='Generic Model_corrected'!CB106 -> 73 | L130: ='Generic Model_corrected'!CF106 -> 4030.279978 | M130: ='Generic Model_corrected'!CR106 -> 1576.735262 | N130: ='Generic Model_corrected'!DH107 -> 587.8606292
H131: =IF(Generic_uncorrected!H131>0, Generic_uncorrected!H131,"") -> 2014-04-18 | I131: =(Generic_uncorrected!I131)*$N$9 -> 4785 | J131: 2014-04-18 | K131: ='Generic Model_corrected'!CB107 -> 74 | L131: ='Generic Model_corrected'!CF107 -> 4213.380849 | M131: ='Generic Model_corrected'!CR107 -> 1660.961663 | N131: ='Generic Model_corrected'!DH108 -> 605.1230631
H132: =IF(Generic_uncorrected!H132>0, Generic_uncorrected!H132,"") -> 2014-04-19 | I132: =(Generic_uncorrected!I132)*$N$9 -> 4957.5 | J132: 2014-04-19 | K132: ='Generic Model_corrected'!CB108 -> 75 | L132: ='Generic Model_corrected'!CF108 -> 4401.904819 | M132: ='Generic Model_corrected'!CR108 -> 1747.682689 | N132: ='Generic Model_corrected'!DH109 -> 622.42462
H133: =IF(Generic_uncorrected!H133>0, Generic_uncorrected!H133,"") -> 2014-04-20 | I133: =(Generic_uncorrected!I133)*$N$9 -> 5135 | J133: 2014-04-20 | K133: ='Generic Model_corrected'!CB109 -> 76 | L133: ='Generic Model_corrected'!CF109 -> 4595.690397 | M133: ='Generic Model_corrected'!CR109 -> 1836.824055 | N133: ='Generic Model_corrected'!DH110 -> 639.6088821
H134: =IF(Generic_uncorrected!H134>0, Generic_uncorrected!H134,"") -> 2014-04-21 | I134: =(Generic_uncorrected!I134)*$N$9 -> 5312.5 | J134: 2014-04-21 | K134: ='Generic Model_corrected'!CB110 -> 77 | L134: ='Generic Model_corrected'!CF110 -> 4794.718784 | M134: ='Generic Model_corrected'!CR110 -> 1928.377113 | N134: ='Generic Model_corrected'!DH111 -> 656.653846
H135: =IF(Generic_uncorrected!H135>0, Generic_uncorrected!H135,"") -> 2014-04-22 | I135: =(Generic_uncorrected!I135)*$N$9 -> 5495 | J135: 2014-04-22 | K135: ='Generic Model_corrected'!CB111 -> 78 | L135: ='Generic Model_corrected'!CF111 -> 4998.847899 | M135: ='Generic Model_corrected'!CR111 -> 2022.276506 | N135: ='Generic Model_corrected'!DH112 -> 673.7779959
H136: =IF(Generic_uncorrected!H136>0, Generic_uncorrected!H136,"") -> 2014-04-23 | I136: =(Generic_uncorrected!I136)*$N$9 -> 5680 | J136: 2014-04-23 | K136: ='Generic Model_corrected'!CB112 -> 79 | L136: ='Generic Model_corrected'!CF112 -> 5208.202651 | M136: ='Generic Model_corrected'!CR112 -> 2118.579692 | N136: ='Generic Model_corrected'!DH113 -> 691.1929447
H137: =IF(Generic_uncorrected!H137>0, Generic_uncorrected!H137,"") -> 2014-04-24 | I137: =(Generic_uncorrected!I137)*$N$9 -> 5867.5 | J137: 2014-04-24 | K137: ='Generic Model_corrected'!CB113 -> 80 | L137: ='Generic Model_corrected'!CF113 -> 5422.93968 | M137: ='Generic Model_corrected'!CR113 -> 2217.358725 | N137: ='Generic Model_corrected'!DH114 -> 709.0667536
H138: =IF(Generic_uncorrected!H138>0, Generic_uncorrected!H138,"") -> 2014-04-25 | I138: =(Generic_uncorrected!I138)*$N$9 -> 6057.5 | J138: 2014-04-25 | K138: ='Generic Model_corrected'!CB114 -> 81 | L138: ='Generic Model_corrected'!CF114 -> 5643.158559 | M138: ='Generic Model_corrected'!CR114 -> 2318.659409 | N138: ='Generic Model_corrected'!DH115 -> 727.7419622
H139: =IF(Generic_uncorrected!H139>0, Generic_uncorrected!H139,"") -> 2014-04-26 | I139: =(Generic_uncorrected!I139)*$N$9 -> 6252.5 | J139: 2014-04-26 | K139: ='Generic Model_corrected'!CB115 -> 82 | L139: ='Generic Model_corrected'!CF115 -> 5869.357244 | M139: ='Generic Model_corrected'!CR115 -> 2422.710805 | N139: ='Generic Model_corrected'!DH116 -> 747.4808941
H140: =IF(Generic_uncorrected!H140>0, Generic_uncorrected!H140,"") -> 2014-04-27 | I140: =(Generic_uncorrected!I140)*$N$9 -> 6447.5 | J140: 2014-04-27 | K140: ='Generic Model_corrected'!CB116 -> 83 | L140: ='Generic Model_corrected'!CF116 -> 6102.211148 | M140: ='Generic Model_corrected'!CR116 -> 2529.823601 | N140: ='Generic Model_corrected'!DH117 -> 768.2149852
H141: =IF(Generic_uncorrected!H141>0, Generic_uncorrected!H141,"") -> 2014-04-28 | I141: =(Generic_uncorrected!I141)*$N$9 -> 6650 | J141: 2014-04-28 | K141: ='Generic Model_corrected'!CB117 -> 84 | L141: ='Generic Model_corrected'!CF117 -> 6341.976634 | M141: ='Generic Model_corrected'!CR117 -> 2640.115724 | N141: ='Generic Model_corrected'!DH118 -> 789.5010649
H142: =IF(Generic_uncorrected!H142>0, Generic_uncorrected!H142,"") -> 2014-04-29 | I142: =(Generic_uncorrected!I142)*$N$9 -> 6852.5 | J142: 2014-04-29 | K142: ='Generic Model_corrected'!CB118 -> 85 | L142: ='Generic Model_corrected'!CF118 -> 6588.179897 | M142: ='Generic Model_corrected'!CR118 -> 2753.369225 | N142: ='Generic Model_corrected'!DH119 -> 811.0825172
H143: =IF(Generic_uncorrected!H143>0, Generic_uncorrected!H143,"") -> 2014-04-30 | I143: =(Generic_uncorrected!I143)*$N$9 -> 7060 | J143: 2014-04-30 | K143: ='Generic Model_corrected'!CB119 -> 86 | L143: ='Generic Model_corrected'!CF119 -> 6840.725741 | M143: ='Generic Model_corrected'!CR119 -> 2869.540313 | N143: ='Generic Model_corrected'!DH120 -> 832.9079314
H144: =IF(Generic_uncorrected!H144>0, Generic_uncorrected!H144,"") -> 2014-05-01 | I144: =(Generic_uncorrected!I144)*$N$9 -> 7420 | J144: 2014-05-01 | K144: ='Generic Model_corrected'!CB120 -> 87 | L144: ='Generic Model_corrected'!CF120 -> 7099.783088 | M144: ='Generic Model_corrected'!CR120 -> 2988.706693 | N144: ='Generic Model_corrected'!DH121 -> 854.9623287
H145: =IF(Generic_uncorrected!H145>0, Generic_uncorrected!H145,"") -> 2014-05-02 | I145: =(Generic_uncorrected!I145)*$N$9 -> 7635 | J145: 2014-05-02 | K145: ='Generic Model_corrected'!CB121 -> 88 | L145: ='Generic Model_corrected'!CF121 -> 7365.37702 | M145: ='Generic Model_corrected'!CR121 -> 3110.879902 | N145: ='Generic Model_corrected'!DH122 -> 877.4861792
H146: =IF(Generic_uncorrected!H146>0, Generic_uncorrected!H146,"") -> 2014-05-03 | I146: =(Generic_uncorrected!I146)*$N$9 -> 8425 | J146: 2014-05-03 | K146: ='Generic Model_corrected'!CB122 -> 89 | L146: ='Generic Model_corrected'!CF122 -> 7637.859949 | M146: ='Generic Model_corrected'!CR122 -> 3236.222049 | N146: ='Generic Model_corrected'!DH123 -> 900.6364983
H147: =IF(Generic_uncorrected!H147>0, Generic_uncorrected!H147,"") -> 2014-05-04 | I147: =(Generic_uncorrected!I147)*$N$9 -> 8872.5 | J147: 2014-05-04 | K147: ='Generic Model_corrected'!CB123 -> 90 | L147: ='Generic Model_corrected'!CF123 -> 7917.541394 | M147: ='Generic Model_corrected'!CR123 -> 3364.875513 | N147: ='Generic Model_corrected'!DH124 -> 943.0779777
H148: =IF(Generic_uncorrected!H148>0, Generic_uncorrected!H148,"") -> 2014-05-05 | I148: =(Generic_uncorrected!I148)*$N$9 -> 9097.5 | J148: 2014-05-05 | K148: ='Generic Model_corrected'!CB124 -> 91 | L148: ='Generic Model_corrected'!CF124 -> 8204.594245 | M148: ='Generic Model_corrected'!CR124 -> 3515.57826 | N148: ='Generic Model_corrected'!DH125 -> 986.8842648
H149: =IF(Generic_uncorrected!H149>0, Generic_uncorrected!H149,"") -> 2014-05-06 | I149: =(Generic_uncorrected!I149)*$N$9 -> 9325 | J149: 2014-05-06 | K149: ='Generic Model_corrected'!CB125 -> 92 | L149: ='Generic Model_corrected'!CF125 -> 8499.524877 | M149: ='Generic Model_corrected'!CR125 -> 3670.416842 | N149: ='Generic Model_corrected'!DH126 -> 1032.309146
H150: =IF(Generic_uncorrected!H150>0, Generic_uncorrected!H150,"") -> 2014-05-07 | I150: =(Generic_uncorrected!I150)*$N$9 -> 9557.5 | J150: 2014-05-07 | K150: ='Generic Model_corrected'!CB126 -> 93 | L150: ='Generic Model_corrected'!CF126 -> 8802.986524 | M150: ='Generic Model_corrected'!CR126 -> 3829.734207 | N150: ='Generic Model_corrected'!DH127 -> 1079.149762
H151: =IF(Generic_uncorrected!H151>0, Generic_uncorrected!H151,"") -> 2014-05-08 | I151: =(Generic_uncorrected!I151)*$N$9 -> 9792.5 | J151: 2014-05-08 | K151: ='Generic Model_corrected'!CB127 -> 94 | L151: ='Generic Model_corrected'!CF127 -> 9114.922377 | M151: ='Generic Model_corrected'!CR127 -> 3993.50053 | N151: ='Generic Model_corrected'!DH128 -> 1143.496325
H152: =IF(Generic_uncorrected!H152>0, Generic_uncorrected!H152,"") -> 2014-05-09 | I152: =(Generic_uncorrected!I152)*$N$9 -> 10027.5 | J152: 2014-05-09 | K152: ='Generic Model_corrected'!CB128 -> 95 | L152: ='Generic Model_corrected'!CF128 -> 9433.503269 | M152: ='Generic Model_corrected'!CR128 -> 4160.755498 | N152: ='Generic Model_corrected'!DH129 -> 1207.111191
H153: =IF(Generic_uncorrected!H153>0, Generic_uncorrected!H153,"") -> 2014-05-10 | I153: =(Generic_uncorrected!I153)*$N$9 -> 10262.5 | J153: 2014-05-10 | K153: ='Generic Model_corrected'!CB129 -> 96 | L153: ='Generic Model_corrected'!CF129 -> 9756.230326 | M153: ='Generic Model_corrected'!CR129 -> 4330.187203 | N153: ='Generic Model_corrected'!DH130 -> 1268.713348
H154: =IF(Generic_uncorrected!H154>0, Generic_uncorrected!H154,"") -> 2014-05-11 | I154: =(Generic_uncorrected!I154)*$N$9 -> 10495 | J154: 2014-05-11 | K154: ='Generic Model_corrected'!CB130 -> 97 | L154: ='Generic Model_corrected'!CF130 -> 10080.69914 | M154: ='Generic Model_corrected'!CR130 -> 4500.533332 | N154: ='Generic Model_corrected'!DH131 -> 1305.591947
H155: =IF(Generic_uncorrected!H155>0, Generic_uncorrected!H155,"") -> 2014-05-12 | I155: =(Generic_uncorrected!I155)*$N$9 -> 10725 | J155: 2014-05-12 | K155: ='Generic Model_corrected'!CB131 -> 98 | L155: ='Generic Model_corrected'!CF131 -> 10404.62248 | M155: ='Generic Model_corrected'!CR131 -> 4670.593083 | N155: ='Generic Model_corrected'!DH132 -> 1337.965862
H156: =IF(Generic_uncorrected!H156>0, Generic_uncorrected!H156,"") -> 2014-05-13 | I156: =(Generic_uncorrected!I156)*$N$9 -> 11125 | J156: 2014-05-13 | K156: ='Generic Model_corrected'!CB132 -> 99 | L156: ='Generic Model_corrected'!CF132 -> 10726.22028 | M156: ='Generic Model_corrected'!CR132 -> 4839.431931 | N156: ='Generic Model_corrected'!DH133 -> 1365.548966
H157: =IF(Generic_uncorrected!H157>0, Generic_uncorrected!H157,"") -> 2014-05-14 | I157: =(Generic_uncorrected!I157)*$N$9 -> 11672.5 | J157: 2014-05-14 | K157: ='Generic Model_corrected'!CB133 -> 100 | L157: ='Generic Model_corrected'!CF133 -> 11044.39867 | M157: ='Generic Model_corrected'!CR133 -> 5006.475586 | N157: ='Generic Model_corrected'!DH134 -> 1388.616916
H158: =IF(Generic_uncorrected!H158>0, Generic_uncorrected!H158,"") -> 2014-05-15 | I158: =(Generic_uncorrected!I158)*$N$9 -> 11890 | J158: 2014-05-15 | K158: ='Generic Model_corrected'!CB134 -> 101 | L158: ='Generic Model_corrected'!CF134 -> 11359.11647 | M158: ='Generic Model_corrected'!CR134 -> 5171.702426 | N158: ='Generic Model_corrected'!DH135 -> 1408.372699
H159: =IF(Generic_uncorrected!H159>0, Generic_uncorrected!H159,"") -> 2014-05-16 | I159: =(Generic_uncorrected!I159)*$N$9 -> 12105 | J159: 2014-05-16 | K159: ='Generic Model_corrected'!CB135 -> 102 | L159: ='Generic Model_corrected'!CF135 -> 11671.69396 | M159: ='Generic Model_corrected'!CR135 -> 5335.80561 | N159: ='Generic Model_corrected'!DH136 -> 1411.8838
H160: =IF(Generic_uncorrected!H160>0, Generic_uncorrected!H160,"") -> 2014-05-17 | I160: =(Generic_uncorrected!I160)*$N$9 -> 12317.5 | J160: 2014-05-17 | K160: ='Generic Model_corrected'!CB136 -> 103 | L160: ='Generic Model_corrected'!CF136 -> 11983.79847 | M160: ='Generic Model_corrected'!CR136 -> 5499.660477 | N160: ='Generic Model_corrected'!DH137 -> 1413.935013
H161: =IF(Generic_uncorrected!H161>0, Generic_uncorrected!H161,"") -> 2014-05-18 | I161: =(Generic_uncorrected!I161)*$N$9 -> 12527.5 | J161: 2014-05-18 | K161: ='Generic Model_corrected'!CB137 -> 104 | L161: ='Generic Model_corrected'!CF137 -> 12296.31129 | M161: ='Generic Model_corrected'!CR137 -> 5663.729708 | N161: ='Generic Model_corrected'!DH138 -> 1414.574664
H162: =IF(Generic_uncorrected!H162>0, Generic_uncorrected!H162,"") -> 2014-05-19 | I162: =(Generic_uncorrected!I162)*$N$9 -> 12737.5 | J162: 2014-05-19 | K162: ='Generic Model_corrected'!CB138 -> 105 | L162: ='Generic Model_corrected'!CF138 -> 12609.07919 | M162: ='Generic Model_corrected'!CR138 -> 5827.932857 | N162: ='Generic Model_corrected'!DH139 -> 1413.653489
H163: =IF(Generic_uncorrected!H163>0, Generic_uncorrected!H163,"") -> 2014-05-20 | I163: =(Generic_uncorrected!I163)*$N$9 -> 12945 | J163: 2014-05-20 | K163: ='Generic Model_corrected'!CB139 -> 106 | L163: ='Generic Model_corrected'!CF139 -> 12921.74422 | M163: ='Generic Model_corrected'!CR139 -> 5992.081995 | N163: ='Generic Model_corrected'!DH140 -> 1411.368424
H164: =IF(Generic_uncorrected!H164>0, Generic_uncorrected!H164,"") -> 2014-05-21 | I164: =(Generic_uncorrected!I164)*$N$9 -> 13150 | J164: 2014-05-21 | K164: ='Generic Model_corrected'!CB140 -> 107 | L164: ='Generic Model_corrected'!CF140 -> 13234.02637 | M164: ='Generic Model_corrected'!CR140 -> 6156.030128 | N164: ='Generic Model_corrected'!DH141 -> 1407.994927
H165: =IF(Generic_uncorrected!H165>0, Generic_uncorrected!H165,"") -> 2014-05-22 | I165: =(Generic_uncorrected!I165)*$N$9 -> 13352.5 | J165: 2014-05-22 | K165: ='Generic Model_corrected'!CB141 -> 108 | L165: ='Generic Model_corrected'!CF141 -> 13545.5024 | M165: ='Generic Model_corrected'!CR141 -> 6319.555042 | N165: ='Generic Model_corrected'!DH142 -> 1403.920199
H166: =IF(Generic_uncorrected!H166>0, Generic_uncorrected!H166,"") -> 2014-05-23 | I166: =(Generic_uncorrected!I166)*$N$9 -> 13805 | J166: 2014-05-23 | K166: ='Generic Model_corrected'!CB142 -> 109 | L166: ='Generic Model_corrected'!CF142 -> 13856.03544 | M166: ='Generic Model_corrected'!CR142 -> 6482.58489 | N166: ='Generic Model_corrected'!DH143 -> 1399.522851
H167: =IF(Generic_uncorrected!H167>0, Generic_uncorrected!H167,"") -> 2014-05-24 | I167: =(Generic_uncorrected!I167)*$N$9 -> 14252.5 | J167: 2014-05-24 | K167: ='Generic Model_corrected'!CB143 -> 110 | L167: ='Generic Model_corrected'!CF143 -> 14165.55221 | M167: ='Generic Model_corrected'!CR143 -> 6645.081193 | N167: ='Generic Model_corrected'!DH144 -> 1395.122611
H168: =IF(Generic_uncorrected!H168>0, Generic_uncorrected!H168,"") -> 2014-05-25 | I168: =(Generic_uncorrected!I168)*$N$9 -> 14447.5 | J168: 2014-05-25 | K168: ='Generic Model_corrected'!CB144 -> 111 | L168: ='Generic Model_corrected'!CF144 -> 14473.9439 | M168: ='Generic Model_corrected'!CR144 -> 6806.986831 | N168: ='Generic Model_corrected'!DH145 -> 1391.281495
H169: =IF(Generic_uncorrected!H169>0, Generic_uncorrected!H169,"") -> 2014-05-26 | I169: =(Generic_uncorrected!I169)*$N$9 -> 14642.5 | J169: 2014-05-26 | K169: ='Generic Model_corrected'!CB145 -> 112 | L169: ='Generic Model_corrected'!CF145 -> 14781.60271 | M169: ='Generic Model_corrected'!CR145 -> 6968.507704 | N169: ='Generic Model_corrected'!DH146 -> 1388.361118
H170: =IF(Generic_uncorrected!H170>0, Generic_uncorrected!H170,"") -> 2014-05-27 | I170: =(Generic_uncorrected!I170)*$N$9 -> 14835 | J170: 2014-05-27 | K170: ='Generic Model_corrected'!CB146 -> 113 | L170: ='Generic Model_corrected'!CF146 -> 15089.07348 | M170: ='Generic Model_corrected'!CR146 -> 7129.92986 | N170: ='Generic Model_corrected'!DH147 -> 1386.159115
H171: =IF(Generic_uncorrected!H171>0, Generic_uncorrected!H171,"") -> 2014-05-28 | I171: =(Generic_uncorrected!I171)*$N$9 -> 15025 | J171: 2014-05-28 | K171: ='Generic Model_corrected'!CB147 -> 114 | L171: ='Generic Model_corrected'!CF147 -> 15396.51187 | M171: ='Generic Model_corrected'!CR147 -> 7291.335015 | N171: ='Generic Model_corrected'!DH148 -> 1384.003768
H172: =IF(Generic_uncorrected!H172>0, Generic_uncorrected!H172,"") -> 2014-05-29 | I172: =(Generic_uncorrected!I172)*$N$9 -> 15712.5 | J172: 2014-05-29 | K172: ='Generic Model_corrected'!CB148 -> 115 | L172: ='Generic Model_corrected'!CF148 -> 15703.30051 | M172: ='Generic Model_corrected'!CR148 -> 7452.399052 | N172: ='Generic Model_corrected'!DH149 -> 1381.513721
H173: =IF(Generic_uncorrected!H173>0, Generic_uncorrected!H173,"") -> 2014-05-30 | I173: =(Generic_uncorrected!I173)*$N$9 -> 15897.5 | J173: 2014-05-30 | K173: ='Generic Model_corrected'!CB149 -> 116 | L173: ='Generic Model_corrected'!CF149 -> 16009.21215 | M173: ='Generic Model_corrected'!CR149 -> 7613.002662 | N173: ='Generic Model_corrected'!DH150 -> 1378.657982
H174: =IF(Generic_uncorrected!H174>0, Generic_uncorrected!H174,"") -> 2014-05-31 | I174: =(Generic_uncorrected!I174)*$N$9 -> 16080 | J174: 2014-05-31 | K174: ='Generic Model_corrected'!CB150 -> 117 | L174: ='Generic Model_corrected'!CF150 -> 16314.25301 | M174: ='Generic Model_corrected'!CR150 -> 7773.149111 | N174: ='Generic Model_corrected'!DH151 -> 1375.432498
H175: =IF(Generic_uncorrected!H175>0, Generic_uncorrected!H175,"") -> 2014-06-01 | I175: =(Generic_uncorrected!I175)*$N$9 -> 16262.5 | J175: 2014-06-01 | K175: ='Generic Model_corrected'!CB151 -> 118 | L175: ='Generic Model_corrected'!CF151 -> 16618.26347 | M175: ='Generic Model_corrected'!CR151 -> 7932.754603 | N175: ='Generic Model_corrected'!DH152 -> 1372.027782
H176: =IF(Generic_uncorrected!H176>0, Generic_uncorrected!H176,"") -> 2014-06-02 | I176: =(Generic_uncorrected!I176)*$N$9 -> 16442.5 | J176: 2014-06-02 | K176: ='Generic Model_corrected'!CB152 -> 119 | L176: ='Generic Model_corrected'!CF152 -> 16921.39008 | M176: ='Generic Model_corrected'!CR152 -> 8091.896073 | N176: ='Generic Model_corrected'!DH153 -> 1368.568075
H177: =IF(Generic_uncorrected!H177>0, Generic_uncorrected!H177,"") -> 2014-06-03 | I177: =(Generic_uncorrected!I177)*$N$9 -> 16620 | J177: 2014-06-03 | K177: ='Generic Model_corrected'!CB153 -> 120 | L177: ='Generic Model_corrected'!CF153 -> 17223.73273 | M177: ='Generic Model_corrected'!CR153 -> 8250.625965 | N177: ='Generic Model_corrected'!DH154 -> 1365.051112
H178: =IF(Generic_uncorrected!H178>0, Generic_uncorrected!H178,"") -> 2014-06-04 | I178: =(Generic_uncorrected!I178)*$N$9 -> 17000 | J178: 2014-06-04 | K178: ='Generic Model_corrected'!CB154 -> 121 | L178: ='Generic Model_corrected'!CF154 -> 17525.26078 | M178: ='Generic Model_corrected'!CR154 -> 8408.92819 | N178: ='Generic Model_corrected'!DH155 -> 1361.728099
H179: =IF(Generic_uncorrected!H179>0, Generic_uncorrected!H179,"") -> 2014-06-05 | I179: =(Generic_uncorrected!I179)*$N$9 -> 17515 | J179: 2014-06-05 | K179: ='Generic Model_corrected'!CB155 -> 122 | L179: ='Generic Model_corrected'!CF155 -> 17826.22521 | M179: ='Generic Model_corrected'!CR155 -> 8566.934519 | N179: ='Generic Model_corrected'!DH156 -> 1358.809775
H180: =IF(Generic_uncorrected!H180>0, Generic_uncorrected!H180,"") -> 2014-06-06 | I180: =(Generic_uncorrected!I180)*$N$9 -> 18222.5 | J180: 2014-06-06 | K180: ='Generic Model_corrected'!CB156 -> 123 | L180: ='Generic Model_corrected'!CF156 -> 18126.96339 | M180: ='Generic Model_corrected'!CR156 -> 8724.822063 | N180: ='Generic Model_corrected'!DH157 -> 1356.20978
H181: =IF(Generic_uncorrected!H181>0, Generic_uncorrected!H181,"") -> 2014-06-07 | I181: =(Generic_uncorrected!I181)*$N$9 -> 18612.5 | J181: 2014-06-07 | K181: ='Generic Model_corrected'!CB157 -> 124 | L181: ='Generic Model_corrected'!CF157 -> 18427.52761 | M181: ='Generic Model_corrected'!CR157 -> 8882.618275 | N181: ='Generic Model_corrected'!DH158 -> 1353.542322
H182: =IF(Generic_uncorrected!H182>0, Generic_uncorrected!H182,"") -> 2014-06-08 | I182: =(Generic_uncorrected!I182)*$N$9 -> 18780 | J182: 2014-06-08 | K182: ='Generic Model_corrected'!CB158 -> 125 | L182: ='Generic Model_corrected'!CF158 -> 18727.3957 | M182: ='Generic Model_corrected'!CR158 -> 9040.049025 | N182: ='Generic Model_corrected'!DH159 -> 1350.609584
H183: =IF(Generic_uncorrected!H183>0, Generic_uncorrected!H183,"") -> 2014-06-09 | I183: =(Generic_uncorrected!I183)*$N$9 -> 19165 | J183: 2014-06-09 | K183: ='Generic Model_corrected'!CB159 -> 126 | L183: ='Generic Model_corrected'!CF159 -> 19026.37161 | M183: ='Generic Model_corrected'!CR159 -> 9197.011376 | N183: ='Generic Model_corrected'!DH160 -> 1347.501102
H184: =IF(Generic_uncorrected!H184>0, Generic_uncorrected!H184,"") -> 2014-06-10 | I184: =(Generic_uncorrected!I184)*$N$9 -> 19470 | J184: 2014-06-10 | K184: ='Generic Model_corrected'!CB160 -> 127 | L184: ='Generic Model_corrected'!CF160 -> 19324.45206 | M184: ='Generic Model_corrected'!CR160 -> 9353.503613 | N184: ='Generic Model_corrected'!DH161 -> 1344.221355
H185: =IF(Generic_uncorrected!H185>0, Generic_uncorrected!H185,"") -> 2014-06-11 | I185: =(Generic_uncorrected!I185)*$N$9 -> 19775 | J185: 2014-06-11 | K185: ='Generic Model_corrected'!CB161 -> 128 | L185: ='Generic Model_corrected'!CF161 -> 19621.54501 | M185: ='Generic Model_corrected'!CR161 -> 9509.477413 | N185: ='Generic Model_corrected'!DH162 -> 1340.883605
H186: =IF(Generic_uncorrected!H186>0, Generic_uncorrected!H186,"") -> 2014-06-12 | I186: =(Generic_uncorrected!I186)*$N$9 -> 19937.5 | J186: 2014-06-12 | K186: ='Generic Model_corrected'!CB162 -> 129 | L186: ='Generic Model_corrected'!CF162 -> 19917.77974 | M186: ='Generic Model_corrected'!CR162 -> 9665.000646 | N186: ='Generic Model_corrected'!DH163 -> 1337.562868
H187: =IF(Generic_uncorrected!H187>0, Generic_uncorrected!H187,"") -> 2014-06-13 | I187: =(Generic_uncorrected!I187)*$N$9 -> 20097.5 | J187: =J186+1 -> 2014-06-13 | K187: ='Generic Model_corrected'!CB163 -> 130 | L187: ='Generic Model_corrected'!CF163 -> 20213.24743 | M187: ='Generic Model_corrected'!CR163 -> 9820.121182 | N187: ='Generic Model_corrected'!DH164 -> 1334.212112
H188: =IF(Generic_uncorrected!H188>0, Generic_uncorrected!H188,"") -> 2014-06-14 | I188: =(Generic_uncorrected!I188)*$N$9 -> 20312.5 | J188: 2014-06-14 | K188: ='Generic Model_corrected'!CB164 -> 131 | L188: ='Generic Model_corrected'!CF164 -> 20507.93979 | M188: ='Generic Model_corrected'!CR164 -> 9974.834673 | N188: ='Generic Model_corrected'!DH165 -> 1330.928645
H189: =IF(Generic_uncorrected!H189>0, Generic_uncorrected!H189,"") -> 2014-06-15 | I189: =(Generic_uncorrected!I189)*$N$9 -> 20612.5 | J189: 2014-06-15 | K189: ='Generic Model_corrected'!CB165 -> 132 | L189: ='Generic Model_corrected'!CF165 -> 20801.93913 | M189: ='Generic Model_corrected'!CR165 -> 10129.18432 | N189: ='Generic Model_corrected'!DH166 -> 1327.718397
H190: =IF(Generic_uncorrected!H190>0, Generic_uncorrected!H190,"") -> 2014-06-16 | I190: =(Generic_uncorrected!I190)*$N$9 -> 20830 | J190: 2014-06-16 | K190: ='Generic Model_corrected'!CB166 -> 133 | L190: ='Generic Model_corrected'!CF166 -> 21095.23239 | M190: ='Generic Model_corrected'!CR166 -> 10283.16328 | N190: ='Generic Model_corrected'!DH167 -> 1324.522062
H191: =IF(Generic_uncorrected!H191>0, Generic_uncorrected!H191,"") -> 2014-06-17 | I191: =(Generic_uncorrected!I191)*$N$9 -> 21022.5 | J191: 2014-06-17 | K191: ='Generic Model_corrected'!CB167 -> 134 | L191: ='Generic Model_corrected'!CF167 -> 21387.8514 | M191: ='Generic Model_corrected'!CR167 -> 10436.78827 | N191: ='Generic Model_corrected'!DH168 -> 1321.235256
H192: =IF(Generic_uncorrected!H192>0, Generic_uncorrected!H192,"") -> 2014-06-18 | I192: =(Generic_uncorrected!I192)*$N$9 -> 21415 | J192: 2014-06-18 | K192: ='Generic Model_corrected'!CB168 -> 135 | L192: ='Generic Model_corrected'!CF168 -> 21679.73371 | M192: ='Generic Model_corrected'!CR168 -> 10590.02648 | N192: ='Generic Model_corrected'!DH169 -> 1317.817072
H193: =IF(Generic_uncorrected!H193>0, Generic_uncorrected!H193,"") ->  | I193: =(Generic_uncorrected!I193)*$N$9 -> 0 | J193: 2014-06-19 | K193: ='Generic Model_corrected'!CB169 -> 136 | L193: ='Generic Model_corrected'!CF169 -> 21970.88059 | M193: ='Generic Model_corrected'!CR169 -> 10742.87859 | N193: ='Generic Model_corrected'!DH170 -> 1314.376268
H194: =IF(Generic_uncorrected!H194>0, Generic_uncorrected!H194,"") ->  | I194: =(Generic_uncorrected!I194)*$N$9 -> 0 | J194: 2014-06-20 | K194: ='Generic Model_corrected'!CB170 -> 137 | L194: ='Generic Model_corrected'!CF170 -> 22261.26853 | M194: ='Generic Model_corrected'!CR170 -> 10895.33226 | N194: ='Generic Model_corrected'!DH171 -> 1310.964907
H195: =IF(Generic_uncorrected!H195>0, Generic_uncorrected!H195,"") ->  | I195: =(Generic_uncorrected!I195)*$N$9 -> 0 | J195: 2014-06-21 | K195: ='Generic Model_corrected'!CB171 -> 138 | L195: ='Generic Model_corrected'!CF171 -> 22550.91046 | M195: ='Generic Model_corrected'!CR171 -> 11047.39428 | N195: ='Generic Model_corrected'!DH172 -> 1307.578565
H196: =IF(Generic_uncorrected!H196>0, Generic_uncorrected!H196,"") ->  | I196: =(Generic_uncorrected!I196)*$N$9 -> 0 | J196: 2014-06-22 | K196: ='Generic Model_corrected'!CB172 -> 139 | L196: ='Generic Model_corrected'!CF172 -> 22839.79815 | M196: ='Generic Model_corrected'!CR172 -> 11199.06031 | N196: ='Generic Model_corrected'!DH173 -> 1304.241641
H197: =IF(Generic_uncorrected!H197>0, Generic_uncorrected!H197,"") ->  | I197: =(Generic_uncorrected!I197)*$N$9 -> 0 | J197: 2014-06-23 | K197: ='Generic Model_corrected'!CB173 -> 140 | L197: ='Generic Model_corrected'!CF173 -> 23127.93149 | M197: ='Generic Model_corrected'!CR173 -> 11350.33031 | N197: ='Generic Model_corrected'!DH174 -> 1300.931467
H198: =IF(Generic_uncorrected!H198>0, Generic_uncorrected!H198,"") ->  | I198: =(Generic_uncorrected!I198)*$N$9 -> 0 | J198: 2014-06-24 | K198: ='Generic Model_corrected'!CB174 -> 141 | L198: ='Generic Model_corrected'!CF174 -> 23415.32973 | M198: ='Generic Model_corrected'!CR174 -> 11501.21439 | N198: ='Generic Model_corrected'!DH175 -> 1297.63319
H199: =IF(Generic_uncorrected!H199>0, Generic_uncorrected!H199,"") ->  | I199: =(Generic_uncorrected!I199)*$N$9 -> 0 | J199: 2014-06-25 | K199: ='Generic Model_corrected'!CB175 -> 142 | L199: ='Generic Model_corrected'!CF175 -> 23701.99682 | M199: ='Generic Model_corrected'!CR175 -> 11651.71461 | N199: ='Generic Model_corrected'!DH176 -> 1294.351551
H200: =IF(Generic_uncorrected!H200>0, Generic_uncorrected!H200,"") ->  | I200: =(Generic_uncorrected!I200)*$N$9 -> 0 | J200: 2014-06-26 | K200: ='Generic Model_corrected'!CB176 -> 143 | L200: ='Generic Model_corrected'!CF176 -> 23987.9358 | M200: ='Generic Model_corrected'!CR176 -> 11801.83258 | N200: ='Generic Model_corrected'!DH177 -> 1291.069089
H201: =IF(Generic_uncorrected!H201>0, Generic_uncorrected!H201,"") ->  | I201: =(Generic_uncorrected!I201)*$N$9 -> 0 | J201: 2014-06-27 | K201: ='Generic Model_corrected'!CB177 -> 144 | L201: ='Generic Model_corrected'!CF177 -> 24273.14697 | M201: ='Generic Model_corrected'!CR177 -> 11951.56844 | N201: ='Generic Model_corrected'!DH178 -> 1287.786093
H202: =IF(Generic_uncorrected!H202>0, Generic_uncorrected!H202,"") ->  | I202: =(Generic_uncorrected!I202)*$N$9 -> 0 | J202: 2014-06-28 | K202: ='Generic Model_corrected'!CB178 -> 145 | L202: ='Generic Model_corrected'!CF178 -> 24557.63325 | M202: ='Generic Model_corrected'!CR178 -> 12100.92374 | N202: ='Generic Model_corrected'!DH179 -> 1284.49388
H203: =IF(Generic_uncorrected!H203>0, Generic_uncorrected!H203,"") ->  | I203: =(Generic_uncorrected!I203)*$N$9 -> 0 | J203: 2014-06-29 | K203: ='Generic Model_corrected'!CB179 -> 146 | L203: ='Generic Model_corrected'!CF179 -> 24841.39242 | M203: ='Generic Model_corrected'!CR179 -> 12249.8973 | N203: ='Generic Model_corrected'!DH180 -> 1281.208977
H204: =IF(Generic_uncorrected!H204>0, Generic_uncorrected!H204,"") ->  | I204: =(Generic_uncorrected!I204)*$N$9 -> 0 | J204: 2014-06-30 | K204: ='Generic Model_corrected'!CB180 -> 147 | L204: ='Generic Model_corrected'!CF180 -> 25124.42707 | M204: ='Generic Model_corrected'!CR180 -> 12398.49049 | N204: ='Generic Model_corrected'!DH181 -> 1277.928602
H205: =IF(Generic_uncorrected!H205>0, Generic_uncorrected!H205,"") ->  | I205: =(Generic_uncorrected!I205)*$N$9 -> 0 | J205: 2014-07-01 | K205: ='Generic Model_corrected'!CB181 -> 148 | L205: ='Generic Model_corrected'!CF181 -> 25406.73717 | M205: ='Generic Model_corrected'!CR181 -> 12546.70329 | N205: ='Generic Model_corrected'!DH182 -> 1274.658074
H206: =IF(Generic_uncorrected!H206>0, Generic_uncorrected!H206,"") ->  | I206: =(Generic_uncorrected!I206)*$N$9 -> 0 | J206: 2014-07-02 | K206: ='Generic Model_corrected'!CB182 -> 149 | L206: ='Generic Model_corrected'!CF182 -> 25688.32342 | M206: ='Generic Model_corrected'!CR182 -> 12694.53608 | N206: ='Generic Model_corrected'!DH183 -> 1271.394819
H207: =IF(Generic_uncorrected!H207>0, Generic_uncorrected!H207,"") ->  | I207: =(Generic_uncorrected!I207)*$N$9 -> 0 | J207: 2014-07-03 | K207: ='Generic Model_corrected'!CB183 -> 150 | L207: ='Generic Model_corrected'!CF183 -> 25969.18719 | M207: ='Generic Model_corrected'!CR183 -> 12841.98956 | N207: ='Generic Model_corrected'!DH184 -> 1268.141422
H208: =IF(Generic_uncorrected!H208>0, Generic_uncorrected!H208,"") ->  | I208: =(Generic_uncorrected!I208)*$N$9 -> 0 | J208: 2014-07-04 | K208: ='Generic Model_corrected'!CB184 -> 151 | L208: ='Generic Model_corrected'!CF184 -> 26249.33027 | M208: ='Generic Model_corrected'!CR184 -> 12989.06467 | N208: ='Generic Model_corrected'!DH185 -> 1264.898567
... 159 more rows

Sheet Generic_beds
D1: HOSPITAL BEDS - GENERIC DATA
B7: Proportion of each category entering Hospital | G7: Days in hospital
B8: Hospitalized | D8: 1 | G8: =AY11 -> 12
B9: Eff Home Isolation | D9: 0.5 | G9: =BC11 -> 7 | AD9: SUM CASES | AF9: =SUM(AD12:AD315) -> 19956.60463 | AP9: BEDS Per day | AV9: Daily beds-in-use | BI9: CUM DAY STAY TOTALS
B10: No Eff Home Isolation | D10: 0.3 | G10: =BG11 -> 4 | AP10: Hopsitals | AQ10: Eff Home Iso | AR10: No Eff Home Iso | AS10: DAILY ADMITS | AT10: Cumlative | AW10: Hospitals | AX10: Days stay | BA10: Eff Home Iso | BB10: Days stay | BE10: No Eff Home Iso | BF10: Days stay
AC11: Day | AD11: New cases/day | AG11: Model Cum | AK11: Hospital | AL11: Eff Home Iso | AM11: No Eff Home Iso | AN11: sum | AT11: total | AV11: Day | AW11: Per day | AX11: 10 | AY11: 12 | BA11: Cum | BB11: 5 | BC11: 7 | BE11: Cum | BF11: 2 | BG11: 4 | BI11: 10+5+2 | BJ11: 12+7+4
I13: INTERMEDIATE RESULTS
AS15: =SUM(AS17:AS315) -> 10380.32777
AC16: 1 | AD16: ='Generic Model_uncorrected'!CC34 -> 0 | AE16: 114 | AG16: =AD16 -> 0 | AH16: Hospitalized | AJ16: =Generic_uncorrected!D9 -> 0 | AK16: =AD16*$AJ$16 -> 0 | AL16: =AD16*$AJ$17 -> 0 | AM16: =AD16*$AJ$18 -> 0 | AN16: =SUM(AK16:AM16) -> 0 | AP16: =AK16*$D$8 -> 0 | AQ16: =AL16*$D$9 -> 0 | AR16: =AM16*$D$10 -> 0 | AS16: =SUM(AP16:AR16) -> 0 | AV16: 1 | AW16: =AP16 -> 0 | AX16: 0 | AY16: 0 | BA16: =AQ16 -> 0 | BB16: =BA16 -> 0 | BC16: =BA16 -> 0 | BE16: =AR16 -> 0 | BF16: =BE16 -> 0 | BG16: =BE16 -> 0 | BI16: =AX16+BB16+BF16 -> 0 | BJ16: 0
AC17: 2 | AD17: ='Generic Model_uncorrected'!CC35 -> 0 | AE17: 150 | AG17: =AD17+AG16 -> 0 | AH17: Eff Home Isolation | AJ17: =Generic_uncorrected!D10 -> 0.05 | AK17: =AD17*$AJ$16 -> 0 | AL17: =AD17*$AJ$17 -> 0 | AM17: =AD17*$AJ$18 -> 0 | AN17: =SUM(AK17:AM17) -> 0 | AP17: 0 | AQ17: 0 | AR17: 0 | AS17: 0 | AV17: =1+AV16 -> 2 | AW17: 0 | AX17: 0 | AY17: 0 | BA17: 0 | BB17: =BA17 -> 0 | BC17: =SUM(BA16:BA17) -> 0 | BE17: =AR17 -> 0 | BF17: =SUM(BE16:BE17) -> 0 | BG17: =SUM(BE16:BE17) -> 0 | BI17: 0 | BJ17: 0
AC18: 3 | AD18: ='Generic Model_uncorrected'!CC36 -> 0.49 | AE18: 186 | AG18: =AD18+AG17 -> 0.49 | AH18: No Eff Home Isolation | AJ18: =Generic_uncorrected!D11 -> 0.95 | AK18: 0 | AL18: 0.0245 | AM18: 0.4655 | AN18: 0.49 | AP18: 0 | AQ18: 0.01225 | AR18: 0.13965 | AS18: 0.1519 | AV18: =1+AV17 -> 3 | AW18: 0 | AX18: =AW18 -> 0 | AY18: =AW18 -> 0 | BA18: 0.01225 | BB18: =SUM(BA16:BA18) -> 0.01225 | BC18: =SUM(BA16:BA18) -> 0.01225 | BE18: 0.13965 | BF18: =SUM(BE17:BE18) -> 0.13965 | BG18: =SUM(BE16:BE18) -> 0.13965 | BI18: 0.1519 | BJ18: 0.1519
AC19: 4 | AD19: ='Generic Model_uncorrected'!CC37 -> 2.15 | AE19: 222 | AG19: 2.64 | AK19: 0 | AL19: 0.1075 | AM19: 2.0425 | AN19: 2.15 | AP19: 0 | AQ19: 0.05375 | AR19: 0.61275 | AS19: 0.6665 | AV19: 4 | AW19: 0 | AX19: =AW18+AW19 -> 0 | AY19: =SUM(AW16:AW19) -> 0 | BA19: 0.05375 | BB19: =SUM(BA16:BA19) -> 0.066 | BC19: =SUM(BA16:BA19) -> 0.066 | BE19: 0.61275 | BF19: =SUM(BE18:BE19) -> 0.7524 | BG19: =SUM(BE16:BE19) -> 0.7524 | BI19: 0.8184 | BJ19: 0.8184
AC20: 5 | AD20: ='Generic Model_uncorrected'!CC38 -> 3.825 | AE20: 258 | AG20: 6.465 | AK20: 0 | AL20: 0.19125 | AM20: 3.63375 | AN20: 3.825 | AP20: 0 | AQ20: 0.095625 | AR20: 1.090125 | AS20: 1.18575 | AV20: 5 | AW20: 0 | AX20: =SUM(AW16:AW20) -> 0 | AY20: =SUM(AW12:AW20) -> 0 | BA20: 0.095625 | BB20: =SUM(BA16:BA20) -> 0.161625 | BC20: =SUM(BA16:BA20) -> 0.161625 | BE20: 1.090125 | BF20: 1.702875 | BG20: =SUM(BE17:BE20) -> 1.842525 | BI20: 1.8645 | BJ20: 2.00415
AC21: 6 | AD21: ='Generic Model_uncorrected'!CC39 -> 4.017751539 | AE21: 294 | AG21: 10.48275154 | AK21: 0 | AL21: 0.200887577 | AM21: 3.816863962 | AN21: 4.017751539 | AP21: 0 | AQ21: 0.1004437885 | AR21: 1.145059189 | AS21: 1.245502977 | AV21: 6 | AW21: 0 | AX21: =SUM(AW12:AW21) -> 0 | AY21: =SUM(AW16:AW21) -> 0 | BA21: 0.1004437885 | BB21: =SUM(BA17:BA21) -> 0.2620687885 | BC21: =SUM(BA16:BA21) -> 0.2620687885 | BE21: 1.145059189 | BF21: 2.235184189 | BG21: 2.987584189 | BI21: 2.497252977 | BJ21: 3.249652977
AC22: 7 | AD22: ='Generic Model_uncorrected'!CC40 -> 3.536897699 | AE22: 330 | AG22: 14.01964924 | AK22: 0 | AL22: 0.1768448849 | AM22: 3.360052814 | AN22: 3.536897699 | AP22: 0 | AQ22: 0.08842244246 | AR22: 1.008015844 | AS22: 1.096438287 | AV22: 7 | AW22: 0 | AX22: =SUM(AW12:AW22) -> 0 | AY22: =SUM(AW16:AW22) -> 0 | BA22: 0.08842244246 | BB22: 0.3504912309 | BC22: =SUM(BA16:BA22) -> 0.3504912309 | BE22: 1.008015844 | BF22: 2.153075033 | BG22: 3.855950033 | BI22: 2.503566264 | BJ22: 4.206441264
AC23: 8 | AD23: ='Generic Model_uncorrected'!CC41 -> 3.172829116 | AE23: 366 | AG23: 17.19247835 | AK23: 0 | AL23: 0.1586414558 | AM23: 3.01418766 | AN23: 3.172829116 | AP23: 0 | AQ23: 0.0793207279 | AR23: 0.9042562981 | AS23: 0.983577026 | AV23: 8 | AW23: 0 | AX23: =SUM(AW12:AW23) -> 0 | AY23: =SUM(AW16:AW23) -> 0 | BA23: 0.0793207279 | BB23: 0.4175619588 | BC23: =SUM(BA17:BA23) -> 0.4298119588 | BE23: 0.9042562981 | BF23: 1.912272142 | BG23: 4.147456331 | BI23: 2.329834101 | BJ23: 4.57726829
AC24: 9 | AD24: ='Generic Model_uncorrected'!CC42 -> 2.501423979 | AE24: 402 | AG24: 19.69390233 | AK24: 0 | AL24: 0.125071199 | AM24: 2.37635278 | AN24: 2.501423979 | AP24: 0 | AQ24: 0.06253559948 | AR24: 0.712905834 | AS24: 0.7754414335 | AV24: 9 | AW24: 0 | AX24: =SUM(AW12:AW24) -> 0 | AY24: =SUM(AW16:AW24) -> 0 | BA24: 0.06253559948 | BB24: 0.4263475583 | BC24: 0.4923475583 | BE24: 0.712905834 | BF24: 1.617162132 | BG24: 3.770237165 | BI24: 2.04350969 | BJ24: 4.262584723
AC25: 10 | AD25: ='Generic Model_uncorrected'!CC43 -> 2.376579988 | AE25: 438 | AG25: 22.07048232 | AK25: 0 | AL25: 0.1188289994 | AM25: 2.257750989 | AN25: 2.376579988 | AP25: 0 | AQ25: 0.0594144997 | AR25: 0.6773252966 | AS25: 0.7367397963 | AV25: 10 | AW25: 0 | AX25: =SUM(AW16:AW25) -> 0 | AY25: =SUM(AW16:AW25) -> 0 | BA25: 0.0594144997 | BB25: 0.390137058 | BC25: 0.539512058 | BE25: 0.6773252966 | BF25: 1.390231131 | BG25: 3.302503273 | BI25: 1.780368189 | BJ25: 3.842015331
AC26: 11 | AD26: ='Generic Model_uncorrected'!CC44 -> 2.632262288 | AE26: 474 | AG26: 24.70274461 | AK26: 0 | AL26: 0.1316131144 | AM26: 2.500649173 | AN26: 2.632262288 | AP26: 0 | AQ26: 0.0658065572 | AR26: 0.750194752 | AS26: 0.8160013092 | AV26: 11 | AW26: 0 | AX26: =SUM(AW17:AW26) -> 0 | AY26: =SUM(AW16:AW26) -> 0 | BA26: 0.0658065572 | BB26: 0.3554998267 | BC26: 0.5515686152 | BE26: 0.750194752 | BF26: 1.427520049 | BG26: 3.044682181 | BI26: 1.783019875 | BJ26: 3.596250796
AC27: 12 | AD27: ='Generic Model_uncorrected'!CC45 -> 3.126686249 | AE27: 510 | AG27: 27.82943086 | AK27: 0 | AL27: 0.1563343124 | AM27: 2.970351937 | AN27: 3.126686249 | AP27: 0 | AQ27: 0.07816715622 | AR27: 0.891105581 | AS27: 0.9692727372 | AV27: 12 | AW27: 0 | AX27: 0 | AY27: =SUM(AW16:AW27) -> 0 | BA27: 0.07816715622 | BB27: 0.3452445405 | BC27: 0.5341107714 | BE27: 0.891105581 | BF27: 1.641300333 | BG27: 3.031531464 | BI27: 1.986544874 | BJ27: 3.565642235
AC28: 13 | AD28: ='Generic Model_uncorrected'!CC46 -> 4.607561824 | AE28: 546 | AG28: 32.43699268 | AK28: 0 | AL28: 0.2303780912 | AM28: 4.377183732 | AN28: 4.607561824 | AP28: 0 | AQ28: 0.1151890456 | AR28: 1.31315512 | AS28: 1.428344165 | AV28: 13 | AW28: 0 | AX28: 0 | AY28: =SUM(AW17:AW28) -> 0 | BA28: 0.1151890456 | BB28: 0.3811128582 | BC28: 0.5488560286 | BE28: 1.31315512 | BF28: 2.204260701 | BG28: 3.631780749 | BI28: 2.585373559 | BJ28: 4.180636778
AC29: 14 | AD29: ='Generic Model_uncorrected'!CC47 -> 6.029478076 | AE29: 582 | AG29: 38.46647076 | AK29: 0 | AL29: 0.3014739038 | AM29: 5.728004172 | AN29: 6.029478076 | AP29: 0 | AQ29: 0.1507369519 | AR29: 1.718401252 | AS29: 1.869138204 | AV29: 14 | AW29: 0 | AX29: 0 | AY29: =SUM(AW18:AW29) -> 0 | BA29: 0.1507369519 | BB29: 0.4693142106 | BC29: 0.611170538 | BE29: 1.718401252 | BF29: 3.031556371 | BG29: 4.672856704 | BI29: 3.500870582 | BJ29: 5.284027242
AC30: 15 | AD30: ='Generic Model_uncorrected'!CC48 -> 6.624366447 | AE30: 618 | AG30: 45.09083721 | AK30: 0 | AL30: 0.3312183224 | AM30: 6.293148125 | AN30: 6.624366447 | AP30: 0 | AQ30: 0.1656091612 | AR30: 1.887944438 | AS30: 2.053553599 | AV30: 15 | AW30: 0 | AX30: 0 | AY30: 0 | BA30: 0.1656091612 | BB30: 0.5755088721 | BC30: 0.6974589713 | BE30: 1.887944438 | BF30: 3.606345689 | BG30: 5.81060639 | BI30: 4.181854561 | BJ30: 6.508065361
AC31: 16 | AD31: ='Generic Model_uncorrected'!CC49 -> 6.5432486 | AE31: 654 | AG31: 51.63408581 | AK31: 0 | AL31: 0.32716243 | AM31: 6.21608617 | AN31: 6.5432486 | AP31: 0 | AQ31: 0.163581215 | AR31: 1.864825851 | AS31: 2.028407066 | AV31: 16 | AW31: 0 | AX31: 0 | AY31: 0 | BA31: 0.163581215 | BB31: 0.6732835299 | BC31: 0.7985045868 | BE31: 1.864825851 | BF31: 3.752770289 | BG31: 6.78432666 | BI31: 4.426053818 | BJ31: 7.582831247
AC32: 17 | AD32: ='Generic Model_uncorrected'!CC50 -> 6.512997428 | AE32: 690 | AG32: 58.14708323 | AK32: 0 | AL32: 0.3256498714 | AM32: 6.187347556 | AN32: 6.512997428 | AP32: 0 | AQ32: 0.1628249357 | AR32: 1.856204267 | AS32: 2.019029203 | AV32: 17 | AW32: 0 | AX32: 0 | AY32: 0 | BA32: 0.1628249357 | BB32: 0.7579413094 | BC32: 0.9019150228 | BE32: 1.856204267 | BF32: 3.721030118 | BG32: 7.327375807 | BI32: 4.478971427 | BJ32: 8.22929083
AC33: 18 | AD33: ='Generic Model_uncorrected'!CC51 -> 6.207396943 | AE33: 726 | AG33: 64.35448018 | AK33: 0 | AL33: 0.3103698472 | AM33: 5.897027096 | AN33: 6.207396943 | AP33: 0 | AQ33: 0.1551849236 | AR33: 1.769108129 | AS33: 1.924293052 | AV33: 18 | AW33: 0 | AX33: 0 | AY33: 0 | BA33: 0.1551849236 | BB33: 0.7979371874 | BC33: 0.9912933892 | BE33: 1.769108129 | BF33: 3.625312396 | BG33: 7.378082684 | BI33: 4.423249583 | BJ33: 8.369376073
AC34: 19 | AD34: ='Generic Model_uncorrected'!CC52 -> 6.304669653 | AE34: 762 | AG34: 70.65914983 | AK34: 0 | AL34: 0.3152334827 | AM34: 5.989436171 | AN34: 6.304669653 | AP34: 0 | AQ34: 0.1576167413 | AR34: 1.796830851 | AS34: 1.954447593 | AV34: 19 | AW34: 0 | AX34: 0 | AY34: 0 | BA34: 0.1576167413 | BB34: 0.8048169768 | BC34: 1.070742974 | BE34: 1.796830851 | BF34: 3.56593898 | BG34: 7.286969098 | BI34: 4.370755957 | BJ34: 8.357712072
AC35: 20 | AD35: ='Generic Model_uncorrected'!CC53 -> 6.652548169 | AE35: 798 | AG35: 77.311698 | AK35: 0 | AL35: 0.3326274084 | AM35: 6.31992076 | AN35: 6.652548169 | AP35: 0 | AQ35: 0.1663137042 | AR35: 1.895976228 | AS35: 2.062289932 | AV35: 20 | AW35: 0 | AX35: 0 | AY35: 0 | BA35: 0.1663137042 | BB35: 0.8055215198 | BC35: 1.121867633 | BE35: 1.895976228 | BF35: 3.692807079 | BG35: 7.318119475 | BI35: 4.498328599 | BJ35: 8.439987108
AC36: 21 | AD36: ='Generic Model_uncorrected'!CC54 -> 7.01609453 | AE36: 834 | AG36: 84.32779253 | AK36: 0 | AL36: 0.3508047265 | AM36: 6.665289804 | AN36: 7.01609453 | AP36: 0 | AQ36: 0.1754023633 | AR36: 1.999586941 | AS36: 2.174989304 | AV36: 21 | AW36: 0 | AX36: 0 | AY36: 0 | BA36: 0.1754023633 | BB36: 0.8173426681 | BC36: 1.146533044 | BE36: 1.999586941 | BF36: 3.895563169 | BG36: 7.461502149 | BI36: 4.712905837 | BJ36: 8.608035193
AC37: 22 | AD37: ='Generic Model_uncorrected'!CC55 -> 7.846656465 | AE37: 870 | AG37: 92.17444899 | AK37: 0 | AL37: 0.3923328233 | AM37: 7.454323642 | AN37: 7.846656465 | AP37: 0 | AQ37: 0.1961664116 | AR37: 2.236297093 | AS37: 2.432463504 | AV37: 22 | AW37: 0 | AX37: 0 | AY37: 0 | BA37: 0.1961664116 | BB37: 0.850684144 | BC37: 1.177090295 | BE37: 2.236297093 | BF37: 4.235884034 | BG37: 7.928691113 | BI37: 5.086568178 | BJ37: 9.105781408
AC38: 23 | AD38: ='Generic Model_uncorrected'!CC56 -> 9.138925821 | AE38: 906 | AG38: 101.3133748 | AK38: 0 | AL38: 0.4569462911 | AM38: 8.68197953 | AN38: 9.138925821 | AP38: 0 | AQ38: 0.2284731455 | AR38: 2.604593859 | AS38: 2.833067005 | AV38: 23 | AW38: 0 | AX38: 0 | AY38: 0 | BA38: 0.2284731455 | BB38: 0.923972366 | BC38: 1.241982225 | BE38: 2.604593859 | BF38: 4.840890952 | BG38: 8.736454121 | BI38: 5.764863318 | BJ38: 9.978436346
AC39: 24 | AD39: ='Generic Model_uncorrected'!CC57 -> 10.49054085 | AE39: 942 | AG39: 111.8039157 | AK39: 0 | AL39: 0.5245270424 | AM39: 9.966013806 | AN39: 10.49054085 | AP39: 0 | AQ39: 0.2622635212 | AR39: 2.989804142 | AS39: 3.252067663 | AV39: 24 | AW39: 0 | AX39: 0 | AY39: 0 | BA39: 0.2622635212 | BB39: 1.028619146 | BC39: 1.341420811 | BE39: 2.989804142 | BF39: 5.594398001 | BG39: 9.830282034 | BI39: 6.623017147 | BJ39: 11.17170285
A40: *Lower limits (uncorrected) scenario was created by altering the model input values to obtained a good fit (by visual inspection) to the existing data froma specific country. Corrected scenario estimates were calculated by multiplying the uncorrected estimates by | Y40: =Generic_corrected!N9 -> 2.5 | AC40: 25 | AD40: ='Generic Model_uncorrected'!CC58 -> 11.08248865 | AE40: 978 | AG40: 122.8864043 | AK40: 0 | AL40: 0.5541244324 | AM40: 10.52836422 | AN40: 11.08248865 | AP40: 0 | AQ40: 0.2770622162 | AR40: 3.158509265 | AS40: 3.435571481 | AV40: 25 | AW40: 0 | AX40: 0 | AY40: 0 | BA40: 0.2770622162 | BB40: 1.139367658 | BC40: 1.463298103 | BE40: 3.158509265 | BF40: 6.148313406 | BG40: 10.98920436 | BI40: 7.287681064 | BJ40: 12.45250246
AC41: 26 | AD41: ='Generic Model_uncorrected'!CC59 -> 11.39771471 | AE41: 1014 | AG41: 134.284119 | AK41: 0 | AL41: 0.5698857355 | AM41: 10.82782897 | AN41: 11.39771471 | AP41: 0 | AQ41: 0.2849428678 | AR41: 3.248348692 | AS41: 3.53329156 | AV41: 26 | AW41: 0 | AX41: 0 | AY41: 0 | BA41: 0.2849428678 | BB41: 1.248908162 | BC41: 1.59062423 | BE41: 3.248348692 | BF41: 6.406857957 | BG41: 12.00125596 | BI41: 7.65576612 | BJ41: 13.59188019
AC42: 27 | AD42: ='Generic Model_uncorrected'!CC60 -> 11.69811886 | AE42: 1050 | AG42: 145.9822379 | AK42: 0 | AL42: 0.5849059431 | AM42: 11.11321292 | AN42: 11.69811886 | AP42: 0 | AQ42: 0.2924529715 | AR42: 3.333963876 | AS42: 3.626416847 | AV42: 27 | AW42: 0 | AX42: 0 | AY42: 0 | BA42: 0.2924529715 | BB42: 1.345194722 | BC42: 1.716763497 | BE42: 3.333963876 | BF42: 6.582312568 | BG42: 12.73062597 | BI42: 7.92750729 | BJ42: 14.44738947
AC43: 28 | AD43: ='Generic Model_uncorrected'!CC61 -> 11.94019844 | AE43: 1086 | AG43: 157.9224363 | AK43: 0 | AL43: 0.5970099219 | AM43: 11.34318852 | AN43: 11.94019844 | AP43: 0 | AQ43: 0.2985049609 | AR43: 3.402956555 | AS43: 3.701461516 | AV43: 28 | AW43: 0 | AX43: 0 | AY43: 0 | BA43: 0.2985049609 | BB43: 1.415226538 | BC43: 1.839866095 | BE43: 3.402956555 | BF43: 6.73692043 | BG43: 13.14377839 | BI43: 8.152146968 | BJ43: 14.98364448
AC44: 29 | AD44: ='Generic Model_uncorrected'!CC62 -> 12.43502441 | AE44: 1122 | AG44: 170.3574607 | AK44: 0 | AL44: 0.6217512205 | AM44: 11.81327319 | AN44: 12.43502441 | AP44: 0 | AQ44: 0.3108756102 | AR44: 3.543981957 | AS44: 3.854857567 | AV44: 29 | AW44: 0 | AX44: 0 | AY44: 0 | BA44: 0.3108756102 | BB44: 1.463838627 | BC44: 1.954575293 | BE44: 3.543981957 | BF44: 6.946938511 | BG44: 13.52925108 | BI44: 8.410777138 | BJ44: 15.48382637
AC45: 30 | AD45: ='Generic Model_uncorrected'!CC63 -> 13.14209183 | AE45: 1158 | AG45: 183.4995526 | AK45: 0 | AL45: 0.6571045914 | AM45: 12.48498724 | AN45: 13.14209183 | AP45: 0 | AQ45: 0.3285522957 | AR45: 3.745496171 | AS45: 4.074048467 | AV45: 30 | AW45: 0 | AX45: 0 | AY45: 0 | BA45: 0.3285522957 | BB45: 1.515328706 | BC45: 2.054654444 | BE45: 3.745496171 | BF45: 7.289478128 | BG45: 14.02639856 | BI45: 8.804806834 | BJ45: 16.081053
AC46: 31 | AD46: ='Generic Model_uncorrected'!CC64 -> 13.92305074 | AE46: 1194 | AG46: 197.4226033 | AH46: Hospitalized | AJ46: =Generic_uncorrected!D14 -> 0.1 | AK46: =AD46*$AJ$46 -> 1.392305074 | AL46: =AD46*$AJ$47 -> 1.392305074 | AM46: =AD46*$AJ$48 -> 11.13844059 | AN46: =SUM(AK46:AM46) -> 13.92305074 | AP46: 1.392305074 | AQ46: 0.6961525372 | AR46: 3.341532178 | AS46: 5.42998979 | AV46: 31 | AW46: 1.392305074 | AX46: 1.392305074 | AY46: 1.392305074 | BA46: 0.6961525372 | BB46: 1.926538376 | BC46: 2.48854346 | BE46: 3.341532178 | BF46: 7.087028349 | BG46: 14.03396686 | BI46: 10.4058718 | BJ46: 17.91481539
AC47: 32 | AD47: ='Generic Model_uncorrected'!CC65 -> 14.87545588 | AE47: 1230 | AG47: 212.2980592 | AH47: Eff Home Isolation | AJ47: =Generic_uncorrected!D15 -> 0.1 | AK47: =AD47*$AJ$46 -> 1.487545588 | AL47: =AD47*$AJ$47 -> 1.487545588 | AM47: =AD47*$AJ$48 -> 11.90036471 | AN47: =SUM(AK47:AM47) -> 14.87545588 | AP47: 1.487545588 | AQ47: 0.7437727941 | AR47: 3.570109412 | AS47: 5.801427794 | AV47: 32 | AW47: 1.487545588 | AX47: 2.879850662 | AY47: 2.879850662 | BA47: 0.7437727941 | BB47: 2.377858198 | BC47: 2.955254037 | BE47: 3.570109412 | BF47: 6.91164159 | BG47: 14.20111972 | BI47: 12.16935045 | BJ47: 20.03622442
AC48: 33 | AD48: ='Generic Model_uncorrected'!CC66 -> 15.84518037 | AE48: 1266 | AG48: 228.1432396 | AH48: No Eff Home Isolation | AJ48: =Generic_uncorrected!D16 -> 0.8 | AK48: 1.584518037 | AL48: 1.584518037 | AM48: 12.6761443 | AN48: 15.84518037 | AP48: 1.584518037 | AQ48: 0.7922590187 | AR48: 3.80284329 | AS48: 6.179620346 | AV48: 33 | AW48: 1.584518037 | AX48: 4.4643687 | AY48: 4.4643687 | BA48: 0.7922590187 | BB48: 2.871612256 | BC48: 3.462570188 | BE48: 3.80284329 | BF48: 7.372952701 | BG48: 14.45998105 | BI48: 14.70893366 | BJ48: 22.38691994
AC49: 34 | AD49: ='Generic Model_uncorrected'!CC67 -> 16.85840815 | AE49: 1302 | AG49: 245.0016477 | AK49: 1.685840815 | AL49: 1.685840815 | AM49: 13.48672652 | AN49: 16.85840815 | AP49: 1.685840815 | AQ49: 0.8429204076 | AR49: 4.046017957 | AS49: 6.57477918 | AV49: 34 | AW49: 1.685840815 | AX49: 6.150209515 | AY49: 6.150209515 | BA49: 0.8429204076 | BB49: 3.403657053 | BC49: 4.013037624 | BE49: 4.046017957 | BF49: 7.848861246 | BG49: 14.76050284 | BI49: 17.40272781 | BJ49: 24.92374998
AC50: 35 | AD50: ='Generic Model_uncorrected'!CC68 -> 17.7458277 | AE50: 1338 | AG50: 262.7474754 | AK50: 1.77458277 | AL50: 1.77458277 | AM50: 14.19666216 | AN50: 17.7458277 | AP50: 1.77458277 | AQ50: 0.887291385 | AR50: 4.258998648 | AS50: 6.920872803 | AV50: 35 | AW50: 1.77458277 | AX50: 7.924792285 | AY50: 7.924792285 | BA50: 0.887291385 | BB50: 3.962396143 | BC50: 4.601824049 | BE50: 4.258998648 | BF50: 8.305016605 | BG50: 15.67796931 | BI50: 20.19220503 | BJ50: 28.20458564
AC51: 36 | AD51: ='Generic Model_uncorrected'!CC69 -> 18.55949733 | AE51: 1374 | AG51: 281.3069727 | AK51: 1.855949733 | AL51: 1.855949733 | AM51: 14.84759787 | AN51: 18.55949733 | AP51: 1.855949733 | AQ51: 0.9279748666 | AR51: 4.45427936 | AS51: 7.238203959 | AV51: 36 | AW51: 1.855949733 | AX51: 9.780742018 | AY51: 9.780742018 | BA51: 0.9279748666 | BB51: 4.194218472 | BC51: 5.218923305 | BE51: 4.45427936 | BF51: 8.713278007 | BG51: 16.56213925 | BI51: 22.6882385 | BJ51: 31.56180458
AC52: 37 | AD52: ='Generic Model_uncorrected'!CC70 -> 19.27880414 | AE52: 1410 | AG52: 300.5857769 | AK52: 1.927880414 | AL52: 1.927880414 | AM52: 15.42304331 | AN52: 19.27880414 | AP52: 1.927880414 | AQ52: 0.9639402069 | AR52: 4.626912993 | AS52: 7.518733613 | AV52: 37 | AW52: 1.927880414 | AX52: 11.70862243 | AY52: 11.70862243 | BA52: 0.9639402069 | BB52: 4.414385885 | BC52: 5.854311216 | BE52: 4.626912993 | BF52: 9.081192352 | BG52: 17.38620896 | BI52: 25.20420067 | BJ52: 34.9491426
AC53: 38 | AD53: ='Generic Model_uncorrected'!CC71 -> 19.97882058 | AE53: 1446 | AG53: 320.5645975 | AK53: 1.997882058 | AL53: 1.997882058 | AM53: 15.98305646 | AN53: 19.97882058 | AP53: 1.997882058 | AQ53: 0.9989410288 | AR53: 4.794916938 | AS53: 7.791740024 | AV53: 38 | AW53: 1.997882058 | AX53: 13.70650449 | AY53: 13.70650449 | BA53: 0.9989410288 | BB53: 4.621067895 | BC53: 6.157099708 | BE53: 4.794916938 | BF53: 9.421829931 | BG53: 18.13510794 | BI53: 27.74940232 | BJ53: 37.99871214
AC54: 39 | AD54: ='Generic Model_uncorrected'!CC72 -> 20.65133088 | AE54: 1482 | AG54: 341.2159283 | AK54: 2.065133088 | AL54: 2.065133088 | AM54: 16.5210647 | AN54: 20.65133088 | AP54: 2.065133088 | AQ54: 1.032566544 | AR54: 4.956319411 | AS54: 8.054019043 | AV54: 39 | AW54: 2.065133088 | AX54: 15.77163758 | AY54: 15.77163758 | BA54: 1.032566544 | BB54: 4.810714031 | BC54: 6.445893457 | BE54: 4.956319411 | BF54: 9.751236349 | BG54: 18.8324287 | BI54: 30.33358796 | BJ54: 41.04995974
AC55: 40 | AD55: ='Generic Model_uncorrected'!CC73 -> 21.33601848 | AE55: 1518 | AG55: 362.5519468 | AK55: 2.133601848 | AL55: 2.133601848 | AM55: 17.06881478 | AN55: 21.33601848 | AP55: 2.133601848 | AQ55: 1.066800924 | AR55: 5.120644435 | AS55: 8.321047207 | AV55: 40 | AW55: 2.133601848 | AX55: 17.90523943 | AY55: 17.90523943 | BA55: 1.066800924 | BB55: 4.99022357 | BC55: 6.720435363 | BE55: 5.120644435 | BF55: 10.07696385 | BG55: 19.49879378 | BI55: 32.97242684 | BJ55: 44.12446856
AC56: 41 | AD56: ='Generic Model_uncorrected'!CC74 -> 22.09681286 | AE56: 1554 | AG56: 384.6487597 | AK56: 2.209681286 | AL56: 2.209681286 | AM56: 17.67745029 | AN56: 22.09681286 | AP56: 2.209681286 | AQ56: 1.104840643 | AR56: 5.303235087 | AS56: 8.617757016 | AV56: 41 | AW56: 2.209681286 | AX56: 18.72261564 | AY56: 20.11492071 | BA56: 1.104840643 | BB56: 5.167089347 | BC56: 6.982355598 | BE56: 5.303235087 | BF56: 10.42387952 | BG56: 20.17511587 | BI56: 34.3135845 | BJ56: 47.27239218
AC57: 42 | AD57: ='Generic Model_uncorrected'!CC75 -> 22.94278184 | AE57: 1590 | AG57: 407.5915415 | AK57: 2.294278184 | AL57: 2.294278184 | AM57: 18.35422547 | AN57: 22.94278184 | AP57: 2.294278184 | AQ57: 1.147139092 | AR57: 5.506267642 | AS57: 8.947684918 | AV57: 42 | AW57: 2.294278184 | AX57: 19.52934823 | AY57: 22.4091989 | BA57: 1.147139092 | BB57: 5.350288232 | BC57: 7.242203305 | BE57: 5.506267642 | BF57: 10.80950273 | BG57: 20.88646657 | BI57: 35.68913919 | BJ57: 50.53786877
AC58: 43 | AD58: ='Generic Model_uncorrected'!CC76 -> 23.87047829 | AE58: 1626 | AG58: 431.4620198 | AK58: 2.387047829 | AL58: 2.387047829 | AM58: 19.09638263 | AN58: 23.87047829 | AP58: 2.387047829 | AQ58: 1.193523915 | AR58: 5.72891479 | AS58: 9.309486534 | AV58: 43 | AW58: 2.387047829 | AX58: 20.33187802 | AY58: 23.40394165 | BA58: 1.193523915 | BB58: 5.544871118 | BC58: 7.507752353 | BE58: 5.72891479 | BF58: 11.23518243 | BG58: 21.65906195 | BI58: 37.11193157 | BJ58: 52.57075596
AC59: 44 | AD59: ='Generic Model_uncorrected'!CC77 -> 24.85464863 | AE59: 1662 | AG59: 456.3166684 | AK59: 2.485464863 | AL59: 2.485464863 | AM59: 19.8837189 | AN59: 24.85464863 | AP59: 2.485464863 | AQ59: 1.242732431 | AR59: 5.965115671 | AS59: 9.693312966 | AV59: 44 | AW59: 2.485464863 | AX59: 21.13150207 | AY59: 24.40186093 | BA59: 1.242732431 | BB59: 5.755037005 | BC59: 7.786544578 | BE59: 5.965115671 | BF59: 11.69403046 | BG59: 22.50353319 | BI59: 38.58056954 | BJ59: 54.69193869
AC60: 45 | AD60: ='Generic Model_uncorrected'!CC78 -> 25.88386769 | AE60: 1698 | AG60: 482.2005361 | AK60: 2.588386769 | AL60: 2.588386769 | AM60: 20.70709416 | AN60: 25.88386769 | AP60: 2.588386769 | AQ60: 1.294193385 | AR60: 6.212128247 | AS60: 10.0947084 | AV60: 45 | AW60: 2.588386769 | AX60: 21.94530607 | AY60: 25.40572966 | BA60: 1.294193385 | BB60: 5.982429466 | BC60: 8.081796934 | BE60: 6.212128247 | BF60: 12.17724392 | BG60: 23.41242635 | BI60: 40.10497946 | BJ60: 56.89995294
AC61: 46 | AD61: ='Generic Model_uncorrected'!CC79 -> 26.93025786 | AE61: 1734 | AG61: 509.130794 | AK61: 2.693025786 | AL61: 2.693025786 | AM61: 21.54420629 | AN61: 26.93025786 | AP61: 2.693025786 | AQ61: 1.346512893 | AR61: 6.463261886 | AS61: 10.50280056 | AV61: 46 | AW61: 2.693025786 | AX61: 22.78238212 | AY61: 26.41291463 | BA61: 1.346512893 | BB61: 6.224101716 | BC61: 8.395743283 | BE61: 6.463261886 | BF61: 12.67539013 | BG61: 24.36942059 | BI61: 41.68187397 | BJ61: 59.1780785
AC62: 47 | AD62: ='Generic Model_uncorrected'!CC80 -> 27.99789937 | AE62: 1770 | AG62: 537.1286934 | AK62: 2.799789937 | AL62: 2.799789937 | AM62: 22.39831949 | AN62: 27.99789937 | AP62: 2.799789937 | AQ62: 1.399894968 | AR62: 6.719495848 | AS62: 10.91918075 | AV62: 47 | AW62: 2.799789937 | AX62: 23.65429165 | AY62: 27.43812179 | BA62: 1.399894968 | BB62: 6.476857592 | BC62: 8.728837327 | BE62: 6.719495848 | BF62: 13.18275773 | BG62: 25.36000165 | BI62: 43.31390697 | BJ62: 61.52696077
AC63: 48 | AD63: ='Generic Model_uncorrected'!CC81 -> 29.08949287 | AE63: 1806 | AG63: 566.2181862 | AK63: 2.908949287 | AL63: 2.908949287 | AM63: 23.2715943 | AN63: 29.08949287 | AP63: 2.908949287 | AQ63: 1.454474644 | AR63: 6.98147829 | AS63: 11.34490222 | AV63: 48 | AW63: 2.908949287 | AX63: 24.56535888 | AY63: 28.49112135 | BA63: 1.454474644 | BB63: 6.737808321 | BC63: 9.078471328 | BE63: 6.98147829 | BF63: 13.70097414 | BG63: 26.37636427 | BI63: 45.00414134 | BJ63: 63.94595695
AC64: 49 | AD64: ='Generic Model_uncorrected'!CC82 -> 30.21209095 | AE64: 1842 | AG64: 596.4302772 | AK64: 3.021209095 | AL64: 3.021209095 | AM64: 24.16967276 | AN64: 30.21209095 | AP64: 3.021209095 | AQ64: 1.510604547 | AR64: 7.250901827 | AS64: 11.78271547 | AV64: 49 | AW64: 3.021209095 | AX64: 25.52143488 | AY64: 29.58445003 | BA64: 1.510604547 | BB64: 7.005680437 | BC64: 9.441936783 | BE64: 7.250901827 | BF64: 14.23238012 | BG64: 27.41513785 | BI64: 46.75949544 | BJ64: 66.44152466
AC65: 50 | AD65: ='Generic Model_uncorrected'!CC83 -> 31.37632372 | AE65: 1878 | AG65: 627.8066009 | AK65: 3.137632372 | AL65: 3.137632372 | AM65: 25.10105898 | AN65: 31.37632372 | AP65: 3.137632372 | AQ65: 1.568816186 | AR65: 7.530317693 | AS65: 12.23676625 | AV65: 50 | AW65: 3.137632372 | AX65: 26.52546541 | AY65: 30.72420034 | BA65: 1.568816186 | BB65: 7.280303238 | BC65: 9.817229054 | BE65: 7.530317693 | BF65: 14.78121952 | BG65: 28.48219366 | BI65: 48.58698817 | BJ65: 69.02362306
AC66: 51 | AD66: ='Generic Model_uncorrected'!CC84 -> 32.59013301 | AE66: 1914 | AG66: 660.3967339 | AK66: 3.259013301 | AL66: 3.259013301 | AM66: 26.07210641 | AN66: 32.59013301 | AP66: 3.259013301 | AQ66: 1.62950665 | AR66: 7.821631922 | AS66: 12.71015187 | AV66: 51 | AW66: 3.259013301 | AX66: 27.57479742 | AY66: 31.91808056 | BA66: 1.62950665 | BB66: 7.563296996 | BC66: 10.20400327 | BE66: 7.821631922 | BF66: 15.35194962 | BG66: 29.58432973 | BI66: 50.49004403 | BJ66: 71.70641356
AC67: 52 | AD67: ='Generic Model_uncorrected'!CC85 -> 33.86152362 | AE67: 1950 | AG67: 694.2582575 | AK67: 3.386152362 | AL67: 3.386152362 | AM67: 27.08921889 | AN67: 33.86152362 | AP67: 3.386152362 | AQ67: 1.693076181 | AR67: 8.126765668 | AS67: 13.20599421 | AV67: 52 | AW67: 3.386152362 | AX67: 28.6666716 | AY67: 33.17063107 | BA67: 1.693076181 | BB67: 7.856478208 | BC67: 10.60288607 | BE67: 8.126765668 | BF67: 15.94839759 | BG67: 30.72961711 | BI67: 52.4715474 | BJ67: 74.50313425
AC68: 53 | AD68: ='Generic Model_uncorrected'!CC86 -> 35.190638 | AE68: 1986 | AG68: 729.4488955 | AK68: 3.5190638 | AL68: 3.5190638 | AM68: 28.1525104 | AN68: 35.190638 | AP68: 3.5190638 | AQ68: 1.7595319 | AR68: 8.445753119 | AS68: 13.72434882 | AV68: 53 | AW68: 3.5190638 | AX68: 29.79868757 | AY68: 34.48001358 | BA68: 1.7595319 | BB68: 8.161535464 | BC68: 11.01590508 | BE68: 8.445753119 | BF68: 16.57251879 | BG68: 31.9244684 | BI68: 54.53274182 | BJ68: 77.42038706
AC69: 54 | AD69: ='Generic Model_uncorrected'!CC87 -> 36.5772239 | AE69: 2022 | AG69: 766.0261194 | AK69: 3.65772239 | AL69: 3.65772239 | AM69: 29.26177912 | AN69: 36.5772239 | AP69: 3.65772239 | AQ69: 1.828861195 | AR69: 8.778533737 | AS69: 14.26511732 | AV69: 54 | AW69: 3.65772239 | AX69: 30.9709451 | AY69: 35.84345779 | BA69: 1.828861195 | BB69: 8.479792112 | BC69: 11.4448713 | BE69: 8.778533737 | BF69: 17.22428686 | BG69: 33.17268445 | BI69: 56.67502407 | BJ69: 80.46101354
AC70: 55 | AD70: ='Generic Model_uncorrected'!CC88 -> 38.01900005 | AE70: 2058 | AG70: 804.0451195 | AK70: 3.801900005 | AL70: 3.801900005 | AM70: 30.41520004 | AN70: 38.01900005 | AP70: 3.801900005 | AQ70: 1.900950003 | AR70: 9.124560012 | AS70: 14.82741002 | AV70: 55 | AW70: 3.801900005 | AX70: 32.18445833 | AY70: 37.25830997 | BA70: 1.900950003 | BB70: 8.811925929 | BC70: 11.89134666 | BE70: 9.124560012 | BF70: 17.90309375 | BG70: 34.47561254 | BI70: 58.89947801 | BJ70: 83.62526916
AC71: 56 | AD71: ='Generic Model_uncorrected'!CC89 -> 39.51608873 | AE71: 2094 | AG71: 843.5612082 | AK71: 3.951608873 | AL71: 3.951608873 | AM71: 31.61287098 | AN71: 39.51608873 | AP71: 3.951608873 | AQ71: 1.975804436 | AR71: 9.483861295 | AS71: 15.4112746 | AV71: 56 | AW71: 3.951608873 | AX71: 33.44304142 | AY71: 38.72445398 | BA71: 1.975804436 | BB71: 9.158223715 | BC71: 12.35654655 | BE71: 9.483861295 | BF71: 18.60842131 | BG71: 35.83270816 | BI71: 61.20968644 | BJ71: 86.91370869
AC72: 57 | AD72: ='Generic Model_uncorrected'!CC90 -> 41.06895539 | AE72: 2130 | AG72: 884.6301636 | AK72: 4.106895539 | AL72: 4.106895539 | AM72: 32.85516431 | AN72: 41.06895539 | AP72: 4.106895539 | AQ72: 2.05344777 | AR72: 9.856549294 | AS72: 16.0168926 | AV72: 57 | AW72: 4.106895539 | AX72: 34.75014702 | AY72: 40.24296275 | BA72: 2.05344777 | BB72: 9.518595303 | BC72: 12.84117813 | BE72: 9.856549294 | BF72: 19.34041059 | BG72: 37.24350434 | BI72: 63.60915292 | BJ72: 90.32764522
AC73: 58 | AD73: ='Generic Model_uncorrected'!CC91 -> 42.67922883 | AE73: 2166 | AG73: 927.3093924 | AK73: 4.267922883 | AL73: 4.267922883 | AM73: 34.14338306 | AN73: 42.67922883 | AP73: 4.267922883 | AQ73: 2.133961441 | AR73: 10.24301492 | AS73: 16.64489924 | AV73: 58 | AW73: 4.267922883 | AX73: 36.10912062 | AY73: 41.81785984 | BA73: 2.133961441 | BB73: 9.893024845 | BC73: 13.34563293 | BE73: 10.24301492 | BF73: 20.09956421 | BG73: 38.70798552 | BI73: 66.10170968 | BJ73: 93.87147829
AC74: 59 | AD74: ='Generic Model_uncorrected'!CC92 -> 44.35027154 | AE74: 2202 | AG74: 971.659664 | AK74: 4.435027154 | AL74: 4.435027154 | AM74: 35.48021724 | AN74: 44.35027154 | AP74: 4.435027154 | AQ74: 2.217513577 | AR74: 10.64406517 | AS74: 17.2966059 | AV74: 59 | AW74: 4.435027154 | AX74: 37.52293868 | AY74: 43.45309706 | BA74: 2.217513577 | BB74: 10.28167723 | BC74: 13.87007032 | BE74: 10.64406517 | BF74: 20.88708009 | BG74: 40.22749068 | BI74: 68.69169599 | BJ74: 97.55065806
AC75: 60 | AD75: ='Generic Model_uncorrected'!CC93 -> 46.08597423 | AE75: 2238 | AG75: 1017.745638 | AK75: 4.608597423 | AL75: 4.608597423 | AM75: 36.86877939 | AN75: 46.08597423 | AP75: 4.608597423 | AQ75: 2.304298712 | AR75: 11.06063382 | AS75: 17.97352995 | AV75: 60 | AW75: 4.608597423 | AX75: 38.99390373 | AY75: 45.1527452 | BA75: 2.304298712 | BB75: 10.68502594 | BC75: 14.41483713 | BE75: 11.06063382 | BF75: 21.70469899 | BG75: 41.8042632 | BI75: 71.38362865 | BJ75: 101.3718455
AC76: 61 | AD76: ='Generic Model_uncorrected'!CC94 -> 47.89014544 | AE76: 2274 | AG76: 1065.635784 | AH76: Hospitalized | AJ76: =Generic_uncorrected!D19 -> 0.2 | AK76: =AD76*$AJ$76 -> 9.578029088 | AL76: =AD76*$AJ$77 -> 4.789014544 | AM76: =AD76*$AJ$78 -> 33.52310181 | AN76: =SUM(AK76:AM76) -> 47.89014544 | AP76: 9.578029088 | AQ76: 2.394507272 | AR76: 10.05693054 | AS76: 22.0294669 | AV76: 61 | AW76: 9.578029088 | AX76: 45.31291952 | AY76: 51.70956519 | BA76: 2.394507272 | BB76: 11.10372877 | BC76: 14.98048321 | BE76: 10.05693054 | BF76: 21.11756436 | BG76: 42.00464445 | BI76: 77.53421265 | BJ76: 108.6946928
AC77: 62 | AD77: ='Generic Model_uncorrected'!CC95 -> 49.76609047 | AE77: 2310 | AG77: 1115.401874 | AH77: Eff Home Isolation | AJ77: =Generic_uncorrected!D20 -> 0.1 | AK77: =AD77*$AJ$76 -> 9.953218093 | AL77: =AD77*$AJ$77 -> 4.976609047 | AM77: =AD77*$AJ$78 -> 34.83626333 | AN77: =SUM(AK77:AM77) -> 49.76609047 | AP77: 9.953218093 | AQ77: 2.488304523 | AR77: 10.450879 | AS77: 22.89240161 | AV77: 62 | AW77: 9.953218093 | AX77: 51.87998525 | AY77: 58.52515091 | BA77: 2.488304523 | BB77: 11.53858553 | BC77: 15.56783773 | BE77: 10.450879 | BF77: 20.50780954 | BG77: 42.21250853 | BI77: 83.92638031 | BJ77: 116.3054972
AC78: 63 | AD78: ='Generic Model_uncorrected'!CC96 -> 51.71684656 | AE78: 2346 | AG78: 1167.118721 | AH78: No Eff Home Isolation | AJ78: =Generic_uncorrected!D21 -> 0.7 | AK78: 10.34336931 | AL78: 5.171684656 | AM78: 36.20179259 | AN78: 51.71684656 | AP78: 10.34336931 | AQ78: 2.585842328 | AR78: 10.86053778 | AS78: 23.78974942 | AV78: 63 | AW78: 10.34336931 | AX78: 58.70429076 | AY78: 65.60950692 | BA78: 2.585842328 | BB78: 11.99046641 | BC78: 16.17787562 | BE78: 10.86053778 | BF78: 21.31141677 | BG78: 42.42898113 | BI78: 92.00617395 | BJ78: 124.2163637
AC79: 64 | AD79: ='Generic Model_uncorrected'!CC97 -> 53.71863728 | AE79: 2382 | AG79: 1220.837358 | AK79: 10.74372746 | AL79: 5.371863728 | AM79: 37.60304609 | AN79: 53.71863728 | AP79: 10.74372746 | AQ79: 2.685931864 | AR79: 11.28091383 | AS79: 24.71057315 | AV79: 64 | AW79: 10.74372746 | AX79: 65.79029582 | AY79: 72.96708201 | BA79: 2.685931864 | BB79: 12.4588847 | BC79: 16.81035972 | BE79: 11.28091383 | BF79: 22.14145161 | BG79: 42.64926114 | BI79: 100.3906321 | BJ79: 132.4267029
AC80: 65 | AD80: ='Generic Model_uncorrected'!CC98 -> 55.68401595 | AE80: 2418 | AG80: 1276.521374 | AK80: 11.13680319 | AL80: 5.568401595 | AM80: 38.97881116 | AN80: 55.68401595 | AP80: =AK80*$D$8 -> 11.13680319 | AQ80: =AL80*$D$9 -> 2.784200797 | AR80: =AM80*$D$10 -> 11.69364335 | AS80: =SUM(AP80:AR80) -> 25.61464734 | AV80: 65 | AW80: =AP80 -> 11.13680319 | AX80: 73.12519901 | AY80: 80.5848214 | BA80: =AQ80 -> 2.784200797 | BB80: 12.93878678 | BC80: 17.46059907 | BE80: 11.69364335 | BF80: 22.97455718 | BG80: 44.28597395 | BI80: =AX80+BB80+BF80 -> 109.038543 | BJ80: 142.3313944
AC81: 66 | AD81: ='Generic Model_uncorrected'!CC99 -> 57.52125021 | AE81: 2454 | AG81: 1334.042624 | AK81: 11.50425004 | AL81: 5.752125021 | AM81: 40.26487515 | AN81: 57.52125021 | AP81: 11.50425004 | AQ81: 2.87606251 | AR81: 12.07946254 | AS81: 26.4597751 | AV81: 66 | AW81: 11.50425004 | AX81: 80.67784018 | AY81: 88.43134906 | BA81: 2.87606251 | BB81: 13.42034202 | BC81: 18.11914801 | BE81: =AR81 -> 12.07946254 | BF81: 23.77310589 | BG81: 45.9145575 | BI81: 117.8712881 | BJ81: 152.4650546
AC82: 67 | AD82: ='Generic Model_uncorrected'!CC100 -> 59.21470476 | AE82: 2490 | AG82: =AD82+AG81 -> 1393.257329 | AK82: 11.84294095 | AL82: 5.921470476 | AM82: 41.45029333 | AN82: 59.21470476 | AP82: 11.84294095 | AQ82: 2.960735238 | AR82: 12.435088 | AS82: 27.23876419 | AV82: =1+AV81 -> 67 | AW82: 11.84294095 | AX82: 88.41388559 | AY82: 96.47239 | BA82: 2.960735238 | BB82: 13.89277274 | BC82: 18.77558453 | BE82: 12.435088 | BF82: 24.51455054 | BG82: 47.48910772 | BI82: 126.8212089 | BJ82: 162.7370823
AC83: 68 | AD83: ='Generic Model_uncorrected'!CC101 -> 60.78472317 | AE83: 2526 | AG83: 1454.042052 | AK83: 12.15694463 | AL83: 6.078472317 | AM83: 42.54930622 | AN83: 60.78472317 | AP83: 12.15694463 | AQ83: 3.039236158 | AR83: 12.76479187 | AS83: 27.96097266 | AV83: 68 | AW83: 12.15694463 | AX83: 96.30290734 | AY83: 104.6777258 | BA83: 3.039236158 | BB83: 14.34616657 | BC83: 19.42031342 | BE83: 12.76479187 | BF83: =SUM(BE82:BE83) -> 25.19987987 | BG83: 48.97298576 | BI83: 135.8489538 | BJ83: 173.0710249
AC84: 69 | AD84: ='Generic Model_uncorrected'!CC102 -> 62.24730376 | AE84: 2562 | AG84: 1516.289356 | AK84: 12.44946075 | AL84: 6.224730376 | AM84: 43.57311263 | AN84: 62.24730376 | AP84: 12.44946075 | AQ84: 3.112365188 | AR84: 13.07193379 | AS84: 28.63375973 | AV84: 69 | AW84: 12.44946075 | AX84: 104.3173409 | AY84: 113.020291 | BA84: 3.112365188 | BB84: 14.77259989 | BC84: 20.04437408 | BE84: 13.07193379 | BF84: 25.83672565 | BG84: =SUM(BE81:BE84) -> 50.3512762 | BI84: 144.9266665 | BJ84: 183.4159413
AC85: 70 | AD85: ='Generic Model_uncorrected'!CC103 -> 63.66372031 | AE85: 2598 | AG85: 1579.953076 | AK85: 12.73274406 | AL85: 6.366372031 | AM85: 44.56460422 | AN85: 63.66372031 | AP85: 12.73274406 | AQ85: 3.183186016 | AR85: 13.36938127 | AS85: 29.28531134 | AV85: 70 | AW85: 12.73274406 | AX85: 112.4414876 | AY85: 121.4851122 | BA85: 3.183186016 | BB85: =SUM(BA81:BA85) -> 15.17158511 | BC85: 20.64171777 | BE85: 13.36938127 | BF85: 26.44131506 | BG85: 51.64119492 | BI85: 154.0543877 | BJ85: 193.7680248
AC86: 71 | AD86: ='Generic Model_uncorrected'!CC104 -> 65.13333634 | AE86: 2634 | AG86: 1645.086412 | AK86: 13.02666727 | AL86: 6.513333634 | AM86: 45.59333544 | AN86: 65.13333634 | AP86: 13.02666727 | AQ86: 3.256666817 | AR86: 13.67800063 | AS86: 29.96133471 | AV86: 71 | AW86: 13.02666727 | AX86: 115.8901258 | AY86: 130.0767523 | BA86: 3.256666817 | BB86: 15.55218942 | BC86: 21.21245272 | BE86: 13.67800063 | BF86: 27.0473819 | BG86: 52.88410755 | BI86: 158.4896971 | BJ86: 204.1733125
AC87: 72 | AD87: ='Generic Model_uncorrected'!CC105 -> 66.74179855 | AE87: 2670 | AG87: 1711.828211 | AK87: 13.34835971 | AL87: 6.674179855 | AM87: 46.71925899 | AN87: 66.74179855 | AP87: 13.34835971 | AQ87: 3.337089928 | AR87: 14.0157777 | AS87: 30.70122733 | AV87: 72 | AW87: 13.34835971 | AX87: 119.2852674 | AY87: 138.8165146 | BA87: 3.337089928 | BB87: 15.92854411 | BC87: =SUM(BA81:BA87) -> 21.76534186 | BE87: 14.0157777 | BF87: 27.69377833 | BG87: 54.13509338 | BI87: 162.9075898 | BJ87: 214.7169498
AC88: 73 | AD88: ='Generic Model_uncorrected'!CC106 -> 68.50294134 | AE88: 2706 | AG88: 1780.331152 | AK88: 13.70058827 | AL88: 6.850294134 | AM88: 47.95205894 | AN88: 68.50294134 | AP88: 13.70058827 | AQ88: 3.425147067 | AR88: 14.38561768 | AS88: 31.51135302 | AV88: 73 | AW88: 13.70058827 | AX88: 122.6424863 | AY88: 142.9390737 | BA88: 3.425147067 | BB88: 16.31445502 | BC88: 22.31442641 | BE88: 14.38561768 | BF88: 28.40139538 | BG88: 55.44877727 | BI88: 167.3583367 | BJ88: 220.7022774
AC89: 74 | AD89: ='Generic Model_uncorrected'!CC107 -> 70.38006867 | AE89: 2742 | AG89: 1850.711221 | AK89: 14.07601373 | AL89: 7.038006867 | AM89: 49.26604807 | AN89: 70.38006867 | AP89: 14.07601373 | AQ89: 3.519003434 | AR89: 14.77981442 | AS89: 32.37483159 | AV89: 74 | AW89: 14.07601373 | AX89: 125.9747726 | AY89: 147.0618694 | BA89: 3.519003434 | BB89: 16.72109326 | BC89: 22.87269461 | BE89: 14.77981442 | BF89: 29.1654321 | BG89: 56.85921043 | BI89: 171.861298 | BJ89: 226.7937744
AC90: 75 | AD90: ='Generic Model_uncorrected'!CC108 -> 72.34357494 | AE90: 2778 | AG90: 1923.054796 | AK90: 14.46871499 | AL90: 7.234357494 | AM90: 50.64050245 | AN90: 72.34357494 | AP90: 14.46871499 | AQ90: 3.617178747 | AR90: 15.19215074 | AS90: 33.27804447 | AV90: 75 | AW90: 14.46871499 | AX90: =SUM(AW81:AW90) -> 129.3066844 | AY90: 151.1872151 | BA90: 3.617178747 | BB90: 17.15508599 | BC90: 23.4506372 | BE90: 15.19215074 | BF90: 29.97196516 | BG90: 58.37336054 | BI90: 176.4337356 | BJ90: 233.0112128
AC91: 76 | AD91: ='Generic Model_uncorrected'!CC109 -> 74.33984159 | AE91: 2814 | AG91: 1997.394638 | AK91: 14.86796832 | AL91: 7.433984159 | AM91: 52.03788911 | AN91: 74.33984159 | AP91: 14.86796832 | AQ91: 3.716992079 | AR91: 15.61136673 | AS91: 34.19632713 | AV91: 76 | AW91: 14.86796832 | AX91: 132.6704027 | AY91: 155.3114559 | BA91: 3.716992079 | BB91: 17.61541125 | BC91: 24.05526409 | BE91: 15.61136673 | BF91: 30.80351747 | BG91: 59.96894957 | BI91: 181.0893314 | BJ91: 239.3356696
AC92: 77 | AD92: ='Generic Model_uncorrected'!CC110 -> 76.35346453 | AE92: 2850 | AG92: 2073.748102 | AK92: 15.27069291 | AL92: 7.635346453 | AM92: 53.44742517 | AN92: 76.35346453 | AP92: 15.27069291 | AQ92: 3.817673227 | AR92: 16.03422755 | AS92: 35.12259369 | AV92: 77 | AW92: 15.27069291 | AX92: 136.0981546 | AY92: 159.4453456 | BA92: 3.817673227 | BB92: 18.09599455 | BC92: 24.6897513 | BE92: 16.03422755 | BF92: 31.64559429 | BG92: 61.61755944 | BI92: 185.8397435 | BJ92: 245.7526564
AC93: 78 | AD93: ='Generic Model_uncorrected'!CC111 -> 78.38712829 | AE93: 2886 | AG93: 2152.13523 | AK93: 15.67742566 | AL93: 7.838712829 | AM93: 54.87098981 | AN93: 78.38712829 | AP93: 15.67742566 | AQ93: 3.919356415 | AR93: 16.46129694 | AS93: 36.05807902 | AV93: 78 | AW93: 15.67742566 | AX93: 139.6186357 | AY93: =SUM(AW82:AW93) -> 163.6185213 | BA93: 3.919356415 | BB93: 18.5902039 | BC93: 25.3524409 | BE93: 16.46129694 | BF93: 32.49552449 | BG93: 63.29904196 | BI93: 190.7043641 | BJ93: 252.2700041
AC94: 79 | AD94: ='Generic Model_uncorrected'!CC112 -> 80.44437189 | AE94: 2922 | AG94: 2232.579602 | AK94: 16.08887438 | AL94: 8.044437189 | AM94: 56.31106032 | AN94: 80.44437189 | AP94: 16.08887438 | AQ94: 4.022218594 | AR94: 16.8933181 | AS94: 37.00441107 | AV94: 79 | AW94: 16.08887438 | AX94: 143.2580493 | AY94: 167.8644547 | BA94: 4.022218594 | BB94: 19.09341906 | BC94: 26.03756956 | BE94: 16.8933181 | BF94: 33.35461504 | BG94: 65.00020932 | BI94: 195.7060834 | BJ94: 258.9022336
AC95: 80 | AD95: ='Generic Model_uncorrected'!CC113 -> 82.54076695 | AE95: 2958 | AG95: 2315.120369 | AK95: 16.50815339 | AL95: 8.254076695 | AM95: 57.77853687 | AN95: 82.54076695 | AP95: 16.50815339 | AQ95: 4.127038348 | AR95: 17.33356106 | AS95: 37.9687528 | AV95: 80 | AW95: 16.50815339 | AX95: 147.0334586 | AY95: 172.2156634 | BA95: 4.127038348 | BB95: 19.60327866 | BC95: 26.73946084 | BE95: 17.33356106 | BF95: 34.22687916 | BG95: 66.72240365 | BI95: 200.8636164 | BJ95: 265.6775279
AC96: 81 | AD96: ='Generic Model_uncorrected'!CC114 -> 84.68995844 | AE96: 2994 | AG96: 2399.810328 | AK96: 16.93799169 | AL96: 8.468995844 | AM96: 59.28297091 | AN96: 84.68995844 | AP96: 16.93799169 | AQ96: 4.234497922 | AR96: 17.78489127 | AS96: 38.95738088 | AV96: 81 | AW96: 16.93799169 | AX96: 150.944783 | AY96: 176.7041944 | BA96: 4.234497922 | BB96: 20.12078451 | BC96: 27.45495533 | BE96: 17.78489127 | BF96: 35.11845233 | BG96: 68.47306737 | BI96: 206.1840199 | BJ96: 272.6322171
AC97: 82 | AD97: ='Generic Model_uncorrected'!CC115 -> 86.90996814 | AE97: 3030 | AG97: 2486.720296 | AK97: 17.38199363 | AL97: 8.690996814 | AM97: 60.8369777 | AN97: 86.90996814 | AP97: 17.38199363 | AQ97: 4.345498407 | AR97: 18.25109331 | AS97: 39.97858535 | AV97: 82 | AW97: 17.38199363 | AX97: 154.978417 | AY97: 181.3534439 | BA97: 4.345498407 | BB97: 20.64860969 | BC97: 28.18327499 | BE97: 18.25109331 | BF97: 36.03598458 | BG97: 70.26286374 | BI97: 211.6630112 | BJ97: 279.7995827
AC98: 83 | AD98: ='Generic Model_uncorrected'!CC116 -> 89.20240436 | AE98: 3066 | AG98: 2575.9227 | AK98: 17.84048087 | AL98: 8.920240436 | AM98: 62.44168305 | AN98: 89.20240436 | AP98: 17.84048087 | AQ98: 4.460120218 | AR98: 18.73250492 | AS98: 41.03310601 | AV98: 83 | AW98: 17.84048087 | AX98: 159.1183096 | AY98: 186.1672575 | BA98: 4.460120218 | BB98: 21.18937349 | BC98: 28.92640313 | BE98: 18.73250492 | BF98: 36.98359823 | BG98: 72.10205056 | BI98: 217.2912813 | BJ98: 287.1957112
AC99: 84 | AD99: ='Generic Model_uncorrected'!CC117 -> 91.56780359 | AE99: 3102 | AG99: 2667.490504 | AK99: 18.31356072 | AL99: 9.156780359 | AM99: 64.09746252 | AN99: 91.56780359 | AP99: 18.31356072 | AQ99: 4.57839018 | AR99: 19.22923875 | AS99: 42.12118965 | AV99: 84 | AW99: 18.31356072 | AX99: 163.3558565 | AY99: 191.1324585 | BA99: 4.57839018 | BB99: 21.74554507 | BC99: 29.68712008 | BE99: 19.22923875 | BF99: 37.96174367 | BG99: 73.99772825 | BI99: 223.0631453 | BJ99: 294.8173069
AC100: 85 | AD100: ='Generic Model_uncorrected'!CC118 -> 94.00123217 | AE100: 3138 | AG100: 2761.491736 | AK100: 18.80024643 | AL100: 9.400123217 | AM100: 65.80086252 | AN100: 94.00123217 | AP100: 18.80024643 | AQ100: 4.700061608 | AR100: 19.74025876 | AS100: 43.2405668 | AV100: 85 | AW100: 18.80024643 | AX100: 167.687388 | AY100: 196.2321167 | BA100: 4.700061608 | BB100: 22.31856834 | BC100: 30.46782528 | BE100: 19.74025876 | BF100: 38.96949751 | BG100: 75.95309574 | BI100: 228.9754538 | BJ100: 302.6530377
AC101: 86 | AD101: ='Generic Model_uncorrected'!CC119 -> 96.50073257 | AE101: 3174 | AG101: 2857.992468 | AK101: 19.30014651 | AL101: 9.650073257 | AM101: 67.5505128 | AN101: 96.50073257 | AP101: 19.30014651 | AQ101: 4.825036629 | AR101: 20.26515384 | AS101: 44.39033698 | AV101: 86 | AW101: 19.30014651 | AX101: 172.1195662 | AY101: 201.4562495 | BA101: 4.825036629 | BB101: 22.90910704 | BC101: 31.27064331 | BE101: 20.26515384 | BF101: 40.0054126 | BG101: 77.96715627 | BI101: 235.0340858 | BJ101: 310.6940491
AC102: 87 | AD102: ='Generic Model_uncorrected'!CC120 -> 99.06360499 | AE102: 3210 | AG102: 2957.056073 | AK102: 19.812721 | AL102: 9.906360499 | AM102: 69.3445235 | AN102: 99.06360499 | AP102: 19.812721 | AQ102: 4.95318025 | AR102: 20.80335705 | AS102: 45.5692583 | AV102: 87 | AW102: 19.812721 | AX102: 176.6615943 | AY102: 206.8002555 | BA102: 4.95318025 | BB102: 23.51678888 | BC102: 32.09678521 | BE102: 20.80335705 | BF102: 41.06851089 | BG102: 80.0380084 | BI102: 241.2468941 | BJ102: 318.9350491
AC103: 88 | AD103: ='Generic Model_uncorrected'!CC121 -> 101.6886566 | AE103: 3246 | AG103: 3058.74473 | AK103: 20.33773132 | AL103: 10.16886566 | AM103: 71.1820596 | AN103: 101.6886566 | AP103: 20.33773132 | AQ103: 5.084432829 | AR103: 21.35461788 | AS103: 46.77678203 | AV103: 88 | AW103: 20.33773132 | AX103: 181.3218999 | AY103: 212.2700185 | BA103: 5.084432829 | BB103: 24.1411015 | BC103: 32.94672012 | BE103: 21.35461788 | BF103: 42.15797493 | BG103: 82.16338753 | BI103: 247.6209764 | BJ103: 327.3801262
AC104: 89 | AD104: ='Generic Model_uncorrected'!CC122 -> 104.3783822 | AE104: 3282 | AG104: 3163.123112 | AK104: 20.87567644 | AL104: 10.43783822 | AM104: 73.06486755 | AN104: 104.3783822 | AP104: 20.87567644 | AQ104: 5.218919111 | AR104: 21.91946027 | AS104: 48.01405582 | AV104: 89 | AW104: 20.87567644 | AX104: 186.108702 | AY104: 217.875002 | BA104: 5.218919111 | BB104: 24.78163043 | BC104: 33.82014082 | BE104: 21.91946027 | BF104: 43.27407815 | BG104: 84.34258904 | BI104: 254.1644106 | BJ104: 336.0377319
AC105: 90 | AD105: ='Generic Model_uncorrected'!CC123 -> 107.136344 | AE105: 3318 | AG105: 3270.259456 | AK105: 21.4272688 | AL105: 10.7136344 | AM105: 74.99544081 | AN105: 107.136344 | AP105: 21.4272688 | AQ105: 5.356817201 | AR105: 22.49863224 | AS105: 49.28271825 | AV105: 90 | AW105: 21.4272688 | AX105: 191.0278174 | AY105: 223.6248452 | BA105: 5.356817201 | BB105: 25.43838602 | BC105: 34.71683781 | BE105: 22.49863224 | BF105: 44.41809251 | BG105: 86.57606744 | BI105: 260.8842959 | BJ105: 344.9177504
AC106: 91 | AD106: ='Generic Model_uncorrected'!CC124 -> 109.9664214 | AE106: 3354 | AG106: 3380.225878 | AH106: Hospitalized | AJ106: =Generic_uncorrected!D24 -> 0.25 | AK106: =AD106*$AJ$106 -> 27.49160535 | AL106: =AD106*$AJ$107 -> 27.49160535 | AM106: =AD106*$AJ$108 -> 54.98321069 | AN106: =SUM(AK106:AM106) -> 109.9664214 | AP106: 27.49160535 | AQ106: 13.74580267 | AR106: 16.49496321 | AS106: 57.73237122 | AV106: 91 | AW106: 27.49160535 | AX106: 201.5814311 | AY106: 235.0275762 | BA106: 13.74580267 | BB106: 34.35915206 | BC106: 43.8842503 | BE106: 16.49496321 | BF106: 38.99359545 | BG106: 82.2676736 | BI106: 274.9341786 | BJ106: 361.1795001
AC107: 92 | AD107: ='Generic Model_uncorrected'!CC125 -> 112.8718938 | AE107: 3390 | AG107: 3493.097771 | AH107: Eff Home Isolation | AJ107: =Generic_uncorrected!D25 -> 0.25 | AK107: =AD107*$AJ$106 -> 28.21797344 | AL107: =AD107*$AJ$107 -> 28.21797344 | AM107: =AD107*$AJ$108 -> 56.43594689 | AN107: =SUM(AK107:AM107) -> 112.8718938 | AP107: 28.21797344 | AQ107: 14.10898672 | AR107: 16.93078407 | AS107: 59.25774423 | AV107: 92 | AW107: 28.21797344 | AX107: 212.4174109 | AY107: 246.7373962 | BA107: 14.10898672 | BB107: 43.51495853 | BC107: 53.29317541 | BE107: 16.93078407 | BF107: 33.42574727 | BG107: 77.84383978 | BI107: 289.3581167 | BJ107: 377.8744114
AC108: 93 | AD108: ='Generic Model_uncorrected'!CC126 -> 115.8557514 | AE108: 3426 | AG108: 3608.953523 | AH108: No Eff Home Isolation | AJ108: =Generic_uncorrected!D26 -> 0.5 | AK108: 28.96393786 | AL108: 28.96393786 | AM108: 57.92787572 | AN108: 115.8557514 | AP108: 28.96393786 | AQ108: 14.48196893 | AR108: 17.37836272 | AS108: 60.82426951 | AV108: 93 | AW108: 28.96393786 | AX108: 223.5408679 | AY108: 258.7633424 | BA108: 14.48196893 | BB108: 52.91249464 | BC108: 62.95010772 | BE108: 17.37836272 | BF108: 34.30914678 | BG108: 73.30274223 | BI108: 310.7625093 | BJ108: 395.0161923
AC109: 94 | AD109: ='Generic Model_uncorrected'!CC127 -> 118.802443 | AE109: 3462 | AG109: 3727.755966 | AK109: 29.70061074 | AL109: 29.70061074 | AM109: 59.40122148 | AN109: 118.802443 | AP109: 29.70061074 | AQ109: 14.85030537 | AR109: 17.82036644 | AS109: 62.37128255 | AV109: 94 | AW109: 29.70061074 | AX109: 234.9279179 | AY109: 271.0819595 | BA109: 14.85030537 | BB109: 62.54388089 | BC109: 72.84723283 | BE109: 17.82036644 | BF109: 35.19872916 | BG109: 68.62447643 | BI109: 332.670528 | BJ109: 412.5536688
AC110: 95 | AD110: ='Generic Model_uncorrected'!CC128 -> 121.3129039 | AE110: 3498 | AG110: 3849.06887 | AK110: 30.32822597 | AL110: 30.32822597 | AM110: 60.65645193 | AN110: 121.3129039 | AP110: 30.32822597 | AQ110: 15.16411298 | AR110: 18.19693558 | AS110: 63.68927453 | AV110: 95 | AW110: 30.32822597 | AX110: 246.4558974 | AY110: 283.5697046 | BA110: 15.16411298 | BB110: 72.35117668 | BC110: 82.92691299 | BE110: 18.19693558 | BF110: 36.01730202 | BG110: 70.32644881 | BI110: 354.8243761 | BJ110: 436.8230664
AC111: 96 | AD111: ='Generic Model_uncorrected'!CC129 -> 122.9736111 | AE111: 3534 | AG111: 3972.042481 | AK111: 30.74340277 | AL111: 30.74340277 | AM111: 61.48680554 | AN111: 122.9736111 | AP111: 30.74340277 | AQ111: 15.37170139 | AR111: 18.44604166 | AS111: 64.56114582 | AV111: 96 | AW111: 30.74340277 | AX111: 257.8991537 | AY111: 295.9995466 | BA111: 15.37170139 | BB111: 73.97707539 | BC111: 93.07969526 | BE111: 18.44604166 | BF111: 36.64297724 | BG111: 71.8417064 | BI111: 368.5192063 | BJ111: 460.9209483
AC112: 97 | AD112: ='Generic Model_uncorrected'!CC130 -> 123.7156135 | AE112: 3570 | AG112: 4095.758094 | AK112: 30.92890338 | AL112: 30.92890338 | AM112: 61.85780677 | AN112: 123.7156135 | AP112: 30.92890338 | AQ112: 15.46445169 | AR112: 18.55734203 | AS112: 64.9506971 | AV112: 97 | AW112: 30.92890338 | AX112: 269.0153361 | AY112: 308.1282036 | BA112: 15.46445169 | BB112: 75.33254036 | BC112: 103.1873298 | BE112: 18.55734203 | BF112: 37.00338369 | BG112: 73.02068572 | BI112: 381.3512601 | BJ112: 484.3362191
AC113: 98 | AD113: ='Generic Model_uncorrected'!CC131 -> 123.63196 | AE113: 3606 | AG113: 4219.390054 | AK113: 30.90799 | AL113: 30.90799 | AM113: 61.81597999 | AN113: 123.63196 | AP113: 30.90799 | AQ113: 15.453995 | AR113: 18.544794 | AS113: 64.90677899 | AV113: 98 | AW113: 30.90799 | AX113: 279.5855948 | AY113: 319.7360471 | BA113: 15.453995 | BB113: 76.30456643 | BC113: 104.8955221 | BE113: 18.544794 | BF113: 37.10213603 | BG113: 73.74511327 | BI113: 392.9922972 | BJ113: 498.3766824
AC114: 99 | AD114: ='Generic Model_uncorrected'!CC132 -> 122.7978811 | AE114: 3642 | AG114: 4342.187935 | AK114: 30.69947026 | AL114: 30.69947026 | AM114: 61.39894053 | AN114: 122.7978811 | AP114: 30.69947026 | AQ114: 15.34973513 | AR114: 18.41968216 | AS114: 64.46888755 | AV114: 99 | AW114: 30.69947026 | AX114: 289.4093886 | AY114: 330.6227963 | BA114: 15.34973513 | BB114: 76.80399619 | BC114: 106.1362705 | BE114: 18.41968216 | BF114: 36.96447615 | BG114: 73.96785985 | BI114: 403.1778609 | BJ114: 510.7269267
AC115: 100 | AD115: ='Generic Model_uncorrected'!CC133 -> 121.4961557 | AE115: 3678 | AG115: 4463.684091 | AK115: 30.37403893 | AL115: 30.37403893 | AM115: 60.74807787 | AN115: 121.4961557 | AP115: 30.37403893 | AQ115: 15.18701947 | AR115: 18.22442336 | AS115: 63.78548176 | AV115: 100 | AW115: 30.37403893 | AX115: 298.3561587 | AY115: 340.6591039 | BA115: 15.18701947 | BB115: 76.82690267 | BC115: 106.841321 | BE115: 18.22442336 | BF115: 36.64410552 | BG115: 73.74624154 | BI115: 411.8271669 | BJ115: 521.2466665
AC116: 101 | AD116: ='Generic Model_uncorrected'!CC134 -> 120.1843555 | AE116: 3714 | AG116: 4583.868447 | AK116: 30.04608888 | AL116: 30.04608888 | AM116: 60.09217776 | AN116: 120.1843555 | AP116: 30.04608888 | AQ116: 15.02304444 | AR116: 18.02765333 | AS116: 63.09678664 | AV116: 101 | AW116: 30.04608888 | AX116: 300.9106422 | AY116: 349.8295164 | BA116: 15.02304444 | BB116: 76.47824573 | BC116: 107.0140601 | BE116: 18.02765333 | BF116: 36.25207669 | BG116: 73.21655284 | BI116: 413.6409646 | BJ116: 530.0601293
AC117: 102 | AD117: ='Generic Model_uncorrected'!CC135 -> 119.26079 | AE117: 3750 | AG117: 4703.129237 | AK117: 29.81519751 | AL117: 29.81519751 | AM117: 59.63039502 | AN117: 119.26079 | AP117: 29.81519751 | AQ117: 14.90759875 | AR117: 17.88911851 | AS117: 62.61191477 | AV117: 102 | AW117: 29.81519751 | AX117: 302.5078663 | AY117: 358.2174451 | BA117: 14.90759875 | BB117: 75.92139279 | BC117: 106.7575459 | BE117: 17.88911851 | BF117: 35.91677183 | BG117: 72.56087735 | BI117: 414.3460309 | BJ117: 537.5358683
AC118: 103 | AD118: ='Generic Model_uncorrected'!CC136 -> 118.8036785 | AE118: 3786 | AG118: 4821.932915 | AK118: 29.70091963 | AL118: 29.70091963 | AM118: 59.40183927 | AN118: 118.8036785 | AP118: 29.70091963 | AQ118: 14.85045982 | AR118: 17.82055178 | AS118: 62.37193123 | AV118: 103 | AW118: 29.70091963 | AX118: 303.2448481 | AY118: 360.4267594 | BA118: 14.85045982 | BB118: 75.31785761 | BC118: 106.2363043 | BE118: 17.82055178 | BF118: 35.70967029 | BG118: 71.96174697 | BI118: 414.272376 | BJ118: 538.6248106
AC119: 104 | AD119: ='Generic Model_uncorrected'!CC137 -> 118.666338 | AE119: 3822 | AG119: 4940.599253 | AK119: 29.66658449 | AL119: 29.66658449 | AM119: 59.33316898 | AN119: 118.666338 | AP119: 29.66658449 | AQ119: 14.83329225 | AR119: 17.79995069 | AS119: 62.29982743 | AV119: 104 | AW119: 29.66658449 | AX119: 303.2108218 | AY119: 361.8753704 | BA119: 14.83329225 | BB119: 74.80141472 | BC119: 105.6051449 | BE119: 17.79995069 | BF119: 35.62050247 | BG119: 71.53727431 | BI119: 413.632739 | BJ119: 539.0177896
AC120: 105 | AD120: ='Generic Model_uncorrected'!CC138 -> 118.7311761 | AE120: 3858 | AG120: 5059.330429 | AK120: 29.68279403 | AL120: 29.68279403 | AM120: 59.36558805 | AN120: 118.7311761 | AP120: 29.68279403 | AQ120: 14.84139701 | AR120: 17.80967642 | AS120: 62.33386745 | AV120: 105 | AW120: 29.68279403 | AX120: 302.5653899 | AY120: 362.5942266 | BA120: 14.84139701 | BB120: 74.45579227 | BC120: 104.9925469 | BE120: 17.80967642 | BF120: 35.60962711 | BG120: 71.31929739 | BI120: 412.6308093 | BJ120: 538.9060708
AC121: 106 | AD121: ='Generic Model_uncorrected'!CC139 -> 118.7638135 | AE121: 3894 | AG121: 5178.094243 | AK121: 29.69095339 | AL121: 29.69095339 | AM121: 59.38190677 | AN121: 118.7638135 | AP121: 29.69095339 | AQ121: 14.84547669 | AR121: 17.81457203 | AS121: 62.35100211 | AV121: 106 | AW121: 29.69095339 | AX121: 301.5129405 | AY121: 362.5845692 | BA121: 14.84547669 | BB121: 74.27822452 | BC121: 104.4882884 | BE121: 17.81457203 | BF121: 35.62424845 | BG121: 71.24475092 | BI121: 411.4154135 | BJ121: 538.3176086
AC122: 107 | AD122: ='Generic Model_uncorrected'!CC140 -> 118.6896898 | AE122: 3930 | AG122: 5296.783933 | AK122: 29.67242244 | AL122: 29.67242244 | AM122: 59.34484489 | AN122: 118.6896898 | AP122: 29.67242244 | AQ122: 14.83621122 | AR122: 17.80345347 | AS122: 62.31208713 | AV122: 107 | AW122: 29.67242244 | AX122: 300.2564596 | AY122: 361.9287657 | BA122: 14.83621122 | BB122: 74.20683699 | BC122: 104.1374802 | BE122: 17.80345347 | BF122: 35.6180255 | BG122: 71.22765261 | BI122: 410.081322 | BJ122: 537.2938985
AC123: 108 | AD123: ='Generic Model_uncorrected'!CC141 -> 118.5039788 | AE123: 3966 | AG123: 5415.287911 | AK123: 29.62599471 | AL123: 29.62599471 | AM123: 59.25198942 | AN123: 118.5039788 | AP123: 29.62599471 | AQ123: 14.81299735 | AR123: 17.77559683 | AS123: 62.21458889 | AV123: 108 | AW123: 29.62599471 | AX123: 298.9744643 | AY123: 360.8113576 | BA123: 14.81299735 | BB123: 74.16937453 | BC123: 103.9274331 | BE123: 17.77559683 | BF123: 35.57905029 | BG123: 71.20329874 | BI123: 408.7228891 | BJ123: 535.9420895
AC124: 109 | AD124: ='Generic Model_uncorrected'!CC142 -> 118.1984615 | AE124: 4002 | AG124: 5533.486373 | AK124: 29.54961536 | AL124: 29.54961536 | AM124: 59.09923073 | AN124: 118.1984615 | AP124: 29.54961536 | AQ124: 14.77480768 | AR124: 17.72976922 | AS124: 62.05419226 | AV124: 109 | AW124: 29.54961536 | AX124: 297.8246094 | AY124: 359.4320696 | BA124: 14.77480768 | BB124: 74.11088996 | BC124: 103.794642 | BE124: 17.72976922 | BF124: 35.50536604 | BG124: 71.12339154 | BI124: 407.4408654 | BJ124: 534.3501032
AC125: 110 | AD125: ='Generic Model_uncorrected'!CC143 -> 117.8176394 | AE125: 4038 | AG125: 5651.304012 | AK125: 29.45440986 | AL125: 29.45440986 | AM125: 58.90881972 | AN125: 117.8176394 | AP125: 29.45440986 | AQ125: 14.72720493 | AR125: 17.67264592 | AS125: 61.85426071 | AV125: 110 | AW125: 29.45440986 | AX125: 296.9049803 | AY125: 357.9784895 | BA125: 14.72720493 | BB125: 73.99669788 | BC125: 103.6713871 | BE125: 17.67264592 | BF125: 35.40241513 | BG125: 70.98146543 | BI125: 406.3040933 | BJ125: 532.6313421
AC126: 111 | AD126: ='Generic Model_uncorrected'!CC144 -> 117.4018723 | AE126: 4074 | AG126: 5768.705885 | AK126: 29.35046807 | AL126: 29.35046807 | AM126: 58.70093614 | AN126: 117.4018723 | AP126: 29.35046807 | AQ126: 14.67523403 | AR126: 17.61028084 | AS126: 61.63598295 | AV126: 111 | AW126: 29.35046807 | AX126: 296.2093595 | AY126: 356.6294873 | BA126: 14.67523403 | BB126: 73.82645522 | BC126: 103.5133289 | BE126: 17.61028084 | BF126: 35.28292676 | BG126: 70.7882928 | BI126: 405.3187415 | BJ126: 530.931109
AC127: 112 | AD127: ='Generic Model_uncorrected'!CC145 -> 117.0194319 | AE127: 4110 | AG127: 5885.725316 | AK127: 29.25485798 | AL127: 29.25485798 | AM127: 58.50971596 | AN127: 117.0194319 | AP127: 29.25485798 | AQ127: 14.62742899 | AR127: 17.55291479 | AS127: 61.43520176 | AV127: 112 | AW127: 29.25485798 | AX127: 295.64902 | AY127: 355.5103063 | BA127: 14.62742899 | BB127: 73.61767299 | BC127: 103.2993609 | BE127: 17.55291479 | BF127: 35.16319563 | BG127: 70.56561076 | BI127: 404.4298886 | BJ127: 529.375278
AC128: 113 | AD128: ='Generic Model_uncorrected'!CC146 -> 116.673558 | AE128: 4146 | AG128: 6002.398874 | AK128: 29.1683895 | AL128: 29.1683895 | AM128: 58.33677901 | AN128: 116.673558 | AP128: 29.1683895 | AQ128: 14.58419475 | AR128: 17.5010337 | AS128: 61.25361796 | AV128: 113 | AW128: 29.1683895 | AX128: 295.1164898 | AY128: 354.632607 | BA128: 14.58419475 | BB128: 73.38887039 | BC128: 103.038079 | BE128: 17.5010337 | BF128: 35.05394849 | BG128: 70.33687525 | BI128: 403.5593087 | BJ128: 528.0075612
AC129: 114 | AD129: ='Generic Model_uncorrected'!CC147 -> 116.369182 | AE129: 4182 | AG129: 6118.768057 | AK129: 29.09229551 | AL129: 29.09229551 | AM129: 58.18459102 | AN129: 116.369182 | AP129: 29.09229551 | AQ129: 14.54614776 | AR129: 17.45537731 | AS129: 61.09382057 | AV129: 114 | AW129: 29.09229551 | AX129: 294.5422009 | AY129: 353.909705 | BA129: 14.54614776 | BB129: 73.16021046 | BC129: 102.7480155 | BE129: 17.45537731 | BF129: 34.95641101 | BG129: 70.11960664 | BI129: 402.6588223 | BJ129: 526.7773271
AC130: 115 | AD130: ='Generic Model_uncorrected'!CC148 -> 116.0887474 | AE130: 4218 | AG130: 6234.856804 | AK130: 29.02218686 | AL130: 29.02218686 | AM130: 58.04437372 | AN130: 116.0887474 | AP130: 29.02218686 | AQ130: 14.51109343 | AR130: 17.41331211 | AS130: 60.9465924 | AV130: 115 | AW130: 29.02218686 | AX130: 293.8815937 | AY130: 353.2309722 | BA130: 14.51109343 | BB130: 72.94409896 | BC130: 102.4461116 | BE130: 17.41331211 | BF130: 34.86868942 | BG130: 69.92263791 | BI130: 401.6943821 | BJ130: 525.5997217
AC131: 116 | AD131: ='Generic Model_uncorrected'!CC149 -> 115.825785 | AE131: 4254 | AG131: 6350.682589 | AK131: 28.95644624 | AL131: 28.95644624 | AM131: 57.91289248 | AN131: 115.825785 | AP131: 28.95644624 | AQ131: 14.47822312 | AR131: 17.37386774 | AS131: 60.80853711 | AV131: 116 | AW131: 28.95644624 | AX131: 293.1470865 | AY131: 352.520834 | BA131: 14.47822312 | BB131: 72.74708805 | BC131: 102.149527 | BE131: 17.37386774 | BF131: 34.78717986 | BG131: 69.74359087 | BI131: 400.6813544 | BJ131: 524.4139518
AC132: 117 | AD132: ='Generic Model_uncorrected'!CC150 -> 115.5654501 | AE132: 4290 | AG132: 6466.248039 | AK132: 28.89136253 | AL132: 28.89136253 | AM132: 57.78272506 | AN132: 115.5654501 | AP132: 28.89136253 | AQ132: 14.44568127 | AR132: 17.33481752 | AS132: 60.67186132 | AV132: 117 | AW132: 28.89136253 | AX132: 292.3660266 | AY132: 351.7294025 | BA132: 14.44568127 | BB132: 72.56534032 | BC132: 101.8680033 | BE132: 17.33481752 | BF132: 34.70868526 | BG132: 69.57737468 | BI132: 399.6400522 | BJ132: 523.1747805
AC133: 118 | AD133: ='Generic Model_uncorrected'!CC151 -> 115.2944391 | AE133: 4326 | AG133: 6581.542478 | AK133: 28.82360977 | AL133: 28.82360977 | AM133: 57.64721954 | AN133: 115.2944391 | AP133: 28.82360977 | AQ133: 14.41180489 | AR133: 17.29416586 | AS133: 60.52958052 | AV133: 118 | AW133: 28.82360977 | AX133: 291.5636417 | AY133: 350.8620588 | BA133: 14.41180489 | BB133: 72.39295046 | BC133: 101.6045742 | BE133: 17.29416586 | BF133: 34.62898338 | BG133: 69.41616324 | BI133: 398.5855755 | BJ133: 521.8827963
AC134: 119 | AD134: ='Generic Model_uncorrected'!CC152 -> 115.0122398 | AE134: 4362 | AG134: 6696.554718 | AK134: 28.75305996 | AL134: 28.75305996 | AM134: 57.50611992 | AN134: 115.0122398 | AP134: 28.75305996 | AQ134: 14.37652998 | AR134: 17.25183598 | AS134: 60.38142592 | AV134: 119 | AW134: 28.75305996 | AX134: 290.7670863 | AY134: 349.9426964 | BA134: 14.37652998 | BB134: 72.22333268 | BC134: 101.3536752 | BE134: 17.25183598 | BF134: 34.54600184 | BG134: 69.2546871 | BI134: 397.5364208 | BJ134: 520.5510586
AC135: 120 | AD135: ='Generic Model_uncorrected'!CC153 -> 114.721204 | AE135: 4398 | AG135: 6811.275922 | AK135: 28.68030101 | AL135: 28.68030101 | AM135: 57.36060202 | AN135: 114.721204 | AP135: 28.68030101 | AQ135: 14.3401505 | AR135: 17.2081806 | AS135: 60.22863212 | AV135: 120 | AW135: 28.68030101 | AX135: 289.9929774 | AY135: 348.9970027 | BA135: 14.3401505 | BB135: 72.05238976 | BC135: 101.1096309 | BE135: 17.2081806 | BF135: 34.46001658 | BG135: 69.08899996 | BI135: 396.5053838 | BJ135: 519.1956336
AC136: 121 | AD136: ='Generic Model_uncorrected'!CC154 -> 114.4252987 | AE136: 4434 | AG136: 6925.701221 | AH136: Hospitalized | AJ136: =Generic_uncorrected!D29 -> 0.25 | AK136: =AD136*$AJ$136 -> 28.60632468 | AL136: =AD136*$AJ$137 -> 28.60632468 | AM136: =AD136*$AJ$138 -> 57.21264935 | AN136: =SUM(AK136:AM136) -> 114.4252987 | AP136: 28.60632468 | AQ136: 14.30316234 | AR136: 17.16379481 | AS136: 60.07328182 | AV136: 121 | AW136: 28.60632468 | AX136: 289.248834 | AY136: 348.053712 | BA136: 14.30316234 | BB136: 71.87732897 | BC136: 100.8666455 | BE136: 17.16379481 | BF136: 34.37197541 | BG136: 68.91797725 | BI136: 395.4981384 | BJ136: 517.8383347
AC137: 122 | AD137: ='Generic Model_uncorrected'!CC155 -> 114.1274911 | AE137: 4470 | AG137: 7039.828712 | AH137: Eff Home Isolation | AJ137: =Generic_uncorrected!D30 -> 0.25 | AK137: =AD137*$AJ$136 -> 28.53187277 | AL137: =AD137*$AJ$137 -> 28.53187277 | AM137: =AD137*$AJ$138 -> 57.06374555 | AN137: =SUM(AK137:AM137) -> 114.1274911 | AP137: 28.53187277 | AQ137: 14.26593639 | AR137: 17.11912366 | AS137: 59.91693282 | AV137: 122 | AW137: 28.53187277 | AX137: 288.5258488 | AY137: 347.1311749 | BA137: 14.26593639 | BB137: 71.69758409 | BC137: 100.6214885 | BE137: 17.11912366 | BF137: 34.28291847 | BG137: 68.74293505 | BI137: 394.5063514 | BJ137: 516.4955984
AC138: 123 | AD138: ='Generic Model_uncorrected'!CC156 -> 113.8316207 | AE138: 4506 | AG138: 7153.660332 | AH138: No Eff Home Isolation | AJ138: =Generic_uncorrected!D31 -> 0.5 | AK138: 28.45790517 | AL138: 28.45790517 | AM138: 56.91581035 | AN138: 113.8316207 | AP138: 28.45790517 | AQ138: 14.22895259 | AR138: 17.0747431 | AS138: 59.76160086 | AV138: 123 | AW138: 28.45790517 | AX138: 287.8153645 | AY138: 346.238612 | BA138: 14.22895259 | BB138: 71.5147318 | BC138: 100.3722179 | BE138: 17.0747431 | BF138: 34.19386677 | BG138: 68.56584218 | BI138: 393.5239631 | BJ138: 515.1766721
AC139: 124 | AD139: ='Generic Model_uncorrected'!CC157 -> 113.5382222 | AE139: 4542 | AG139: 7267.198555 | AK139: 28.38455555 | AL139: 28.38455555 | AM139: 56.7691111 | AN139: 113.5382222 | AP139: 28.38455555 | AQ139: 14.19227778 | AR139: 17.03073333 | AS139: 59.60756666 | AV139: 124 | AW139: 28.38455555 | AX139: 287.1076245 | AY139: 345.3683096 | BA139: 14.19227778 | BB139: 71.33047959 | BC139: 100.1188145 | BE139: 17.03073333 | BF139: 34.10547643 | BG139: 68.3883949 | BI139: 392.5435806 | BJ139: 513.8755189
AC140: 125 | AD140: ='Generic Model_uncorrected'!CC158 -> 113.2483778 | AE140: 4578 | AG140: 7380.446933 | AK140: 28.31209446 | AL140: 28.31209446 | AM140: 56.62418892 | AN140: 113.2483778 | AP140: 28.31209446 | AQ140: 14.15604723 | AR140: 16.98725668 | AS140: 59.45539836 | AV140: 125 | AW140: 28.31209446 | AX140: 286.3975321 | AY140: 344.5120145 | BA140: 14.15604723 | BB140: 71.14637632 | BC140: 99.8630568 | BE140: 16.98725668 | BF140: 34.01799001 | BG140: 68.21185677 | BI140: 391.5618985 | BJ140: 512.5869281
AC141: 126 | AD141: ='Generic Model_uncorrected'!CC159 -> 112.961751 | AE141: 4614 | AG141: 7493.408684 | AK141: 28.24043775 | AL141: 28.24043775 | AM141: 56.4808755 | AN141: 112.961751 | AP141: 28.24043775 | AQ141: 14.12021887 | AR141: 16.94426265 | AS141: 59.30491927 | AV141: 126 | AW141: 28.24043775 | AX141: 285.6815237 | AY141: 343.6601568 | BA141: 14.12021887 | BB141: 70.96343285 | BC141: 99.60674569 | BE141: 16.94426265 | BF141: 33.93151932 | BG141: 68.03699576 | BI141: 390.5764758 | BJ141: 511.3038982
AC142: 127 | AD142: ='Generic Model_uncorrected'!CC160 -> 112.6773701 | AE142: 4650 | AG142: 7606.086054 | AK142: 28.16934252 | AL142: 28.16934252 | AM142: 56.33868504 | AN142: 112.6773701 | AP142: 28.16934252 | AQ142: 14.08467126 | AR142: 16.90160551 | AS142: 59.15561929 | AV142: 127 | AW142: 28.16934252 | AX142: 284.9595036 | AY142: 342.8073124 | BA142: 14.08467126 | BB142: 70.78216772 | BC142: 99.35126645 | BE142: 16.90160551 | BF142: 33.84586816 | BG142: 67.86385817 | BI142: 389.5875395 | BJ142: 510.022437
AC143: 128 | AD143: ='Generic Model_uncorrected'!CC161 -> 112.3941186 | AE143: 4686 | AG143: 7718.480172 | AK143: 28.09852965 | AL143: 28.09852965 | AM143: 56.1970593 | AN143: 112.3941186 | AP143: 28.09852965 | AQ143: 14.04926482 | AR143: 16.85911779 | AS143: 59.00691226 | AV143: 128 | AW143: 28.09852965 | AX143: 284.2344235 | AY143: 341.9493958 | BA143: 14.04926482 | BB143: 70.60247996 | BC143: 99.09736894 | BE143: 16.85911779 | BF143: 33.7607233 | BG143: 67.69224262 | BI143: 388.5976268 | BJ143: 508.7390074
AC144: 129 | AD144: ='Generic Model_uncorrected'!CC162 -> 112.1111447 | AE144: 4722 | AG144: 7830.591317 | AK144: 28.02778617 | AL144: 28.02778617 | AM144: 56.05557234 | AN144: 112.1111447 | AP144: =AK144*$D$8 -> 28.02778617 | AQ144: =AL144*$D$9 -> 14.01389308 | AR144: =AM144*$D$10 -> 16.8166717 | AS144: =SUM(AP144:AR144) -> 58.85835095 | AV144: 129 | AW144: =AP144 -> 28.02778617 | AX144: 283.5091497 | AY144: 341.0858195 | BA144: =AQ144 -> 14.01389308 | BB144: 70.42409527 | BC144: 98.84532563 | BE144: 16.8166717 | BF144: 33.67578949 | BG144: 67.52165765 | BI144: =AX144+BB144+BF144 -> 387.6090345 | BJ144: 507.4528027
AC145: 130 | AD145: ='Generic Model_uncorrected'!CC163 -> 111.8279862 | AE145: 4758 | AG145: 7942.419303 | AK145: 27.95699655 | AL145: 27.95699655 | AM145: 55.91399311 | AN145: 111.8279862 | AP145: 27.95699655 | AQ145: 13.97849828 | AR145: 16.77419793 | AS145: 58.70969277 | AV145: 130 | AW145: 27.95699655 | AX145: 282.7858453 | AY145: 340.2192062 | BA145: 13.97849828 | BB145: 70.24654632 | BC145: 98.59487132 | BE145: =AR145 -> 16.77419793 | BF145: 33.59086963 | BG145: 67.35159293 | BI145: 386.6232612 | BJ145: 506.1656705
AC146: 131 | AD146: ='Generic Model_uncorrected'!CC164 -> 111.5445476 | AE146: 4794 | AG146: =AD146+AG145 -> 8053.963851 | AK146: 27.8861369 | AL146: 27.8861369 | AM146: 55.77227379 | AN146: 111.5445476 | AP146: 27.8861369 | AQ146: 13.94306845 | AR146: 16.73168214 | AS146: 58.56088748 | AV146: =1+AV145 -> 131 | AW146: 27.8861369 | AX146: 282.0656575 | AY146: 339.3522832 | BA146: 13.94306845 | BB146: 70.06939589 | BC146: 98.345662 | BE146: 16.73168214 | BF146: 33.50588007 | BG146: 67.18166956 | BI146: 385.6409335 | BJ146: 504.8796147
AC147: 132 | AD147: ='Generic Model_uncorrected'!CC165 -> 111.2610172 | AE147: 4830 | AG147: 8165.224868 | AK147: 27.81525431 | AL147: 27.81525431 | AM147: 55.63050862 | AN147: 111.2610172 | AP147: 27.81525431 | AQ147: 13.90762716 | AR147: 16.68915259 | AS147: 58.41203405 | AV147: 132 | AW147: 27.81525431 | AX147: 281.349039 | AY147: 338.4872365 | BA147: 13.90762716 | BB147: 69.89235179 | BC147: 98.09724192 | BE147: 16.68915259 | BF147: =SUM(BE146:BE147) -> 33.42083473 | BG147: 67.01170436 | BI147: 384.6622255 | BJ147: 503.5961828
AC148: 133 | AD148: ='Generic Model_uncorrected'!CC166 -> 110.9776627 | AE148: 4866 | AG148: 8276.202531 | AK148: 27.74441566 | AL148: 27.74441566 | AM148: 55.48883133 | AN148: 110.9776627 | AP148: 27.74441566 | AQ148: 13.87220783 | AR148: 16.6466494 | AS148: 58.26327289 | AV148: 133 | AW148: 27.74441566 | AX148: 280.6355495 | AY148: 337.6253275 | BA148: 13.87220783 | BB148: 69.7152948 | BC148: 97.84923088 | BE148: 16.6466494 | BF148: 33.33580198 | BG148: =SUM(BE145:BE148) -> 66.84168206 | BI148: 383.6866463 | BJ148: 502.3162404
AC149: 134 | AD149: ='Generic Model_uncorrected'!CC167 -> 110.6947799 | AE149: 4902 | AG149: 8386.89731 | AK149: 27.67369498 | AL149: 27.67369498 | AM149: 55.34738995 | AN149: 110.6947799 | AP149: 27.67369498 | AQ149: 13.83684749 | AR149: 16.60421699 | AS149: 58.11475945 | AV149: 134 | AW149: 27.67369498 | AX149: 279.9246889 | AY149: 336.7671497 | BA149: 13.83684749 | BB149: =SUM(BA145:BA149) -> 69.5382492 | BC149: 97.60140711 | BE149: 16.60421699 | BF149: 33.25086638 | BG149: 66.67170111 | BI149: 382.7138045 | BJ149: 501.0402579
AC150: 135 | AD150: ='Generic Model_uncorrected'!CC168 -> 110.4126065 | AE150: 4938 | AG150: 8497.309917 | AK150: 27.60315163 | AL150: 27.60315163 | AM150: 55.20630326 | AN150: 110.4126065 | AP150: 27.60315163 | AQ150: 13.80157582 | AR150: 16.56189098 | AS150: 57.96661842 | AV150: 135 | AW150: 27.60315163 | AX150: 279.2157461 | AY150: 335.9123961 | BA150: 13.80157582 | BB150: 69.36132674 | BC150: 97.3537181 | BE150: 16.56189098 | BF150: 33.16610796 | BG150: 66.50190995 | BI150: 381.7431808 | BJ150: 499.7680242
AC151: 136 | AD151: ='Generic Model_uncorrected'!CC169 -> 110.1312884 | AE151: 4974 | AG151: 8607.441205 | AK151: 27.53282209 | AL151: 27.53282209 | AM151: 55.06564419 | AN151: 110.1312884 | AP151: 27.53282209 | AQ151: 13.76641105 | AR151: 16.51969326 | AS151: 57.8189264 | AV151: 136 | AW151: 27.53282209 | AX151: 278.5081305 | AY151: 335.0606627 | BA151: 13.76641105 | BB151: 69.18466934 | BC151: =SUM(BA145:BA151) -> 97.10623606 | BE151: 16.51969326 | BF151: 33.08158424 | BG151: 66.33245062 | BI151: 380.774384 | BJ151: 498.4993494
AC152: 137 | AD152: ='Generic Model_uncorrected'!CC170 -> 109.8508452 | AE152: 5010 | AG152: 8717.292051 | AK152: 27.4627113 | AL152: 27.4627113 | AM152: 54.92542261 | AN152: 109.8508452 | AP152: 27.4627113 | AQ152: 13.73135565 | AR152: 16.47762678 | AS152: 57.67169374 | AV152: 137 | AW152: 27.4627113 | AX152: 277.8014992 | AY152: 334.2112795 | BA152: 13.73135565 | BB152: 69.00839783 | BC152: 96.85909344 | BE152: 16.47762678 | BF152: 32.99732004 | BG152: 66.163428 | BI152: 379.8072171 | BJ152: 497.233801
AC153: 138 | AD153: ='Generic Model_uncorrected'!CC171 -> 109.571217 | AE153: 5046 | AG153: 8826.863268 | AK153: 27.39280424 | AL153: 27.39280424 | AM153: 54.78560848 | AN153: 109.571217 | AP153: 27.39280424 | AQ153: 13.69640212 | AR153: 16.43568255 | AS153: 57.52488891 | AV153: 138 | AW153: 27.39280424 | AX153: 277.0957738 | AY153: 333.363646 | BA153: 13.69640212 | BB153: 68.83259212 | BC153: 96.61242711 | BE153: 16.43568255 | BF153: 32.91330933 | BG153: 65.99489356 | BI153: 378.8416753 | BJ153: 495.9709667
AC154: 139 | AD154: ='Generic Model_uncorrected'!CC172 -> 109.2923051 | AE154: 5082 | AG154: 8936.155573 | AK154: 27.32307626 | AL154: 27.32307626 | AM154: 54.64615253 | AN154: 109.2923051 | AP154: 27.32307626 | AQ154: 13.66153813 | AR154: 16.39384576 | AS154: 57.37846015 | AV154: 139 | AW154: 27.32307626 | AX154: =SUM(AW145:AW154) -> 276.3910639 | AY154: 332.5173798 | BA154: 13.66153813 | BB154: 68.65728277 | BC154: 96.36633809 | BE154: 16.39384576 | BF154: 32.8295283 | BG154: 65.82684834 | BI154: 377.877875 | BJ154: 494.7105662
AC155: 140 | AD155: ='Generic Model_uncorrected'!CC173 -> 109.014009 | AE155: 5118 | AG155: 9045.169582 | AK155: 27.25350226 | AL155: 27.25350226 | AM155: 54.50700451 | AN155: 109.014009 | AP155: 27.25350226 | AQ155: 13.62675113 | AR155: 16.35210135 | AS155: 57.23235474 | AV155: 140 | AW155: 27.25350226 | AX155: 275.6875696 | AY155: 331.6723524 | BA155: 13.62675113 | BB155: 68.48245808 | BC155: 96.12088138 | BE155: 16.35210135 | BF155: 32.74594711 | BG155: 65.65925644 | BI155: 376.9159748 | BJ155: 493.4524902
AC156: 141 | AD156: ='Generic Model_uncorrected'!CC174 -> 108.7362561 | AE156: 5154 | AG156: 9153.905838 | AK156: 27.18406402 | AL156: 27.18406402 | AM156: 54.36812803 | AN156: 108.7362561 | AP156: 27.18406402 | AQ156: 13.59203201 | AR156: 16.31043841 | AS156: 57.08653444 | AV156: 141 | AW156: 27.18406402 | AX156: 274.9854968 | AY156: 330.8286302 | BA156: 13.59203201 | BB156: 68.30807904 | BC156: 95.8760659 | BE156: 16.31043841 | BF156: 32.66253976 | BG156: 65.49206807 | BI156: 375.9561156 | BJ156: 492.1967642
AC157: 142 | AD157: ='Generic Model_uncorrected'!CC175 -> 108.4590082 | AE157: 5190 | AG157: 9262.364846 | AK157: 27.11475204 | AL157: 27.11475204 | AM157: 54.22950408 | AN157: 108.4590082 | AP157: 27.11475204 | AQ157: 13.55737602 | AR157: 16.26885122 | AS157: 56.94097929 | AV157: 142 | AW157: 27.11475204 | AX157: 274.2849945 | AY157: =SUM(AW146:AW157) -> 329.9863857 | BA157: 13.55737602 | BB157: 68.13409941 | BC157: 95.63186611 | BE157: 16.26885122 | BF157: 32.57928963 | BG157: 65.32523675 | BI157: 374.9983835 | BJ157: 490.9434886
AC158: 143 | AD158: ='Generic Model_uncorrected'!CC176 -> 108.1822656 | AE158: 5226 | AG158: 9370.547111 | AK158: 27.04556639 | AL158: 27.04556639 | AM158: 54.09113279 | AN158: 108.1822656 | AP158: 27.04556639 | AQ158: 13.5227832 | AR158: 16.22733984 | AS158: 56.79568943 | AV158: 143 | AW158: 27.04556639 | AX158: 273.5861452 | AY158: 329.1458152 | BA158: 13.5227832 | BB158: 67.96048049 | BC158: 95.38823826 | BE158: 16.22733984 | BF158: 32.49619106 | BG158: 65.15873083 | BI158: 374.0428168 | BJ158: 489.6927843
AC159: 144 | AD159: ='Generic Model_uncorrected'!CC177 -> 107.9060518 | AE159: 5262 | AG159: 9478.453163 | AK159: 26.97651294 | AL159: 26.97651294 | AM159: 53.95302588 | AN159: 107.9060518 | AP159: 26.97651294 | AQ159: 13.48825647 | AR159: 16.18590777 | AS159: 56.65067718 | AV159: 144 | AW159: 26.97651294 | AX159: 272.8889632 | AY159: 328.3070738 | BA159: 13.48825647 | BB159: 67.78719883 | BC159: 95.14513908 | BE159: 16.18590777 | BF159: 32.4132476 | BG159: 64.99253724 | BI159: 373.0894096 | BJ159: 488.4447501
AC160: 145 | AD160: ='Generic Model_uncorrected'!CC178 -> 107.6304014 | AE160: 5298 | AG160: 9586.083565 | AK160: 26.90760035 | AL160: 26.90760035 | AM160: 53.81520069 | AN160: 107.6304014 | AP160: 26.90760035 | AQ160: 13.45380017 | AR160: 16.14456021 | AS160: 56.50596073 | AV160: 145 | AW160: 26.90760035 | AX160: 272.1934119 | AY160: 327.4702585 | BA160: 13.45380017 | BB160: 67.61424787 | BC160: 94.90253713 | BE160: 16.14456021 | BF160: 32.33046797 | BG160: 64.82665903 | BI160: 372.1381277 | BJ160: 487.1994547
AC161: 146 | AD161: ='Generic Model_uncorrected'!CC179 -> 107.3553454 | AE161: 5334 | AG161: 9693.43891 | AK161: 26.83883636 | AL161: 26.83883636 | AM161: 53.67767271 | AN161: 107.3553454 | AP161: 26.83883636 | AQ161: 13.41941818 | AR161: 16.10330181 | AS161: 56.36155635 | AV161: 146 | AW161: 26.83883636 | AX161: 271.4994262 | AY161: 326.6353999 | BA161: 13.41941818 | BB161: 67.44163404 | BC161: 94.66041718 | BE161: 16.10330181 | BF161: 32.24786202 | BG161: 64.66110962 | BI161: 371.1889222 | BJ161: 485.9569267
AC162: 147 | AD162: ='Generic Model_uncorrected'!CC180 -> 107.0809046 | AE162: 5370 | AG162: 9800.519815 | AK162: 26.77022616 | AL162: 26.77022616 | AM162: 53.54045231 | AN162: 107.0809046 | AP162: 26.77022616 | AQ162: 13.38511308 | AR162: 16.06213569 | AS162: 56.21747493 | AV162: 147 | AW162: 26.77022616 | AX162: 270.806941 | AY162: 325.8024744 | BA162: 13.38511308 | BB162: 67.2693711 | BC162: 94.41877913 | BE162: 16.06213569 | BF162: 32.16543751 | BG162: 64.49590548 | BI162: 370.2417496 | BJ162: 484.717159
AC163: 148 | AD163: ='Generic Model_uncorrected'!CC181 -> 106.807086 | AE163: 5406 | AG163: 9907.326901 | AK163: 26.70177149 | AL163: 26.70177149 | AM163: 53.40354298 | AN163: 106.807086 | AP163: 26.70177149 | AQ163: 13.35088574 | AR163: 16.02106289 | AS163: 56.07372013 | AV163: 148 | AW163: 26.70177149 | AX163: 270.1159083 | AY163: 324.9714238 | BA163: 13.35088574 | BB163: 67.09747365 | BC163: 94.17763286 | BE163: 16.02106289 | BF163: 32.08319859 | BG163: 64.33106061 | BI163: 369.2965805 | BJ163: 483.4801173
AC164: 149 | AD164: ='Generic Model_uncorrected'!CC182 -> 106.5338852 | AE164: 5442 | AG164: 10013.86079 | AK164: 26.63347131 | AL164: 26.63347131 | AM164: 53.26694262 | AN164: 106.5338852 | AP164: 26.63347131 | AQ164: 13.31673566 | AR164: 15.98008279 | AS164: 55.93028975 | AV164: 149 | AW164: 26.63347131 | AX164: 269.4263033 | AY164: 324.1421838 | BA164: 13.31673566 | BB164: 66.92595283 | BC164: 93.9369925 | BE164: 15.98008279 | BF164: 32.00114568 | BG164: 64.16658319 | BI164: 368.3534018 | BJ164: 482.2457595
AC165: 150 | AD165: ='Generic Model_uncorrected'!CC183 -> 106.2612918 | AE165: 5478 | AG165: 10120.12208 | AK165: 26.56532295 | AL165: 26.56532295 | AM165: 53.13064591 | AN165: 106.2612918 | AP165: 26.56532295 | AQ165: 13.28266148 | AR165: 15.93919377 | AS165: 55.7871782 | AV165: 150 | AW165: 26.56532295 | AX165: 268.738124 | AY165: 323.3147025 | BA165: 13.28266148 | BB165: 66.75481413 | BC165: 93.69687078 | BE165: 15.93919377 | BF165: 31.91927656 | BG165: 64.00247515 | BI165: 367.4122147 | BJ165: 481.0140484
AC166: 151 | AD166: ='Generic Model_uncorrected'!CC184 -> 105.9892931 | AE166: 5514 | AG166: 10226.11137 | AH166: Hospitalized | AJ166: =Generic_uncorrected!D34 -> 0.25 | AK166: =AD166*$AJ$166 -> 26.49732327 | AL166: =AD166*$AJ$167 -> 26.49732327 | AM166: =AD166*$AJ$168 -> 52.99464653 | AN166: =SUM(AK166:AM166) -> 105.9892931 | AP166: 26.49732327 | AQ166: 13.24866163 | AR166: 15.89839396 | AS166: 55.64437886 | AV166: 151 | AW166: 26.49732327 | AX166: 268.0513833 | AY166: 322.4889495 | BA166: 13.24866163 | BB166: 66.58405759 | BC166: 93.45727594 | BE166: 15.89839396 | BF166: 31.83758773 | BG166: 63.83873341 | BI166: 366.4730286 | BJ166: 479.7849589
AC167: 152 | AD167: ='Generic Model_uncorrected'!CC185 -> 105.7178787 | AE167: 5550 | AG167: 10331.82925 | AH167: Eff Home Isolation | AJ167: =Generic_uncorrected!D35 -> 0.25 | AK167: =AD167*$AJ$166 -> 26.42946968 | AL167: =AD167*$AJ$167 -> 26.42946968 | AM167: =AD167*$AJ$168 -> 52.85893935 | AN167: =SUM(AK167:AM167) -> 105.7178787 | AP167: 26.42946968 | AQ167: 13.21473484 | AR167: 15.85768181 | AS167: 55.50188632 | AV167: 152 | AW167: 26.42946968 | AX167: 267.3661009 | AY167: 321.6649169 | BA167: 13.21473484 | BB167: 66.41367935 | BC167: 93.2182106 | BE167: 15.85768181 | BF167: 31.75607577 | BG167: 63.67535232 | BI167: 365.535856 | BJ167: 478.5584799
AC168: 153 | AD168: ='Generic Model_uncorrected'!CC186 -> 105.4470427 | AE168: 5586 | AG168: 10437.27629 | AH168: No Eff Home Isolation | AJ168: =Generic_uncorrected!D36 -> 0.5 | AK168: 26.36176067 | AL168: 26.36176067 | AM168: 52.72352133 | AN168: 105.4470427 | AP168: 26.36176067 | AQ168: 13.18088033 | AR168: 15.8170564 | AS168: 55.3596974 | AV168: 153 | AW168: 26.36176067 | AX168: 266.6822952 | AY168: 320.8426136 | BA168: 13.18088033 | BB168: 66.24367394 | BC168: 92.97967276 | BE168: 15.8170564 | BF168: 31.67473821 | BG168: 63.51232594 | BI168: 364.6007073 | BJ168: 477.3346123
AC169: 154 | AD169: ='Generic Model_uncorrected'!CC187 -> 105.1767833 | AE169: 5622 | AG169: 10542.45308 | AK169: 26.29419583 | AL169: 26.29419583 | AM169: 52.58839166 | AN169: 105.1767833 | AP169: 26.29419583 | AQ169: 13.14709792 | AR169: 15.7765175 | AS169: 55.21781125 | AV169: 154 | AW169: 26.29419583 | AX169: 265.9999781 | AY169: 320.0220574 | BA169: 13.14709792 | BB169: 66.0740362 | BC169: 92.7416576 | BE169: 15.7765175 | BF169: 31.5935739 | BG169: 63.34964967 | BI169: 363.6675882 | BJ169: 476.1133647
AC170: 155 | AD170: ='Generic Model_uncorrected'!CC188 -> 104.9071022 | AE170: 5658 | AG170: 10647.36018 | AK170: 26.22677556 | AL170: 26.22677556 | AM170: 52.45355111 | AN170: 104.9071022 | AP170: 26.22677556 | AQ170: 13.11338778 | AR170: 15.73606533 | AS170: 55.07622867 | AV170: 155 | AW170: 26.22677556 | AX170: 265.3191533 | AY170: 319.2032666 | BA170: 13.11338778 | BB170: 65.9047625 | BC170: 92.50415963 | BE170: 15.73606533 | BF170: 31.51258283 | BG170: 63.18732104 | BI170: 362.7364986 | BJ170: 474.8947472
AC171: 156 | AD171: ='Generic Model_uncorrected'!CC189 -> 104.6380024 | AE171: 5694 | AG171: 10751.99818 | AK171: 26.15950061 | AL171: 26.15950061 | AM171: 52.31900122 | AN171: 104.6380024 | AP171: 26.15950061 | AQ171: 13.0797503 | AR171: 15.69570037 | AS171: 54.93495128 | AV171: 156 | AW171: 26.15950061 | AX171: 264.6398175 | AY171: 318.3862542 | BA171: 13.0797503 | BB171: 65.73585117 | BC171: 92.26717428 | BE171: 15.69570037 | BF171: 31.4317657 | BG171: 63.0253396 | BI171: 361.8074344 | BJ171: 473.6787681
AC172: 157 | AD172: ='Generic Model_uncorrected'!CC190 -> 104.369487 | AE172: 5730 | AG172: 10856.36767 | AK172: 26.09237174 | AL172: 26.09237174 | AM172: 52.18474348 | AN172: 104.369487 | AP172: 26.09237174 | AQ172: 13.04618587 | AR172: 15.65542305 | AS172: 54.79398066 | AV172: 157 | AW172: 26.09237174 | AX172: 263.9619631 | AY172: 317.5710256 | BA172: 13.04618587 | BB172: 65.5673022 | BC172: 92.03069867 | BE172: 15.65542305 | BF172: 31.35112341 | BG172: 62.86370624 | BI172: 360.8803887 | BJ172: 472.4654305
AC173: 158 | AD173: ='Generic Model_uncorrected'!CC191 -> 104.1015578 | AE173: 5766 | AG173: 10960.46922 | AK173: 26.02538944 | AL173: 26.02538944 | AM173: 52.05077888 | AN173: 104.1015578 | AP173: 26.02538944 | AQ173: 13.01269472 | AR173: 15.61523366 | AS173: 54.65331782 | AV173: 158 | AW173: 26.02538944 | AX173: 263.2855811 | AY173: 316.7575787 | BA173: 13.01269472 | BB173: 65.39911659 | BC173: 91.79473176 | BE173: 15.61523366 | BF173: 31.27065671 | BG173: 62.70242241 | BI173: 359.9553543 | BJ173: 471.2547329
AC174: 159 | AD174: ='Generic Model_uncorrected'!CC192 -> 103.8342153 | AE174: 5802 | AG174: 11064.30344 | AK174: 25.95855382 | AL174: 25.95855382 | AM174: 51.91710764 | AN174: 103.8342153 | AP174: 25.95855382 | AQ174: 12.97927691 | AR174: 15.57513229 | AS174: 54.51296302 | AV174: 159 | AW174: 25.95855382 | AX174: 262.6106636 | AY174: 315.9459064 | BA174: 12.97927691 | BB174: 65.23129558 | BC174: 91.55927383 | BE174: 15.57513229 | BF174: 31.19036596 | BG174: 62.54148937 | BI174: 359.0323251 | BJ174: 470.0466696
AC175: 160 | AD175: ='Generic Model_uncorrected'!CC193 -> 103.5674587 | AE175: 5838 | AG175: 11167.8709 | AK175: 25.89186468 | AL175: 25.89186468 | AM175: 51.78372936 | AN175: 103.5674587 | AP175: 25.89186468 | AQ175: 12.94593234 | AR175: 15.53511881 | AS175: 54.37291582 | AV175: 160 | AW175: 25.89186468 | AX175: 261.9372053 | AY175: 315.1359995 | BA175: 12.94593234 | BB175: 65.06384014 | BC175: 91.32432584 | BE175: 15.53511881 | BF175: 31.1102511 | BG175: 62.38090781 | BI175: 358.1112965 | BJ175: 468.8412332
AC176: 161 | AD176: ='Generic Model_uncorrected'!CC194 -> 103.3012864 | AE176: 5874 | AG176: 11271.17219 | AK176: 25.8253216 | AL176: 25.8253216 | AM176: 51.65064319 | AN176: 103.3012864 | AP176: 25.8253216 | AQ176: 12.9126608 | AR176: 15.49519296 | AS176: 54.23317535 | AV176: 161 | AW176: 25.8253216 | AX176: 261.2652036 | AY176: 314.3278498 | BA176: 12.9126608 | BB176: 64.89675064 | BC176: 91.08988872 | BE176: 15.49519296 | BF176: 31.03031176 | BG176: 62.22067772 | BI176: 357.192266 | BJ176: 467.6384163
AC177: 162 | AD177: ='Generic Model_uncorrected'!CC195 -> 103.0356963 | AE177: 5910 | AG177: 11374.20788 | AK177: 25.75892408 | AL177: 25.75892408 | AM177: 51.51784817 | AN177: 103.0356963 | AP177: 25.75892408 | AQ177: 12.87946204 | AR177: 15.45535445 | AS177: 54.09374058 | AV177: 162 | AW177: 25.75892408 | AX177: 260.594658 | AY177: 313.521451 | BA177: 12.87946204 | BB177: 64.73002681 | BC177: 90.85596298 | BE177: 15.45535445 | BF177: 30.95054741 | BG177: 62.06079851 | BI177: 356.2752322 | BJ177: 466.4382125
AC178: 163 | AD178: ='Generic Model_uncorrected'!CC196 -> 102.7706868 | AE178: 5946 | AG178: 11476.97857 | AK178: 25.6926717 | AL178: 25.6926717 | AM178: 51.38534339 | AN178: 102.7706868 | AP178: 25.6926717 | AQ178: 12.84633585 | AR178: 15.41560302 | AS178: 53.95461056 | AV178: 163 | AW178: 25.6926717 | AX178: 259.9255691 | AY178: 312.7167994 | BA178: 12.84633585 | BB178: 64.56366794 | BC178: 90.62254853 | BE178: 15.41560302 | BF178: 30.87095747 | BG178: 61.90126923 | BI178: 355.3601945 | BJ178: 465.2406172
AC179: 164 | AD179: ='Generic Model_uncorrected'!CC197 -> 102.5062564 | AE179: 5982 | AG179: 11579.48482 | AK179: 25.62656409 | AL179: 25.62656409 | AM179: 51.25312818 | AN179: 102.5062564 | AP179: 25.62656409 | AQ179: 12.81328205 | AR179: 15.37593845 | AS179: 53.81578459 | AV179: 164 | AW179: 25.62656409 | AX179: 259.2579373 | AY179: 311.9138938 | BA179: 12.81328205 | BB179: 64.39767307 | BC179: 90.3896447 | BE179: 15.37593845 | BF179: 30.79154147 | BG179: 61.74208888 | BI179: 354.4471519 | BJ179: 464.0456274
AC180: 165 | AD180: ='Generic Model_uncorrected'!CC198 -> 102.2424041 | AE180: 6018 | AG180: 11681.72723 | AK180: 25.56060104 | AL180: 25.56060104 | AM180: 51.12120207 | AN180: 102.2424041 | AP180: 25.56060104 | AQ180: 12.78030052 | AR180: 15.33636062 | AS180: 53.67726218 | AV180: 165 | AW180: 25.56060104 | AX180: 258.5917628 | AY180: 311.1127342 | BA180: 12.78030052 | BB180: 64.23204125 | BC180: 90.1572505 | BE180: 15.33636062 | BF180: 30.71229908 | BG180: 61.58325655 | BI180: 353.5361031 | BJ180: 462.8532412
AC181: 166 | AD181: ='Generic Model_uncorrected'!CC199 -> 101.9791296 | AE181: 6054 | AG181: 11783.70636 | AK181: 25.4947824 | AL181: 25.4947824 | AM181: 50.9895648 | AN181: 101.9791296 | AP181: 25.4947824 | AQ181: 12.7473912 | AR181: 15.29686944 | AS181: 53.53904304 | AV181: 166 | AW181: 25.4947824 | AX181: 257.9270446 | AY181: 310.3133207 | BA181: 12.7473912 | BB181: 64.06677165 | BC181: 89.92536479 | BE181: 15.29686944 | BF181: 30.63323006 | BG181: 61.42477153 | BI181: 352.6270463 | BJ181: 461.6634571
AC182: 167 | AD182: ='Generic Model_uncorrected'!CC200 -> 101.7164323 | AE182: 6090 | AG182: 11885.42279 | AK182: 25.42910809 | AL182: 25.42910809 | AM182: 50.85821617 | AN182: 101.7164323 | AP182: 25.42910809 | AQ182: 12.71455404 | AR182: 15.25746485 | AS182: 53.40112698 | AV182: 167 | AW182: 25.42910809 | AX182: 257.2637809 | AY182: 309.5156533 | BA182: 12.71455404 | BB182: 63.90186365 | BC182: 89.69398649 | BE182: 15.25746485 | BF182: 30.55433429 | BG182: 61.26663337 | BI182: 351.7199789 | BJ182: 460.4762731
AC183: 168 | AD183: ='Generic Model_uncorrected'!CC201 -> 101.4543121 | AE183: 6126 | AG183: 11986.8771 | AK183: 25.36357802 | AL183: 25.36357802 | AM183: 50.72715603 | AN183: 101.4543121 | AP183: 25.36357802 | AQ183: 12.68178901 | AR183: 15.21814681 | AS183: 53.26351384 | AV183: 168 | AW183: 25.36357802 | AX183: 256.6019695 | AY183: 308.7197307 | BA183: 12.68178901 | BB183: 63.73731681 | BC183: 89.4631147 | BE183: 15.21814681 | BF183: 30.47561166 | BG183: 61.10884172 | BI183: 350.814898 | BJ183: 459.2916871
AC184: 169 | AD184: ='Generic Model_uncorrected'!CC202 -> 101.1927684 | AE184: 6162 | AG184: 12088.06987 | AK184: 25.29819209 | AL184: 25.29819209 | AM184: 50.59638418 | AN184: 101.1927684 | AP184: 25.29819209 | AQ184: 12.64909604 | AR184: 15.17891525 | AS184: 53.12620339 | AV184: 169 | AW184: 25.29819209 | AX184: 255.9416078 | AY184: 307.925551 | BA184: 12.64909604 | BB184: 63.57313081 | BC184: 89.23274871 | BE184: 15.17891525 | BF184: 30.39706206 | BG184: 60.95139635 | BI184: 349.9118006 | BJ184: 458.1096961
AC185: 170 | AD185: ='Generic Model_uncorrected'!CC203 -> 100.9318006 | AE185: 6198 | AG185: 12189.00167 | AK185: 25.23295016 | AL185: 25.23295016 | AM185: 50.46590032 | AN185: 100.9318006 | AP185: 25.23295016 | AQ185: 12.61647508 | AR185: 15.1397701 | AS185: 52.98919534 | AV185: 170 | AW185: 25.23295016 | AX185: 255.2826933 | AY185: 307.1331118 | BA185: 12.61647508 | BB185: 63.40930537 | BC185: 89.00288794 | BE185: 15.1397701 | BF185: 30.31868535 | BG185: 60.79429701 | BI185: 349.010684 | BJ185: 456.9302967
AC186: 171 | AD186: ='Generic Model_uncorrected'!CC204 -> 100.6714082 | AE186: 6234 | AG186: 12289.67308 | AK186: 25.16785206 | AL186: 25.16785206 | AM186: 50.33570411 | AN186: 100.6714082 | AP186: 25.16785206 | AQ186: 12.58392603 | AR186: 15.10071123 | AS186: 52.85248932 | AV186: 171 | AW186: 25.16785206 | AX186: 254.6252237 | AY186: 306.34241 | BA186: 12.58392603 | BB186: 63.2458402 | BC186: 88.77353192 | BE186: 15.10071123 | BF186: 30.24048133 | BG186: 60.63754339 | BI186: 348.1115452 | BJ186: 455.7534853
AC187: 172 | AD187: ='Generic Model_uncorrected'!CC205 -> 100.4115903 | AE187: 6270 | AG187: 12390.08467 | AK187: 25.10289757 | AL187: 25.10289757 | AM187: 50.20579515 | AN187: 100.4115903 | AP187: 25.10289757 | AQ187: 12.55144879 | AR187: 15.06173854 | AS187: 52.7160849 | AV187: 172 | AW187: 25.10289757 | AX187: 253.9691972 | AY187: 305.5534429 | BA187: 12.55144879 | BB187: 63.08273495 | BC187: 88.54468019 | BE187: 15.06173854 | BF187: 30.16244978 | BG187: 60.48113513 | BI187: 347.2143819 | BJ187: 454.5792582
AC188: 173 | AD188: ='Generic Model_uncorrected'!CC206 -> 100.152346 | AE188: 6306 | AG188: 12490.23702 | AK188: 25.0380865 | AL188: 25.0380865 | AM188: 50.07617301 | AN188: 100.152346 | AP188: 25.0380865 | AQ188: 12.51904325 | AR188: 15.0228519 | AS188: 52.57998166 | AV188: 173 | AW188: 25.0380865 | AX188: 253.314612 | AY188: 304.7662078 | BA188: 12.51904325 | BB188: 62.91998919 | BC188: 88.31633224 | BE188: 15.0228519 | BF188: 30.08459045 | BG188: 60.32507177 | BI188: 346.3191916 | BJ188: 453.4076118
AC189: 174 | AD189: ='Generic Model_uncorrected'!CC207 -> 99.89367453 | AE189: 6342 | AG189: 12590.13069 | AK189: 24.97341863 | AL189: 24.97341863 | AM189: 49.94683726 | AN189: 99.89367453 | AP189: 24.97341863 | AQ189: 12.48670932 | AR189: 14.98405118 | AS189: 52.44417913 | AV189: 174 | AW189: 24.97341863 | AX189: 252.6614665 | AY189: 303.9807023 | BA189: 12.48670932 | BB189: 62.75760246 | BC189: 88.08848751 | BE189: 14.98405118 | BF189: 30.00690308 | BG189: 60.16935286 | BI189: 345.4259721 | BJ189: 452.2385427
AC190: 175 | AD190: ='Generic Model_uncorrected'!CC208 -> 99.63557503 | AE190: 6378 | AG190: 12689.76627 | AK190: 24.90889376 | AL190: 24.90889376 | AM190: 49.81778751 | AN190: 99.63557503 | AP190: 24.90889376 | AQ190: 12.45444688 | AR190: 14.94533625 | AS190: 52.30867689 | AV190: 175 | AW190: 24.90889376 | AX190: 252.0097593 | AY190: 303.1969244 | BA190: 12.45444688 | BB190: 62.59557426 | BC190: 87.86114538 | BE190: 14.94533625 | BF190: 29.92938743 | BG190: 60.01397788 | BI190: 344.534721 | BJ190: 451.0720477
AC191: 176 | AD191: ='Generic Model_uncorrected'!CC209 -> 99.37804675 | AE191: 6414 | AG191: 12789.14431 | AK191: 24.84451169 | AL191: 24.84451169 | AM191: 49.68902337 | AN191: 99.37804675 | AP191: 24.84451169 | AQ191: 12.42225584 | AR191: 14.90670701 | AS191: 52.17347454 | AV191: 176 | AW191: 24.84451169 | AX191: 251.3594886 | AY191: 302.414872 | BA191: 12.42225584 | BB191: 62.43390408 | BC191: 87.63430518 | BE191: 14.90670701 | BF191: 29.85204327 | BG191: 59.85894635 | BI191: 343.6454359 | BJ191: 449.9081235
AC192: 177 | AD192: ='Generic Model_uncorrected'!CC210 -> 99.12108895 | AE192: 6450 | AG192: 12888.2654 | AK192: 24.78027224 | AL192: 24.78027224 | AM192: 49.56054448 | AN192: 99.12108895 | AP192: 24.78027224 | AQ192: 12.39013612 | AR192: 14.86816334 | AS192: 52.0385717 | AV192: 177 | AW192: 24.78027224 | AX192: 250.7106527 | AY192: 301.6345432 | BA192: 12.39013612 | BB192: 62.27259141 | BC192: 87.40796622 | BE192: 14.86816334 | BF192: 29.77487035 | BG192: 59.70425779 | BI192: 342.7581145 | BJ192: 448.7467672
AC193: 178 | AD193: ='Generic Model_uncorrected'!CC211 -> 98.86470094 | AE193: 6486 | AG193: 12987.1301 | AK193: 24.71617523 | AL193: 24.71617523 | AM193: 49.43235047 | AN193: 98.86470094 | AP193: 24.71617523 | AQ193: 12.35808762 | AR193: 14.82970514 | AS193: 51.90396799 | AV193: 178 | AW193: 24.71617523 | AX193: 250.0632499 | AY193: 300.855936 | BA193: 12.35808762 | BB193: 62.11163577 | BC193: 87.18212781 | BE193: 14.82970514 | BF193: 29.69786848 | BG193: 59.54991175 | BI193: 341.8727542 | BJ193: 447.5879756
AC194: 179 | AD194: ='Generic Model_uncorrected'!CC212 -> 98.608882 | AE194: 6522 | AG194: 13085.73898 | AK194: 24.6522205 | AL194: 24.6522205 | AM194: 49.304441 | AN194: 98.608882 | AP194: 24.6522205 | AQ194: 12.32611025 | AR194: 14.7913323 | AS194: 51.76966305 | AV194: 179 | AW194: 24.6522205 | AX194: 249.4172783 | AY194: 300.0790484 | BA194: 12.32611025 | BB194: 61.95103671 | BC194: 86.95678927 | BE194: 14.7913323 | BF194: 29.62103744 | BG194: 59.3959078 | BI194: 340.9893525 | BJ194: 446.4317455
AC195: 180 | AD195: ='Generic Model_uncorrected'!CC213 -> 98.35363143 | AE195: 6558 | AG195: 13184.09262 | AK195: 24.58840786 | AL195: 24.58840786 | AM195: 49.17681571 | AN195: 98.35363143 | AP195: 24.58840786 | AQ195: 12.29420393 | AR195: 14.75304471 | AS195: 51.6356565 | AV195: 180 | AW195: 24.58840786 | AX195: 248.772736 | AY195: 299.3038783 | BA195: 12.29420393 | BB195: 61.79079376 | BC195: 86.73194995 | BE195: 14.75304471 | BF195: 29.54437701 | BG195: 59.2422455 | BI195: 340.1079068 | BJ195: 445.2780737
AC196: 181 | AD196: ='Generic Model_uncorrected'!CC214 -> 98.0989485 | AE196: 6594 | AG196: 13282.19156 | AH196: Hospitalized | AJ196: =Generic_uncorrected!D39 -> 0.25 | AK196: =AD196*$AJ$196 -> 24.52473712 | AL196: =AD196*$AJ$197 -> 24.52473712 | AM196: =AD196*$AJ$198 -> 49.04947425 | AN196: =SUM(AK196:AM196) -> 98.0989485 | AP196: 24.52473712 | AQ196: 12.26236856 | AR196: 14.71484227 | AS196: 51.50194796 | AV196: 181 | AW196: 24.52473712 | AX196: 248.1296211 | AY196: 298.5304233 | BA196: 12.26236856 | BB196: 61.63090648 | BC196: 86.5076092 | BE196: 14.71484227 | BF196: 29.46788699 | BG196: 59.08892443 | BI196: 339.2284146 | BJ196: 444.1269569
AC197: 182 | AD197: ='Generic Model_uncorrected'!CC215 -> 97.84483247 | AE197: 6630 | AG197: 13380.0364 | AH197: Eff Home Isolation | AJ197: =Generic_uncorrected!D40 -> 0.25 | AK197: =AD197*$AJ$196 -> 24.46120812 | AL197: =AD197*$AJ$197 -> 24.46120812 | AM197: =AD197*$AJ$198 -> 48.92241624 | AN197: =SUM(AK197:AM197) -> 97.84483247 | AP197: 24.46120812 | AQ197: 12.23060406 | AR197: 14.67672487 | AS197: 51.36853705 | AV197: 182 | AW197: 24.46120812 | AX197: 247.4879316 | AY197: 297.7586813 | BA197: 12.23060406 | BB197: 61.47137442 | BC197: 86.28376638 | BE197: 14.67672487 | BF197: 29.39156715 | BG197: 58.93594416 | BI197: 338.3508732 | BJ197: 442.9783918
AC198: 183 | AD198: ='Generic Model_uncorrected'!CC216 -> 97.5912826 | AE198: 6666 | AG198: 13477.62768 | AH198: No Eff Home Isolation | AJ198: =Generic_uncorrected!D41 -> 0.5 | AK198: 24.39782065 | AL198: 24.39782065 | AM198: 48.7956413 | AN198: 97.5912826 | AP198: 24.39782065 | AQ198: 12.19891032 | AR198: 14.63869239 | AS198: 51.23542336 | AV198: 183 | AW198: 24.39782065 | AX198: 246.8476658 | AY198: 296.9886499 | BA198: 12.19891032 | BB198: 61.31219712 | BC198: 86.06042086 | BE198: 14.63869239 | BF198: 29.31541726 | BG198: 58.78330425 | BI198: 337.4752802 | BJ198: 441.832375
AC199: 184 | AD199: ='Generic Model_uncorrected'!CC217 -> 97.3382981 | AE199: 6702 | AG199: 13574.96598 | AK199: 24.33457453 | AL199: 24.33457453 | AM199: 48.66914905 | AN199: 97.3382981 | AP199: 24.33457453 | AQ199: 12.16728726 | AR199: 14.60074472 | AS199: 51.1026065 | AV199: 184 | AW199: 24.33457453 | AX199: 246.2088217 | AY199: 296.2203268 | BA199: 12.16728726 | BB199: 61.15337414 | BC199: 85.837572 | BE199: 14.60074472 | BF199: 29.2394371 | BG199: 58.63100425 | BI199: 336.6016329 | BJ199: 440.6889031
AC200: 185 | AD200: ='Generic Model_uncorrected'!CC218 -> 97.08587823 | AE200: 6738 | AG200: 13672.05186 | AK200: 24.27146956 | AL200: 24.27146956 | AM200: 48.54293912 | AN200: 97.08587823 | AP200: 24.27146956 | AQ200: 12.13573478 | AR200: 14.56288174 | AS200: 50.97008607 | AV200: 185 | AW200: 24.27146956 | AX200: 245.5713975 | AY200: 295.4537099 | BA200: 12.13573478 | BB200: 60.99490499 | BC200: 85.61521917 | BE200: 14.56288174 | BF200: 29.16362645 | BG200: 58.47904371 | BI200: 335.7299289 | BJ200: 439.5479728
AC201: 186 | AD201: ='Generic Model_uncorrected'!CC219 -> 96.83402222 | AE201: 6774 | AG201: 13768.88588 | AK201: 24.20850555 | AL201: 24.20850555 | AM201: 48.41701111 | AN201: 96.83402222 | AP201: 24.20850555 | AQ201: 12.10425278 | AR201: 14.52510333 | AS201: 50.83786167 | AV201: 186 | AW201: 24.20850555 | AX201: 244.9353914 | AY201: 294.6887968 | BA201: 12.10425278 | BB201: 60.8367892 | BC201: 85.39336169 | BE201: 14.52510333 | BF201: 29.08798507 | BG201: 58.32742217 | BI201: 334.8601656 | BJ201: 438.4095807
AC202: 187 | AD202: ='Generic Model_uncorrected'!CC220 -> 96.5827293 | AE202: 6810 | AG202: 13865.46861 | AK202: 24.14568232 | AL202: 24.14568232 | AM202: 48.29136465 | AN202: 96.5827293 | AP202: 24.14568232 | AQ202: 12.07284116 | AR202: 14.48740939 | AS202: 50.70593288 | AV202: 187 | AW202: 24.14568232 | AX202: 244.3008014 | AY202: 293.9255854 | BA202: 12.07284116 | BB202: 60.67902631 | BC202: 85.17199893 | BE202: 14.48740939 | BF202: 29.01251273 | BG202: 58.17613918 | BI202: 333.9923405 | BJ202: 437.2737235
AC203: 188 | AD203: ='Generic Model_uncorrected'!CC221 -> 96.33199871 | AE203: 6846 | AG203: 13961.80061 | AK203: 24.08299968 | AL203: 24.08299968 | AM203: 48.16599936 | AN203: 96.33199871 | AP203: 24.08299968 | AQ203: 12.04149984 | AR203: 14.44979981 | AS203: 50.57429932 | AV203: 188 | AW203: 24.08299968 | AX203: 243.6676259 | AY203: 293.1640734 | BA203: 12.04149984 | BB203: 60.52161582 | BC203: 84.9511302 | BE203: 14.44979981 | BF203: 28.9372092 | BG203: 58.02519427 | BI203: 333.1264509 | BJ203: 436.1403978
AC204: 189 | AD204: ='Generic Model_uncorrected'!CC222 -> 96.0818297 | AE204: 6882 | AG204: 14057.88244 | AK204: 24.02045743 | AL204: 24.02045743 | AM204: 48.04091485 | AN204: 96.0818297 | AP204: 24.02045743 | AQ204: 12.01022871 | AR204: 14.41227446 | AS204: 50.44296059 | AV204: 189 | AW204: 24.02045743 | AX204: 243.0358628 | AY204: 292.4042586 | BA204: 12.01022871 | BB204: 60.36455727 | BC204: 84.73075486 | BE204: 14.41227446 | BF204: 28.86207426 | BG204: 57.87458699 | BI204: 332.2624943 | BJ204: 435.0096004
AC205: 190 | AD205: ='Generic Model_uncorrected'!CC223 -> 95.83222151 | AE205: 6918 | AG205: 14153.71466 | AK205: 23.95805538 | AL205: 23.95805538 | AM205: 47.91611075 | AN205: 95.83222151 | AP205: 23.95805538 | AQ205: 11.97902769 | AR205: 14.37483323 | AS205: 50.31191629 | AV205: 190 | AW205: 23.95805538 | AX205: 242.4055103 | AY205: 291.6461387 | BA205: 11.97902769 | BB205: 60.20785018 | BC205: 84.51087222 | BE205: 14.37483323 | BF205: 28.78710768 | BG205: 57.72431688 | BI205: 331.4004682 | BJ205: 433.8813278
AC206: 191 | AD206: ='Generic Model_uncorrected'!CC224 -> 95.58317337 | AE206: 6954 | AG206: 14249.29783 | AK206: 23.89579334 | AL206: 23.89579334 | AM206: 47.79158668 | AN206: 95.58317337 | AP206: 23.89579334 | AQ206: 11.94789667 | AR206: 14.337476 | AS206: 50.18116602 | AV206: 191 | AW206: 23.89579334 | AX206: 241.7765666 | AY206: 290.8897115 | BA206: 11.94789667 | BB206: 60.05149407 | BC206: 84.29148163 | BE206: 14.337476 | BF206: 28.71230923 | BG206: 57.57438349 | BI206: 330.5403699 | BJ206: 432.7555767
AC207: 192 | AD207: ='Generic Model_uncorrected'!CC225 -> 95.33468452 | AE207: 6990 | AG207: 14344.63252 | AK207: 23.83367113 | AL207: 23.83367113 | AM207: 47.66734226 | AN207: 95.33468452 | AP207: 23.83367113 | AQ207: 11.91683556 | AR207: 14.30020268 | AS207: 50.05070937 | AV207: 192 | AW207: 23.83367113 | AX207: 241.1490296 | AY207: 290.1349748 | BA207: 11.91683556 | BB207: 59.89548848 | BC207: 84.07258242 | BE207: 14.30020268 | BF207: 28.63767868 | BG207: 57.42478636 | BI207: 329.6821967 | BJ207: 431.6323436
... 108 more rows

Sheet Generic_results
E1: RESULTS: GENERIC UNCORRECTED & CORRECTED
D29: Cumlative total cases | M29: Cumlative hospital admits | X29: Cumlative bed days-in-use
D30: Uncorrected | F30: Corrected | M30: Uncorrected | O30: Corrected | X30: Uncorrected | Z30: Corrected
C31: Cases | D31: =SUM('Generic Model_uncorrected'!$CC$33:$CC$333) -> 19956.60463 | F31: =SUM('Generic Model_corrected'!$CC$33:$CC$333) -> 51961.62008 | L31: Admits | M31: =SUM('Generic Model_uncorrected'!$CQ$33:$CQ$333) -> 10380.32777 | O31: =SUM('Generic Model_corrected'!$CQ$33:$CQ$333) -> 27020.59951 | W31: Admits | X31: =SUM('Generic Model_uncorrected'!$DH$33:$DH$333) -> 87735.31715 | Z31: =SUM('Generic Model_corrected'!$DH$33:$DH$333) -> 228319.5491
A37: *Uncorrected scenario was created by altering the model input values to obtained a good fit (by visual inspection) to the existing data from a specific country. Corrected scenario estimates were calculated by multiplying the uncorrected estimates by | AJ37: =Generic_corrected!N9 -> 2.5

Sheet Generic Model_uncorrected
H1: CALCULATIONS SHEET: Do Not Change | T1: Imported cases (arrive newly infected - start incubating)
B2: 0-30 | C2: Category | D2: % Select | E2: R | F2: DAILY | T2: Day Arrive | V2: # arrive | DK2: 1 | DL2: 8 | DM2: 8 | DN2: 2014-03-26 | DO2: =CC33 -> 0
C3: Hosp | D3: =Generic_uncorrected!D9 -> 0 | E3: Rhos | F3: =Generic_uncorrected!$F$9 -> 0.02 | T3: 10 | V3: =Generic_uncorrected!R10 -> 15 | DK3: =DK2+(DN3-DN2) -> 2 | DL3: 8 | DM3: =IF(OR(DL3-DM2=0,DL3="",DM2="",""),DL3-DM2) ->  | DN3: 2014-03-27 | DO3: =CC34 -> 0
C4: Home Iso | D4: =Generic_uncorrected!D10 -> 0.05 | E4: Rhq | F4: =Generic_uncorrected!$F$10 -> 0.03 | T4: 20 | V4: =Generic_uncorrected!R11 -> 10 | DK4: 3 | DL4: 8 | DM4: =IF(OR(DL4-DM3=0,DL4="",DM3="",""),DL4-DM3) ->  | DN4: 2014-03-28 | DO4: 0
C5: No Home Iso | D5: =Generic_uncorrected!D11 -> 0.95 | E5: Rnhq | F5: =Generic_uncorrected!$F$11 -> 0.3 | T5: 30 | V5: =Generic_uncorrected!R12 -> 0 | DK5: 4 | DL5: 8 | DM5: =IF(DL5-DM4>0, DL5-DM5, "") ->  | DN5: 2014-03-29 | DO5: 0.49
D6: =SUM(D3:D5) -> 1 | T6: 40 | V6: =Generic_uncorrected!R13 -> 0 | DK6: 5 | DL6: 8 | DN6: 2014-03-30 | DO6: 2.15
K7: Proportion of each category entering hospital | T7: 50 | V7: =Generic_uncorrected!R14 -> 0 | DK7: 6 | DL7: 8 | DN7: 2014-03-31 | DO7: 3.825
B8: 31-60 | C8: Hosp | D8: =Generic_uncorrected!D14 -> 0.1 | E8: Rhos | F8: =F3 -> 0.02 | G8: 0.03 | K8: Hosp | M8: =Generic_beds!D8 -> 1 | T8: 60 | V8: =Generic_uncorrected!R15 -> 0 | DK8: 7 | DL8: 10 | DN8: 2014-04-01 | DO8: 4.017751539
C9: Home Iso | D9: =Generic_uncorrected!D15 -> 0.1 | E9: Rhq | F9: =F4 -> 0.03 | G9: 0.04 | K9: Home Iso | M9: =Generic_beds!D9 -> 0.5 | T9: 70 | V9: =Generic_uncorrected!R16 -> 0 | DK9: 8 | DL9: 14 | DN9: 2014-04-02 | DO9: 3.536897699
C10: No Home Iso | D10: =Generic_uncorrected!D16 -> 0.8 | E10: Rnhq | F10: =F5 -> 0.3 | G10: 0.22 | K10: No Home Iso | M10: =Generic_beds!D10 -> 0.3 | T10: 80 | V10: =Generic_uncorrected!R17 -> 0 | DK10: 9 | DL10: 14 | DN10: 2014-04-03 | DO10: 3.172829116
D11: =SUM(D8:D10) -> 1 | T11: 90 | V11: =Generic_uncorrected!R18 -> 0 | DK11: 10 | DL11: 18 | DN11: 2014-04-04 | DO11: 2.501423979
K12: DAYS Infectious | M12: =Population!K11 -> 6 | T12: 100 | V12: =Generic_uncorrected!R19 -> 0 | AH12: Scenario | DK12: 11 | DL12: 18 | DN12: 2014-04-05 | DO12: 2.376579988
B13: 61-90 | C13: Hosp | D13: =Generic_uncorrected!D19 -> 0.2 | E13: Rhos | F13: =F8 -> 0.02 | G13: 0.03 | T13: 110 | V13: =Generic_uncorrected!R20 -> 0 | DK13: 12 | DL13: 18 | DN13: 2014-04-06 | DO13: 2.632262288
C14: Home Iso | D14: =Generic_uncorrected!D20 -> 0.1 | E14: Rhq | F14: =F9 -> 0.03 | G14: 0.035 | K14: Population | M14: =Population!K5 -> 10000000 | T14: 120 | V14: =Generic_uncorrected!R21 -> 0 | DK14: 13 | DL14: 21 | DN14: 2014-04-07 | DO14: 3.126686249
C15: No Home Iso | D15: =Generic_uncorrected!D21 -> 0.7 | E15: Rnhq | F15: =F10 -> 0.3 | G15: 0.22 | K15: Initial Incubating | M15: =Population!K8 -> 25 | T15: 130 | V15: =Generic_uncorrected!R22 -> 0 | DK15: 14 | DL15: 21 | DN15: 2014-04-08 | DO15: 4.607561824
D16: =SUM(D13:D15) -> 1 | T16: 140 | V16: =Generic_uncorrected!R23 -> 0 | DK16: 15 | DL16: 22 | DN16: 2014-04-09 | DO16: 6.029478076
T17: 150 | V17: =Generic_uncorrected!R24 -> 0 | DK17: 16 | DL17: 25 | DN17: 2014-04-10 | DO17: 6.624366447
B18: 91-120 | C18: Hosp | D18: =Generic_uncorrected!D24 -> 0.25 | E18: Rhos | F18: =F13 -> 0.02 | G18: 0.03 | T18: 160 | V18: =Generic_uncorrected!R25 -> 0 | DK18: 17 | DL18: 25 | DN18: 2014-04-11 | DO18: 6.5432486
C19: Home Iso | D19: =Generic_uncorrected!D25 -> 0.25 | E19: Rhq | F19: =F14 -> 0.03 | G19: 0.035 | T19: 170 | V19: =Generic_uncorrected!R26 -> 0 | DK19: 18 | DL19: 25 | DN19: 2014-04-12 | DO19: 6.512997428
C20: No Home Iso | D20: =Generic_uncorrected!D26 -> 0.5 | E20: Rnhq | F20: =F15 -> 0.3 | G20: 0.22 | T20: 180 | V20: =Generic_uncorrected!R27 -> 0 | DK20: 19 | DL20: 25 | DN20: 2014-04-13 | DO20: 6.207396943
D21: =SUM(D18:D20) -> 1 | T21: 190 | V21: =Generic_uncorrected!R28 -> 0 | DK21: 20 | DL21: 25 | DN21: 2014-04-14 | DO21: 6.304669653
T22: 200 | V22: =Generic_uncorrected!R29 -> 0 | DK22: 21 | DL22: 25 | DN22: 2014-04-15 | DO22: 6.652548169
B23: 121-150 | C23: Hosp | D23: =Generic_uncorrected!D29 -> 0.25 | E23: Rhos | F23: =F18 -> 0.02 | G23: 0.03 | T23: 210 | V23: =Generic_uncorrected!R30 -> 0 | DK23: 22 | DL23: 27 | DN23: 2014-04-16 | DO23: 7.01609453
C24: Home Iso | D24: =Generic_uncorrected!D30 -> 0.25 | E24: Rhq | F24: =F19 -> 0.03 | G24: 0.035 | T24: 220 | V24: =Generic_uncorrected!R31 -> 0 | AB24: Total admits: | AF24: =CR33 -> 0 | DK24: 23 | DL24: 27 | DN24: 2014-04-17 | DO24: 7.846656465
C25: No Home Iso | D25: =Generic_uncorrected!D31 -> 0.5 | E25: Rnhq | F25: =F20 -> 0.3 | G25: 0.22 | T25: 230 | V25: =Generic_uncorrected!R32 -> 0 | DK25: 24 | DL25: 27 | DN25: 2014-04-18 | DO25: 9.138925821
D26: =SUM(D23:D25) -> 1 | T26: 240 | V26: =Generic_uncorrected!R33 -> 0 | DK26: 25 | DL26: 33 | DN26: 2014-04-19 | DO26: 10.49054085
T27: 250 | V27: =Generic_uncorrected!R34 -> 0 | DK27: 26 | DL27: 33 | DN27: 2014-04-20 | DO27: 11.08248865
B28: 151-190 | C28: Hosp | D28: =Generic_uncorrected!D34 -> 0.25 | E28: Rhos | F28: =F23 -> 0.02 | G28: 0.03 | T28: 260 | V28: =Generic_uncorrected!R35 -> 0 | CJ28: People Categorie | CN28: BEDS Per day | CU28: HOSPITAL Beds calcualtions | DK28: 27 | DL28: 33 | DN28: 2014-04-21 | DO28: 11.39771471
C29: Home Iso | D29: =Generic_uncorrected!D35 -> 0.25 | E29: Rhq | F29: =F24 -> 0.03 | G29: 0.035 | T29: 270 | V29: =Generic_uncorrected!R36 -> 0 | DK29: 28 | DL29: 34 | DN29: 2014-04-22 | DO29: 11.69811886
C30: No Home Iso | D30: =Generic_uncorrected!D36 -> 0.5 | E30: Rnhq | F30: =F25 -> 0.3 | G30: 0.22 | T30: 280 | V30: =Generic_uncorrected!R37 -> 0 | CU30: Daily beds-in-use | DK30: 29 | DL30: 34 | DN30: 2014-04-23 | DO30: 11.94019844
D31: =SUM(D28:D30) -> 1 | T31: 290 | V31: =Generic_uncorrected!R38 -> 0 | CL31: sum | CN31: Hopsitals | CO31: Home Iso | CP31: Non Iso | CQ31: DAILY | CR31: Cumlative | CU31: Hopsital | CV31: Days stay | CY31: Home Iso | CZ31: Days stay | DC31: No Home Iso | DD31: Days stay | DG31: SUM | DK31: 30 | DL31: 35 | DN31: 2014-04-24 | DO31: 12.43502441
T32: 300 | V32: =Generic_uncorrected!R39 -> 0 | CB32: Day | CC32: New cases/day | CE32: Cum | CF32: Cum | CI32: Hospital | CJ32: Home Iso | CK32: Non Iso | CL32: Check | CN32: =M8 -> 1 | CO32: =M9 -> 0.5 | CP32: =M10 -> 0.3 | CQ32: ADMITS | CR32: total | CT32: Day | CU32: Per day | CV32: 10 | CW32: 12 | CY32: Cum | CZ32: 5 | DA32: 7 | DC32: Cum | DD32: 2 | DE32: 4 | DG32: 10+5+2 | DH32: 12+7+4 | DK32: 31 | DL32: 35 | DN32: 2014-04-25 | DO32: 13.14209183
B33: 191-210 | C33: Hosp | D33: =Generic_uncorrected!D39 -> 0.25 | E33: Rhos | F33: =F28 -> 0.02 | G33: 0.03 | BZ33: =CA33 -> 2014-02-03 | CA33: =Generic_uncorrected!J57 -> 2014-02-03 | CB33: 0 | CC33: 0 | CD33: =CD34-36 -> 78 | CE33: =CC33 -> 0 | CF33: 0 | CL33: 0 | CM33: Factor | CN33: 0 | CO33: 0 | CP33: 0 | CQ33: 0 | CR33: 0 | CT33: 0 | CU33: =CN33 -> 0 | CV33: 0 | CW33: 0 | CY33: =CO33 -> 0 | CZ33: 0 | DA33: 0 | DC33: 0 | DD33: 0 | DE33: 0 | DG33: =CV33+CZ33+DD33 -> 0 | DH33: =CW33+DA33+DE33 -> 0 | DK33: 32 | DL33: 35 | DN33: 2014-04-26 | DO33: 13.92305074
C34: Home Iso | D34: =Generic_uncorrected!D40 -> 0.25 | E34: Rhq | F34: =F29 -> 0.03 | G34: 0.035 | BZ34: =CA34 -> 2014-02-04 | CA34: =Generic_uncorrected!J58 -> 2014-02-04 | CB34: 1 | CC34: =INDIRECT("AY"&(114+(CB33*36))) -> 0 | CD34: 114 | CE34: =CE33+CC34 -> 0 | CF34: =CC34 -> 0 | CG34: =$C$3 -> Hosp | CH34: =D3 -> 0 | CI34: =CC34*$CH$34 -> 0 | CJ34: =CC34*$CH$35 -> 0 | CK34: =$CH$36*CC34 -> 0 | CL34: =SUM(CI34:CK34) -> 0 | CN34: =CI34*CN$32 -> 0 | CO34: 0 | CP34: 0 | CQ34: =SUM(CN34:CP34) -> 0 | CR34: =CQ34 -> 0 | CT34: 1 | CU34: =CN34 -> 0 | CV34: =SUM(CU25:CU34) -> 0 | CW34: =SUM(CU23:CU34) -> 0 | CY34: =CO34 -> 0 | CZ34: =+SUM(CY30:CY34) -> 0 | DA34: =SUM(CY28:CY34) -> 0 | DC34: =CP34 -> 0 | DD34: =SUM(DC33:DC34) -> 0 | DE34: =SUM(DC31:DC34) -> 0 | DG34: =CV34+CZ34+DD34 -> 0 | DH34: 0 | DK34: 33 | DL34: 35 | DN34: 2014-04-27 | DO34: 14.87545588
C35: No Home Iso | D35: =Generic_uncorrected!D41 -> 0.5 | E35: Rnhq | F35: =F30 -> 0.3 | G35: 0.22 | BZ35: 2014-02-05 | CA35: =Generic_uncorrected!J59 -> 2014-02-05 | CB35: =1+CB34 -> 2 | CC35: =INDIRECT("AY"&(114+(CB34*36))) -> 0 | CD35: =CD34+36 -> 150 | CE35: =CE34+CC35 -> 0 | CF35: =CC35+CF34 -> 0 | CG35: =$C$4 -> Home Iso | CH35: =D4 -> 0.05 | CI35: =CC35*$CH$34 -> 0 | CJ35: =CC35*$CH$35 -> 0 | CK35: =$CH$36*CC35 -> 0 | CL35: =SUM(CI35:CK35) -> 0 | CN35: 0 | CO35: 0 | CP35: 0 | CQ35: =SUM(CN35:CP35) -> 0 | CR35: =CQ35+CR34 -> 0 | CT35: =1+CT34 -> 2 | CU35: =CN35 -> 0 | CV35: 0 | CW35: 0 | CY35: =CO35 -> 0 | CZ35: =+SUM(CY31:CY35) -> 0 | DA35: 0 | DC35: =CP35 -> 0 | DD35: 0 | DE35: =SUM(DC32:DC35) -> 0 | DG35: 0 | DH35: 0 | DK35: =DK34+(DN35-DN34) -> 34 | DL35: 35 | DN35: 2014-04-28 | DO35: 15.84518037
D36: =SUM(D33:D35) -> 1 | BZ36: 2014-02-06 | CA36: =Generic_uncorrected!J60 -> 2014-02-06 | CB36: =1+CB35 -> 3 | CC36: =INDIRECT("AY"&(114+(CB35*36))) -> 0.49 | CD36: =CD35+36 -> 186 | CE36: 0.49 | CF36: =CC36+CF35 -> 0.49 | CG36: =$C$5 -> No Home Iso | CH36: =D5 -> 0.95 | CI36: 0 | CJ36: 0.0245 | CK36: 0.4655 | CL36: 0.49 | CN36: 0 | CO36: 0.01225 | CP36: 0.13965 | CQ36: =SUM(CN36:CP36) -> 0.1519 | CR36: =CQ36+CR35 -> 0.1519 | CT36: =1+CT35 -> 3 | CU36: 0 | CV36: 0 | CW36: 0 | CY36: 0.01225 | CZ36: =+SUM(CY32:CY36) -> 0.01225 | DA36: 0.01225 | DC36: 0.13965 | DD36: 0.13965 | DE36: =SUM(DC33:DC36) -> 0.13965 | DG36: 0.1519 | DH36: 0.1519 | DK36: 35 | DL36: 35 | DN36: 2014-04-29 | DO36: 16.85840815
BZ37: 2014-02-07 | CA37: =Generic_uncorrected!J61 -> 2014-02-07 | CB37: 4 | CC37: 2.15 | CD37: 222 | CE37: 2.64 | CF37: 2.64 | CI37: 0 | CJ37: 0.1075 | CK37: 2.0425 | CL37: 2.15 | CN37: 0 | CO37: 0.05375 | CP37: 0.61275 | CQ37: 0.6665 | CR37: 0.8184 | CT37: 4 | CU37: 0 | CV37: =SUM(CU28:CU37) -> 0 | CW37: 0 | CY37: 0.05375 | CZ37: =+SUM(CY33:CY37) -> 0.066 | DA37: 0.066 | DC37: 0.61275 | DD37: 0.7524 | DE37: =SUM(DC34:DC37) -> 0.7524 | DG37: 0.8184 | DH37: 0.8184 | DK37: 36 | DL37: 35 | DM37: =IF(DL37-DM36>0, DL37-DM37, "") ->  | DN37: 2014-04-30 | DO37: 17.7458277
B38: 211-240 | C38: Hosp | D38: =Generic_uncorrected!D44 -> 0.3 | E38: Rhos | F38: =F33 -> 0.02 | G38: 0.03 | BZ38: 2014-02-08 | CA38: =Generic_uncorrected!J62 -> 2014-02-08 | CB38: 5 | CC38: 3.825 | CD38: 258 | CE38: 6.465 | CF38: 6.465 | CI38: 0 | CJ38: 0.19125 | CK38: 3.63375 | CL38: 3.825 | CN38: 0 | CO38: 0.095625 | CP38: 1.090125 | CQ38: 1.18575 | CR38: 2.00415 | CT38: 5 | CU38: 0 | CV38: 0 | CW38: 0 | CY38: 0.095625 | CZ38: =+SUM(CY34:CY38) -> 0.161625 | DA38: 0.161625 | DC38: 1.090125 | DD38: 1.702875 | DE38: =SUM(DC35:DC38) -> 1.842525 | DG38: 1.8645 | DH38: 2.00415 | DK38: 37 | DL38: 35 | DN38: 2014-05-01 | DO38: 18.55949733
C39: Home Iso | D39: =Generic_uncorrected!D45 -> 0.3 | E39: Rhq | F39: =F34 -> 0.03 | G39: 0.035 | BZ39: 2014-02-09 | CA39: =Generic_uncorrected!J63 -> 2014-02-09 | CB39: 6 | CC39: 4.017751539 | CD39: 294 | CE39: 10.48275154 | CF39: 10.48275154 | CI39: 0 | CJ39: 0.200887577 | CK39: 3.816863962 | CL39: 4.017751539 | CN39: 0 | CO39: 0.1004437885 | CP39: 1.145059189 | CQ39: 1.245502977 | CR39: 3.249652977 | CT39: 6 | CU39: 0 | CV39: 0 | CW39: =SUM(CU28:CU39) -> 0 | CY39: 0.1004437885 | CZ39: =+SUM(CY35:CY39) -> 0.2620687885 | DA39: 0.2620687885 | DC39: 1.145059189 | DD39: 2.235184189 | DE39: 2.987584189 | DG39: 2.497252977 | DH39: 3.249652977 | DK39: 38 | DL39: 13 | DN39: 2014-05-02 | DO39: 19.27880414
C40: No Home Iso | D40: =Generic_uncorrected!D46 -> 0.4 | E40: Rnhq | F40: =F35 -> 0.3 | G40: 0.22 | BZ40: 2014-02-10 | CA40: =Generic_uncorrected!J64 -> 2014-02-10 | CB40: 7 | CC40: 3.536897699 | CD40: 330 | CE40: 14.01964924 | CF40: 14.01964924 | CI40: 0 | CJ40: 0.1768448849 | CK40: 3.360052814 | CL40: 3.536897699 | CN40: 0 | CO40: 0.08842244246 | CP40: 1.008015844 | CQ40: 1.096438287 | CR40: 4.346091264 | CT40: 7 | CU40: 0 | CV40: 0 | CW40: 0 | CY40: 0.08842244246 | CZ40: 0.3504912309 | DA40: =SUM(CY34:CY40) -> 0.3504912309 | DC40: 1.008015844 | DD40: 2.153075033 | DE40: 3.855950033 | DG40: 2.503566264 | DH40: 4.206441264 | DK40: 39 | DL40: 13 | DN40: 2014-05-03 | DO40: 19.97882058
D41: =SUM(D38:D40) -> 1 | BZ41: 2014-02-11 | CA41: =Generic_uncorrected!J65 -> 2014-02-11 | CB41: 8 | CC41: 3.172829116 | CD41: 366 | CE41: 17.19247835 | CF41: 17.19247835 | CI41: 0 | CJ41: 0.1586414558 | CK41: 3.01418766 | CL41: 3.172829116 | CN41: 0 | CO41: 0.0793207279 | CP41: 0.9042562981 | CQ41: 0.983577026 | CR41: 5.32966829 | CT41: 8 | CU41: 0 | CV41: 0 | CW41: 0 | CY41: 0.0793207279 | CZ41: 0.4175619588 | DA41: =SUM(CY35:CY41) -> 0.4298119588 | DC41: 0.9042562981 | DD41: 1.912272142 | DE41: 4.147456331 | DG41: 2.329834101 | DH41: 4.57726829 | DK41: 40 | DL41: 13 | DN41: 2014-05-04 | DO41: 20.65133088
BZ42: 2014-02-12 | CA42: =Generic_uncorrected!J66 -> 2014-02-12 | CB42: 9 | CC42: 2.501423979 | CD42: 402 | CE42: 19.69390233 | CF42: 19.69390233 | CI42: 0 | CJ42: 0.125071199 | CK42: 2.37635278 | CL42: 2.501423979 | CN42: 0 | CO42: 0.06253559948 | CP42: 0.712905834 | CQ42: 0.7754414335 | CR42: 6.105109723 | CT42: 9 | CU42: 0 | CV42: 0 | CW42: 0 | CY42: 0.06253559948 | CZ42: 0.4263475583 | DA42: 0.4923475583 | DC42: 0.712905834 | DD42: 1.617162132 | DE42: 3.770237165 | DG42: 2.04350969 | DH42: 4.262584723 | DK42: 41 | DL42: 13 | DN42: 2014-05-05 | DO42: 21.33601848
B43: 241-270 | C43: Hosp | D43: =Generic_uncorrected!D49 -> 0.3 | E43: Rhos | F43: =F38 -> 0.02 | G43: 0.03 | I43: Total cases: | L43: =SUM($CC$33:$CC$333) -> 19956.60463 | BZ43: 2014-02-13 | CA43: =Generic_uncorrected!J67 -> 2014-02-13 | CB43: 10 | CC43: 2.376579988 | CD43: 438 | CE43: 22.07048232 | CF43: 22.07048232 | CI43: 0 | CJ43: 0.1188289994 | CK43: 2.257750989 | CL43: 2.376579988 | CN43: 0 | CO43: 0.0594144997 | CP43: 0.6773252966 | CQ43: 0.7367397963 | CR43: 6.84184952 | CT43: 10 | CU43: 0 | CV43: =SUM(CU34:CU43) -> 0 | CW43: 0 | CY43: 0.0594144997 | CZ43: 0.390137058 | DA43: 0.539512058 | DC43: 0.6773252966 | DD43: 1.390231131 | DE43: 3.302503273 | DG43: 1.780368189 | DH43: 3.842015331 | DK43: 42 | DL43: 13 | DN43: 2014-05-06 | DO43: 22.09681286
C44: Home Iso | D44: =Generic_uncorrected!D50 -> 0.3 | E44: Rhq | F44: =F39 -> 0.03 | G44: 0.035 | BZ44: 2014-02-14 | CA44: =Generic_uncorrected!J68 -> 2014-02-14 | CB44: 11 | CC44: 2.632262288 | CD44: 474 | CE44: 24.70274461 | CF44: 24.70274461 | CI44: 0 | CJ44: 0.1316131144 | CK44: 2.500649173 | CL44: 2.632262288 | CN44: 0 | CO44: 0.0658065572 | CP44: 0.750194752 | CQ44: 0.8160013092 | CR44: 7.657850829 | CT44: 11 | CU44: 0 | CV44: =SUM(CU35:CU44) -> 0 | CW44: 0 | CY44: 0.0658065572 | CZ44: 0.3554998267 | DA44: 0.5515686152 | DC44: 0.750194752 | DD44: 1.427520049 | DE44: 3.044682181 | DG44: 1.783019875 | DH44: 3.596250796 | DK44: 43 | DL44: 13 | DN44: 2014-05-07 | DO44: 22.94278184
C45: No Home Iso | D45: =Generic_uncorrected!D51 -> 0.4 | E45: Rnhq | F45: =F40 -> 0.3 | G45: 0.22 | I45: Total attack proportion: | L45: =L43/M14 -> 0.001995660463 | BZ45: 2014-02-15 | CA45: =Generic_uncorrected!J69 -> 2014-02-15 | CB45: 12 | CC45: 3.126686249 | CD45: 510 | CE45: 27.82943086 | CF45: 27.82943086 | CI45: 0 | CJ45: 0.1563343124 | CK45: 2.970351937 | CL45: 3.126686249 | CN45: 0 | CO45: 0.07816715622 | CP45: 0.891105581 | CQ45: 0.9692727372 | CR45: 8.627123566 | CT45: 12 | CU45: 0 | CV45: 0 | CW45: =SUM(CU34:CU45) -> 0 | CY45: 0.07816715622 | CZ45: 0.3452445405 | DA45: 0.5341107714 | DC45: 0.891105581 | DD45: 1.641300333 | DE45: 3.031531464 | DG45: 1.986544874 | DH45: 3.565642235 | DK45: 44 | DL45: 13 | DN45: 2014-05-08 | DO45: 23.87047829
D46: =SUM(D43:D45) -> 1 | BZ46: 2014-02-16 | CA46: =Generic_uncorrected!J70 -> 2014-02-16 | CB46: 13 | CC46: 4.607561824 | CD46: 546 | CE46: 32.43699268 | CF46: 32.43699268 | CI46: 0 | CJ46: 0.2303780912 | CK46: 4.377183732 | CL46: 4.607561824 | CN46: 0 | CO46: 0.1151890456 | CP46: 1.31315512 | CQ46: 1.428344165 | CR46: 10.05546773 | CT46: 13 | CU46: 0 | CV46: 0 | CW46: =SUM(CU35:CU46) -> 0 | CY46: 0.1151890456 | CZ46: 0.3811128582 | DA46: 0.5488560286 | DC46: 1.31315512 | DD46: 2.204260701 | DE46: 3.631780749 | DG46: 2.585373559 | DH46: 4.180636778 | DK46: 45 | DL46: 12 | DN46: 2014-05-09 | DO46: 24.85464863
K47: Cases | BZ47: 2014-02-17 | CA47: =Generic_uncorrected!J71 -> 2014-02-17 | CB47: 14 | CC47: 6.029478076 | CD47: 582 | CE47: 38.46647076 | CF47: 38.46647076 | CI47: 0 | CJ47: 0.3014739038 | CK47: 5.728004172 | CL47: 6.029478076 | CN47: 0 | CO47: 0.1507369519 | CP47: 1.718401252 | CQ47: 1.869138204 | CR47: 11.92460593 | CT47: 14 | CU47: 0 | CV47: 0 | CW47: 0 | CY47: 0.1507369519 | CZ47: 0.4693142106 | DA47: 0.611170538 | DC47: 1.718401252 | DD47: 3.031556371 | DE47: 4.672856704 | DG47: 3.500870582 | DH47: 5.284027242 | DK47: 46 | DL47: 13 | DN47: 2014-05-10 | DO47: 25.88386769
B48: 271-300 | C48: Hosp | D48: =Generic_uncorrected!D54 -> 0.35 | E48: Rhos | F48: =F43 -> 0.02 | G48: 0.03 | K48: Model estimates | L48: Correct reported | BZ48: 2014-02-18 | CA48: =Generic_uncorrected!J72 -> 2014-02-18 | CB48: 15 | CC48: 6.624366447 | CD48: 618 | CE48: 45.09083721 | CF48: 45.09083721 | CI48: 0 | CJ48: 0.3312183224 | CK48: 6.293148125 | CL48: 6.624366447 | CN48: 0 | CO48: 0.1656091612 | CP48: 1.887944438 | CQ48: 2.053553599 | CR48: 13.97815953 | CT48: 15 | CU48: 0 | CV48: 0 | CW48: 0 | CY48: 0.1656091612 | CZ48: 0.5755088721 | DA48: 0.6974589713 | DC48: 1.887944438 | DD48: 3.606345689 | DE48: 5.81060639 | DG48: 4.181854561 | DH48: 6.508065361 | DK48: 47 | DL48: 13 | DN48: 2014-05-11 | DO48: 26.93025786
C49: Home Iso | D49: =Generic_uncorrected!D55 -> 0.35 | E49: Rhq | F49: =F44 -> 0.03 | G49: 0.035 | I49: Total cases: | K49: =Generic_uncorrected!L192 -> 8497.309917 | L49: =Generic_uncorrected!I192 -> 8566 | BZ49: 2014-02-19 | CA49: =Generic_uncorrected!J73 -> 2014-02-19 | CB49: 16 | CC49: 6.5432486 | CD49: 654 | CE49: 51.63408581 | CF49: 51.63408581 | CI49: 0 | CJ49: 0.32716243 | CK49: 6.21608617 | CL49: 6.5432486 | CN49: 0 | CO49: 0.163581215 | CP49: 1.864825851 | CQ49: 2.028407066 | CR49: 16.0065666 | CT49: 16 | CU49: 0 | CV49: 0 | CW49: 0 | CY49: 0.163581215 | CZ49: 0.6732835299 | DA49: 0.7985045868 | DC49: 1.864825851 | DD49: 3.752770289 | DE49: 6.78432666 | DG49: 4.426053818 | DH49: 7.582831247 | DK49: 48 | DL49: 12 | DN49: 2014-05-12 | DO49: 27.99789937
C50: No Home Iso | D50: =Generic_uncorrected!D56 -> 0.3 | E50: Rnhq | F50: =F45 -> 0.3 | G50: 0.22 | BZ50: 2014-02-20 | CA50: =Generic_uncorrected!J74 -> 2014-02-20 | CB50: 17 | CC50: 6.512997428 | CD50: 690 | CE50: 58.14708323 | CF50: 58.14708323 | CI50: 0 | CJ50: 0.3256498714 | CK50: 6.187347556 | CL50: 6.512997428 | CN50: 0 | CO50: 0.1628249357 | CP50: 1.856204267 | CQ50: 2.019029203 | CR50: 18.0255958 | CT50: 17 | CU50: 0 | CV50: 0 | CW50: 0 | CY50: 0.1628249357 | CZ50: 0.7579413094 | DA50: 0.9019150228 | DC50: 1.856204267 | DD50: 3.721030118 | DE50: 7.327375807 | DG50: 4.478971427 | DH50: 8.22929083 | DK50: 49 | DL50: 12 | DN50: 2014-05-13 | DO50: 29.08949287
D51: =SUM(D48:D50) -> 1 | BZ51: 2014-02-21 | CA51: =Generic_uncorrected!J75 -> 2014-02-21 | CB51: 18 | CC51: 6.207396943 | CD51: 726 | CE51: 64.35448018 | CF51: 64.35448018 | CI51: 0 | CJ51: 0.3103698472 | CK51: 5.897027096 | CL51: 6.207396943 | CN51: 0 | CO51: 0.1551849236 | CP51: 1.769108129 | CQ51: 1.924293052 | CR51: 19.94988885 | CT51: 18 | CU51: 0 | CV51: 0 | CW51: 0 | CY51: 0.1551849236 | CZ51: 0.7979371874 | DA51: 0.9912933892 | DC51: 1.769108129 | DD51: 3.625312396 | DE51: 7.378082684 | DG51: 4.423249583 | DH51: 8.369376073 | DK51: 50 | DL51: 12 | DN51: 2014-05-14 | DO51: 30.21209095
BZ52: 2014-02-22 | CA52: =Generic_uncorrected!J76 -> 2014-02-22 | CB52: 19 | CC52: 6.304669653 | CD52: 762 | CE52: 70.65914983 | CF52: 70.65914983 | CI52: 0 | CJ52: 0.3152334827 | CK52: 5.989436171 | CL52: 6.304669653 | CN52: 0 | CO52: 0.1576167413 | CP52: 1.796830851 | CQ52: 1.954447593 | CR52: 21.90433645 | CT52: 19 | CU52: 0 | CV52: 0 | CW52: 0 | CY52: 0.1576167413 | CZ52: 0.8048169768 | DA52: 1.070742974 | DC52: 1.796830851 | DD52: 3.56593898 | DE52: 7.286969098 | DG52: 4.370755957 | DH52: 8.357712072 | DK52: 51 | DL52: 12 | DN52: 2014-05-15 | DO52: 31.37632372
BZ53: 2014-02-23 | CA53: =Generic_uncorrected!J77 -> 2014-02-23 | CB53: 20 | CC53: 6.652548169 | CD53: 798 | CE53: 77.311698 | CF53: 77.311698 | CI53: 0 | CJ53: 0.3326274084 | CK53: 6.31992076 | CL53: 6.652548169 | CN53: 0 | CO53: 0.1663137042 | CP53: 1.895976228 | CQ53: 2.062289932 | CR53: 23.96662638 | CT53: 20 | CU53: 0 | CV53: 0 | CW53: 0 | CY53: 0.1663137042 | CZ53: 0.8055215198 | DA53: 1.121867633 | DC53: 1.895976228 | DD53: 3.692807079 | DE53: 7.318119475 | DG53: 4.498328599 | DH53: 8.439987108 | DK53: 52 | DL53: 12 | DN53: 2014-05-16 | DO53: 32.59013301
BZ54: 2014-02-24 | CA54: =Generic_uncorrected!J78 -> 2014-02-24 | CB54: 21 | CC54: 7.01609453 | CD54: 834 | CE54: 84.32779253 | CF54: 84.32779253 | CI54: 0 | CJ54: 0.3508047265 | CK54: 6.665289804 | CL54: 7.01609453 | CN54: 0 | CO54: 0.1754023633 | CP54: 1.999586941 | CQ54: 2.174989304 | CR54: 26.14161568 | CT54: 21 | CU54: 0 | CV54: 0 | CW54: 0 | CY54: 0.1754023633 | CZ54: 0.8173426681 | DA54: 1.146533044 | DC54: 1.999586941 | DD54: 3.895563169 | DE54: 7.461502149 | DG54: 4.712905837 | DH54: 8.608035193 | DK54: 53 | DL54: 12 | DN54: 2014-05-17 | DO54: 33.86152362
BZ55: 2014-02-25 | CA55: =Generic_uncorrected!J79 -> 2014-02-25 | CB55: 22 | CC55: 7.846656465 | CD55: 870 | CE55: 92.17444899 | CF55: 92.17444899 | CI55: 0 | CJ55: 0.3923328233 | CK55: 7.454323642 | CL55: 7.846656465 | CN55: 0 | CO55: 0.1961664116 | CP55: 2.236297093 | CQ55: 2.432463504 | CR55: 28.57407919 | CT55: 22 | CU55: 0 | CV55: 0 | CW55: 0 | CY55: 0.1961664116 | CZ55: 0.850684144 | DA55: 1.177090295 | DC55: 2.236297093 | DD55: 4.235884034 | DE55: 7.928691113 | DG55: 5.086568178 | DH55: 9.105781408 | DK55: 54 | DL55: 12 | DN55: 2014-05-18 | DO55: 35.190638
BZ56: 2014-02-26 | CA56: =Generic_uncorrected!J80 -> 2014-02-26 | CB56: 23 | CC56: 9.138925821 | CD56: 906 | CE56: 101.3133748 | CF56: 101.3133748 | CI56: 0 | CJ56: 0.4569462911 | CK56: 8.68197953 | CL56: 9.138925821 | CN56: 0 | CO56: 0.2284731455 | CP56: 2.604593859 | CQ56: 2.833067005 | CR56: 31.40714619 | CT56: 23 | CU56: 0 | CV56: 0 | CW56: 0 | CY56: 0.2284731455 | CZ56: 0.923972366 | DA56: 1.241982225 | DC56: 2.604593859 | DD56: 4.840890952 | DE56: 8.736454121 | DG56: 5.764863318 | DH56: 9.978436346 | DK56: 55 | DL56: 12 | DN56: 2014-05-19 | DO56: 36.5772239
BZ57: 2014-02-27 | CA57: =Generic_uncorrected!J81 -> 2014-02-27 | CB57: 24 | CC57: 10.49054085 | CD57: 942 | CE57: 111.8039157 | CF57: 111.8039157 | CI57: 0 | CJ57: 0.5245270424 | CK57: 9.966013806 | CL57: 10.49054085 | CN57: 0 | CO57: 0.2622635212 | CP57: 2.989804142 | CQ57: 3.252067663 | CR57: 34.65921386 | CT57: 24 | CU57: 0 | CV57: 0 | CW57: 0 | CY57: 0.2622635212 | CZ57: 1.028619146 | DA57: 1.341420811 | DC57: 2.989804142 | DD57: 5.594398001 | DE57: 9.830282034 | DG57: 6.623017147 | DH57: 11.17170285 | DK57: 56 | DL57: 12 | DN57: 2014-05-20 | DO57: 38.01900005
BZ58: 2014-02-28 | CA58: =Generic_uncorrected!J82 -> 2014-02-28 | CB58: 25 | CC58: 11.08248865 | CD58: 978 | CE58: 122.8864043 | CF58: 122.8864043 | CI58: 0 | CJ58: 0.5541244324 | CK58: 10.52836422 | CL58: 11.08248865 | CN58: 0 | CO58: 0.2770622162 | CP58: 3.158509265 | CQ58: 3.435571481 | CR58: 38.09478534 | CT58: 25 | CU58: 0 | CV58: 0 | CW58: 0 | CY58: 0.2770622162 | CZ58: 1.139367658 | DA58: 1.463298103 | DC58: 3.158509265 | DD58: 6.148313406 | DE58: 10.98920436 | DG58: 7.287681064 | DH58: 12.45250246 | DK58: 57 | DL58: 12 | DN58: 2014-05-21 | DO58: 39.51608873
BZ59: 2014-03-01 | CA59: =Generic_uncorrected!J83 -> 2014-03-01 | CB59: 26 | CC59: 11.39771471 | CD59: 1014 | CE59: 134.284119 | CF59: 134.284119 | CI59: 0 | CJ59: 0.5698857355 | CK59: 10.82782897 | CL59: 11.39771471 | CN59: 0 | CO59: 0.2849428678 | CP59: 3.248348692 | CQ59: 3.53329156 | CR59: 41.6280769 | CT59: 26 | CU59: 0 | CV59: 0 | CW59: 0 | CY59: 0.2849428678 | CZ59: 1.248908162 | DA59: 1.59062423 | DC59: 3.248348692 | DD59: 6.406857957 | DE59: 12.00125596 | DG59: 7.65576612 | DH59: 13.59188019 | DK59: 58 | DL59: 12 | DN59: 2014-05-22 | DO59: 41.06895539
BZ60: 2014-03-02 | CA60: =Generic_uncorrected!J84 -> 2014-03-02 | CB60: 27 | CC60: 11.69811886 | CD60: 1050 | CE60: 145.9822379 | CF60: 145.9822379 | CI60: 0 | CJ60: 0.5849059431 | CK60: 11.11321292 | CL60: 11.69811886 | CN60: 0 | CO60: 0.2924529715 | CP60: 3.333963876 | CQ60: 3.626416847 | CR60: 45.25449374 | CT60: 27 | CU60: 0 | CV60: 0 | CW60: 0 | CY60: 0.2924529715 | CZ60: 1.345194722 | DA60: 1.716763497 | DC60: 3.333963876 | DD60: 6.582312568 | DE60: 12.73062597 | DG60: 7.92750729 | DH60: 14.44738947 | DK60: 59 | DL60: 12 | DN60: 2014-05-23 | DO60: 42.67922883
BZ61: 2014-03-03 | CA61: =Generic_uncorrected!J85 -> 2014-03-03 | CB61: 28 | CC61: 11.94019844 | CD61: 1086 | CE61: 157.9224363 | CF61: 157.9224363 | CI61: 0 | CJ61: 0.5970099219 | CK61: 11.34318852 | CL61: 11.94019844 | CN61: 0 | CO61: 0.2985049609 | CP61: 3.402956555 | CQ61: 3.701461516 | CR61: 48.95595526 | CT61: 28 | CU61: 0 | CV61: 0 | CW61: 0 | CY61: 0.2985049609 | CZ61: 1.415226538 | DA61: 1.839866095 | DC61: 3.402956555 | DD61: 6.73692043 | DE61: 13.14377839 | DG61: 8.152146968 | DH61: 14.98364448 | DK61: 60 | DL61: 12 | DN61: 2014-05-24 | DO61: 44.35027154
BZ62: 2014-03-04 | CA62: =Generic_uncorrected!J86 -> 2014-03-04 | CB62: 29 | CC62: 12.43502441 | CD62: 1122 | CE62: 170.3574607 | CF62: 170.3574607 | CI62: 0 | CJ62: 0.6217512205 | CK62: 11.81327319 | CL62: 12.43502441 | CN62: 0 | CO62: 0.3108756102 | CP62: 3.543981957 | CQ62: 3.854857567 | CR62: 52.81081283 | CT62: 29 | CU62: 0 | CV62: 0 | CW62: 0 | CY62: 0.3108756102 | CZ62: 1.463838627 | DA62: 1.954575293 | DC62: 3.543981957 | DD62: 6.946938511 | DE62: 13.52925108 | DG62: 8.410777138 | DH62: 15.48382637 | DK62: 61 | DL62: 12 | DN62: 2014-05-25 | DO62: 46.08597423
BZ63: 2014-03-05 | CA63: =Generic_uncorrected!J87 -> 2014-03-05 | CB63: 30 | CC63: 13.14209183 | CD63: 1158 | CE63: 183.4995526 | CF63: 183.4995526 | CI63: 0 | CJ63: 0.6571045914 | CK63: 12.48498724 | CL63: 13.14209183 | CN63: 0 | CO63: 0.3285522957 | CP63: 3.745496171 | CQ63: 4.074048467 | CR63: 56.88486129 | CT63: 30 | CU63: 0 | CV63: 0 | CW63: 0 | CY63: 0.3285522957 | CZ63: 1.515328706 | DA63: 2.054654444 | DC63: 3.745496171 | DD63: 7.289478128 | DE63: 14.02639856 | DG63: 8.804806834 | DH63: 16.081053 | DK63: 62 | DL63: 12 | DN63: 2014-05-26 | DO63: 47.89014544
BZ64: 2014-03-06 | CA64: =Generic_uncorrected!J88 -> 2014-03-06 | CB64: 31 | CC64: 13.92305074 | CD64: 1194 | CE64: 197.4226033 | CF64: 197.4226033 | CG64: =CG34 -> Hosp | CH64: =D8 -> 0.1 | CI64: =CC64*$CH$64 -> 1.392305074 | CJ64: =CC64*$CH$65 -> 1.392305074 | CK64: =CC64*$CH$66 -> 11.13844059 | CL64: =SUM(CI64:CK64) -> 13.92305074 | CN64: 1.392305074 | CO64: 0.6961525372 | CP64: 3.341532178 | CQ64: 5.42998979 | CR64: 62.31485108 | CT64: 31 | CU64: 1.392305074 | CV64: 1.392305074 | CW64: 1.392305074 | CY64: 0.6961525372 | CZ64: 1.926538376 | DA64: 2.48854346 | DC64: 3.341532178 | DD64: 7.087028349 | DE64: 14.03396686 | DG64: 10.4058718 | DH64: 17.91481539 | DK64: 63 | DL64: 12 | DN64: 2014-05-27 | DO64: 49.76609047
BZ65: 2014-03-07 | CA65: =Generic_uncorrected!J89 -> 2014-03-07 | CB65: 32 | CC65: 14.87545588 | CD65: 1230 | CE65: 212.2980592 | CF65: 212.2980592 | CG65: =CG35 -> Home Iso | CH65: =D9 -> 0.1 | CI65: =CC65*$CH$64 -> 1.487545588 | CJ65: =CC65*$CH$65 -> 1.487545588 | CK65: =CC65*$CH$66 -> 11.90036471 | CL65: =SUM(CI65:CK65) -> 14.87545588 | CN65: 1.487545588 | CO65: 0.7437727941 | CP65: 3.570109412 | CQ65: 5.801427794 | CR65: 68.11627888 | CT65: 32 | CU65: 1.487545588 | CV65: 2.879850662 | CW65: 2.879850662 | CY65: 0.7437727941 | CZ65: 2.377858198 | DA65: 2.955254037 | DC65: 3.570109412 | DD65: 6.91164159 | DE65: 14.20111972 | DG65: 12.16935045 | DH65: 20.03622442 | DK65: 64 | DL65: 12 | DN65: 2014-05-28 | DO65: 51.71684656
BZ66: 2014-03-08 | CA66: =Generic_uncorrected!J90 -> 2014-03-08 | CB66: 33 | CC66: 15.84518037 | CD66: 1266 | CE66: 228.1432396 | CF66: 228.1432396 | CG66: =CG36 -> No Home Iso | CH66: =D10 -> 0.8 | CI66: 1.584518037 | CJ66: 1.584518037 | CK66: 12.6761443 | CL66: 15.84518037 | CN66: 1.584518037 | CO66: 0.7922590187 | CP66: 3.80284329 | CQ66: 6.179620346 | CR66: 74.29589922 | CT66: 33 | CU66: 1.584518037 | CV66: 4.4643687 | CW66: 4.4643687 | CY66: 0.7922590187 | CZ66: 2.871612256 | DA66: 3.462570188 | DC66: 3.80284329 | DD66: 7.372952701 | DE66: 14.45998105 | DG66: 14.70893366 | DH66: 22.38691994 | DK66: 65 | DL66: 13 | DN66: 2014-05-29 | DO66: 53.71863728
BZ67: 2014-03-09 | CA67: =Generic_uncorrected!J91 -> 2014-03-09 | CB67: 34 | CC67: 16.85840815 | CD67: 1302 | CE67: 245.0016477 | CF67: 245.0016477 | CI67: 1.685840815 | CJ67: 1.685840815 | CK67: 13.48672652 | CL67: 16.85840815 | CN67: 1.685840815 | CO67: 0.8429204076 | CP67: 4.046017957 | CQ67: 6.57477918 | CR67: 80.8706784 | CT67: 34 | CU67: 1.685840815 | CV67: 6.150209515 | CW67: 6.150209515 | CY67: 0.8429204076 | CZ67: 3.403657053 | DA67: 4.013037624 | DC67: 4.046017957 | DD67: 7.848861246 | DE67: 14.76050284 | DG67: 17.40272781 | DH67: 24.92374998 | DK67: =DK66+(DN67-DN66) -> 66 | DL67: 13 | DN67: 2014-05-30 | DO67: =CC98 -> 55.68401595
BZ68: 2014-03-10 | CA68: =Generic_uncorrected!J92 -> 2014-03-10 | CB68: 35 | CC68: 17.7458277 | CD68: 1338 | CE68: 262.7474754 | CF68: 262.7474754 | CI68: 1.77458277 | CJ68: 1.77458277 | CK68: 14.19666216 | CL68: 17.7458277 | CN68: 1.77458277 | CO68: 0.887291385 | CP68: 4.258998648 | CQ68: 6.920872803 | CR68: 87.7915512 | CT68: 35 | CU68: 1.77458277 | CV68: 7.924792285 | CW68: 7.924792285 | CY68: 0.887291385 | CZ68: 3.962396143 | DA68: 4.601824049 | DC68: 4.258998648 | DD68: 8.305016605 | DE68: 15.67796931 | DG68: 20.19220503 | DH68: 28.20458564 | DK68: 67 | DL68: 13 | DN68: 2014-05-31 | DO68: 57.52125021
BZ69: 2014-03-11 | CA69: =Generic_uncorrected!J93 -> 2014-03-11 | CB69: 36 | CC69: 18.55949733 | CD69: 1374 | CE69: 281.3069727 | CF69: 281.3069727 | CI69: 1.855949733 | CJ69: 1.855949733 | CK69: 14.84759787 | CL69: 18.55949733 | CN69: 1.855949733 | CO69: 0.9279748666 | CP69: 4.45427936 | CQ69: 7.238203959 | CR69: 95.02975516 | CT69: 36 | CU69: 1.855949733 | CV69: 9.780742018 | CW69: 9.780742018 | CY69: 0.9279748666 | CZ69: 4.194218472 | DA69: 5.218923305 | DC69: 4.45427936 | DD69: 8.713278007 | DE69: 16.56213925 | DG69: 22.6882385 | DH69: 31.56180458 | DK69: 68 | DL69: 13 | DM69: =IF(DL69-DM68>0, DL69-DM69, "") ->  | DN69: 2014-06-01 | DO69: 59.21470476
BZ70: 2014-03-12 | CA70: =Generic_uncorrected!J94 -> 2014-03-12 | CB70: 37 | CC70: 19.27880414 | CD70: 1410 | CE70: 300.5857769 | CF70: 300.5857769 | CI70: 1.927880414 | CJ70: 1.927880414 | CK70: 15.42304331 | CL70: 19.27880414 | CN70: 1.927880414 | CO70: 0.9639402069 | CP70: 4.626912993 | CQ70: 7.518733613 | CR70: 102.5484888 | CT70: 37 | CU70: 1.927880414 | CV70: 11.70862243 | CW70: 11.70862243 | CY70: 0.9639402069 | CZ70: 4.414385885 | DA70: 5.854311216 | DC70: 4.626912993 | DD70: 9.081192352 | DE70: 17.38620896 | DG70: 25.20420067 | DH70: 34.9491426 | DK70: 69 | DL70: 13 | DN70: 2014-06-02 | DO70: 60.78472317
BZ71: 2014-03-13 | CA71: =Generic_uncorrected!J95 -> 2014-03-13 | CB71: 38 | CC71: 19.97882058 | CD71: 1446 | CE71: 320.5645975 | CF71: 320.5645975 | CI71: 1.997882058 | CJ71: 1.997882058 | CK71: 15.98305646 | CL71: 19.97882058 | CN71: 1.997882058 | CO71: 0.9989410288 | CP71: 4.794916938 | CQ71: 7.791740024 | CR71: 110.3402288 | CT71: 38 | CU71: 1.997882058 | CV71: 13.70650449 | CW71: 13.70650449 | CY71: 0.9989410288 | CZ71: 4.621067895 | DA71: 6.157099708 | DC71: 4.794916938 | DD71: 9.421829931 | DE71: 18.13510794 | DG71: 27.74940232 | DH71: 37.99871214 | DK71: 70 | DL71: 13 | DN71: 2014-06-03 | DO71: 62.24730376
BZ72: 2014-03-14 | CA72: =Generic_uncorrected!J96 -> 2014-03-14 | CB72: 39 | CC72: 20.65133088 | CD72: 1482 | CE72: 341.2159283 | CF72: 341.2159283 | CI72: 2.065133088 | CJ72: 2.065133088 | CK72: 16.5210647 | CL72: 20.65133088 | CN72: 2.065133088 | CO72: 1.032566544 | CP72: 4.956319411 | CQ72: 8.054019043 | CR72: 118.3942478 | CT72: 39 | CU72: 2.065133088 | CV72: 15.77163758 | CW72: 15.77163758 | CY72: 1.032566544 | CZ72: 4.810714031 | DA72: 6.445893457 | DC72: 4.956319411 | DD72: 9.751236349 | DE72: 18.8324287 | DG72: 30.33358796 | DH72: 41.04995974 | DK72: 71 | DL72: 13 | DN72: 2014-06-04 | DO72: 63.66372031
BZ73: 2014-03-15 | CA73: =Generic_uncorrected!J97 -> 2014-03-15 | CB73: 40 | CC73: 21.33601848 | CD73: 1518 | CE73: 362.5519468 | CF73: 362.5519468 | CI73: 2.133601848 | CJ73: 2.133601848 | CK73: 17.06881478 | CL73: 21.33601848 | CN73: 2.133601848 | CO73: 1.066800924 | CP73: 5.120644435 | CQ73: 8.321047207 | CR73: 126.7152951 | CT73: 40 | CU73: 2.133601848 | CV73: 17.90523943 | CW73: 17.90523943 | CY73: 1.066800924 | CZ73: 4.99022357 | DA73: 6.720435363 | DC73: 5.120644435 | DD73: 10.07696385 | DE73: 19.49879378 | DG73: 32.97242684 | DH73: 44.12446856 | DK73: 72 | DL73: 13 | DN73: 2014-06-05 | DO73: 65.13333634
BZ74: 2014-03-16 | CA74: =Generic_uncorrected!J98 -> 2014-03-16 | CB74: 41 | CC74: 22.09681286 | CD74: 1554 | CE74: 384.6487597 | CF74: 384.6487597 | CI74: 2.209681286 | CJ74: 2.209681286 | CK74: 17.67745029 | CL74: 22.09681286 | CN74: 2.209681286 | CO74: 1.104840643 | CP74: 5.303235087 | CQ74: 8.617757016 | CR74: 135.3330521 | CT74: 41 | CU74: 2.209681286 | CV74: 18.72261564 | CW74: 20.11492071 | CY74: 1.104840643 | CZ74: 5.167089347 | DA74: 6.982355598 | DC74: 5.303235087 | DD74: 10.42387952 | DE74: 20.17511587 | DG74: 34.3135845 | DH74: 47.27239218 | DK74: 73 | DL74: 13 | DN74: 2014-06-06 | DO74: 66.74179855
BG75: Days | BH75: infectious | BI75: =M12 -> 6 | BZ75: 2014-03-17 | CA75: =Generic_uncorrected!J99 -> 2014-03-17 | CB75: 42 | CC75: 22.94278184 | CD75: 1590 | CE75: 407.5915415 | CF75: 407.5915415 | CI75: 2.294278184 | CJ75: 2.294278184 | CK75: 18.35422547 | CL75: 22.94278184 | CN75: 2.294278184 | CO75: 1.147139092 | CP75: 5.506267642 | CQ75: 8.947684918 | CR75: 144.280737 | CT75: 42 | CU75: 2.294278184 | CV75: 19.52934823 | CW75: 22.4091989 | CY75: 1.147139092 | CZ75: 5.350288232 | DA75: 7.242203305 | DC75: 5.506267642 | DD75: 10.80950273 | DE75: 20.88646657 | DG75: 35.68913919 | DH75: 50.53786877 | DK75: 74 | DL75: 13 | DN75: 2014-06-07 | DO75: 68.50294134
BZ76: 2014-03-18 | CA76: =Generic_uncorrected!J100 -> 2014-03-18 | CB76: 43 | CC76: 23.87047829 | CD76: 1626 | CE76: 431.4620198 | CF76: 431.4620198 | CI76: 2.387047829 | CJ76: 2.387047829 | CK76: 19.09638263 | CL76: 23.87047829 | CN76: 2.387047829 | CO76: 1.193523915 | CP76: 5.72891479 | CQ76: 9.309486534 | CR76: 153.5902235 | CT76: 43 | CU76: 2.387047829 | CV76: 20.33187802 | CW76: 23.40394165 | CY76: 1.193523915 | CZ76: 5.544871118 | DA76: 7.507752353 | DC76: 5.72891479 | DD76: 11.23518243 | DE76: 21.65906195 | DG76: 37.11193157 | DH76: 52.57075596 | DK76: 75 | DL76: 13 | DN76: 2014-06-08 | DO76: 70.38006867
BZ77: 2014-03-19 | CA77: =Generic_uncorrected!J101 -> 2014-03-19 | CB77: 44 | CC77: 24.85464863 | CD77: 1662 | CE77: 456.3166684 | CF77: 456.3166684 | CI77: 2.485464863 | CJ77: 2.485464863 | CK77: 19.8837189 | CL77: 24.85464863 | CN77: 2.485464863 | CO77: 1.242732431 | CP77: 5.965115671 | CQ77: 9.693312966 | CR77: 163.2835365 | CT77: 44 | CU77: 2.485464863 | CV77: 21.13150207 | CW77: 24.40186093 | CY77: 1.242732431 | CZ77: 5.755037005 | DA77: 7.786544578 | DC77: 5.965115671 | DD77: 11.69403046 | DE77: 22.50353319 | DG77: 38.58056954 | DH77: 54.69193869 | DK77: 76 | DL77: 13 | DN77: 2014-06-09 | DO77: 72.34357494
AH78: Incubation Probability | BZ78: 2014-03-20 | CA78: =Generic_uncorrected!J102 -> 2014-03-20 | CB78: 45 | CC78: 25.88386769 | CD78: 1698 | CE78: 482.2005361 | CF78: 482.2005361 | CI78: 2.588386769 | CJ78: 2.588386769 | CK78: 20.70709416 | CL78: 25.88386769 | CN78: 2.588386769 | CO78: 1.294193385 | CP78: 6.212128247 | CQ78: 10.0947084 | CR78: 173.3782449 | CT78: 45 | CU78: 2.588386769 | CV78: 21.94530607 | CW78: 25.40572966 | CY78: 1.294193385 | CZ78: 5.982429466 | DA78: 8.081796934 | DC78: 6.212128247 | DD78: 12.17724392 | DE78: 23.41242635 | DG78: 40.10497946 | DH78: 56.89995294 | DK78: 77 | DL78: 13 | DN78: 2014-06-10 | DO78: 74.33984159
Y79: 1 | Z79: 2 | AA79: 3 | AB79: 4 | AC79: 5 | AD79: 6 | AE79: 7 | AF79: 8 | AG79: 9 | AH79: 10 | AI79: 11 | AJ79: 12 | AK79: 13 | AL79: 14 | AM79: 15 | AN79: 16 | AO79: 17 | AP79: 18 | AQ79: 19 | AR79: 20 | AS79: 21 | AT79: 22 | AU79: 23 | AV79: 24 | AW79: 25 | BZ79: 2014-03-21 | CA79: =Generic_uncorrected!J103 -> 2014-03-21 | CB79: 46 | CC79: 26.93025786 | CD79: 1734 | CE79: 509.130794 | CF79: 509.130794 | CI79: 2.693025786 | CJ79: 2.693025786 | CK79: 21.54420629 | CL79: 26.93025786 | CN79: 2.693025786 | CO79: 1.346512893 | CP79: 6.463261886 | CQ79: 10.50280056 | CR79: 183.8810455 | CT79: 46 | CU79: 2.693025786 | CV79: 22.78238212 | CW79: 26.41291463 | CY79: 1.346512893 | CZ79: 6.224101716 | DA79: 8.395743283 | DC79: 6.463261886 | DD79: 12.67539013 | DE79: 24.36942059 | DG79: 41.68187397 | DH79: 59.1780785 | DK79: 78 | DL79: 30 | DN79: 2014-06-11 | DO79: 76.35346453
Y80: =Incubation!A17 -> 0 | Z80: =Incubation!B17 -> 0.0196 | AA80: =Incubation!C17 -> 0.086 | AB80: =Incubation!D17 -> 0.153 | AC80: =Incubation!E17 -> 0.1606 | AD80: =Incubation!F17 -> 0.1404 | AE80: =Incubation!G17 -> 0.122 | AF80: =Incubation!H17 -> 0.0858 | AG80: =Incubation!I17 -> 0.0646 | AH80: =Incubation!J17 -> 0.0524 | AI80: =Incubation!K17 -> 0.0336 | AJ80: =Incubation!L17 -> 0.0246 | AK80: =Incubation!M17 -> 0.015 | AL80: =Incubation!N17 -> 0.0132 | AM80: =Incubation!O17 -> 0.007 | AN80: =Incubation!P17 -> 0.0054 | AO80: =Incubation!Q17 -> 0.003 | AP80: =Incubation!R17 -> 0.0036 | AQ80: =Incubation!S17 -> 0.003 | AR80: =Incubation!T17 -> 0.0016 | AS80: =Incubation!U17 -> 0.0018 | AT80: =Incubation!V17 -> 0.0016 | AU80: =Incubation!W17 -> 0.0012 | AV80: =Incubation!X17 -> 0.0006 | AW80: =Incubation!Y17 -> 0.0004 | BF80: Infectious: days forward | BZ80: 2014-03-22 | CA80: =Generic_uncorrected!J104 -> 2014-03-22 | CB80: 47 | CC80: 27.99789937 | CD80: 1770 | CE80: 537.1286934 | CF80: 537.1286934 | CI80: 2.799789937 | CJ80: 2.799789937 | CK80: 22.39831949 | CL80: 27.99789937 | CN80: 2.799789937 | CO80: 1.399894968 | CP80: 6.719495848 | CQ80: 10.91918075 | CR80: 194.8002262 | CT80: 47 | CU80: 2.799789937 | CV80: 23.65429165 | CW80: 27.43812179 | CY80: 1.399894968 | CZ80: 6.476857592 | DA80: 8.728837327 | DC80: 6.719495848 | DD80: 13.18275773 | DE80: 25.36000165 | DG80: 43.31390697 | DH80: 61.52696077 | DK80: 79 | DL80: 30 | DN80: 2014-06-12 | DO80: 78.38712829
Y81: =Y80 -> 0 | Z81: =Y81+Z80 -> 0.0196 | AA81: 0.1056 | AB81: 0.2586 | AC81: 0.4192 | AD81: 0.5596 | AE81: 0.6816 | AF81: 0.7674 | AG81: 0.832 | AH81: 0.8844 | AI81: 0.918 | AJ81: 0.9426 | AK81: 0.9576 | AL81: 0.9708 | AM81: 0.9778 | AN81: 0.9832 | AO81: 0.9862 | AP81: 0.9898 | AQ81: 0.9928 | AR81: 0.9944 | AS81: 0.9962 | AT81: 0.9978 | AU81: 0.999 | AV81: 0.9996 | AW81: 1 | BZ81: 2014-03-23 | CA81: =Generic_uncorrected!J105 -> 2014-03-23 | CB81: 48 | CC81: 29.08949287 | CD81: 1806 | CE81: 566.2181862 | CF81: 566.2181862 | CI81: 2.908949287 | CJ81: 2.908949287 | CK81: 23.2715943 | CL81: 29.08949287 | CN81: 2.908949287 | CO81: 1.454474644 | CP81: 6.98147829 | CQ81: 11.34490222 | CR81: 206.1451284 | CT81: 48 | CU81: 2.908949287 | CV81: 24.56535888 | CW81: 28.49112135 | CY81: 1.454474644 | CZ81: 6.737808321 | DA81: 9.078471328 | DC81: 6.98147829 | DD81: 13.70097414 | DE81: 26.37636427 | DG81: 45.00414134 | DH81: 63.94595695 | DK81: 80 | DL81: 30 | DN81: 2014-06-13 | DO81: 80.44437189
N82: Newly Infected: sum of days prior | AK82: When start Incubation Day | AY82: =IF(AY83<=$BI$75,1,0) -> 1 | AZ82: =IF(AZ83<=$BI$75,1,0) -> 1 | BA82: 1 | BB82: 1 | BC82: 1 | BD82: 1 | BE82: 0 | BF82: 0 | BG82: 0 | BH82: 0 | BI82: 0 | BJ82: 0 | BK82: 0 | BL82: 0 | BM82: 0 | BZ82: 2014-03-24 | CA82: =Generic_uncorrected!J106 -> 2014-03-24 | CB82: 49 | CC82: 30.21209095 | CD82: 1842 | CE82: 596.4302772 | CF82: 596.4302772 | CI82: 3.021209095 | CJ82: 3.021209095 | CK82: 24.16967276 | CL82: 30.21209095 | CN82: 3.021209095 | CO82: 1.510604547 | CP82: 7.250901827 | CQ82: 11.78271547 | CR82: 217.9278439 | CT82: 49 | CU82: 3.021209095 | CV82: 25.52143488 | CW82: 29.58445003 | CY82: 1.510604547 | CZ82: 7.005680437 | DA82: 9.441936783 | DC82: 7.250901827 | DD82: 14.23238012 | DE82: 27.41513785 | DG82: 46.75949544 | DH82: 66.44152466 | DK82: 81 | DL82: 30 | DN82: 2014-06-14 | DO82: 82.54076695
F83: Day | G83: 2 days prior | H83: 1 | I83: 2 | J83: 3 | K83: 4 | L83: 5 | M83: 6 | N83: 7 | O83: 8 | P83: 9 | Q83: 10 | R83: 11 | S83: 12 | T83: 13 | U83: 14 | V83: 15 | W83: outsider | X83: Total | Y83: 1 | Z83: 2 | AA83: 3 | AB83: 4 | AC83: 5 | AD83: 6 | AE83: 7 | AF83: 8 | AG83: 9 | AH83: 10 | AI83: 11 | AJ83: 12 | AK83: 13 | AL83: 14 | AM83: 15 | AN83: 16 | AO83: 17 | AP83: 18 | AQ83: 19 | AR83: 20 | AS83: 21 | AT83: 22 | AU83: 23 | AV83: 24 | AW83: 25 | AX83: Days prior | AY83: 1 | AZ83: 2 | BA83: 3 | BB83: 4 | BC83: 5 | BD83: 6 | BE83: 7 | BF83: 8 | BG83: 9 | BH83: 10 | BI83: 11 | BJ83: 12 | BK83: 13 | BL83: 14 | BM83: 15 | BZ83: 2014-03-25 | CA83: =Generic_uncorrected!J107 -> 2014-03-25 | CB83: 50 | CC83: 31.37632372 | CD83: 1878 | CE83: 627.8066009 | CF83: 627.8066009 | CI83: 3.137632372 | CJ83: 3.137632372 | CK83: 25.10105898 | CL83: 31.37632372 | CN83: 3.137632372 | CO83: 1.568816186 | CP83: 7.530317693 | CQ83: 12.23676625 | CR83: 230.1646101 | CT83: 50 | CU83: 3.137632372 | CV83: 26.52546541 | CW83: 30.72420034 | CY83: 1.568816186 | CZ83: 7.280303238 | DA83: 9.817229054 | DC83: 7.530317693 | DD83: 14.78121952 | DE83: 28.48219366 | DG83: 48.58698817 | DH83: 69.02362306 | DK83: 82 | DL83: 30 | DN83: 2014-06-15 | DO83: 84.68995844
F84: 1 | G84: 1 | H84: =M15 -> 25 | X84: =SUM(H84:W84) -> 25 | Y84: =$X84*Y$80 -> 0 | Z84: =$X84*Z$80 -> 0.49 | AA84: 2.15 | AB84: 3.825 | AC84: 4.015 | AD84: 3.51 | AE84: 3.05 | AF84: 2.145 | AG84: 1.615 | AH84: 1.31 | AI84: 0.84 | AJ84: 0.615 | AK84: 0.375 | AL84: 0.33 | AM84: 0.175 | AN84: 0.135 | AO84: 0.075 | AP84: 0.09 | AQ84: 0.075 | AR84: 0.04 | AS84: 0.045 | AT84: 0.04 | AU84: 0.03 | AV84: 0.015 | AW84: 0.01 | AX84: 1 | BZ84: 2014-03-26 | CA84: =Generic_uncorrected!J108 -> 2014-03-26 | CB84: 51 | CC84: 32.59013301 | CD84: 1914 | CE84: 660.3967339 | CF84: 660.3967339 | CI84: 3.259013301 | CJ84: 3.259013301 | CK84: 26.07210641 | CL84: 32.59013301 | CN84: 3.259013301 | CO84: 1.62950665 | CP84: 7.821631922 | CQ84: 12.71015187 | CR84: 242.874762 | CT84: 51 | CU84: 3.259013301 | CV84: 27.57479742 | CW84: 31.91808056 | CY84: 1.62950665 | CZ84: 7.563296996 | DA84: 10.20400327 | DC84: 7.821631922 | DD84: 15.35194962 | DE84: 29.58432973 | DG84: 50.49004403 | DH84: 71.70641356 | DK84: 83 | DL84: 30 | DN84: 2014-06-16 | DO84: 86.90996814
F85: 1 | G85: 2 | X85: =X84 -> 25 | AX85: 2 | BZ85: 2014-03-27 | CA85: =Generic_uncorrected!J109 -> 2014-03-27 | CB85: 52 | CC85: 33.86152362 | CD85: 1950 | CE85: 694.2582575 | CF85: 694.2582575 | CI85: 3.386152362 | CJ85: 3.386152362 | CK85: 27.08921889 | CL85: 33.86152362 | CN85: 3.386152362 | CO85: 1.693076181 | CP85: 8.126765668 | CQ85: 13.20599421 | CR85: 256.0807562 | CT85: 52 | CU85: 3.386152362 | CV85: 28.6666716 | CW85: 33.17063107 | CY85: 1.693076181 | CZ85: 7.856478208 | DA85: 10.60288607 | DC85: 8.126765668 | DD85: 15.94839759 | DE85: 30.72961711 | DG85: 52.4715474 | DH85: 74.50313425 | DK85: 84 | DL85: 30 | DN85: 2014-06-17 | DO85: 89.20240436
F86: 1 | G86: 3 | AX86: 3 | BZ86: 2014-03-28 | CA86: =Generic_uncorrected!J110 -> 2014-03-28 | CB86: 53 | CC86: 35.190638 | CD86: 1986 | CE86: 729.4488955 | CF86: 729.4488955 | CI86: 3.5190638 | CJ86: 3.5190638 | CK86: 28.1525104 | CL86: 35.190638 | CN86: 3.5190638 | CO86: 1.7595319 | CP86: 8.445753119 | CQ86: 13.72434882 | CR86: 269.805105 | CT86: 53 | CU86: 3.5190638 | CV86: 29.79868757 | CW86: 34.48001358 | CY86: 1.7595319 | CZ86: 8.161535464 | DA86: 11.01590508 | DC86: 8.445753119 | DD86: 16.57251879 | DE86: 31.9244684 | DG86: 54.53274182 | DH86: 77.42038706 | DK86: 85 | DL86: 34 | DN86: 2014-06-18 | DO86: 91.56780359
F87: 1 | G87: 4 | AX87: 4 | BZ87: 2014-03-29 | CA87: =Generic_uncorrected!J111 -> 2014-03-29 | CB87: 54 | CC87: 36.5772239 | CD87: 2022 | CE87: 766.0261194 | CF87: 766.0261194 | CI87: 3.65772239 | CJ87: 3.65772239 | CK87: 29.26177912 | CL87: 36.5772239 | CN87: 3.65772239 | CO87: 1.828861195 | CP87: 8.778533737 | CQ87: 14.26511732 | CR87: 284.0702224 | CT87: 54 | CU87: 3.65772239 | CV87: 30.9709451 | CW87: 35.84345779 | CY87: 1.828861195 | CZ87: 8.479792112 | DA87: 11.4448713 | DC87: 8.778533737 | DD87: 17.22428686 | DE87: 33.17268445 | DG87: 56.67502407 | DH87: 80.46101354 | DK87: 86 | DL87: 41 | DN87: 2014-06-19 | DO87: 94.00123217
F88: 1 | G88: 5 | AX88: 5 | BZ88: 2014-03-30 | CA88: =Generic_uncorrected!J112 -> 2014-03-30 | CB88: 55 | CC88: 38.01900005 | CD88: 2058 | CE88: 804.0451195 | CF88: 804.0451195 | CI88: 3.801900005 | CJ88: 3.801900005 | CK88: 30.41520004 | CL88: 38.01900005 | CN88: 3.801900005 | CO88: 1.900950003 | CP88: 9.124560012 | CQ88: 14.82741002 | CR88: 298.8976324 | CT88: 55 | CU88: 3.801900005 | CV88: 32.18445833 | CW88: 37.25830997 | CY88: 1.900950003 | CZ88: 8.811925929 | DA88: 11.89134666 | DC88: 9.124560012 | DD88: 17.90309375 | DE88: 34.47561254 | DG88: 58.89947801 | DH88: 83.62526916 | DK88: 87 | DL88: 51 | DN88: 2014-06-20 | DO88: 96.50073257
F89: 1 | G89: 6 | AX89: 6 | BZ89: 2014-03-31 | CA89: =Generic_uncorrected!J113 -> 2014-03-31 | CB89: 56 | CC89: 39.51608873 | CD89: 2094 | CE89: 843.5612082 | CF89: 843.5612082 | CI89: 3.951608873 | CJ89: 3.951608873 | CK89: 31.61287098 | CL89: 39.51608873 | CN89: 3.951608873 | CO89: 1.975804436 | CP89: 9.483861295 | CQ89: 15.4112746 | CR89: 314.308907 | CT89: 56 | CU89: 3.951608873 | CV89: 33.44304142 | CW89: 38.72445398 | CY89: 1.975804436 | CZ89: 9.158223715 | DA89: 12.35654655 | DC89: 9.483861295 | DD89: 18.60842131 | DE89: 35.83270816 | DG89: 61.20968644 | DH89: 86.91370869 | DK89: 88 | DL89: 51 | DN89: 2014-06-21 | DO89: 99.06360499
F90: 1 | G90: 7 | AX90: 7 | BZ90: 2014-04-01 | CA90: =Generic_uncorrected!J114 -> 2014-04-01 | CB90: 57 | CC90: 41.06895539 | CD90: 2130 | CE90: 884.6301636 | CF90: 884.6301636 | CI90: 4.106895539 | CJ90: 4.106895539 | CK90: 32.85516431 | CL90: 41.06895539 | CN90: 4.106895539 | CO90: 2.05344777 | CP90: 9.856549294 | CQ90: 16.0168926 | CR90: 330.3257996 | CT90: 57 | CU90: 4.106895539 | CV90: 34.75014702 | CW90: 40.24296275 | CY90: 2.05344777 | CZ90: 9.518595303 | DA90: 12.84117813 | DC90: 9.856549294 | DD90: 19.34041059 | DE90: 37.24350434 | DG90: 63.60915292 | DH90: 90.32764522 | DK90: 89 | DL90: 51 | DN90: 2014-06-22 | DO90: 101.6886566
F91: 1 | G91: 8 | AX91: 8 | BZ91: 2014-04-02 | CA91: =Generic_uncorrected!J115 -> 2014-04-02 | CB91: 58 | CC91: 42.67922883 | CD91: 2166 | CE91: 927.3093924 | CF91: 927.3093924 | CI91: 4.267922883 | CJ91: 4.267922883 | CK91: 34.14338306 | CL91: 42.67922883 | CN91: 4.267922883 | CO91: 2.133961441 | CP91: 10.24301492 | CQ91: 16.64489924 | CR91: 346.9706988 | CT91: 58 | CU91: 4.267922883 | CV91: 36.10912062 | CW91: 41.81785984 | CY91: 2.133961441 | CZ91: 9.893024845 | DA91: 13.34563293 | DC91: 10.24301492 | DD91: 20.09956421 | DE91: 38.70798552 | DG91: 66.10170968 | DH91: 93.87147829 | DK91: 90 | DL91: 62 | DN91: 2014-06-23 | DO91: 104.3783822
F92: 1 | G92: 9 | AX92: 9 | BZ92: 2014-04-03 | CA92: =Generic_uncorrected!J116 -> 2014-04-03 | CB92: 59 | CC92: 44.35027154 | CD92: 2202 | CE92: 971.659664 | CF92: 971.659664 | CI92: 4.435027154 | CJ92: 4.435027154 | CK92: 35.48021724 | CL92: 44.35027154 | CN92: 4.435027154 | CO92: 2.217513577 | CP92: 10.64406517 | CQ92: 17.2966059 | CR92: 364.2673047 | CT92: 59 | CU92: 4.435027154 | CV92: 37.52293868 | CW92: 43.45309706 | CY92: 2.217513577 | CZ92: 10.28167723 | DA92: 13.87007032 | DC92: 10.64406517 | DD92: 20.88708009 | DE92: 40.22749068 | DG92: 68.69169599 | DH92: 97.55065806 | DK92: 91 | DL92: 63 | DN92: 2014-06-24 | DO92: 107.136344
F93: 1 | G93: 10 | AX93: 10 | BZ93: 2014-04-04 | CA93: =Generic_uncorrected!J117 -> 2014-04-04 | CB93: 60 | CC93: 46.08597423 | CD93: 2238 | CE93: 1017.745638 | CF93: 1017.745638 | CI93: 4.608597423 | CJ93: 4.608597423 | CK93: 36.86877939 | CL93: 46.08597423 | CN93: 4.608597423 | CO93: 2.304298712 | CP93: 11.06063382 | CQ93: 17.97352995 | CR93: 382.2408347 | CT93: 60 | CU93: 4.608597423 | CV93: 38.99390373 | CW93: 45.1527452 | CY93: 2.304298712 | CZ93: 10.68502594 | DA93: 14.41483713 | DC93: 11.06063382 | DD93: 21.70469899 | DE93: 41.8042632 | DG93: 71.38362865 | DH93: 101.3718455 | DK93: 92 | DL93: 63 | DN93: 2014-06-25 | DO93: 109.9664214
F94: 1 | G94: 11 | AX94: 11 | BZ94: 2014-04-05 | CA94: =Generic_uncorrected!J118 -> 2014-04-05 | CB94: 61 | CC94: 47.89014544 | CD94: 2274 | CE94: 1065.635784 | CF94: 1065.635784 | CG94: =CG64 -> Hosp | CH94: =D13 -> 0.2 | CI94: =CC94*$CH$94 -> 9.578029088 | CJ94: =CC94*$CH$95 -> 4.789014544 | CK94: =CC94*$CH$96 -> 33.52310181 | CL94: =SUM(CI94:CK94) -> 47.89014544 | CN94: 9.578029088 | CO94: 2.394507272 | CP94: 10.05693054 | CQ94: 22.0294669 | CR94: 404.2703016 | CT94: 61 | CU94: 9.578029088 | CV94: 45.31291952 | CW94: 51.70956519 | CY94: 2.394507272 | CZ94: 11.10372877 | DA94: 14.98048321 | DC94: 10.05693054 | DD94: 21.11756436 | DE94: 42.00464445 | DG94: 77.53421265 | DH94: 108.6946928 | DK94: 93 | DL94: 63 | DN94: 2014-06-26 | DO94: 112.8718938
F95: 1 | G95: 12 | AX95: 12 | BZ95: 2014-04-06 | CA95: =Generic_uncorrected!J119 -> 2014-04-06 | CB95: 62 | CC95: 49.76609047 | CD95: 2310 | CE95: 1115.401874 | CF95: 1115.401874 | CG95: =CG65 -> Home Iso | CH95: =D14 -> 0.1 | CI95: =CC95*$CH$94 -> 9.953218093 | CJ95: =CC95*$CH$95 -> 4.976609047 | CK95: =CC95*$CH$96 -> 34.83626333 | CL95: 49.76609047 | CN95: 9.953218093 | CO95: 2.488304523 | CP95: 10.450879 | CQ95: 22.89240161 | CR95: 427.1627032 | CT95: 62 | CU95: 9.953218093 | CV95: 51.87998525 | CW95: 58.52515091 | CY95: 2.488304523 | CZ95: 11.53858553 | DA95: 15.56783773 | DC95: 10.450879 | DD95: 20.50780954 | DE95: 42.21250853 | DG95: 83.92638031 | DH95: 116.3054972 | DK95: 94 | DL95: 63 | DN95: 2014-06-27 | DO95: 115.8557514
F96: 1 | G96: 13 | AX96: 13 | BZ96: 2014-04-07 | CA96: =Generic_uncorrected!J120 -> 2014-04-07 | CB96: 63 | CC96: 51.71684656 | CD96: 2346 | CE96: 1167.118721 | CF96: 1167.118721 | CG96: =CG66 -> No Home Iso | CH96: =D15 -> 0.7 | CI96: 10.34336931 | CJ96: 5.171684656 | CK96: 36.20179259 | CL96: 51.71684656 | CN96: 10.34336931 | CO96: 2.585842328 | CP96: 10.86053778 | CQ96: 23.78974942 | CR96: 450.9524526 | CT96: 63 | CU96: 10.34336931 | CV96: 58.70429076 | CW96: 65.60950692 | CY96: 2.585842328 | CZ96: 11.99046641 | DA96: 16.17787562 | DC96: 10.86053778 | DD96: 21.31141677 | DE96: 42.42898113 | DG96: 92.00617395 | DH96: 124.2163637 | DK96: 95 | DL96: 63 | DN96: 2014-06-28 | DO96: 118.802443
F97: 1 | G97: 14 | AX97: 14 | BZ97: 2014-04-08 | CA97: =Generic_uncorrected!J121 -> 2014-04-08 | CB97: 64 | CC97: 53.71863728 | CD97: 2382 | CE97: 1220.837358 | CF97: 1220.837358 | CI97: 10.74372746 | CJ97: 5.371863728 | CK97: 37.60304609 | CL97: 53.71863728 | CN97: 10.74372746 | CO97: 2.685931864 | CP97: 11.28091383 | CQ97: 24.71057315 | CR97: 475.6630258 | CT97: 64 | CU97: 10.74372746 | CV97: 65.79029582 | CW97: 72.96708201 | CY97: 2.685931864 | CZ97: 12.4588847 | DA97: 16.81035972 | DC97: 11.28091383 | DD97: 22.14145161 | DE97: 42.64926114 | DG97: 100.3906321 | DH97: 132.4267029 | DK97: 96 | DL97: 90 | DN97: 2014-06-29 | DO97: 121.3129039
F98: 1 | G98: 15 | AX98: 15 | BZ98: =CA98 -> 2014-04-09 | CA98: =Generic_uncorrected!J122 -> 2014-04-09 | CB98: 65 | CC98: 55.68401595 | CD98: 2418 | CE98: 1276.521374 | CF98: 1276.521374 | CI98: 11.13680319 | CJ98: 5.568401595 | CK98: 38.97881116 | CL98: 55.68401595 | CN98: =CI98*CN$32 -> 11.13680319 | CO98: 2.784200797 | CP98: 11.69364335 | CQ98: 25.61464734 | CR98: 501.2776731 | CT98: 65 | CU98: 11.13680319 | CV98: 73.12519901 | CW98: 80.5848214 | CY98: 2.784200797 | CZ98: 12.93878678 | DA98: 17.46059907 | DC98: 11.69364335 | DD98: =SUM(DC97:DC98) -> 22.97455718 | DE98: 44.28597395 | DG98: =CV98+CZ98+DD98 -> 109.038543 | DH98: 142.3313944 | DK98: 97 | DL98: 96 | DN98: 2014-06-30 | DO98: 122.9736111
F99: 1 | G99: 16 | AX99: 16 | BZ99: 2014-04-10 | CA99: =Generic_uncorrected!J123 -> 2014-04-10 | CB99: 66 | CC99: 57.52125021 | CD99: 2454 | CE99: =CE98+CC99 -> 1334.042624 | CF99: 1334.042624 | CI99: 11.50425004 | CJ99: 5.752125021 | CK99: 40.26487515 | CL99: 57.52125021 | CN99: 11.50425004 | CO99: 2.87606251 | CP99: 12.07946254 | CQ99: 26.4597751 | CR99: 527.7374482 | CT99: 66 | CU99: =CN99 -> 11.50425004 | CV99: 80.67784018 | CW99: 88.43134906 | CY99: =CO99 -> 2.87606251 | CZ99: 13.42034202 | DA99: 18.11914801 | DC99: =CP99 -> 12.07946254 | DD99: 23.77310589 | DE99: 45.9145575 | DG99: 117.8712881 | DH99: 152.4650546 | DK99: =DK98+(DN99-DN98) -> 98 | DL99: 100 | DN99: 2014-07-01 | DO99: 123.7156135
F100: 1 | G100: 17 | AX100: 17 | BZ100: 2014-04-11 | CA100: =Generic_uncorrected!J124 -> 2014-04-11 | CB100: =1+CB99 -> 67 | CC100: =INDIRECT("AY"&(114+(CB99*36))) -> 59.21470476 | CD100: =CD99+36 -> 2490 | CE100: 1393.257329 | CF100: =CC100+CF99 -> 1393.257329 | CI100: 11.84294095 | CJ100: 5.921470476 | CK100: 41.45029333 | CL100: 59.21470476 | CN100: 11.84294095 | CO100: 2.960735238 | CP100: 12.435088 | CQ100: =SUM(CN100:CP100) -> 27.23876419 | CR100: =CQ100+CR99 -> 554.9762124 | CT100: =1+CT99 -> 67 | CU100: 11.84294095 | CV100: 88.41388559 | CW100: 96.47239 | CY100: 2.960735238 | CZ100: 13.89277274 | DA100: 18.77558453 | DC100: 12.435088 | DD100: 24.51455054 | DE100: 47.48910772 | DG100: 126.8212089 | DH100: 162.7370823 | DK100: 99 | DL100: 112 | DN100: 2014-07-02 | DO100: 123.63196
F101: 1 | G101: 18 | AX101: 18 | BZ101: 2014-04-12 | CA101: =Generic_uncorrected!J125 -> 2014-04-12 | CB101: 68 | CC101: 60.78472317 | CD101: 2526 | CE101: 1454.042052 | CF101: 1454.042052 | CI101: 12.15694463 | CJ101: 6.078472317 | CK101: 42.54930622 | CL101: 60.78472317 | CN101: 12.15694463 | CO101: 3.039236158 | CP101: 12.76479187 | CQ101: 27.96097266 | CR101: 582.937185 | CT101: 68 | CU101: 12.15694463 | CV101: 96.30290734 | CW101: 104.6777258 | CY101: 3.039236158 | CZ101: 14.34616657 | DA101: 19.42031342 | DC101: 12.76479187 | DD101: 25.19987987 | DE101: 48.97298576 | DG101: 135.8489538 | DH101: 173.0710249 | DK101: 100 | DL101: 116 | DM101: =IF(DL101-DM100>0, DL101-DM101, "") ->  | DN101: 2014-07-03 | DO101: 122.7978811
F102: 1 | G102: 19 | AX102: 19 | BZ102: 2014-04-13 | CA102: =Generic_uncorrected!J126 -> 2014-04-13 | CB102: 69 | CC102: 62.24730376 | CD102: 2562 | CE102: 1516.289356 | CF102: 1516.289356 | CI102: 12.44946075 | CJ102: 6.224730376 | CK102: 43.57311263 | CL102: 62.24730376 | CN102: 12.44946075 | CO102: 3.112365188 | CP102: 13.07193379 | CQ102: 28.63375973 | CR102: 611.5709448 | CT102: 69 | CU102: 12.44946075 | CV102: 104.3173409 | CW102: 113.020291 | CY102: 3.112365188 | CZ102: 14.77259989 | DA102: 20.04437408 | DC102: 13.07193379 | DD102: 25.83672565 | DE102: =SUM(DC99:DC102) -> 50.3512762 | DG102: 144.9266665 | DH102: 183.4159413 | DK102: 101 | DL102: 122 | DN102: 2014-07-04 | DO102: 121.4961557
F103: 1 | G103: 20 | AX103: 20 | BZ103: 2014-04-14 | CA103: =Generic_uncorrected!J127 -> 2014-04-14 | CB103: 70 | CC103: 63.66372031 | CD103: 2598 | CE103: 1579.953076 | CF103: 1579.953076 | CI103: 12.73274406 | CJ103: 6.366372031 | CK103: 44.56460422 | CL103: 63.66372031 | CN103: 12.73274406 | CO103: 3.183186016 | CP103: 13.36938127 | CQ103: 29.28531134 | CR103: 640.8562561 | CT103: 70 | CU103: 12.73274406 | CV103: 112.4414876 | CW103: 121.4851122 | CY103: 3.183186016 | CZ103: =+SUM(CY99:CY103) -> 15.17158511 | DA103: 20.64171777 | DC103: 13.36938127 | DD103: 26.44131506 | DE103: 51.64119492 | DG103: 154.0543877 | DH103: 193.7680248 | DK103: 102 | DL103: 126 | DN103: 2014-07-05 | DO103: 120.1843555
F104: 1 | G104: 21 | AX104: 21 | BZ104: 2014-04-15 | CA104: =Generic_uncorrected!J128 -> 2014-04-15 | CB104: 71 | CC104: 65.13333634 | CD104: 2634 | CE104: 1645.086412 | CF104: 1645.086412 | CI104: 13.02666727 | CJ104: 6.513333634 | CK104: 45.59333544 | CL104: 65.13333634 | CN104: 13.02666727 | CO104: 3.256666817 | CP104: 13.67800063 | CQ104: 29.96133471 | CR104: 670.8175908 | CT104: 71 | CU104: 13.02666727 | CV104: 115.8901258 | CW104: 130.0767523 | CY104: 3.256666817 | CZ104: 15.55218942 | DA104: 21.21245272 | DC104: 13.67800063 | DD104: 27.0473819 | DE104: 52.88410755 | DG104: 158.4896971 | DH104: 204.1733125 | DK104: 103 | DL104: 131 | DN104: 2014-07-06 | DO104: 119.26079
F105: 1 | G105: 22 | AX105: 22 | BZ105: 2014-04-16 | CA105: =Generic_uncorrected!J129 -> 2014-04-16 | CB105: 72 | CC105: 66.74179855 | CD105: 2670 | CE105: 1711.828211 | CF105: 1711.828211 | CI105: 13.34835971 | CJ105: 6.674179855 | CK105: 46.71925899 | CL105: 66.74179855 | CN105: 13.34835971 | CO105: 3.337089928 | CP105: 14.0157777 | CQ105: 30.70122733 | CR105: 701.5188182 | CT105: 72 | CU105: 13.34835971 | CV105: 119.2852674 | CW105: 138.8165146 | CY105: 3.337089928 | CZ105: 15.92854411 | DA105: =SUM(CY99:CY105) -> 21.76534186 | DC105: 14.0157777 | DD105: 27.69377833 | DE105: 54.13509338 | DG105: 162.9075898 | DH105: 214.7169498 | DK105: 104 | DL105: 138 | DN105: 2014-07-07 | DO105: 118.8036785
F106: 1 | G106: 23 | AX106: 23 | BZ106: 2014-04-17 | CA106: =Generic_uncorrected!J130 -> 2014-04-17 | CB106: 73 | CC106: 68.50294134 | CD106: 2706 | CE106: 1780.331152 | CF106: 1780.331152 | CI106: 13.70058827 | CJ106: 6.850294134 | CK106: 47.95205894 | CL106: 68.50294134 | CN106: 13.70058827 | CO106: 3.425147067 | CP106: 14.38561768 | CQ106: 31.51135302 | CR106: 733.0301712 | CT106: 73 | CU106: 13.70058827 | CV106: 122.6424863 | CW106: 142.9390737 | CY106: 3.425147067 | CZ106: 16.31445502 | DA106: 22.31442641 | DC106: 14.38561768 | DD106: 28.40139538 | DE106: 55.44877727 | DG106: 167.3583367 | DH106: 220.7022774 | DK106: 105 | DL106: 138 | DN106: 2014-07-08 | DO106: 118.666338
F107: 1 | G107: 24 | AX107: 24 | BZ107: 2014-04-18 | CA107: =Generic_uncorrected!J131 -> 2014-04-18 | CB107: 74 | CC107: 70.38006867 | CD107: 2742 | CE107: 1850.711221 | CF107: 1850.711221 | CI107: 14.07601373 | CJ107: 7.038006867 | CK107: 49.26604807 | CL107: 70.38006867 | CN107: 14.07601373 | CO107: 3.519003434 | CP107: 14.77981442 | CQ107: 32.37483159 | CR107: 765.4050028 | CT107: 74 | CU107: 14.07601373 | CV107: 125.9747726 | CW107: 147.0618694 | CY107: 3.519003434 | CZ107: 16.72109326 | DA107: 22.87269461 | DC107: 14.77981442 | DD107: 29.1654321 | DE107: 56.85921043 | DG107: 171.861298 | DH107: 226.7937744 | DK107: 106 | DL107: 142 | DN107: 2014-07-09 | DO107: 118.7311761
F108: 1 | G108: 25 | AX108: 25 | BZ108: 2014-04-19 | CA108: =Generic_uncorrected!J132 -> 2014-04-19 | CB108: 75 | CC108: 72.34357494 | CD108: 2778 | CE108: 1923.054796 | CF108: 1923.054796 | CI108: 14.46871499 | CJ108: 7.234357494 | CK108: 50.64050245 | CL108: 72.34357494 | CN108: 14.46871499 | CO108: 3.617178747 | CP108: 15.19215074 | CQ108: 33.27804447 | CR108: 798.6830472 | CT108: 75 | CU108: 14.46871499 | CV108: =SUM(CU99:CU108) -> 129.3066844 | CW108: 151.1872151 | CY108: 3.617178747 | CZ108: 17.15508599 | DA108: 23.4506372 | DC108: 15.19215074 | DD108: 29.97196516 | DE108: 58.37336054 | DG108: 176.4337356 | DH108: 233.0112128 | DK108: 107 | DL108: 145 | DN108: 2014-07-10 | DO108: 118.7638135
F109: 1 | G109: 26 | BZ109: 2014-04-20 | CA109: =Generic_uncorrected!J133 -> 2014-04-20 | CB109: 76 | CC109: 74.33984159 | CD109: 2814 | CE109: 1997.394638 | CF109: 1997.394638 | CI109: 14.86796832 | CJ109: 7.433984159 | CK109: 52.03788911 | CL109: 74.33984159 | CN109: 14.86796832 | CO109: 3.716992079 | CP109: 15.61136673 | CQ109: 34.19632713 | CR109: 832.8793744 | CT109: 76 | CU109: 14.86796832 | CV109: 132.6704027 | CW109: 155.3114559 | CY109: 3.716992079 | CZ109: 17.61541125 | DA109: 24.05526409 | DC109: 15.61136673 | DD109: 30.80351747 | DE109: 59.96894957 | DG109: 181.0893314 | DH109: 239.3356696 | DK109: 108 | DL109: 145 | DN109: 2014-07-11 | DO109: 118.6896898
F110: 1 | G110: 27 | BZ110: 2014-04-21 | CA110: =Generic_uncorrected!J134 -> 2014-04-21 | CB110: 77 | CC110: 76.35346453 | CD110: 2850 | CE110: 2073.748102 | CF110: 2073.748102 | CI110: 15.27069291 | CJ110: 7.635346453 | CK110: 53.44742517 | CL110: 76.35346453 | CN110: 15.27069291 | CO110: 3.817673227 | CP110: 16.03422755 | CQ110: 35.12259369 | CR110: 868.0019681 | CT110: 77 | CU110: 15.27069291 | CV110: 136.0981546 | CW110: =SUM(CU99:CU110) -> 159.4453456 | CY110: 3.817673227 | CZ110: 18.09599455 | DA110: 24.6897513 | DC110: 16.03422755 | DD110: 31.64559429 | DE110: 61.61755944 | DG110: 185.8397435 | DH110: 245.7526564 | DK110: 109 | DL110: 172 | DN110: 2014-07-12 | DO110: 118.5039788
F111: 1 | G111: 28 | BZ111: 2014-04-22 | CA111: =Generic_uncorrected!J135 -> 2014-04-22 | CB111: 78 | CC111: 78.38712829 | CD111: 2886 | CE111: 2152.13523 | CF111: 2152.13523 | CI111: 15.67742566 | CJ111: 7.838712829 | CK111: 54.87098981 | CL111: 78.38712829 | CN111: 15.67742566 | CO111: 3.919356415 | CP111: 16.46129694 | CQ111: 36.05807902 | CR111: 904.0600471 | CT111: 78 | CU111: 15.67742566 | CV111: 139.6186357 | CW111: 163.6185213 | CY111: 3.919356415 | CZ111: 18.5902039 | DA111: 25.3524409 | DC111: 16.46129694 | DD111: 32.49552449 | DE111: 63.29904196 | DG111: 190.7043641 | DH111: 252.2700041 | DK111: 110 | DL111: 173 | DN111: 2014-07-13 | DO111: 118.1984615
F112: 1 | G112: 29 | BZ112: 2014-04-23 | CA112: =Generic_uncorrected!J136 -> 2014-04-23 | CB112: 79 | CC112: 80.44437189 | CD112: 2922 | CE112: 2232.579602 | CF112: 2232.579602 | CI112: 16.08887438 | CJ112: 8.044437189 | CK112: 56.31106032 | CL112: 80.44437189 | CN112: 16.08887438 | CO112: 4.022218594 | CP112: 16.8933181 | CQ112: 37.00441107 | CR112: 941.0644581 | CT112: 79 | CU112: 16.08887438 | CV112: 143.2580493 | CW112: 167.8644547 | CY112: 4.022218594 | CZ112: 19.09341906 | DA112: 26.03756956 | DC112: 16.8933181 | DD112: 33.35461504 | DE112: 65.00020932 | DG112: 195.7060834 | DH112: 258.9022336 | DK112: 111 | DL112: 174 | DN112: 2014-07-14 | DO112: 117.8176394
F113: 1 | G113: 30 | BZ113: 2014-04-24 | CA113: =Generic_uncorrected!J137 -> 2014-04-24 | CB113: 80 | CC113: 82.54076695 | CD113: 2958 | CE113: 2315.120369 | CF113: 2315.120369 | CI113: 16.50815339 | CJ113: 8.254076695 | CK113: 57.77853687 | CL113: 82.54076695 | CN113: 16.50815339 | CO113: 4.127038348 | CP113: 17.33356106 | CQ113: 37.9687528 | CR113: 979.0332109 | CT113: 80 | CU113: 16.50815339 | CV113: 147.0334586 | CW113: 172.2156634 | CY113: 4.127038348 | CZ113: 19.60327866 | DA113: 26.73946084 | DC113: 17.33356106 | DD113: 34.22687916 | DE113: 66.72240365 | DG113: 200.8636164 | DH113: 265.6775279 | DK113: 112 | DL113: 174 | DN113: 2014-07-15 | DO113: 117.4018723
F114: sum a1 to a25 | AY114: =SUM(AY84:AY113) -> 0 | AZ114: =SUM(AZ84:AZ113) -> 0 | BA114: 0 | BB114: 0 | BC114: 0 | BD114: 0 | BE114: 0 | BF114: 0 | BG114: 0 | BH114: 0 | BI114: 0 | BJ114: 0 | BK114: 0 | BL114: 0 | BM114: 0 | BZ114: 2014-04-25 | CA114: =Generic_uncorrected!J138 -> 2014-04-25 | CB114: 81 | CC114: 84.68995844 | CD114: 2994 | CE114: 2399.810328 | CF114: 2399.810328 | CI114: 16.93799169 | CJ114: 8.468995844 | CK114: 59.28297091 | CL114: 84.68995844 | CN114: 16.93799169 | CO114: 4.234497922 | CP114: 17.78489127 | CQ114: 38.95738088 | CR114: 1017.990592 | CT114: 81 | CU114: 16.93799169 | CV114: 150.944783 | CW114: 176.7041944 | CY114: 4.234497922 | CZ114: 20.12078451 | DA114: 27.45495533 | DC114: 17.78489127 | DD114: 35.11845233 | DE114: 68.47306737 | DG114: 206.1840199 | DH114: 272.6322171 | DK114: 113 | DL114: 187 | DN114: 2014-07-16 | DO114: 117.0194319
F115: distrubte to | BZ115: 2014-04-26 | CA115: =Generic_uncorrected!J139 -> 2014-04-26 | CB115: 82 | CC115: 86.90996814 | CD115: 3030 | CE115: 2486.720296 | CF115: 2486.720296 | CI115: 17.38199363 | CJ115: 8.690996814 | CK115: 60.8369777 | CL115: 86.90996814 | CN115: 17.38199363 | CO115: 4.345498407 | CP115: 18.25109331 | CQ115: 39.97858535 | CR115: 1057.969177 | CT115: 82 | CU115: 17.38199363 | CV115: 154.978417 | CW115: 181.3534439 | CY115: 4.345498407 | CZ115: 20.64860969 | DA115: 28.18327499 | DC115: 18.25109331 | DD115: 36.03598458 | DE115: 70.26286374 | DG115: 211.6630112 | DH115: 279.7995827 | DK115: 114 | DL115: 196 | DN115: 2014-07-17 | DO115: 116.673558
F116: hopital | AY116: =AY114*$D$3 -> 0 | AZ116: =AZ114*$D$3 -> 0 | BA116: 0 | BB116: 0 | BC116: 0 | BD116: 0 | BE116: 0 | BF116: 0 | BG116: 0 | BH116: 0 | BI116: 0 | BJ116: 0 | BK116: 0 | BL116: 0 | BM116: 0 | BZ116: 2014-04-27 | CA116: =Generic_uncorrected!J140 -> 2014-04-27 | CB116: 83 | CC116: 89.20240436 | CD116: 3066 | CE116: 2575.9227 | CF116: 2575.9227 | CI116: 17.84048087 | CJ116: 8.920240436 | CK116: 62.44168305 | CL116: 89.20240436 | CN116: 17.84048087 | CO116: 4.460120218 | CP116: 18.73250492 | CQ116: 41.03310601 | CR116: 1099.002283 | CT116: 83 | CU116: 17.84048087 | CV116: 159.1183096 | CW116: 186.1672575 | CY116: 4.460120218 | CZ116: 21.18937349 | DA116: 28.92640313 | DC116: 18.73250492 | DD116: 36.98359823 | DE116: 72.10205056 | DG116: 217.2912813 | DH116: 287.1957112 | DK116: 115 | DL116: 196 | DN116: 2014-07-18 | DO116: 116.369182
F117: home iso | AY117: =AY114*$D$4 -> 0 | AZ117: =AZ114*$D$4 -> 0 | BA117: 0 | BB117: 0 | BC117: 0 | BD117: 0 | BE117: 0 | BF117: 0 | BG117: 0 | BH117: 0 | BI117: 0 | BJ117: 0 | BK117: 0 | BL117: 0 | BM117: 0 | BZ117: 2014-04-28 | CA117: =Generic_uncorrected!J141 -> 2014-04-28 | CB117: 84 | CC117: 91.56780359 | CD117: 3102 | CE117: 2667.490504 | CF117: 2667.490504 | CI117: 18.31356072 | CJ117: 9.156780359 | CK117: 64.09746252 | CL117: 91.56780359 | CN117: 18.31356072 | CO117: 4.57839018 | CP117: 19.22923875 | CQ117: 42.12118965 | CR117: 1141.123473 | CT117: 84 | CU117: 18.31356072 | CV117: 163.3558565 | CW117: 191.1324585 | CY117: 4.57839018 | CZ117: 21.74554507 | DA117: 29.68712008 | DC117: 19.22923875 | DD117: 37.96174367 | DE117: 73.99772825 | DG117: 223.0631453 | DH117: 294.8173069 | DK117: 116 | DL117: 219 | DN117: 2014-07-19 | DO117: 116.0887474
F118: no iso | AY118: =AY114*$D$5 -> 0 | AZ118: =AZ114*$D$5 -> 0 | BA118: 0 | BB118: 0 | BC118: 0 | BD118: 0 | BE118: 0 | BF118: 0 | BG118: 0 | BH118: 0 | BI118: 0 | BJ118: 0 | BK118: 0 | BL118: 0 | BM118: 0 | BZ118: 2014-04-29 | CA118: =Generic_uncorrected!J142 -> 2014-04-29 | CB118: 85 | CC118: 94.00123217 | CD118: 3138 | CE118: 2761.491736 | CF118: 2761.491736 | CI118: 18.80024643 | CJ118: 9.400123217 | CK118: 65.80086252 | CL118: 94.00123217 | CN118: 18.80024643 | CO118: 4.700061608 | CP118: 19.74025876 | CQ118: 43.2405668 | CR118: 1184.36404 | CT118: 85 | CU118: 18.80024643 | CV118: 167.687388 | CW118: 196.2321167 | CY118: 4.700061608 | CZ118: 22.31856834 | DA118: 30.46782528 | DC118: 19.74025876 | DD118: 38.96949751 | DE118: 75.95309574 | DG118: 228.9754538 | DH118: 302.6530377 | DK118: 117 | DL118: 224 | DN118: 2014-07-20 | DO118: 115.825785
F119: I1 | G119: I+2 | AY119: =MIN(((AY116*$F$3)+(AY117*$F$4)+(AY118*$F$5))*AY$82*((IF($M$14-$X85<0,0,$M$14-$X85))/$M$14), $M$14-$X85) -> 0 | AZ119: 0 | BA119: 0 | BB119: 0 | BC119: 0 | BD119: 0 | BE119: 0 | BF119: 0 | BG119: 0 | BH119: 0 | BI119: 0 | BJ119: 0 | BK119: 0 | BL119: 0 | BM119: 0 | BZ119: 2014-04-30 | CA119: =Generic_uncorrected!J143 -> 2014-04-30 | CB119: 86 | CC119: 96.50073257 | CD119: 3174 | CE119: 2857.992468 | CF119: 2857.992468 | CI119: 19.30014651 | CJ119: 9.650073257 | CK119: 67.5505128 | CL119: 96.50073257 | CN119: 19.30014651 | CO119: 4.825036629 | CP119: 20.26515384 | CQ119: 44.39033698 | CR119: 1228.754377 | CT119: 86 | CU119: 19.30014651 | CV119: 172.1195662 | CW119: 201.4562495 | CY119: 4.825036629 | CZ119: 22.90910704 | DA119: 31.27064331 | DC119: 20.26515384 | DD119: 40.0054126 | DE119: 77.96715627 | DG119: 235.0340858 | DH119: 310.6940491 | DK119: 118 | DL119: 230 | DN119: 2014-07-21 | DO119: 115.5654501
F120: 2 | G120: 1 | H120: =AY119 -> 0 | X120: =MIN(SUM(H120:W120),$M$14-$X85) -> 0 | Y120: =$X120*Y$80 -> 0 | Z120: =$X120*Z$80 -> 0 | AA120: 0 | AB120: 0 | AC120: 0 | AD120: 0 | AE120: 0 | AF120: 0 | AG120: 0 | AH120: 0 | AI120: 0 | AJ120: 0 | AK120: 0 | AL120: 0 | AM120: 0 | AN120: 0 | AO120: 0 | AP120: 0 | AQ120: 0 | AR120: 0 | AS120: 0 | AT120: 0 | AU120: 0 | AV120: 0 | AW120: 0 | AX120: 1 | AY120: =Y84 -> 0 | AZ120: =AY120*AZ$82 -> 0 | BA120: 0 | BB120: 0 | BC120: 0 | BD120: 0 | BE120: 0 | BF120: 0 | BG120: 0 | BH120: 0 | BI120: 0 | BJ120: 0 | BK120: 0 | BL120: 0 | BM120: 0 | BZ120: 2014-05-01 | CA120: =Generic_uncorrected!J144 -> 2014-05-01 | CB120: 87 | CC120: 99.06360499 | CD120: 3210 | CE120: 2957.056073 | CF120: 2957.056073 | CI120: 19.812721 | CJ120: 9.906360499 | CK120: 69.3445235 | CL120: 99.06360499 | CN120: 19.812721 | CO120: 4.95318025 | CP120: 20.80335705 | CQ120: 45.5692583 | CR120: 1274.323635 | CT120: 87 | CU120: 19.812721 | CV120: 176.6615943 | CW120: 206.8002555 | CY120: 4.95318025 | CZ120: 23.51678888 | DA120: 32.09678521 | DC120: 20.80335705 | DD120: 41.06851089 | DE120: 80.0380084 | DG120: 241.2468941 | DH120: 318.9350491 | DK120: 119 | DL120: 249 | DN120: 2014-07-22 | DO120: 115.2944391
F121: 2 | G121: 2 | X121: =X120+X84 -> 25 | AX121: 2 | BZ121: 2014-05-02 | CA121: =Generic_uncorrected!J145 -> 2014-05-02 | CB121: 88 | CC121: 101.6886566 | CD121: 3246 | CE121: 3058.74473 | CF121: 3058.74473 | CI121: 20.33773132 | CJ121: 10.16886566 | CK121: 71.1820596 | CL121: 101.6886566 | CN121: 20.33773132 | CO121: 5.084432829 | CP121: 21.35461788 | CQ121: 46.77678203 | CR121: 1321.100417 | CT121: 88 | CU121: 20.33773132 | CV121: 181.3218999 | CW121: 212.2700185 | CY121: 5.084432829 | CZ121: 24.1411015 | DA121: 32.94672012 | DC121: 21.35461788 | DD121: 42.15797493 | DE121: 82.16338753 | DG121: 247.6209764 | DH121: 327.3801262 | DK121: 120 | DL121: 266 | DN121: 2014-07-23 | DO121: 115.0122398
F122: 2 | G122: 3 | AX122: 3 | BZ122: 2014-05-03 | CA122: =Generic_uncorrected!J146 -> 2014-05-03 | CB122: 89 | CC122: 104.3783822 | CD122: 3282 | CE122: 3163.123112 | CF122: 3163.123112 | CI122: 20.87567644 | CJ122: 10.43783822 | CK122: 73.06486755 | CL122: 104.3783822 | CN122: 20.87567644 | CO122: 5.218919111 | CP122: 21.91946027 | CQ122: 48.01405582 | CR122: 1369.114473 | CT122: 89 | CU122: 20.87567644 | CV122: 186.108702 | CW122: 217.875002 | CY122: 5.218919111 | CZ122: 24.78163043 | DA122: 33.82014082 | DC122: 21.91946027 | DD122: 43.27407815 | DE122: 84.34258904 | DG122: 254.1644106 | DH122: 336.0377319 | DK122: 121 | DL122: 296 | DN122: 2014-07-24 | DO122: 114.721204
F123: 2 | G123: 4 | AX123: 4 | BZ123: 2014-05-04 | CA123: =Generic_uncorrected!J147 -> 2014-05-04 | CB123: 90 | CC123: 107.136344 | CD123: 3318 | CE123: 3270.259456 | CF123: 3270.259456 | CI123: 21.4272688 | CJ123: 10.7136344 | CK123: 74.99544081 | CL123: 107.136344 | CN123: 21.4272688 | CO123: 5.356817201 | CP123: 22.49863224 | CQ123: 49.28271825 | CR123: 1418.397191 | CT123: 90 | CU123: 21.4272688 | CV123: 191.0278174 | CW123: 223.6248452 | CY123: 5.356817201 | CZ123: 25.43838602 | DA123: 34.71683781 | DC123: 22.49863224 | DD123: 44.41809251 | DE123: 86.57606744 | DG123: 260.8842959 | DH123: 344.9177504 | DK123: 122 | DN123: 2014-07-25 | DO123: 114.4252987
F124: 2 | G124: 5 | AX124: 5 | BZ124: 2014-05-05 | CA124: =Generic_uncorrected!J148 -> 2014-05-05 | CB124: 91 | CC124: 109.9664214 | CD124: 3354 | CE124: 3380.225878 | CF124: 3380.225878 | CG124: =CG94 -> Hosp | CH124: =D18 -> 0.25 | CI124: =CC124*$CH$124 -> 27.49160535 | CJ124: =CC124*$CH$125 -> 27.49160535 | CK124: =CC124*$CH$126 -> 54.98321069 | CL124: =SUM(CI124:CK124) -> 109.9664214 | CN124: 27.49160535 | CO124: 13.74580267 | CP124: 16.49496321 | CQ124: 57.73237122 | CR124: 1476.129562 | CT124: 91 | CU124: 27.49160535 | CV124: 201.5814311 | CW124: 235.0275762 | CY124: 13.74580267 | CZ124: 34.35915206 | DA124: 43.8842503 | DC124: 16.49496321 | DD124: 38.99359545 | DE124: 82.2676736 | DG124: 274.9341786 | DH124: 361.1795001 | DK124: 123 | DL124: 315 | DN124: 2014-07-26 | DO124: 114.1274911
F125: 2 | G125: 6 | AX125: 6 | BZ125: 2014-05-06 | CA125: =Generic_uncorrected!J149 -> 2014-05-06 | CB125: 92 | CC125: 112.8718938 | CD125: 3390 | CE125: 3493.097771 | CF125: 3493.097771 | CG125: =CG95 -> Home Iso | CH125: =D19 -> 0.25 | CI125: =CC125*$CH$124 -> 28.21797344 | CJ125: =CC125*$CH$125 -> 28.21797344 | CK125: =CC125*$CH$126 -> 56.43594689 | CL125: 112.8718938 | CN125: 28.21797344 | CO125: 14.10898672 | CP125: 16.93078407 | CQ125: 59.25774423 | CR125: 1535.387306 | CT125: 92 | CU125: 28.21797344 | CV125: 212.4174109 | CW125: 246.7373962 | CY125: 14.10898672 | CZ125: 43.51495853 | DA125: 53.29317541 | DC125: 16.93078407 | DD125: 33.42574727 | DE125: 77.84383978 | DG125: 289.3581167 | DH125: 377.8744114 | DK125: 124 | DN125: 2014-07-27 | DO125: 113.8316207
F126: 2 | G126: 7 | AX126: 7 | BZ126: 2014-05-07 | CA126: =Generic_uncorrected!J150 -> 2014-05-07 | CB126: 93 | CC126: 115.8557514 | CD126: 3426 | CE126: 3608.953523 | CF126: 3608.953523 | CG126: =CG96 -> No Home Iso | CH126: =D20 -> 0.5 | CI126: 28.96393786 | CJ126: 28.96393786 | CK126: 57.92787572 | CL126: 115.8557514 | CN126: 28.96393786 | CO126: 14.48196893 | CP126: 17.37836272 | CQ126: 60.82426951 | CR126: 1596.211576 | CT126: 93 | CU126: 28.96393786 | CV126: 223.5408679 | CW126: 258.7633424 | CY126: 14.48196893 | CZ126: 52.91249464 | DA126: 62.95010772 | DC126: 17.37836272 | DD126: 34.30914678 | DE126: 73.30274223 | DG126: 310.7625093 | DH126: 395.0161923 | DK126: 125 | DL126: 360 | DN126: 2014-07-28 | DO126: 113.5382222
F127: 2 | G127: 8 | AX127: 8 | BZ127: 2014-05-08 | CA127: =Generic_uncorrected!J151 -> 2014-05-08 | CB127: 94 | CC127: 118.802443 | CD127: 3462 | CE127: 3727.755966 | CF127: 3727.755966 | CI127: 29.70061074 | CJ127: 29.70061074 | CK127: 59.40122148 | CL127: 118.802443 | CN127: 29.70061074 | CO127: 14.85030537 | CP127: 17.82036644 | CQ127: 62.37128255 | CR127: 1658.582859 | CT127: 94 | CU127: 29.70061074 | CV127: 234.9279179 | CW127: 271.0819595 | CY127: 14.85030537 | CZ127: 62.54388089 | DA127: 72.84723283 | DC127: 17.82036644 | DD127: 35.19872916 | DE127: 68.62447643 | DG127: 332.670528 | DH127: 412.5536688 | DK127: 126 | DN127: 2014-07-29 | DO127: 113.2483778
F128: 2 | G128: 9 | AX128: 9 | BZ128: 2014-05-09 | CA128: =Generic_uncorrected!J152 -> 2014-05-09 | CB128: 95 | CC128: 121.3129039 | CD128: 3498 | CE128: 3849.06887 | CF128: 3849.06887 | CI128: 30.32822597 | CJ128: 30.32822597 | CK128: 60.65645193 | CL128: 121.3129039 | CN128: 30.32822597 | CO128: 15.16411298 | CP128: 18.19693558 | CQ128: 63.68927453 | CR128: 1722.272133 | CT128: 95 | CU128: 30.32822597 | CV128: 246.4558974 | CW128: 283.5697046 | CY128: 15.16411298 | CZ128: 72.35117668 | DA128: 82.92691299 | DC128: 18.19693558 | DD128: 36.01730202 | DE128: 70.32644881 | DG128: 354.8243761 | DH128: 436.8230664 | DK128: 127 | DN128: 2014-07-30 | DO128: 112.961751
F129: 2 | G129: 10 | AX129: 10 | BZ129: 2014-05-10 | CA129: =Generic_uncorrected!J153 -> 2014-05-10 | CB129: 96 | CC129: 122.9736111 | CD129: 3534 | CE129: 3972.042481 | CF129: 3972.042481 | CI129: 30.74340277 | CJ129: 30.74340277 | CK129: 61.48680554 | CL129: 122.9736111 | CN129: 30.74340277 | CO129: 15.37170139 | CP129: 18.44604166 | CQ129: 64.56114582 | CR129: 1786.833279 | CT129: 96 | CU129: 30.74340277 | CV129: 257.8991537 | CW129: 295.9995466 | CY129: 15.37170139 | CZ129: 73.97707539 | DA129: 93.07969526 | DC129: 18.44604166 | DD129: 36.64297724 | DE129: 71.8417064 | DG129: 368.5192063 | DH129: 460.9209483 | DK129: 128 | DL129: 434 | DN129: 2014-07-31 | DO129: 112.6773701
F130: 2 | G130: 11 | AX130: 11 | BZ130: 2014-05-11 | CA130: =Generic_uncorrected!J154 -> 2014-05-11 | CB130: 97 | CC130: 123.7156135 | CD130: 3570 | CE130: 4095.758094 | CF130: 4095.758094 | CI130: 30.92890338 | CJ130: 30.92890338 | CK130: 61.85780677 | CL130: 123.7156135 | CN130: 30.92890338 | CO130: 15.46445169 | CP130: 18.55734203 | CQ130: 64.9506971 | CR130: 1851.783976 | CT130: 97 | CU130: 30.92890338 | CV130: 269.0153361 | CW130: 308.1282036 | CY130: 15.46445169 | CZ130: 75.33254036 | DA130: 103.1873298 | DC130: 18.55734203 | DD130: 37.00338369 | DE130: 73.02068572 | DG130: 381.3512601 | DH130: 484.3362191 | DK130: 129 | DL130: 468 | DN130: 2014-08-01 | DO130: 112.3941186
F131: 2 | G131: 12 | AX131: 12 | BZ131: 2014-05-12 | CA131: =Generic_uncorrected!J155 -> 2014-05-12 | CB131: 98 | CC131: 123.63196 | CD131: 3606 | CE131: 4219.390054 | CF131: 4219.390054 | CI131: 30.90799 | CJ131: 30.90799 | CK131: 61.81597999 | CL131: 123.63196 | CN131: 30.90799 | CO131: 15.453995 | CP131: 18.544794 | CQ131: 64.90677899 | CR131: 1916.690755 | CT131: 98 | CU131: 30.90799 | CV131: 279.5855948 | CW131: 319.7360471 | CY131: 15.453995 | CZ131: 76.30456643 | DA131: 104.8955221 | DC131: 18.544794 | DD131: 37.10213603 | DE131: 73.74511327 | DG131: 392.9922972 | DH131: 498.3766824 | DK131: =DK130+(DN131-DN130) -> 130 | DL131: 479 | DN131: 2014-08-02 | DO131: =CC162 -> 112.1111447
F132: 2 | G132: 13 | AX132: 13 | BZ132: 2014-05-13 | CA132: =Generic_uncorrected!J156 -> 2014-05-13 | CB132: 99 | CC132: 122.7978811 | CD132: 3642 | CE132: 4342.187935 | CF132: 4342.187935 | CI132: 30.69947026 | CJ132: 30.69947026 | CK132: 61.39894053 | CL132: 122.7978811 | CN132: 30.69947026 | CO132: 15.34973513 | CP132: 18.41968216 | CQ132: 64.46888755 | CR132: 1981.159643 | CT132: 99 | CU132: 30.69947026 | CV132: 289.4093886 | CW132: 330.6227963 | CY132: 15.34973513 | CZ132: 76.80399619 | DA132: 106.1362705 | DC132: 18.41968216 | DD132: 36.96447615 | DE132: 73.96785985 | DG132: 403.1778609 | DH132: 510.7269267 | DK132: 131 | DN132: 2014-08-03 | DO132: 111.8279862
F133: 2 | G133: 14 | AX133: 14 | BZ133: 2014-05-14 | CA133: =Generic_uncorrected!J157 -> 2014-05-14 | CB133: 100 | CC133: 121.4961557 | CD133: 3678 | CE133: 4463.684091 | CF133: 4463.684091 | CI133: 30.37403893 | CJ133: 30.37403893 | CK133: 60.74807787 | CL133: 121.4961557 | CN133: 30.37403893 | CO133: 15.18701947 | CP133: 18.22442336 | CQ133: 63.78548176 | CR133: 2044.945124 | CT133: 100 | CU133: 30.37403893 | CV133: 298.3561587 | CW133: 340.6591039 | CY133: 15.18701947 | CZ133: 76.82690267 | DA133: 106.841321 | DC133: 18.22442336 | DD133: 36.64410552 | DE133: 73.74624154 | DG133: 411.8271669 | DH133: 521.2466665 | DK133: 132 | DL133: 516 | DM133: =IF(DL133-DM132>0, DL133-DM133, "") ->  | DN133: 2014-08-04 | DO133: 111.5445476
F134: 2 | G134: 15 | AX134: 15 | BZ134: 2014-05-15 | CA134: =Generic_uncorrected!J158 -> 2014-05-15 | CB134: 101 | CC134: 120.1843555 | CD134: 3714 | CE134: 4583.868447 | CF134: 4583.868447 | CI134: 30.04608888 | CJ134: 30.04608888 | CK134: 60.09217776 | CL134: 120.1843555 | CN134: 30.04608888 | CO134: 15.02304444 | CP134: 18.02765333 | CQ134: 63.09678664 | CR134: 2108.041911 | CT134: 101 | CU134: 30.04608888 | CV134: 300.9106422 | CW134: 349.8295164 | CY134: 15.02304444 | CZ134: 76.47824573 | DA134: 107.0140601 | DC134: 18.02765333 | DD134: 36.25207669 | DE134: 73.21655284 | DG134: 413.6409646 | DH134: 530.0601293 | DK134: 133 | DN134: 2014-08-05 | DO134: 111.2610172
F135: 2 | G135: 16 | AX135: 16 | BZ135: 2014-05-16 | CA135: =Generic_uncorrected!J159 -> 2014-05-16 | CB135: 102 | CC135: 119.26079 | CD135: 3750 | CE135: 4703.129237 | CF135: 4703.129237 | CI135: 29.81519751 | CJ135: 29.81519751 | CK135: 59.63039502 | CL135: 119.26079 | CN135: 29.81519751 | CO135: 14.90759875 | CP135: 17.88911851 | CQ135: 62.61191477 | CR135: 2170.653826 | CT135: 102 | CU135: 29.81519751 | CV135: 302.5078663 | CW135: 358.2174451 | CY135: 14.90759875 | CZ135: 75.92139279 | DA135: 106.7575459 | DC135: 17.88911851 | DD135: 35.91677183 | DE135: 72.56087735 | DG135: 414.3460309 | DH135: 537.5358683 | DK135: 134 | DL135: 554 | DN135: 2014-08-06 | DO135: 110.9776627
F136: 2 | G136: 17 | AX136: 17 | BZ136: 2014-05-17 | CA136: =Generic_uncorrected!J160 -> 2014-05-17 | CB136: 103 | CC136: 118.8036785 | CD136: 3786 | CE136: 4821.932915 | CF136: 4821.932915 | CI136: 29.70091963 | CJ136: 29.70091963 | CK136: 59.40183927 | CL136: 118.8036785 | CN136: 29.70091963 | CO136: 14.85045982 | CP136: 17.82055178 | CQ136: 62.37193123 | CR136: 2233.025757 | CT136: 103 | CU136: 29.70091963 | CV136: 303.2448481 | CW136: 360.4267594 | CY136: 14.85045982 | CZ136: 75.31785761 | DA136: 106.2363043 | DC136: 17.82055178 | DD136: 35.70967029 | DE136: 71.96174697 | DG136: 414.272376 | DH136: 538.6248106 | DK136: 135 | DL136: 587 | DN136: 2014-08-07 | DO136: 110.6947799
F137: 2 | G137: 18 | AX137: 18 | BZ137: 2014-05-18 | CA137: =Generic_uncorrected!J161 -> 2014-05-18 | CB137: 104 | CC137: 118.666338 | CD137: 3822 | CE137: 4940.599253 | CF137: 4940.599253 | CI137: 29.66658449 | CJ137: 29.66658449 | CK137: 59.33316898 | CL137: 118.666338 | CN137: 29.66658449 | CO137: 14.83329225 | CP137: 17.79995069 | CQ137: 62.29982743 | CR137: 2295.325584 | CT137: 104 | CU137: 29.66658449 | CV137: 303.2108218 | CW137: 361.8753704 | CY137: 14.83329225 | CZ137: 74.80141472 | DA137: 105.6051449 | DC137: 17.79995069 | DD137: 35.62050247 | DE137: 71.53727431 | DG137: 413.632739 | DH137: 539.0177896 | DK137: 136 | DL137: 599 | DN137: 2014-08-08 | DO137: 110.4126065
F138: 2 | G138: 19 | AX138: 19 | BZ138: 2014-05-19 | CA138: =Generic_uncorrected!J162 -> 2014-05-19 | CB138: 105 | CC138: 118.7311761 | CD138: 3858 | CE138: 5059.330429 | CF138: 5059.330429 | CI138: 29.68279403 | CJ138: 29.68279403 | CK138: 59.36558805 | CL138: 118.7311761 | CN138: 29.68279403 | CO138: 14.84139701 | CP138: 17.80967642 | CQ138: 62.33386745 | CR138: 2357.659452 | CT138: 105 | CU138: 29.68279403 | CV138: 302.5653899 | CW138: 362.5942266 | CY138: 14.84139701 | CZ138: 74.45579227 | DA138: 104.9925469 | DC138: 17.80967642 | DD138: 35.60962711 | DE138: 71.31929739 | DG138: 412.6308093 | DH138: 538.9060708 | DK138: 137 | DL138: 599 | DN138: 2014-08-09 | DO138: 110.1312884
F139: 2 | G139: 20 | AX139: 20 | BZ139: 2014-05-20 | CA139: =Generic_uncorrected!J163 -> 2014-05-20 | CB139: 106 | CC139: 118.7638135 | CD139: 3894 | CE139: 5178.094243 | CF139: 5178.094243 | CI139: 29.69095339 | CJ139: 29.69095339 | CK139: 59.38190677 | CL139: 118.7638135 | CN139: 29.69095339 | CO139: 14.84547669 | CP139: 17.81457203 | CQ139: 62.35100211 | CR139: 2420.010454 | CT139: 106 | CU139: 29.69095339 | CV139: 301.5129405 | CW139: 362.5845692 | CY139: 14.84547669 | CZ139: 74.27822452 | DA139: 104.4882884 | DC139: 17.81457203 | DD139: 35.62424845 | DE139: 71.24475092 | DG139: 411.4154135 | DH139: 538.3176086
F140: 2 | G140: 21 | AX140: 21 | BZ140: 2014-05-21 | CA140: =Generic_uncorrected!J164 -> 2014-05-21 | CB140: 107 | CC140: 118.6896898 | CD140: 3930 | CE140: 5296.783933 | CF140: 5296.783933 | CI140: 29.67242244 | CJ140: 29.67242244 | CK140: 59.34484489 | CL140: 118.6896898 | CN140: 29.67242244 | CO140: 14.83621122 | CP140: 17.80345347 | CQ140: 62.31208713 | CR140: 2482.322541 | CT140: 107 | CU140: 29.67242244 | CV140: 300.2564596 | CW140: 361.9287657 | CY140: 14.83621122 | CZ140: 74.20683699 | DA140: 104.1374802 | DC140: 17.80345347 | DD140: 35.6180255 | DE140: 71.22765261 | DG140: 410.081322 | DH140: 537.2938985
F141: 2 | G141: 22 | AX141: 22 | BZ141: 2014-05-22 | CA141: =Generic_uncorrected!J165 -> 2014-05-22 | CB141: 108 | CC141: 118.5039788 | CD141: 3966 | CE141: 5415.287911 | CF141: 5415.287911 | CI141: 29.62599471 | CJ141: 29.62599471 | CK141: 59.25198942 | CL141: 118.5039788 | CN141: 29.62599471 | CO141: 14.81299735 | CP141: 17.77559683 | CQ141: 62.21458889 | CR141: 2544.53713 | CT141: 108 | CU141: 29.62599471 | CV141: 298.9744643 | CW141: 360.8113576 | CY141: 14.81299735 | CZ141: 74.16937453 | DA141: 103.9274331 | DC141: 17.77559683 | DD141: 35.57905029 | DE141: 71.20329874 | DG141: 408.7228891 | DH141: 535.9420895
F142: 2 | G142: 23 | AX142: 23 | BZ142: 2014-05-23 | CA142: =Generic_uncorrected!J166 -> 2014-05-23 | CB142: 109 | CC142: 118.1984615 | CD142: 4002 | CE142: 5533.486373 | CF142: 5533.486373 | CI142: 29.54961536 | CJ142: 29.54961536 | CK142: 59.09923073 | CL142: 118.1984615 | CN142: 29.54961536 | CO142: 14.77480768 | CP142: 17.72976922 | CQ142: 62.05419226 | CR142: 2606.591322 | CT142: 109 | CU142: 29.54961536 | CV142: 297.8246094 | CW142: 359.4320696 | CY142: 14.77480768 | CZ142: 74.11088996 | DA142: 103.794642 | DC142: 17.72976922 | DD142: 35.50536604 | DE142: 71.12339154 | DG142: 407.4408654 | DH142: 534.3501032
F143: 2 | G143: 24 | AX143: 24 | BZ143: 2014-05-24 | CA143: =Generic_uncorrected!J167 -> 2014-05-24 | CB143: 110 | CC143: 117.8176394 | CD143: 4038 | CE143: 5651.304012 | CF143: 5651.304012 | CI143: 29.45440986 | CJ143: 29.45440986 | CK143: 58.90881972 | CL143: 117.8176394 | CN143: 29.45440986 | CO143: 14.72720493 | CP143: 17.67264592 | CQ143: 61.85426071 | CR143: 2668.445583 | CT143: 110 | CU143: 29.45440986 | CV143: 296.9049803 | CW143: 357.9784895 | CY143: 14.72720493 | CZ143: 73.99669788 | DA143: 103.6713871 | DC143: 17.67264592 | DD143: 35.40241513 | DE143: 70.98146543 | DG143: 406.3040933 | DH143: 532.6313421
